Workbook

Sheet notes (hidden)
H2: =SUM(H3:H8) -> 0
C3: 600 | D3: 24 | E3: 600 | F3: 1000 | G3: =IF(Form!$D$4=D3,1,0) -> 0 | H3: =IF(G3=1,IF(OR(E3>Form!M$5,F3<Form!M$5),1,0),0) -> 0
C4: 800 | D4: 30 | E4: 800 | F4: 1200 | G4: =IF(Form!$D$4=D4,1,0) -> 0 | H4: =IF(G4=1,IF(OR(E4>Form!M$5,F4<Form!M$5),1,0),0) -> 0
C5: 1000 | D5: 36 | E5: 1000 | F5: 1400 | G5: =IF(Form!$D$4=D5,1,0) -> 0 | H5: =IF(G5=1,IF(OR(E5>Form!M$5,F5<Form!M$5),1,0),0) -> 0
C6: 1200 | D6: 42 | E6: 1200 | F6: 1600 | G6: =IF(Form!$D$4=D6,1,0) -> 0 | H6: =IF(G6=1,IF(OR(E6>Form!M$5,F6<Form!M$5),1,0),0) -> 0
C7: 1400 | D7: 48 | E7: 1400 | F7: 1800 | G7: =IF(Form!$D$4=D7,1,0) -> 0 | H7: =IF(G7=1,IF(OR(E7>Form!M$5,F7<Form!M$5),1,0),0) -> 0
C8: 1600 | D8: 60 | E8: 1600 | F8: 2000 | G8: =IF(Form!$D$4=D8,1,0) -> 0 | H8: =IF(G8=1,IF(OR(E8>Form!M$5,F8<Form!M$5),1,0),0) -> 0
C9: 1800
C10: 2000
D13: Total
B14: =Form!M5+Form!M6 -> 1813 | E14: =E31 -> 0 | F14: =F31 -> 0 | G14: 1 | H14: 2 | I14: 0 | J14: 0 | K14: 0 | L14: =SUM(E14:K14) -> 3 | P14: 58
E15: =Form!C27 -> 85 | F15: =Form!E27 -> 90 | G15: =Form!G27 -> 95 | H15: =Form!I27 -> 100 | I15: =Form!K27 -> 105 | J15: =Form!M27 -> 110 | K15: =Form!O27 -> 115
A16: =C16+D16 -> 1646 | B16: =P16 -> 0 | C16: =Form!A31 -> 1575 | D16: =Form!B31 -> 71 | E16: =Form!C31 -> 61.8125 | F16: =Form!E31 -> 60.375 | G16: =Form!G31 -> 58.9375 | H16: =Form!I31 -> 57.5 | I16: =Form!K31 -> 56.0625 | J16: =Form!M31 -> 54.625 | K16: =Form!O31 -> 53.1875 | L16: =Form!$M$5+Form!M$6 -> 1813 | M16: =IF(C16+D16=Form!M$5+Form!M$6,1,0) -> 0 | N16: =IF(A16<L16,1,0) -> 1 | O16: =IF(A16>L16,2,0) -> 0 | P16: =IF(AND(N16=1,N17=0),1,0)+IF(AND(O15=0,O16=2),2,0) -> 0
A17: =C17+D17 -> 1642 | B17: =P17 -> 0 | C17: =C16 -> 1575 | D17: =Form!B32 -> 67 | E17: =Form!C32 -> 58.45833333 | F17: =Form!E32 -> 57.26041667 | G17: =Form!G32 -> 56.0625 | H17: =Form!I32 -> 54.625 | I17: =Form!K32 -> 53.1875 | J17: =Form!M32 -> 51.75 | K17: =Form!O32 -> 50.3125 | L17: =Form!$M$5+Form!M$6 -> 1813 | M17: =IF(C17+D17=Form!M$5+Form!M$6,1,0) -> 0 | N17: =IF(A17<L17,1,0) -> 1 | O17: =IF(A17>L17,2,0) -> 0 | P17: =IF(AND(N17=1,N18=0),1,0)+IF(AND(O16=0,O17=2),2,0) -> 0
A18: 1640 | B18: 0 | C18: =C17 -> 1575 | D18: =Form!B33 -> 65 | E18: =Form!C33 -> 57.02083333 | F18: =Form!E33 -> 55.703125 | G18: =Form!G33 -> 54.38541667 | H18: =Form!I33 -> 53.06770833 | I18: =Form!K33 -> 51.75 | J18: =Form!M33 -> 50.3125 | K18: =Form!O33 -> 48.875 | L18: =Form!$M$5+Form!M$6 -> 1813 | M18: =IF(C18+D18=Form!M$5+Form!M$6,1,0) -> 0 | N18: 1 | O18: =IF(A18>L18,2,0) -> 0 | P18: =IF(AND(N18=1,N19=0),1,0)+IF(AND(O17=0,O18=2),2,0) -> 0
A19: 1638 | B19: 1 | C19: =C18 -> 1575 | D19: =Form!B34 -> 63 | E19: =Form!C34 -> 55.58333333 | F19: =Form!E34 -> 54.14583333 | G19: =Form!G34 -> 52.70833333 | H19: =Form!I34 -> 51.51041667 | I19: =Form!K34 -> 50.3125 | J19: =Form!M34 -> 48.875 | K19: =Form!O34 -> 47.4375 | L19: =Form!$M$5+Form!M$6 -> 1813 | M19: =IF(C19+D19=Form!M$5+Form!M$6,1,0) -> 0 | N19: 1 | O19: =IF(A19>L19,2,0) -> 0 | P19: =IF(AND(N19=1,N20=0),1,0)+IF(AND(O18=0,O19=2),2,0) -> 1
A20: 1871 | B20: 2 | C20: =Form!A35 -> 1800 | D20: =Form!B35 -> 71 | E20: =Form!C35 -> 63.72916667 | F20: =Form!E35 -> 62.29166667 | G20: =Form!G35 -> 60.85416667 | H20: =Form!I35 -> 59.41666667 | I20: =Form!K35 -> 57.97916667 | J20: =Form!M35 -> 56.30208333 | K20: =Form!O35 -> 54.625 | L20: =Form!$M$5+Form!M$6 -> 1813 | M20: =IF(C20+D20=Form!M$5+Form!M$6,1,0) -> 0 | N20: 0 | O20: =IF(A20>L20,2,0) -> 2 | P20: =IF(AND(N20=1,N21=0),1,0)+IF(AND(O19=0,O20=2),2,0) -> 2
A21: 1867 | B21: 0 | C21: =C20 -> 1800 | D21: =Form!B36 -> 67 | E21: =Form!C36 -> 60.375 | F21: =Form!E36 -> 58.9375 | G21: =Form!G36 -> 57.5 | H21: =Form!I36 -> 56.0625 | I21: =Form!K36 -> 54.625 | J21: =Form!M36 -> 53.1875 | K21: =Form!O36 -> 51.75 | L21: =Form!$M$5+Form!M$6 -> 1813 | M21: =IF(C21+D21=Form!M$5+Form!M$6,1,0) -> 0 | N21: 0 | O21: =IF(A21>L21,2,0) -> 2 | P21: =IF(AND(N21=1,N22=0),1,0)+IF(AND(O20=0,O21=2),2,0) -> 0
A22: 1865 | B22: 0 | C22: =C21 -> 1800 | D22: =Form!B37 -> 65 | E22: =Form!C37 -> 58.69791667 | F22: =Form!E37 -> 57.38020833 | G22: =Form!G37 -> 56.0625 | H22: =Form!I37 -> 54.625 | I22: =Form!K37 -> 53.1875 | J22: =Form!M37 -> 51.75 | K22: =Form!O37 -> 50.3125 | L22: =Form!$M$5+Form!M$6 -> 1813 | M22: =IF(C22+D22=Form!M$5+Form!M$6,1,0) -> 0 | N22: 0 | O22: 2 | P22: 0
A23: 1863 | B23: 0 | C23: =C22 -> 1800 | D23: =Form!B38 -> 63 | E23: =Form!C38 -> 57.02083333 | F23: =Form!E38 -> 55.82291667 | G23: =Form!G38 -> 54.625 | H23: =Form!I38 -> 53.1875 | I23: =Form!K38 -> 51.75 | J23: =Form!M38 -> 50.3125 | K23: =Form!O38 -> 48.875 | L23: =Form!$M$5+Form!M$6 -> 1813 | M23: =IF(C23+D23=Form!M$5+Form!M$6,1,0) -> 0 | N23: 0 | O23: 2 | P23: 0
A24: 2096 | B24: 0 | C24: =Form!A39 -> 2025 | D24: =Form!B39 -> 71 | E24: =Form!C39 -> 65.16666667 | F24: =Form!E39 -> 63.72916667 | G24: =Form!G39 -> 62.29166667 | H24: =Form!I39 -> 60.61458333 | I24: =Form!K39 -> 58.9375 | J24: =Form!M39 -> 57.26041667 | K24: =Form!O39 -> 55.58333333 | L24: =Form!$M$5+Form!M$6 -> 1813 | M24: =IF(C24+D24=Form!M$5+Form!M$6,1,0) -> 0 | N24: 0 | O24: 2 | P24: 0
A25: 2092 | B25: 0 | C25: =C24 -> 2025 | D25: =Form!B40 -> 67 | E25: =Form!C40 -> 61.8125 | F25: =Form!E40 -> 60.375 | G25: =Form!G40 -> 58.9375 | H25: =Form!I40 -> 57.5 | I25: =Form!K40 -> 56.0625 | J25: =Form!M40 -> 54.38541667 | K25: =Form!O40 -> 52.70833333 | L25: =Form!$M$5+Form!M$6 -> 1813 | M25: =IF(C25+D25=Form!M$5+Form!M$6,1,0) -> 0 | N25: 0 | O25: 2 | P25: 0
A26: 2090 | B26: 0 | C26: =C25 -> 2025 | D26: =Form!B41 -> 65 | E26: =Form!C41 -> 60.13541667 | F26: =Form!E41 -> 58.81770833 | G26: =Form!G41 -> 57.5 | H26: =Form!I41 -> 56.0625 | I26: =Form!K41 -> 54.625 | J26: =Form!M41 -> 53.06770833 | K26: =Form!O41 -> 51.51041667 | L26: =Form!$M$5+Form!M$6 -> 1813 | M26: =IF(C26+D26=Form!M$5+Form!M$6,1,0) -> 0 | N26: 0 | O26: 2 | P26: 0
A27: 2088 | B27: 0 | C27: =C26 -> 2025 | D27: =Form!B42 -> 63 | E27: =Form!C42 -> 58.45833333 | F27: =Form!E42 -> 57.26041667 | G27: =Form!G42 -> 56.0625 | H27: =Form!I42 -> 54.625 | I27: =Form!K42 -> 53.1875 | J27: =Form!M42 -> 51.75 | K27: =Form!O42 -> 50.3125 | L27: =Form!$M$5+Form!M$6 -> 1813 | M27: =IF(C27+D27=Form!M$5+Form!M$6,1,0) -> 0 | N27: 0 | O27: 2 | P27: 0
A28: 0 | B28: =SUM(B16:B27) -> 3
F29: =IF(AND(F15>Form!$M$4,E15<Form!$M$4),2,0) -> 0 | G29: =IF(AND(G15>Form!$M$4,F15<Form!$M$4),2,0) -> 0 | H29: =IF(AND(H15>Form!$M$4,G15<Form!$M$4),2,0) -> 2 | I29: =IF(AND(I15>Form!$M$4,H15<Form!$M$4),2,0) -> 0 | J29: =IF(AND(J15>Form!$M$4,I15<Form!$M$4),2,0) -> 0 | K29: =IF(AND(K15>Form!$M$4,J15<Form!$M$4),2,0) -> 0
C30: =HLOOKUP(1,E14:K15,2,FALSE) -> 95 | E30: =IF(F29=2,1,0) -> 0 | F30: =IF(G29=2,1,0) -> 0 | G30: 1 | H30: 0 | I30: 0 | J30: 0 | K30: 0
C31: =HLOOKUP(2,E14:K15,2,FALSE) -> 100 | E31: =SUM(E29:E30) -> 0 | F31: 0 | G31: 1 | H31: 2 | I31: 0 | J31: 0 | K31: 0
B32: =(VLOOKUP(1,B14:K27,3,FALSE)) -> 63 | C32: =IF(ISERROR(B32),0,B32) -> 63 | E32: =(C34-C35)/(C32-C33)*(Form!$M$6-C33)+C35 -> 51.51041667 | F32: =(C36-C37)/(C32-C33)*(Form!M6-C33)+C37 -> 52.70833333
B33: =VLOOKUP(2,B14:K27,3,FALSE) -> 71 | C33: =IF(ISERROR(B33),0,B33) -> 71 | E33: =IF(AND(B28=0,L14=3),VLOOKUP(Form!$M$5+Form!$M$6,notes!A14:K27,MATCH(1,notes!A14:K14,FALSE),FALSE),0) -> 0 | F33: =IF(AND(B28=0,L14=3),VLOOKUP(Form!$M$5+Form!$M$6,notes!A14:K27,MATCH(2,notes!A14:K14,FALSE),FALSE),0) -> 0 | I33: exactly
B34: =VLOOKUP(1,B14:K27,MATCH(1,B14:K14,FALSE),FALSE) -> 52.70833333 | C34: =MIN(B34,B36) -> 51.51041667 | E34: =IF(ISERROR(E32),E33,E32) -> 51.51041667 | F34: =IF(ISERROR(F32),F33,F32) -> 52.70833333 | I34: x | J34: y | K34: err1 | L34: err2 | M34: err3 | N34: ans
B35: =VLOOKUP(2,B14:K27,MATCH(1,B14:K14,FALSE),FALSE) -> 60.85416667 | C35: =MAX(B35,B37) -> 60.85416667 | E35: =MIN(E34:F34) -> 51.51041667 | F35: =MAX(E34:F34) -> 52.70833333 | I35: y | J35: y | K35: =IF(ISERROR(VLOOKUP(Form!$M$5+Form!$M$6,notes!A15:K27,MATCH(Form!$M$4,notes!A15:K15,FALSE),FALSE)),0,VLOOKUP(Form!$M$5+Form!$M$6,notes!A15:K27,MATCH(Form!$M$4,notes!A15:K15,FALSE),FALSE)) -> 0 | N35: =SUM(K35:M35) -> 0
B36: =VLOOKUP(1,B14:K27,MATCH(2,B14:K14,FALSE),FALSE) -> 51.51041667 | C36: =MAX(B36,B34) -> 52.70833333 | E36: =(E35-F35)/(C31-C30)*(Form!$M$4-C30)+F35 -> 51.75 | I36: y | J36: n | N36: =SUM(K36:M36) -> 0
B37: =VLOOKUP(2,B14:K27,MATCH(2,B14:K14,FALSE),FALSE) -> 59.41666667 | C37: =MIN(B35,B37) -> 59.41666667 | I37: n | J37: n | K37: =IF(OR(E36>100000,E36<=0),0,E36) -> 51.75 | L37: =IF(K37<>0,0,MIN(E32:F32)) -> 0 | M37: =IF(AND(L37=0,K37=0),C34,0) -> 0 | N37: =SUM(K37:M37) -> 51.75
N38: =IF(ISERROR(N37),N35,N37) -> 51.75
A41: sens | E41: =E58 -> 0 | F41: =F58 -> 0 | G41: 1 | H41: 2 | I41: 0 | J41: 0 | K41: 0 | L41: =SUM(E41:K41) -> 3
E42: =E15 -> 85 | F42: =F15 -> 90 | G42: 95 | H42: 100 | I42: 105 | J42: 110 | K42: 115
A43: =C43+D43 -> 1646 | B43: =P43 -> 0 | C43: =C16 -> 1575 | D43: =D16 -> 71 | E43: =Form!D31 -> 29.381875 | F43: =Form!F31 -> 28.53375 | G43: =Form!H31 -> 27.685625 | H43: =Form!J31 -> 27.125 | I43: =Form!L31 -> 26.55 | J43: =Form!N31 -> 26.23375 | K43: =Form!P31 -> 25.88875 | L43: =Form!$M$5+Form!M$6 -> 1813 | M43: =IF(C43+D43=Form!M$5+Form!M$6,1,0) -> 0 | N43: =IF(A43<L43,1,0) -> 1 | O43: =IF(A43>L43,2,0) -> 0 | P43: =IF(AND(N43=1,N44=0),1,0)+IF(AND(O42=0,O43=2),2,0) -> 0
A44: =C44+D44 -> 1642 | B44: =P44 -> 0 | C44: =C17 -> 1575 | D44: =D17 -> 67 | E44: =Form!D32 -> 35.58708333 | F44: =Form!F32 -> 35.28520833 | G44: =Form!H32 -> 34.959375 | H44: =Form!J32 -> 34.154375 | I44: =Form!L32 -> 33.335 | J44: =Form!N32 -> 32.76 | K44: =Form!P32 -> 32.15625 | L44: =Form!$M$5+Form!M$6 -> 1813 | M44: =IF(C44+D44=Form!M$5+Form!M$6,1,0) -> 0 | N44: =IF(A44<L44,1,0) -> 1 | O44: =IF(A44>L44,2,0) -> 0 | P44: =IF(AND(N44=1,N45=0),1,0)+IF(AND(O43=0,O44=2),2,0) -> 0
A45: =C45+D45 -> 1640 | B45: 0 | C45: 1575 | D45: 65 | E45: =Form!D33 -> 39.099375 | F45: =Form!F33 -> 38.5890625 | G45: =Form!H33 -> 38.05239583 | H45: =Form!J33 -> 37.35670573 | I45: =Form!L33 -> 36.64125 | J45: =Form!N33 -> 36.05546875 | K45: =Form!P33 -> 35.43375 | L45: =Form!$M$5+Form!M$6 -> 1813 | M45: =IF(C45+D45=Form!M$5+Form!M$6,1,0) -> 0 | N45: 1 | O45: =IF(A45>L45,2,0) -> 0 | P45: =IF(AND(N45=1,N46=0),1,0)+IF(AND(O44=0,O45=2),2,0) -> 0
A46: 1638 | B46: 1 | C46: 1575 | D46: 63 | E46: =Form!D34 -> 42.38166667 | F46: =Form!F34 -> 42.3410025 | G46: =Form!H34 -> 41.86449808 | H46: =Form!J34 -> 41.57966033 | I46: =Form!L34 -> 41.27086425 | J46: =Form!N34 -> 41.10235763 | K46: =Form!P34 -> 40.890726 | L46: =Form!$M$5+Form!M$6 -> 1813 | M46: =IF(C46+D46=Form!M$5+Form!M$6,1,0) -> 0 | N46: 1 | O46: =IF(A46>L46,2,0) -> 0 | P46: =IF(AND(N46=1,N47=0),1,0)+IF(AND(O45=0,O46=2),2,0) -> 1
A47: 1871 | B47: 2 | C47: 1800 | D47: 71 | E47: =Form!D35 -> 30.1375 | F47: =Form!F35 -> 29.58645833 | G47: =Form!H35 -> 29.02104167 | H47: =Form!J35 -> 28.73833333 | I47: =Form!L35 -> 28.426875 | J47: =Form!N35 -> 27.65182292 | K47: =Form!P35 -> 26.86 | L47: =Form!$M$5+Form!M$6 -> 1813 | M47: =IF(C47+D47=Form!M$5+Form!M$6,1,0) -> 0 | N47: 0 | O47: =IF(A47>L47,2,0) -> 2 | P47: =IF(AND(N47=1,N48=0),1,0)+IF(AND(O46=0,O47=2),2,0) -> 2
A48: 1867 | B48: 0 | C48: 1800 | D48: 67 | E48: =Form!D36 -> 37.785 | F48: =Form!F36 -> 36.9871875 | G48: =Form!H36 -> 36.175 | H48: =Form!J36 -> 35.9090625 | I48: =Form!L36 -> 35.6 | J48: =Form!N36 -> 34.981875 | K48: =Form!P36 -> 34.335 | L48: =Form!$M$5+Form!M$6 -> 1813 | M48: =IF(C48+D48=Form!M$5+Form!M$6,1,0) -> 0 | N48: 0 | O48: =IF(A48>L48,2,0) -> 2 | P48: =IF(AND(N48=1,N49=0),1,0)+IF(AND(O47=0,O48=2),2,0) -> 0
A49: 1865 | B49: 0 | C49: 1800 | D49: 65 | E49: =Form!D37 -> 41.49973958 | F49: =Form!F37 -> 40.8166276 | G49: =Form!H37 -> 40.11375 | H49: =Form!J37 -> 39.5603125 | I49: =Form!L37 -> 38.9709375 | J49: =Form!N37 -> 38.345625 | K49: =Form!P37 -> 38.812849 | L49: =Form!$M$5+Form!M$6 -> 1813 | M49: =IF(C49+D49=Form!M$5+Form!M$6,1,0) -> 0 | N49: 0 | O49: 2 | P49: 0
A50: 1863 | B50: 0 | C50: 1800 | D50: 63 | E50: =Form!D38 -> 46.721077 | F50: =Form!F38 -> 46.49685767 | G50: =Form!H38 -> 46.24868 | H50: =Form!J38 -> 45.746544 | I50: =Form!L38 -> 45.215658 | J50: =Form!N38 -> 45.0733915 | K50: =Form!P38 -> 44.888 | L50: =Form!$M$5+Form!M$6 -> 1813 | M50: =IF(C50+D50=Form!M$5+Form!M$6,1,0) -> 0 | N50: 0 | O50: 2 | P50: 0
A51: 2096 | B51: 0 | C51: 2025 | D51: 71 | E51: =Form!D39 -> 31.29083333 | F51: =Form!F39 -> 31.036875 | G51: =Form!H39 -> 30.75416667 | H51: =Form!J39 -> 29.98390625 | I51: =Form!L39 -> 29.196875 | J51: =Form!N39 -> 28.679375 | K51: =Form!P39 -> 28.12833333 | L51: =Form!$M$5+Form!M$6 -> 1813 | M51: =IF(C51+D51=Form!M$5+Form!M$6,1,0) -> 0 | N51: 0 | O51: 2 | P51: 0
A52: 2092 | B52: 0 | C52: 2025 | D52: 67 | E52: =Form!D40 -> 39.719375 | F52: =Form!F40 -> 39.1875 | G52: =Form!H40 -> 38.626875 | H52: =Form!J40 -> 38.0375 | I52: =Form!L40 -> 37.419375 | J52: =Form!N40 -> 36.57125 | K52: =Form!P40 -> 35.68958333 | L52: =Form!$M$5+Form!M$6 -> 1813 | M52: =IF(C52+D52=Form!M$5+Form!M$6,1,0) -> 0 | N52: 0 | O52: 2 | P52: 0
A53: 2090 | B53: 0 | C53: 2025 | D53: 65 | E53: =Form!D41 -> 43.80666667 | F53: =Form!F41 -> 43.23526042 | G53: =Form!H41 -> 43.5339675 | H53: =Form!J41 -> 42.94048556 | I53: =Form!L41 -> 42.32544113 | J53: =Form!N41 -> 41.35239067 | K53: =Form!P41 -> 40.36376729 | L53: =Form!$M$5+Form!M$6 -> 1813 | M53: =IF(C53+D53=Form!M$5+Form!M$6,1,0) -> 0 | N53: 0 | O53: 2 | P53: 0
A54: 2088 | B54: 0 | C54: 2025 | D54: 63 | E54: =Form!D42 -> 51.10001108 | F54: =Form!F42 -> 50.88370183 | G54: =Form!H42 -> 50.64343425 | H54: =Form!J42 -> 49.67996713 | I54: =Form!L42 -> 48.702125 | J54: =Form!N42 -> 47.264625 | K54: =Form!P42 -> 45.827125 | L54: =Form!$M$5+Form!M$6 -> 1813 | M54: =IF(C54+D54=Form!M$5+Form!M$6,1,0) -> 0 | N54: 0 | O54: 2 | P54: 0
A55: 0 | B55: =SUM(B43:B54) -> 3
F56: =IF(AND(F42>Form!$M$4,E42<Form!$M$4),2,0) -> 0 | G56: =IF(AND(G42>Form!$M$4,F42<Form!$M$4),2,0) -> 0 | H56: =IF(AND(H42>Form!$M$4,G42<Form!$M$4),2,0) -> 2 | I56: =IF(AND(I42>Form!$M$4,H42<Form!$M$4),2,0) -> 0 | J56: =IF(AND(J42>Form!$M$4,I42<Form!$M$4),2,0) -> 0 | K56: =IF(AND(K42>Form!$M$4,J42<Form!$M$4),2,0) -> 0
C57: =HLOOKUP(1,E41:K42,2,FALSE) -> 95 | E57: =IF(F56=2,1,0) -> 0 | F57: =IF(G56=2,1,0) -> 0 | G57: 1 | H57: 0 | I57: 0 | J57: 0 | K57: 0
C58: =HLOOKUP(2,E41:K42,2,FALSE) -> 100 | E58: =SUM(E56:E57) -> 0 | F58: 0 | G58: 1 | H58: 2 | I58: 0 | J58: 0 | K58: 0
B59: =(VLOOKUP(1,B41:K54,3,FALSE)) -> 63 | C59: =IF(ISERROR(B59),0,B59) -> 63 | E59: =(C61-C62)/(C59-C60)*(Form!$M$6-C60)+C62 -> 41.57966033 | F59: =(C63-C64)/(C59-C60)*(Form!M6-C60)+C64 -> 41.86449808
B60: =VLOOKUP(2,B41:K54,3,FALSE) -> 71 | C60: =IF(ISERROR(B60),0,B60) -> 71 | E60: =IF(AND(B55=0,L41=3),VLOOKUP(Form!$M$5+Form!$M$6,notes!A41:K54,MATCH(1,notes!A41:K41,FALSE),FALSE),0) -> 0 | F60: =IF(AND(B55=0,L41=3),VLOOKUP(Form!$M$5+Form!$M$6,notes!A41:K54,MATCH(2,notes!A41:K41,FALSE),FALSE),0) -> 0 | I60: exactly
B61: =VLOOKUP(1,B41:K54,MATCH(1,B41:K41,FALSE),FALSE) -> 41.86449808 | C61: =MIN(B61,B63) -> 41.57966033 | E61: =IF(ISERROR(E59),E60,E59) -> 41.57966033 | F61: =IF(ISERROR(F59),F60,F59) -> 41.86449808 | I61: x | J61: y | K61: err1 | L61: err2 | M61: err3 | N61: ans
B62: =VLOOKUP(2,B41:K54,MATCH(1,B41:K41,FALSE),FALSE) -> 29.02104167 | C62: =MAX(B62,B64) -> 29.02104167 | E62: =MIN(E61:F61) -> 41.57966033 | F62: =MAX(E61:F61) -> 41.86449808 | I62: y | J62: y | K62: =IF(ISERROR(VLOOKUP(Form!$M$5+Form!$M$6,notes!A42:K54,MATCH(Form!$M$4,notes!A42:K42,FALSE),FALSE)),0,VLOOKUP(Form!$M$5+Form!$M$6,notes!A42:K54,MATCH(Form!$M$4,notes!A42:K42,FALSE),FALSE)) -> 0 | N62: =SUM(K62:M62) -> 0
B63: =VLOOKUP(1,B41:K54,MATCH(2,B41:K41,FALSE),FALSE) -> 41.57966033 | C63: =MAX(B63,B61) -> 41.86449808 | E63: =(E62-F62)/(C58-C57)*(Form!$M$4-C57)+F62 -> 41.63662788 | I63: y | J63: n | N63: =SUM(K63:M63) -> 0
B64: =VLOOKUP(2,B41:K54,MATCH(2,B41:K41,FALSE),FALSE) -> 28.73833333 | C64: =MIN(B62,B64) -> 28.73833333 | I64: n | J64: n | K64: =IF(OR(E63>100000,E63<=0),0,E63) -> 41.63662788 | L64: =IF(K64<>0,0,MIN(E59:F59)) -> 0 | M64: =IF(AND(L64=0,K64=0),C61,0) -> 0 | N64: =SUM(K64:M64) -> 41.63662788
B65: =VLOOKUP(Form!M32+Form!M33,A41:K54,MATCH(2,A41:K41,FALSE),FALSE) ->  | N65: =IF(ISERROR(N64),N62,N64) -> 41.63662788

Sheet Options (hidden)
A1: 13ACX | B1: 18
A2: 14ACX | B2: 24
A3: ML14XC | B3: 30
A4: XC13 | B4: 36
A5: XC14 | B5: 41
A6: XC16 | B6: 42
A7: XC17 | B7: 47
A8: XC21 | B8: 48
A9: XC25 | B9: 59
B10: 60

Sheet Calcs (hidden)
D1: Condenser :
D2: ADP Evaporator:
D3: Condenser Entering Air Temperature: | E3: 100 | F3: (°F) Dry Bulb, 85°F to 115°F
D4: Evaporator Air Flow: | E4: 1265 | F4: CFM
D5: Entering Evaporator Air (DB): | E5: 77.5 | F5: (°F) Dry Bulb
D6: Entering Evaporator Air (WB): | E6: 60.6 | F6: (°F) Wet Bulb, 63°F to 71°F
A9: Total
A10: 28.55 | B10: 1200 60.6
B12: Diff 200 | C12: =A10-A14 -> 0.308 | D12: Diff 1 cfm | E12: =C12/200 -> 0.00154 | F12: 1265 total | G12: =A10-(65*E12) -> 28.4499
A14: 28.242 | B14: 1400 60.6
A16: Sens
A17: 25.32 | B17: 1200 60.6
B19: Diff 200 | C19: =A17-A21 -> 0.5544 | D19: Diff 1 cfm | E19: =C19/200 -> 0.002772 | F19: 1265 Sens | G19: =A17-(65*E19) -> 25.13982
A21: 24.7656 | B21: 1400 60.6

Sheet 13ACX_18 (hidden)
A2: 13ACX_18 | B2: 18
A3: Evaporator Air | C3: Condenser Entering Air Temperature ˚F
A4: 80 | B4: °F DB | C4: 85 | E4: 90 | G4: 95 | I4: 100 | K4: 105 | M4: 110 | O4: 115
A5: CFM | B5: EWB† ˚F | C5: Capacity Mbtuh | E5: Capacity Mbtuh | G5: Capacity Mbtuh | I5: Capacity Mbtuh | K5: Capacity Mbtuh | M5: Capacity Mbtuh | O5: Capacity Mbtuh
C6: Total | D6: Sens. | E6: Total | F6: Sens. | G6: Total | H6: Sens. | I6: Total | J6: Sens. | K6: Total | L6: Sens. | M6: Total | N6: Sens. | O6: Total | P6: Sens.
R7: Total Factors | Y7: Sens. % | AF7: IDB Adj | AM7: Sens Calc
A8: 525 | B8: 71 | C8: =R8*$B$2 -> 19.23809524 | D8: =IF(AM8>C8,C8,AM8) -> 11.54285714 | E8: =S8*$B$2 -> 18.76190476 | F8: =IF(AN8>E8,E8,AN8) -> 11.35095238 | G8: =T8*$B$2 -> 18.28571429 | H8: =IF(AO8>G8,G8,AO8) -> 11.15428571 | I8: =U8*$B$2 -> 17.80952381 | J8: =IF(AP8>I8,I8,AP8) -> 10.95285714 | K8: =V8*$B$2 -> 17.33333333 | L8: =IF(AQ8>K8,K8,AQ8) -> 10.74666667 | M8: =W8*$B$2 -> 16.80952381 | N8: =IF(AR8>M8,M8,AR8) -> 10.50595238 | O8: =X8*$B$2 -> 16.28571429 | P8: =IF(AS8>O8,O8,AS8) -> 10.26 | R8: 1.068783069 | S8: 1.042328042 | T8: 1.015873016 | U8: 0.9894179894 | V8: 0.962962963 | W8: 0.9338624339 | X8: 0.9047619048 | Y8: 0.6 | Z8: 0.605 | AA8: 0.61 | AB8: 0.615 | AC8: 0.62 | AD8: 0.625 | AE8: 0.63 | AF8: =IF(Y8<0.9,0.9,Y8*-3.6846+4.1276) -> 0.9 | AG8: =IF(Z8<0.9,0.9,Z8*-3.6846+4.1276) -> 0.9 | AH8: 0.9 | AI8: 0.9 | AJ8: 0.9 | AK8: 0.9 | AL8: 0.9 | AM8: =Y8*C8+($A$4-80)*AF8*$A$8/1000 -> 11.54285714 | AN8: =Z8*E8+($A$4-80)*AG8*$A$8/1000 -> 11.35095238 | AO8: =AA8*G8+($A$4-80)*AH8*$A$8/1000 -> 11.15428571 | AP8: =AB8*I8+($A$4-80)*AI8*$A$8/1000 -> 10.95285714 | AQ8: =AC8*K8+($A$4-80)*AJ8*$A$8/1000 -> 10.74666667 | AR8: =AD8*M8+($A$4-80)*AK8*$A$8/1000 -> 10.50595238 | AS8: =AE8*O8+($A$4-80)*AL8*$A$8/1000 -> 10.26
B9: 67 | C9: 18.38095238 | D9: 13.41809524 | E9: 17.95238095 | F9: =IF(AN9>E9,E9,AN9) -> 13.2847619 | G9: 17.52380952 | H9: =IF(AO9>G9,G9,AO9) -> 13.14285714 | I9: 17.04761905 | J9: =IF(AP9>I9,I9,AP9) -> 12.95619048 | K9: 16.57142857 | L9: =IF(AQ9>K9,K9,AQ9) -> 12.76 | M9: 16.04761905 | N9: =IF(AR9>M9,M9,AR9) -> 12.51714286 | O9: 15.52380952 | P9: =IF(AS9>O9,O9,AS9) -> 12.26380952 | R9: 1.021164021 | S9: 0.9973544974 | T9: 0.9735449735 | U9: 0.9470899471 | V9: 0.9206349206 | W9: 0.8915343915 | X9: 0.8624338624 | Y9: 0.73 | Z9: 0.74 | AA9: 0.75 | AB9: 0.76 | AC9: 0.77 | AD9: 0.78 | AE9: 0.79 | AF9: =IF(Y9<0.9,0.9,Y9*-3.6846+4.1276) -> 0.9 | AG9: 0.9 | AH9: 0.9 | AI9: 0.9 | AJ9: 0.9 | AK9: 0.9 | AL9: 0.9 | AM9: =Y9*C9+($A$4-80)*AF9*$A$8/1000 -> 13.41809524 | AN9: =Z9*E9+($A$4-80)*AG9*$A$8/1000 -> 13.2847619 | AO9: =AA9*G9+($A$4-80)*AH9*$A$8/1000 -> 13.14285714 | AP9: =AB9*I9+($A$4-80)*AI9*$A$8/1000 -> 12.95619048 | AQ9: =AC9*K9+($A$4-80)*AJ9*$A$8/1000 -> 12.76 | AR9: =AD9*M9+($A$4-80)*AK9*$A$8/1000 -> 12.51714286 | AS9: =AE9*O9+($A$4-80)*AL9*$A$8/1000 -> 12.26380952
B10: 65 | C10: 17.9047619 | D10: 14.41333333 | E10: 17.47619048 | F10: 14.28678571 | G10: 17.04761905 | H10: 14.14952381 | I10: 16.5952381 | J10: 13.94 | K10: 16.14285714 | L10: 13.72142857 | M10: 15.64285714 | N10: 13.53107143 | O10: 15.14285714 | P10: 13.32571429 | R10: 0.9947089947 | S10: 0.9708994709 | T10: 0.9470899471 | U10: 0.921957672 | V10: 0.8968253968 | W10: 0.869047619 | X10: 0.8412698413 | Y10: 0.805 | Z10: 0.8175 | AA10: 0.83 | AB10: 0.84 | AC10: 0.85 | AD10: 0.865 | AE10: 0.88 | AF10: 0.9 | AG10: 0.9 | AH10: 0.9 | AI10: 0.9 | AJ10: 0.9 | AK10: 0.9 | AL10: 0.9 | AM10: 14.41333333 | AN10: =Z10*E10+($A$4-80)*AG10*$A$8/1000 -> 14.28678571 | AO10: =AA10*G10+($A$4-80)*AH10*$A$8/1000 -> 14.14952381 | AP10: 13.94 | AQ10: 13.72142857 | AR10: 13.53107143 | AS10: 13.32571429
B11: 63 | C11: 17.42857143 | D11: 15.33714286 | E11: 17 | F11: 15.215 | G11: 16.57142857 | H11: 15.08 | I11: 16.14285714 | J11: 14.85142857 | K11: 15.71428571 | L11: 14.61428571 | M11: 15.23809524 | N11: 14.47619048 | O11: 14.76190476 | P11: 14.31904762 | R11: 0.9682539683 | S11: 0.9444444444 | T11: 0.9206349206 | U11: 0.8968253968 | V11: 0.873015873 | W11: 0.8465608466 | X11: 0.8201058201 | Y11: 0.88 | Z11: 0.895 | AA11: 0.91 | AB11: 0.92 | AC11: 0.93 | AD11: 0.95 | AE11: 0.97 | AF11: 0.9 | AG11: 0.9 | AH11: 0.774614 | AI11: 0.737768 | AJ11: 0.700922 | AK11: 0.62723 | AL11: 0.553538 | AM11: 15.33714286 | AN11: =Z11*E11+($A$4-80)*AG11*$A$8/1000 -> 15.215 | AO11: =AA11*G11+($A$4-80)*AH11*$A$8/1000 -> 15.08 | AP11: =AB11*I11+($A$4-80)*AI11*$A$8/1000 -> 14.85142857 | AQ11: 14.61428571 | AR11: 14.47619048 | AS11: 14.31904762
A12: 600 | B12: 71 | C12: 19.80952381 | D12: 12.08380952 | E12: 19.33333333 | F12: 11.89 | G12: 18.85714286 | H12: 11.69142857 | I12: 18.38095238 | J12: 11.58 | K12: 17.9047619 | L12: 11.45904762 | M12: 17.33333333 | N12: 11.18 | O12: 16.76190476 | P12: 10.8952381 | R12: 1.100529101 | S12: 1.074074074 | T12: 1.047619048 | U12: 1.021164021 | V12: 0.9947089947 | W12: 0.962962963 | X12: 0.9312169312 | Y12: 0.61 | Z12: 0.615 | AA12: 0.62 | AB12: 0.63 | AC12: 0.64 | AD12: 0.645 | AE12: 0.65 | AF12: 0.9 | AG12: 0.9 | AH12: 0.9 | AI12: 0.9 | AJ12: 0.9 | AK12: 0.9 | AL12: 0.9 | AM12: =Y12*C12+($A$4-80)*AF12*$A$12/1000 -> 12.08380952 | AN12: =Z12*E12+($A$4-80)*AG12*$A$12/1000 -> 11.89 | AO12: =AA12*G12+($A$4-80)*AH12*$A$12/1000 -> 11.69142857 | AP12: =AB12*I12+($A$4-80)*AI12*$A$12/1000 -> 11.58 | AQ12: =AC12*K12+($A$4-80)*AJ12*$A$12/1000 -> 11.45904762 | AR12: =AD12*M12+($A$4-80)*AK12*$A$12/1000 -> 11.18 | AS12: =AE12*O12+($A$4-80)*AL12*$A$12/1000 -> 10.8952381
B13: 67 | C13: 18.95238095 | D13: 14.40380952 | E13: 18.47619048 | F13: 14.13428571 | G13: 18 | H13: 13.86 | I13: 17.52380952 | J13: 13.75619048 | K13: 17.04761905 | L13: 13.63809524 | M13: 16.52380952 | N13: 13.38428571 | O13: 16 | P13: 13.12 | R13: 1.052910053 | S13: 1.026455026 | T13: 1 | U13: 0.9735449735 | V13: 0.9470899471 | W13: 0.917989418 | X13: 0.8888888889 | Y13: 0.76 | Z13: 0.765 | AA13: 0.77 | AB13: 0.785 | AC13: 0.8 | AD13: 0.81 | AE13: 0.82 | AF13: 0.9 | AG13: 0.9 | AH13: 0.9 | AI13: 0.9 | AJ13: 0.9 | AK13: 0.9 | AL13: 0.9 | AM13: =Y13*C13+($A$4-80)*AF13*$A$12/1000 -> 14.40380952 | AN13: =Z13*E13+($A$4-80)*AG13*$A$12/1000 -> 14.13428571 | AO13: =AA13*G13+($A$4-80)*AH13*$A$12/1000 -> 13.86 | AP13: =AB13*I13+($A$4-80)*AI13*$A$12/1000 -> 13.75619048 | AQ13: =AC13*K13+($A$4-80)*AJ13*$A$12/1000 -> 13.63809524 | AR13: =AD13*M13+($A$4-80)*AK13*$A$12/1000 -> 13.38428571 | AS13: =AE13*O13+($A$4-80)*AL13*$A$12/1000 -> 13.12
B14: 65 | C14: 18.42857143 | D14: 15.48 | E14: 17.97619048 | F14: 15.2797619 | G14: 17.52380952 | H14: 15.07047619 | I14: 17.04761905 | J14: 14.91666667 | K14: 16.57142857 | L14: 14.74857143 | M14: 16.07142857 | N14: 14.46428571 | O14: 15.57142857 | P14: 14.17 | R14: 1.023809524 | S14: 0.9986772487 | T14: 0.9735449735 | U14: 0.9470899471 | V14: 0.9206349206 | W14: 0.8928571429 | X14: 0.8650793651 | Y14: 0.84 | Z14: 0.85 | AA14: 0.86 | AB14: 0.875 | AC14: 0.89 | AD14: 0.9 | AE14: 0.91 | AF14: 0.9 | AG14: 0.9 | AH14: 0.9 | AI14: 0.9 | AJ14: 0.9 | AK14: 0.81146 | AL14: 0.774614 | AM14: 15.48 | AN14: =Z14*E14+($A$4-80)*AG14*$A$12/1000 -> 15.2797619 | AO14: =AA14*G14+($A$4-80)*AH14*$A$12/1000 -> 15.07047619 | AP14: 14.91666667 | AQ14: 14.74857143 | AR14: 14.46428571 | AS14: 14.17
B15: 63 | C15: 17.9047619 | D15: 16.47238095 | E15: 17.47619048 | F15: 16.3402381 | G15: 17.04761905 | H15: 16.1952381 | I15: 16.57142857 | J15: 15.99142857 | K15: 16.0952381 | L15: 15.77333333 | M15: 15.61904762 | N15: 15.46285714 | O15: 15.14285714 | P15: 15.14285714 | R15: 0.9947089947 | S15: 0.9708994709 | T15: 0.9470899471 | U15: 0.9206349206 | V15: 0.8941798942 | W15: 0.8677248677 | X15: 0.8412698413 | Y15: 0.92 | Z15: 0.935 | AA15: 0.95 | AB15: 0.965 | AC15: 0.98 | AD15: 0.99 | AE15: 1 | AF15: 0.737768 | AG15: 0.682499 | AH15: 0.62723 | AI15: 0.571961 | AJ15: 0.516692 | AK15: 0.479846 | AL15: 0.443 | AM15: 16.47238095 | AN15: =Z15*E15+($A$4-80)*AG15*$A$12/1000 -> 16.3402381 | AO15: =AA15*G15+($A$4-80)*AH15*$A$12/1000 -> 16.1952381 | AP15: 15.99142857 | AQ15: 15.77333333 | AR15: 15.46285714 | AS15: 15.14285714
A16: 675 | B16: 71 | C16: 20.38095238 | D16: 12.84 | E16: 19.9047619 | F16: 12.63952381 | G16: 19.42857143 | H16: 12.43428571 | I16: 18.85714286 | J16: 12.25714286 | K16: 18.28571429 | L16: 12.06857143 | M16: 17.71428571 | N16: 11.86857143 | O16: 17.14285714 | P16: 11.65714286 | R16: 1.132275132 | S16: 1.105820106 | T16: 1.079365079 | U16: 1.047619048 | V16: 1.015873016 | W16: 0.9841269841 | X16: 0.9523809524 | Y16: 0.63 | Z16: 0.635 | AA16: 0.64 | AB16: 0.65 | AC16: 0.66 | AD16: 0.67 | AE16: 0.68 | AF16: 0.9 | AG16: 0.9 | AH16: 0.9 | AI16: 0.9 | AJ16: 0.9 | AK16: 0.9 | AL16: 0.9 | AM16: =Y16*C16+($A$4-80)*AF16*$A$16/1000 -> 12.84 | AN16: =Z16*E16+($A$4-80)*AG16*$A$16/1000 -> 12.63952381 | AO16: =AA16*G16+($A$4-80)*AH16*$A$16/1000 -> 12.43428571 | AP16: =AB16*I16+($A$4-80)*AI16*$A$16/1000 -> 12.25714286 | AQ16: =AC16*K16+($A$4-80)*AJ16*$A$16/1000 -> 12.06857143 | AR16: =AD16*M16+($A$4-80)*AK16*$A$16/1000 -> 11.86857143 | AS16: =AE16*O16+($A$4-80)*AL16*$A$16/1000 -> 11.65714286
B17: 67 | C17: 19.42857143 | D17: 15.15428571 | E17: 18.9047619 | F17: 14.9347619 | G17: 18.38095238 | H17: 14.7047619 | I17: 17.9047619 | J17: 14.59238095 | K17: 17.42857143 | L17: 14.46571429 | M17: 16.85714286 | N17: 14.24428571 | O17: 16.28571429 | P17: 14.00571429 | R17: 1.079365079 | S17: 1.05026455 | T17: 1.021164021 | U17: 0.9947089947 | V17: 0.9682539683 | W17: 0.9365079365 | X17: 0.9047619048 | Y17: 0.78 | Z17: 0.79 | AA17: 0.8 | AB17: 0.815 | AC17: 0.83 | AD17: 0.845 | AE17: 0.86 | AF17: 0.9 | AG17: 0.9 | AH17: 0.9 | AI17: 0.9 | AJ17: 0.9 | AK17: 0.9 | AL17: 0.9 | AM17: =Y17*C17+($A$4-80)*AF17*$A$16/1000 -> 15.15428571 | AN17: =Z17*E17+($A$4-80)*AG17*$A$16/1000 -> 14.9347619 | AO17: =AA17*G17+($A$4-80)*AH17*$A$16/1000 -> 14.7047619 | AP17: =AB17*I17+($A$4-80)*AI17*$A$16/1000 -> 14.59238095 | AQ17: =AC17*K17+($A$4-80)*AJ17*$A$16/1000 -> 14.46571429 | AR17: =AD17*M17+($A$4-80)*AK17*$A$16/1000 -> 14.24428571 | AS17: =AE17*O17+($A$4-80)*AL17*$A$16/1000 -> 14.00571429
B18: 65 | C18: 18.9047619 | D18: 16.35261905 | E18: 18.4047619 | F18: 16.15017857 | G18: 17.9047619 | H18: 15.9352381 | I18: 17.45238095 | J18: 15.75077381 | K18: 17 | L18: 15.555 | M18: 16.5 | N18: 15.22125 | O18: 16 | P18: 14.88 | R18: 1.05026455 | S18: 1.022486772 | T18: 0.9947089947 | U18: 0.9695767196 | V18: 0.9444444444 | W18: 0.9166666667 | X18: 0.8888888889 | Y18: 0.865 | Z18: 0.8775 | AA18: 0.89 | AB18: 0.9025 | AC18: 0.915 | AD18: 0.9225 | AE18: 0.93 | AF18: 0.9 | AG18: 0.9 | AH18: 0.9 | AI18: 0.8022485 | AJ18: 0.756191 | AK18: 0.7285565 | AL18: 0.700922 | AM18: 16.35261905 | AN18: =Z18*E18+($A$4-80)*AG18*$A$16/1000 -> 16.15017857 | AO18: =AA18*G18+($A$4-80)*AH18*$A$16/1000 -> 15.9352381 | AP18: 15.75077381 | AQ18: 15.555 | AR18: 15.22125 | AS18: 14.88
B19: 63 | C19: 18.38095238 | D19: 17.46190476 | E19: 17.9047619 | F19: 17.27809524 | G19: 17.42857143 | H19: 17.08 | I19: 17 | J19: 16.83 | K19: 16.57142857 | L19: 16.57142857 | M19: 16.14285714 | N19: 16.14285714 | O19: 15.71428571 | P19: 15.71428571 | R19: 1.021164021 | S19: 0.9947089947 | T19: 0.9682539683 | U19: 0.9444444444 | V19: 0.9206349206 | W19: 0.8968253968 | X19: 0.873015873 | Y19: 0.95 | Z19: 0.965 | AA19: 0.98 | AB19: 0.99 | AC19: 1 | AD19: 1 | AE19: 1 | AF19: 0.62723 | AG19: 0.571961 | AH19: 0.516692 | AI19: 0.479846 | AJ19: 0.443 | AK19: 0.443 | AL19: 0.443 | AM19: 17.46190476 | AN19: =Z19*E19+($A$4-80)*AG19*$A$16/1000 -> 17.27809524 | AO19: =AA19*G19+($A$4-80)*AH19*$A$16/1000 -> 17.08 | AP19: 16.83 | AQ19: 16.57142857 | AR19: 16.14285714 | AS19: 15.71428571

Sheet 13ACX_24 (hidden)
A2: 13ACX_24
A3: Evaporator Air | C3: Condenser Entering Air Temperature ˚F
A4: 80 | B4: °F DB | C4: 85 | E4: 90 | G4: 95 | I4: 100 | K4: 105 | M4: 110 | O4: 115
A5: CFM | B5: EWB† ˚F | C5: Capacity Mbtuh | E5: Capacity Mbtuh | G5: Capacity Mbtuh | I5: Capacity Mbtuh | K5: Capacity Mbtuh | M5: Capacity Mbtuh | O5: Capacity Mbtuh
C6: Total | D6: Sens. | E6: Total | F6: Sens. | G6: Total | H6: Sens. | I6: Total | J6: Sens. | K6: Total | L6: Sens. | M6: Total | N6: Sens. | O6: Total | P6: Sens.
R7: Total Factors | Y7: Sens. % | AF7: IDB Adj | AM7: Sens Calc
A8: 700 | B8: 71 | C8: =R8*$B$2 -> 0 | D8: =IF(AM8>C8,C8,AM8) -> 0 | E8: =S8*$B$2 -> 0 | F8: =IF(AN8>E8,E8,AN8) -> 0 | G8: =T8*$B$2 -> 0 | H8: =IF(AO8>G8,G8,AO8) -> 0 | I8: =U8*$B$2 -> 0 | J8: =IF(AP8>I8,I8,AP8) -> 0 | K8: =V8*$B$2 -> 0 | L8: =IF(AQ8>K8,K8,AQ8) -> 0 | M8: =W8*$B$2 -> 0 | N8: =IF(AR8>M8,M8,AR8) -> 0 | O8: =X8*$B$2 -> 0 | P8: =IF(AS8>O8,O8,AS8) -> 0 | R8: 1.066666667 | S8: 1.041666667 | T8: 1.016666667 | U8: 0.9916666667 | V8: 0.9666666667 | W8: 0.9375 | X8: 0.9083333333 | Y8: 0.61 | Z8: 0.615 | AA8: 0.62 | AB8: 0.625 | AC8: 0.63 | AD8: 0.635 | AE8: 0.64 | AF8: =IF(Y8<0.9,0.9,Y8*-3.6846+4.1276) -> 0.9 | AG8: =IF(Z8<0.9,0.9,Z8*-3.6846+4.1276) -> 0.9 | AH8: 0.9 | AI8: 0.9 | AJ8: 0.9 | AK8: 0.9 | AL8: 0.9 | AM8: =Y8*C8+($A$4-80)*AF8*$A$8/1000 -> 0 | AN8: =Z8*E8+($A$4-80)*AG8*$A$8/1000 -> 0 | AO8: =AA8*G8+($A$4-80)*AH8*$A$8/1000 -> 0 | AP8: =AB8*I8+($A$4-80)*AI8*$A$8/1000 -> 0 | AQ8: =AC8*K8+($A$4-80)*AJ8*$A$8/1000 -> 0 | AR8: =AD8*M8+($A$4-80)*AK8*$A$8/1000 -> 0 | AS8: =AE8*O8+($A$4-80)*AL8*$A$8/1000 -> 0
B9: 67 | C9: 0 | D9: 0 | E9: 0 | F9: =IF(AN9>E9,E9,AN9) -> 0 | G9: 0 | H9: =IF(AO9>G9,G9,AO9) -> 0 | I9: 0 | J9: =IF(AP9>I9,I9,AP9) -> 0 | K9: 0 | L9: =IF(AQ9>K9,K9,AQ9) -> 0 | M9: 0 | N9: =IF(AR9>M9,M9,AR9) -> 0 | O9: 0 | P9: =IF(AS9>O9,O9,AS9) -> 0 | R9: 1.025 | S9: 1 | T9: 0.975 | U9: 0.95 | V9: 0.925 | W9: 0.8958333333 | X9: 0.8666666667 | Y9: 0.75 | Z9: 0.755 | AA9: 0.76 | AB9: 0.77 | AC9: 0.78 | AD9: 0.795 | AE9: 0.81 | AF9: =IF(Y9<0.9,0.9,Y9*-3.6846+4.1276) -> 0.9 | AG9: 0.9 | AH9: 0.9 | AI9: 0.9 | AJ9: 0.9 | AK9: 0.9 | AL9: 0.9 | AM9: =Y9*C9+($A$4-80)*AF9*$A$8/1000 -> 0 | AN9: =Z9*E9+($A$4-80)*AG9*$A$8/1000 -> 0 | AO9: =AA9*G9+($A$4-80)*AH9*$A$8/1000 -> 0 | AP9: =AB9*I9+($A$4-80)*AI9*$A$8/1000 -> 0 | AQ9: =AC9*K9+($A$4-80)*AJ9*$A$8/1000 -> 0 | AR9: =AD9*M9+($A$4-80)*AK9*$A$8/1000 -> 0 | AS9: =AE9*O9+($A$4-80)*AL9*$A$8/1000 -> 0
B10: 65 | C10: 0 | D10: 0 | E10: 0 | F10: 0 | G10: 0 | H10: 0 | I10: 0 | J10: 0 | K10: 0 | L10: 0 | M10: 0 | N10: 0 | O10: 0 | P10: 0 | R10: 1 | S10: 0.975 | T10: 0.95 | U10: 0.925 | V10: 0.9 | W10: 0.871875 | X10: 0.84375 | Y10: 0.825 | Z10: 0.835 | AA10: 0.845 | AB10: 0.8575 | AC10: 0.87 | AD10: 0.885 | AE10: 0.9 | AF10: 0.9 | AG10: 0.9 | AH10: 0.9 | AI10: 0.9 | AJ10: 0.9 | AK10: 0.9 | AL10: 0.81146 | AM10: 0 | AN10: =Z10*E10+($A$4-80)*AG10*$A$8/1000 -> 0 | AO10: =AA10*G10+($A$4-80)*AH10*$A$8/1000 -> 0 | AP10: 0 | AQ10: 0 | AR10: 0 | AS10: 0
B11: 63 | C11: 0 | D11: 0 | E11: 0 | F11: 0 | G11: 0 | H11: 0 | I11: 0 | J11: 0 | K11: 0 | L11: 0 | M11: 0 | N11: 0 | O11: 0 | P11: 0 | R11: 0.975 | S11: 0.95 | T11: 0.925 | U11: 0.9 | V11: 0.875 | W11: 0.8479166667 | X11: 0.8208333333 | Y11: 0.9 | Z11: 0.915 | AA11: 0.93 | AB11: 0.945 | AC11: 0.96 | AD11: 0.975 | AE11: 0.99 | AF11: 0.81146 | AG11: 0.756191 | AH11: 0.700922 | AI11: 0.645653 | AJ11: 0.590384 | AK11: 0.535115 | AL11: 0.479846 | AM11: 0 | AN11: =Z11*E11+($A$4-80)*AG11*$A$8/1000 -> 0 | AO11: =AA11*G11+($A$4-80)*AH11*$A$8/1000 -> 0 | AP11: =AB11*I11+($A$4-80)*AI11*$A$8/1000 -> 0 | AQ11: 0 | AR11: 0 | AS11: 0
A12: 800 | B12: 71 | C12: 0 | D12: 0 | E12: 0 | F12: 0 | G12: 0 | H12: 0 | I12: 0 | J12: 0 | K12: 0 | L12: 0 | M12: 0 | N12: 0 | O12: 0 | P12: 0 | R12: 1.1 | S12: 1.075 | T12: 1.05 | U12: 1.020833333 | V12: 0.9916666667 | W12: 0.9625 | X12: 0.9333333333 | Y12: 0.62 | Z12: 0.63 | AA12: 0.64 | AB12: 0.645 | AC12: 0.65 | AD12: 0.66 | AE12: 0.67 | AF12: 0.9 | AG12: 0.9 | AH12: 0.9 | AI12: 0.9 | AJ12: 0.9 | AK12: 0.9 | AL12: 0.9 | AM12: =Y12*C12+($A$4-80)*AF12*$A$12/1000 -> 0 | AN12: =Z12*E12+($A$4-80)*AG12*$A$12/1000 -> 0 | AO12: =AA12*G12+($A$4-80)*AH12*$A$12/1000 -> 0 | AP12: =AB12*I12+($A$4-80)*AI12*$A$12/1000 -> 0 | AQ12: =AC12*K12+($A$4-80)*AJ12*$A$12/1000 -> 0 | AR12: =AD12*M12+($A$4-80)*AK12*$A$12/1000 -> 0 | AS12: =AE12*O12+($A$4-80)*AL12*$A$12/1000 -> 0
B13: 67 | C13: 0 | D13: 0 | E13: 0 | F13: 0 | G13: 0 | H13: 0 | I13: 0 | J13: 0 | K13: 0 | L13: 0 | M13: 0 | N13: 0 | O13: 0 | P13: 0 | R13: 1.05 | S13: 1.025 | T13: 1 | U13: 0.975 | V13: 0.95 | W13: 0.9166666667 | X13: 0.8833333333 | Y13: 0.77 | Z13: 0.78 | AA13: 0.79 | AB13: 0.805 | AC13: 0.82 | AD13: 0.835 | AE13: 0.85 | AF13: 0.9 | AG13: 0.9 | AH13: 0.9 | AI13: 0.9 | AJ13: 0.9 | AK13: 0.9 | AL13: 0.9 | AM13: =Y13*C13+($A$4-80)*AF13*$A$12/1000 -> 0 | AN13: =Z13*E13+($A$4-80)*AG13*$A$12/1000 -> 0 | AO13: =AA13*G13+($A$4-80)*AH13*$A$12/1000 -> 0 | AP13: =AB13*I13+($A$4-80)*AI13*$A$12/1000 -> 0 | AQ13: =AC13*K13+($A$4-80)*AJ13*$A$12/1000 -> 0 | AR13: =AD13*M13+($A$4-80)*AK13*$A$12/1000 -> 0 | AS13: =AE13*O13+($A$4-80)*AL13*$A$12/1000 -> 0
B14: 65 | C14: 0 | D14: 0 | E14: 0 | F14: 0 | G14: 0 | H14: 0 | I14: 0 | J14: 0 | K14: 0 | L14: 0 | M14: 0 | N14: 0 | O14: 0 | P14: 0 | R14: 1.025 | S14: 1 | T14: 0.975 | U14: 0.95 | V14: 0.925 | W14: 0.8958333333 | X14: 0.8666666667 | Y14: 0.855 | Z14: 0.8675 | AA14: 0.88 | AB14: 0.8925 | AC14: 0.905 | AD14: 0.915 | AE14: 0.925 | AF14: 0.9 | AG14: 0.9 | AH14: 0.9 | AI14: 0.9 | AJ14: 0.793037 | AK14: 0.756191 | AL14: 0.719345 | AM14: 0 | AN14: =Z14*E14+($A$4-80)*AG14*$A$12/1000 -> 0 | AO14: =AA14*G14+($A$4-80)*AH14*$A$12/1000 -> 0 | AP14: 0 | AQ14: 0 | AR14: 0 | AS14: 0
B15: 63 | C15: 0 | D15: 0 | E15: 0 | F15: 0 | G15: 0 | H15: 0 | I15: 0 | J15: 0 | K15: 0 | L15: 0 | M15: 0 | N15: 0 | O15: 0 | P15: 0 | R15: 1 | S15: 0.975 | T15: 0.95 | U15: 0.925 | V15: 0.9 | W15: 0.875 | X15: 0.85 | Y15: 0.94 | Z15: 0.955 | AA15: 0.97 | AB15: 0.98 | AC15: 0.99 | AD15: 0.995 | AE15: 1 | AF15: 0.664076 | AG15: 0.608807 | AH15: 0.553538 | AI15: 0.516692 | AJ15: 0.479846 | AK15: 0.461423 | AL15: 0.443 | AM15: 0 | AN15: =Z15*E15+($A$4-80)*AG15*$A$12/1000 -> 0 | AO15: =AA15*G15+($A$4-80)*AH15*$A$12/1000 -> 0 | AP15: 0 | AQ15: 0 | AR15: 0 | AS15: 0
A16: 900 | B16: 71 | C16: 0 | D16: 0 | E16: 0 | F16: 0 | G16: 0 | H16: 0 | I16: 0 | J16: 0 | K16: 0 | L16: 0 | M16: 0 | N16: 0 | O16: 0 | P16: 0 | R16: 1.125 | S16: 1.095833333 | T16: 1.066666667 | U16: 1.0375 | V16: 1.008333333 | W16: 0.9791666667 | X16: 0.95 | Y16: 0.64 | Z16: 0.65 | AA16: 0.66 | AB16: 0.665 | AC16: 0.67 | AD16: 0.68 | AE16: 0.69 | AF16: 0.9 | AG16: 0.9 | AH16: 0.9 | AI16: 0.9 | AJ16: 0.9 | AK16: 0.9 | AL16: 0.9 | AM16: =Y16*C16+($A$4-80)*AF16*$A$16/1000 -> 0 | AN16: =Z16*E16+($A$4-80)*AG16*$A$16/1000 -> 0 | AO16: =AA16*G16+($A$4-80)*AH16*$A$16/1000 -> 0 | AP16: =AB16*I16+($A$4-80)*AI16*$A$16/1000 -> 0 | AQ16: =AC16*K16+($A$4-80)*AJ16*$A$16/1000 -> 0 | AR16: =AD16*M16+($A$4-80)*AK16*$A$16/1000 -> 0 | AS16: =AE16*O16+($A$4-80)*AL16*$A$16/1000 -> 0
B17: 67 | C17: 0 | D17: 0 | E17: 0 | F17: 0 | G17: 0 | H17: 0 | I17: 0 | J17: 0 | K17: 0 | L17: 0 | M17: 0 | N17: 0 | O17: 0 | P17: 0 | R17: 1.075 | S17: 1.05 | T17: 1.025 | U17: 0.9958333333 | V17: 0.9666666667 | W17: 0.9333333333 | X17: 0.9 | Y17: 0.8 | Z17: 0.81 | AA17: 0.82 | AB17: 0.835 | AC17: 0.85 | AD17: 0.865 | AE17: 0.88 | AF17: 0.9 | AG17: 0.9 | AH17: 0.9 | AI17: 0.9 | AJ17: 0.9 | AK17: 0.9 | AL17: 0.9 | AM17: =Y17*C17+($A$4-80)*AF17*$A$16/1000 -> 0 | AN17: =Z17*E17+($A$4-80)*AG17*$A$16/1000 -> 0 | AO17: =AA17*G17+($A$4-80)*AH17*$A$16/1000 -> 0 | AP17: =AB17*I17+($A$4-80)*AI17*$A$16/1000 -> 0 | AQ17: =AC17*K17+($A$4-80)*AJ17*$A$16/1000 -> 0 | AR17: =AD17*M17+($A$4-80)*AK17*$A$16/1000 -> 0 | AS17: =AE17*O17+($A$4-80)*AL17*$A$16/1000 -> 0
B18: 65 | C18: 0 | D18: 0 | E18: 0 | F18: 0 | G18: 0 | H18: 0 | I18: 0 | J18: 0 | K18: 0 | L18: 0 | M18: 0 | N18: 0 | O18: 0 | P18: 0 | R18: 1.045833333 | S18: 1.022916667 | T18: 1 | U18: 0.9729166667 | V18: 0.9458333333 | W18: 0.9166666667 | X18: 0.8875 | Y18: 0.89 | Z18: 0.9 | AA18: 0.91 | AB18: 0.9175 | AC18: 0.925 | AD18: 0.9325 | AE18: 0.94 | AF18: 0.9 | AG18: 0.81146 | AH18: 0.774614 | AI18: 0.7469795 | AJ18: 0.719345 | AK18: 0.6917105 | AL18: 0.664076 | AM18: 0 | AN18: =Z18*E18+($A$4-80)*AG18*$A$16/1000 -> 0 | AO18: =AA18*G18+($A$4-80)*AH18*$A$16/1000 -> 0 | AP18: 0 | AQ18: 0 | AR18: 0 | AS18: 0
B19: 63 | C19: 0 | D19: 0 | E19: 0 | F19: 0 | G19: 0 | H19: 0 | I19: 0 | J19: 0 | K19: 0 | L19: 0 | M19: 0 | N19: 0 | O19: 0 | P19: 0 | R19: 1.016666667 | S19: 0.9958333333 | T19: 0.975 | U19: 0.95 | V19: 0.925 | W19: 0.9 | X19: 0.875 | Y19: 0.98 | Z19: 0.99 | AA19: 1 | AB19: 1 | AC19: 1 | AD19: 1 | AE19: 1 | AF19: 0.516692 | AG19: 0.479846 | AH19: 0.443 | AI19: 0.443 | AJ19: 0.443 | AK19: 0.443 | AL19: 0.443 | AM19: 0 | AN19: =Z19*E19+($A$4-80)*AG19*$A$16/1000 -> 0 | AO19: =AA19*G19+($A$4-80)*AH19*$A$16/1000 -> 0 | AP19: 0 | AQ19: 0 | AR19: 0 | AS19: 0

Sheet 13ACX_30 (hidden)
A2: 13ACX_30 | B2: 30
A3: Evaporator Air | C3: Condenser Entering Air Temperature ˚F
A4: 80 | B4: °F DB | C4: 85 | E4: 90 | G4: 95 | I4: 100 | K4: 105 | M4: 110 | O4: 115
A5: CFM | B5: EWB† ˚F | C5: Capacity Mbtuh | E5: Capacity Mbtuh | G5: Capacity Mbtuh | I5: Capacity Mbtuh | K5: Capacity Mbtuh | M5: Capacity Mbtuh | O5: Capacity Mbtuh
C6: Total | D6: Sens. | E6: Total | F6: Sens. | G6: Total | H6: Sens. | I6: Total | J6: Sens. | K6: Total | L6: Sens. | M6: Total | N6: Sens. | O6: Total | P6: Sens.
R7: Total Factors | Y7: Sens. % | AF7: IDB Adj | AM7: Sens Calc
A8: 850 | B8: 71 | C8: =R8*$B$2 -> 32.01342282 | D8: =IF(AM8>C8,C8,AM8) -> 19.20805369 | E8: =S8*$B$2 -> 31.30872483 | F8: =IF(AN8>E8,E8,AN8) -> 18.94177852 | G8: =T8*$B$2 -> 30.60402685 | H8: =IF(AO8>G8,G8,AO8) -> 18.66845638 | I8: =U8*$B$2 -> 29.79865772 | J8: =IF(AP8>I8,I8,AP8) -> 18.3261745 | K8: =V8*$B$2 -> 28.99328859 | L8: =IF(AQ8>K8,K8,AQ8) -> 17.97583893 | M8: =W8*$B$2 -> 28.08724832 | N8: =IF(AR8>M8,M8,AR8) -> 17.69496644 | O8: =X8*$B$2 -> 27.18120805 | P8: =IF(AS8>O8,O8,AS8) -> 17.39597315 | R8: 1.067114094 | S8: 1.043624161 | T8: 1.020134228 | U8: 0.9932885906 | V8: 0.966442953 | W8: 0.9362416107 | X8: 0.9060402685 | Y8: 0.6 | Z8: 0.605 | AA8: 0.61 | AB8: 0.615 | AC8: 0.62 | AD8: 0.63 | AE8: 0.64 | AF8: =IF(Y8<0.9,0.9,Y8*-3.6846+4.1276) -> 0.9 | AG8: =IF(Z8<0.9,0.9,Z8*-3.6846+4.1276) -> 0.9 | AH8: 0.9 | AI8: 0.9 | AJ8: 0.9 | AK8: 0.9 | AL8: 0.9 | AM8: =Y8*C8+($A$4-80)*AF8*$A$8/1000 -> 19.20805369 | AN8: =Z8*E8+($A$4-80)*AG8*$A$8/1000 -> 18.94177852 | AO8: =AA8*G8+($A$4-80)*AH8*$A$8/1000 -> 18.66845638 | AP8: =AB8*I8+($A$4-80)*AI8*$A$8/1000 -> 18.3261745 | AQ8: =AC8*K8+($A$4-80)*AJ8*$A$8/1000 -> 17.97583893 | AR8: =AD8*M8+($A$4-80)*AK8*$A$8/1000 -> 17.69496644 | AS8: =AE8*O8+($A$4-80)*AL8*$A$8/1000 -> 17.39597315
B9: 67 | C9: 30.60402685 | D9: 22.64697987 | E9: 29.89932886 | F9: =IF(AN9>E9,E9,AN9) -> 22.275 | G9: 29.19463087 | H9: =IF(AO9>G9,G9,AO9) -> 21.89597315 | I9: 28.48993289 | J9: =IF(AP9>I9,I9,AP9) -> 21.65234899 | K9: 27.7852349 | L9: =IF(AQ9>K9,K9,AQ9) -> 21.39463087 | M9: 26.87919463 | N9: =IF(AR9>M9,M9,AR9) -> 20.96577181 | O9: 25.97315436 | P9: =IF(AS9>O9,O9,AS9) -> 20.51879195 | R9: 1.020134228 | S9: 0.9966442953 | T9: 0.9731543624 | U9: 0.9496644295 | V9: 0.9261744966 | W9: 0.8959731544 | X9: 0.8657718121 | Y9: 0.74 | Z9: 0.745 | AA9: 0.75 | AB9: 0.76 | AC9: 0.77 | AD9: 0.78 | AE9: 0.79 | AF9: =IF(Y9<0.9,0.9,Y9*-3.6846+4.1276) -> 0.9 | AG9: 0.9 | AH9: 0.9 | AI9: 0.9 | AJ9: 0.9 | AK9: 0.9 | AL9: 0.9 | AM9: =Y9*C9+($A$4-80)*AF9*$A$8/1000 -> 22.64697987 | AN9: =Z9*E9+($A$4-80)*AG9*$A$8/1000 -> 22.275 | AO9: =AA9*G9+($A$4-80)*AH9*$A$8/1000 -> 21.89597315 | AP9: =AB9*I9+($A$4-80)*AI9*$A$8/1000 -> 21.65234899 | AQ9: =AC9*K9+($A$4-80)*AJ9*$A$8/1000 -> 21.39463087 | AR9: =AD9*M9+($A$4-80)*AK9*$A$8/1000 -> 20.96577181 | AS9: =AE9*O9+($A$4-80)*AL9*$A$8/1000 -> 20.51879195
B10: 65 | C10: 29.79865772 | D10: 24.13691275 | E10: 29.1442953 | F10: 23.82546141 | G10: 28.48993289 | H10: 23.50419463 | I10: 27.7852349 | J10: 23.27013423 | K10: 27.08053691 | L10: 23.01845638 | M10: 26.17449664 | N10: 22.57550336 | O10: 25.26845638 | P10: 22.10989933 | R10: 0.9932885906 | S10: 0.9714765101 | T10: 0.9496644295 | U10: 0.9261744966 | V10: 0.9026845638 | W10: 0.8724832215 | X10: 0.8422818792 | Y10: 0.81 | Z10: 0.8175 | AA10: 0.825 | AB10: 0.8375 | AC10: 0.85 | AD10: 0.8625 | AE10: 0.875 | AF10: 0.9 | AG10: 0.9 | AH10: 0.9 | AI10: 0.9 | AJ10: 0.9 | AK10: 0.9 | AL10: 0.9 | AM10: 24.13691275 | AN10: =Z10*E10+($A$4-80)*AG10*$A$8/1000 -> 23.82546141 | AO10: =AA10*G10+($A$4-80)*AH10*$A$8/1000 -> 23.50419463 | AP10: 23.27013423 | AQ10: 23.01845638 | AR10: 22.57550336 | AS10: 22.10989933
B11: 63 | C11: 28.99328859 | D11: 25.51409396 | E11: 28.38926174 | F11: 25.26644295 | G11: 27.7852349 | H11: 25.00671141 | I11: 27.08053691 | J11: 24.77869128 | K11: 26.37583893 | L11: 24.5295302 | M11: 25.46979866 | N11: 24.06895973 | O11: 24.56375839 | P11: 23.58120805 | R11: 0.966442953 | S11: 0.9463087248 | T11: 0.9261744966 | U11: 0.9026845638 | V11: 0.8791946309 | W11: 0.8489932886 | X11: 0.8187919463 | Y11: 0.88 | Z11: 0.89 | AA11: 0.9 | AB11: 0.915 | AC11: 0.93 | AD11: 0.945 | AE11: 0.96 | AF11: 0.9 | AG11: 0.9 | AH11: 0.81146 | AI11: 0.756191 | AJ11: 0.700922 | AK11: 0.645653 | AL11: 0.590384 | AM11: 25.51409396 | AN11: =Z11*E11+($A$4-80)*AG11*$A$8/1000 -> 25.26644295 | AO11: =AA11*G11+($A$4-80)*AH11*$A$8/1000 -> 25.00671141 | AP11: =AB11*I11+($A$4-80)*AI11*$A$8/1000 -> 24.77869128 | AQ11: 24.5295302 | AR11: 24.06895973 | AS11: 23.58120805
A12: 1000 | B12: 71 | C12: 33.02013423 | D12: 20.47248322 | E12: 32.2147651 | F12: 20.13422819 | G12: 31.40939597 | H12: 19.78791946 | I12: 30.60402685 | J12: 19.58657718 | K12: 29.79865772 | L12: 19.36912752 | M12: 28.89261745 | N12: 18.92466443 | O12: 27.98657718 | P12: 18.47114094 | R12: 1.100671141 | S12: 1.073825503 | T12: 1.046979866 | U12: 1.020134228 | V12: 0.9932885906 | W12: 0.9630872483 | X12: 0.932885906 | Y12: 0.62 | Z12: 0.625 | AA12: 0.63 | AB12: 0.64 | AC12: 0.65 | AD12: 0.655 | AE12: 0.66 | AF12: 0.9 | AG12: 0.9 | AH12: 0.9 | AI12: 0.9 | AJ12: 0.9 | AK12: 0.9 | AL12: 0.9 | AM12: =Y12*C12+($A$4-80)*AF12*$A$12/1000 -> 20.47248322 | AN12: =Z12*E12+($A$4-80)*AG12*$A$12/1000 -> 20.13422819 | AO12: =AA12*G12+($A$4-80)*AH12*$A$12/1000 -> 19.78791946 | AP12: =AB12*I12+($A$4-80)*AI12*$A$12/1000 -> 19.58657718 | AQ12: =AC12*K12+($A$4-80)*AJ12*$A$12/1000 -> 19.36912752 | AR12: =AD12*M12+($A$4-80)*AK12*$A$12/1000 -> 18.92466443 | AS12: =AE12*O12+($A$4-80)*AL12*$A$12/1000 -> 18.47114094
B13: 67 | C13: 31.61073826 | D13: 24.02416107 | E13: 30.80536913 | F13: 23.72013423 | G13: 30 | H13: 23.4 | I13: 29.29530201 | J13: 23.14328859 | K13: 28.59060403 | L13: 22.87248322 | M13: 27.68456376 | N13: 22.56291946 | O13: 26.77852349 | P13: 22.2261745 | R13: 1.053691275 | S13: 1.026845638 | T13: 1 | U13: 0.9765100671 | V13: 0.9530201342 | W13: 0.9228187919 | X13: 0.8926174497 | Y13: 0.76 | Z13: 0.77 | AA13: 0.78 | AB13: 0.79 | AC13: 0.8 | AD13: 0.815 | AE13: 0.83 | AF13: 0.9 | AG13: 0.9 | AH13: 0.9 | AI13: 0.9 | AJ13: 0.9 | AK13: 0.9 | AL13: 0.9 | AM13: =Y13*C13+($A$4-80)*AF13*$A$12/1000 -> 24.02416107 | AN13: =Z13*E13+($A$4-80)*AG13*$A$12/1000 -> 23.72013423 | AO13: =AA13*G13+($A$4-80)*AH13*$A$12/1000 -> 23.4 | AP13: =AB13*I13+($A$4-80)*AI13*$A$12/1000 -> 23.14328859 | AQ13: =AC13*K13+($A$4-80)*AJ13*$A$12/1000 -> 22.87248322 | AR13: =AD13*M13+($A$4-80)*AK13*$A$12/1000 -> 22.56291946 | AS13: =AE13*O13+($A$4-80)*AL13*$A$12/1000 -> 22.2261745
B14: 65 | C14: 30.80536913 | D14: 25.87651007 | E14: 30.05033557 | F14: 25.61791107 | G14: 29.29530201 | H14: 25.34043624 | I14: 28.59060403 | J14: 25.08825503 | K14: 27.88590604 | L14: 24.81845638 | M14: 27.03020134 | N14: 24.32718121 | O14: 26.17449664 | P14: 23.81879195 | R14: 1.026845638 | S14: 1.001677852 | T14: 0.9765100671 | U14: 0.9530201342 | V14: 0.9295302013 | W14: 0.9010067114 | X14: 0.8724832215 | Y14: 0.84 | Z14: 0.8525 | AA14: 0.865 | AB14: 0.8775 | AC14: 0.89 | AD14: 0.9 | AE14: 0.91 | AF14: 0.9 | AG14: 0.9 | AH14: 0.9 | AI14: 0.9 | AJ14: 0.9 | AK14: 0.81146 | AL14: 0.774614 | AM14: 25.87651007 | AN14: =Z14*E14+($A$4-80)*AG14*$A$12/1000 -> 25.61791107 | AO14: =AA14*G14+($A$4-80)*AH14*$A$12/1000 -> 25.34043624 | AP14: 25.08825503 | AQ14: 24.81845638 | AR14: 24.32718121 | AS14: 23.81879195
B15: 63 | C15: 30 | D15: 27.6 | E15: 29.29530201 | F15: 27.39110738 | G15: 28.59060403 | H15: 27.16107383 | I15: 27.88590604 | J15: 26.90989933 | K15: 27.18120805 | L15: 26.63758389 | M15: 26.37583893 | N15: 25.98020134 | O15: 25.5704698 | P15: 25.3147651 | R15: 1 | S15: 0.9765100671 | T15: 0.9530201342 | U15: 0.9295302013 | V15: 0.9060402685 | W15: 0.8791946309 | X15: 0.8523489933 | Y15: 0.92 | Z15: 0.935 | AA15: 0.95 | AB15: 0.965 | AC15: 0.98 | AD15: 0.985 | AE15: 0.99 | AF15: 0.737768 | AG15: 0.682499 | AH15: 0.62723 | AI15: 0.571961 | AJ15: 0.516692 | AK15: 0.498269 | AL15: 0.479846 | AM15: 27.6 | AN15: =Z15*E15+($A$4-80)*AG15*$A$12/1000 -> 27.39110738 | AO15: =AA15*G15+($A$4-80)*AH15*$A$12/1000 -> 27.16107383 | AP15: 26.90989933 | AQ15: 26.63758389 | AR15: 25.98020134 | AS15: 25.3147651
A16: 1150 | B16: 71 | C16: 33.82550336 | D16: 21.64832215 | E16: 33.02013423 | F16: 21.29798658 | G16: 32.2147651 | H16: 20.93959732 | I16: 31.40939597 | J16: 20.57315436 | K16: 30.60402685 | L16: 20.19865772 | M16: 29.59731544 | N16: 19.83020134 | O16: 28.59060403 | P16: 19.44161074 | R16: 1.127516779 | S16: 1.100671141 | T16: 1.073825503 | U16: 1.046979866 | V16: 1.020134228 | W16: 0.9865771812 | X16: 0.9530201342 | Y16: 0.64 | Z16: 0.645 | AA16: 0.65 | AB16: 0.655 | AC16: 0.66 | AD16: 0.67 | AE16: 0.68 | AF16: 0.9 | AG16: 0.9 | AH16: 0.9 | AI16: 0.9 | AJ16: 0.9 | AK16: 0.9 | AL16: 0.9 | AM16: =Y16*C16+($A$4-80)*AF16*$A$16/1000 -> 21.64832215 | AN16: =Z16*E16+($A$4-80)*AG16*$A$16/1000 -> 21.29798658 | AO16: =AA16*G16+($A$4-80)*AH16*$A$16/1000 -> 20.93959732 | AP16: =AB16*I16+($A$4-80)*AI16*$A$16/1000 -> 20.57315436 | AQ16: =AC16*K16+($A$4-80)*AJ16*$A$16/1000 -> 20.19865772 | AR16: =AD16*M16+($A$4-80)*AK16*$A$16/1000 -> 19.83020134 | AS16: =AE16*O16+($A$4-80)*AL16*$A$16/1000 -> 19.44161074
B17: 67 | C17: 32.41610738 | D17: 25.60872483 | E17: 31.61073826 | F17: 25.2885906 | G17: 30.80536913 | H17: 24.95234899 | I17: 30 | J17: 24.6 | K17: 29.19463087 | L17: 24.23154362 | M17: 28.2885906 | N17: 23.90385906 | O17: 27.38255034 | P17: 23.54899329 | R17: 1.080536913 | S17: 1.053691275 | T17: 1.026845638 | U17: 1 | V17: 0.9731543624 | W17: 0.9429530201 | X17: 0.9127516779 | Y17: 0.79 | Z17: 0.8 | AA17: 0.81 | AB17: 0.82 | AC17: 0.83 | AD17: 0.845 | AE17: 0.86 | AF17: 0.9 | AG17: 0.9 | AH17: 0.9 | AI17: 0.9 | AJ17: 0.9 | AK17: 0.9 | AL17: 0.9 | AM17: =Y17*C17+($A$4-80)*AF17*$A$16/1000 -> 25.60872483 | AN17: =Z17*E17+($A$4-80)*AG17*$A$16/1000 -> 25.2885906 | AO17: =AA17*G17+($A$4-80)*AH17*$A$16/1000 -> 24.95234899 | AP17: =AB17*I17+($A$4-80)*AI17*$A$16/1000 -> 24.6 | AQ17: =AC17*K17+($A$4-80)*AJ17*$A$16/1000 -> 24.23154362 | AR17: =AD17*M17+($A$4-80)*AK17*$A$16/1000 -> 23.90385906 | AS17: =AE17*O17+($A$4-80)*AL17*$A$16/1000 -> 23.54899329
B18: 65 | C18: 31.61073826 | D18: 27.65939597 | E18: 30.8557047 | F18: 27.30729866 | G18: 30.10067114 | H18: 26.94010067 | I18: 29.34563758 | J18: 26.55780201 | K18: 28.59060403 | L18: 26.16040268 | M18: 27.7852349 | N18: 25.63187919 | O18: 26.97986577 | P18: 25.09127517 | R18: 1.053691275 | S18: 1.02852349 | T18: 1.003355705 | U18: 0.9781879195 | V18: 0.9530201342 | W18: 0.9261744966 | X18: 0.8993288591 | Y18: 0.875 | Z18: 0.885 | AA18: 0.895 | AB18: 0.905 | AC18: 0.915 | AD18: 0.9225 | AE18: 0.93 | AF18: 0.9 | AG18: 0.9 | AH18: 0.9 | AI18: 0.793037 | AJ18: 0.756191 | AK18: 0.7285565 | AL18: 0.700922 | AM18: 27.65939597 | AN18: =Z18*E18+($A$4-80)*AG18*$A$16/1000 -> 27.30729866 | AO18: =AA18*G18+($A$4-80)*AH18*$A$16/1000 -> 26.94010067 | AP18: 26.55780201 | AQ18: 26.16040268 | AR18: 25.63187919 | AS18: 25.09127517
B19: 63 | C19: 30.80536913 | D19: 29.57315436 | E19: 30.10067114 | F19: 29.19765101 | G19: 29.39597315 | H19: 28.80805369 | I19: 28.69127517 | J19: 28.40436242 | K19: 27.98657718 | L19: 27.98657718 | M19: 27.28187919 | N19: 27.28187919 | O19: 26.57718121 | P19: 26.57718121 | R19: 1.026845638 | S19: 1.003355705 | T19: 0.9798657718 | U19: 0.9563758389 | V19: 0.932885906 | W19: 0.9093959732 | X19: 0.8859060403 | Y19: 0.96 | Z19: 0.97 | AA19: 0.98 | AB19: 0.99 | AC19: 1 | AD19: 1 | AE19: 1 | AF19: 0.590384 | AG19: 0.553538 | AH19: 0.516692 | AI19: 0.479846 | AJ19: 0.443 | AK19: 0.443 | AL19: 0.443 | AM19: 29.57315436 | AN19: =Z19*E19+($A$4-80)*AG19*$A$16/1000 -> 29.19765101 | AO19: =AA19*G19+($A$4-80)*AH19*$A$16/1000 -> 28.80805369 | AP19: 28.40436242 | AQ19: 27.98657718 | AR19: 27.28187919 | AS19: 26.57718121

Sheet 13ACX_36 (hidden)
A2: 13ACX_36 | B2: 36
A3: Evaporator Air | C3: Condenser Entering Air Temperature ˚F
A4: 80 | B4: °F DB | C4: 85 | E4: 90 | G4: 95 | I4: 100 | K4: 105 | M4: 110 | O4: 115
A5: CFM | B5: EWB† ˚F | C5: Capacity Mbtuh | E5: Capacity Mbtuh | G5: Capacity Mbtuh | I5: Capacity Mbtuh | K5: Capacity Mbtuh | M5: Capacity Mbtuh | O5: Capacity Mbtuh
C6: Total | D6: Sens. | E6: Total | F6: Sens. | G6: Total | H6: Sens. | I6: Total | J6: Sens. | K6: Total | L6: Sens. | M6: Total | N6: Sens. | O6: Total | P6: Sens.
R7: Total Factors | Y7: Sens. % | AF7: IDB Adj | AM7: Sens Calc
A8: 1050 | B8: 71 | C8: =R8*$B$2 -> 38.85245902 | D8: =IF(AM8>C8,C8,AM8) -> 23.7 | E8: =S8*$B$2 -> 37.91803279 | F8: =IF(AN8>E8,E8,AN8) -> 23.13 | G8: =T8*$B$2 -> 36.98360656 | H8: =IF(AO8>G8,G8,AO8) -> 22.56 | I8: =U8*$B$2 -> 35.90163934 | J8: =IF(AP8>I8,I8,AP8) -> 22.25901639 | K8: =V8*$B$2 -> 34.81967213 | L8: =IF(AQ8>K8,K8,AQ8) -> 21.93639344 | M8: =W8*$B$2 -> 33.63934426 | N8: =IF(AR8>M8,M8,AR8) -> 21.36098361 | O8: =X8*$B$2 -> 32.45901639 | P8: =IF(AS8>O8,O8,AS8) -> 20.77377049 | R8: 1.079234973 | S8: 1.053278689 | T8: 1.027322404 | U8: 0.9972677596 | V8: 0.9672131148 | W8: 0.9344262295 | X8: 0.9016393443 | Y8: 0.61 | Z8: 0.61 | AA8: 0.61 | AB8: 0.62 | AC8: 0.63 | AD8: 0.635 | AE8: 0.64 | AF8: =IF(Y8<0.9,0.9,Y8*-3.6846+4.1276) -> 0.9 | AG8: =IF(Z8<0.9,0.9,Z8*-3.6846+4.1276) -> 0.9 | AH8: 0.9 | AI8: 0.9 | AJ8: 0.9 | AK8: 0.9 | AL8: 0.9 | AM8: =Y8*C8+($A$4-80)*AF8*$A$8/1000 -> 23.7 | AN8: =Z8*E8+($A$4-80)*AG8*$A$8/1000 -> 23.13 | AO8: =AA8*G8+($A$4-80)*AH8*$A$8/1000 -> 22.56 | AP8: =AB8*I8+($A$4-80)*AI8*$A$8/1000 -> 22.25901639 | AQ8: =AC8*K8+($A$4-80)*AJ8*$A$8/1000 -> 21.93639344 | AR8: =AD8*M8+($A$4-80)*AK8*$A$8/1000 -> 21.36098361 | AS8: =AE8*O8+($A$4-80)*AL8*$A$8/1000 -> 20.77377049
B9: 67 | C9: 36.98360656 | D9: 27.73770492 | E9: 36 | F9: =IF(AN9>E9,E9,AN9) -> 27.18 | G9: 35.01639344 | H9: =IF(AO9>G9,G9,AO9) -> 26.61245902 | I9: 34.03278689 | J9: =IF(AP9>I9,I9,AP9) -> 26.2052459 | K9: 33.04918033 | L9: =IF(AQ9>K9,K9,AQ9) -> 25.77836066 | M9: 31.96721311 | N9: =IF(AR9>M9,M9,AR9) -> 25.41393443 | O9: 30.8852459 | P9: =IF(AS9>O9,O9,AS9) -> 25.01704918 | R9: 1.027322404 | S9: 1 | T9: 0.9726775956 | U9: 0.9453551913 | V9: 0.9180327869 | W9: 0.8879781421 | X9: 0.8579234973 | Y9: 0.75 | Z9: 0.755 | AA9: 0.76 | AB9: 0.77 | AC9: 0.78 | AD9: 0.795 | AE9: 0.81 | AF9: =IF(Y9<0.9,0.9,Y9*-3.6846+4.1276) -> 0.9 | AG9: 0.9 | AH9: 0.9 | AI9: 0.9 | AJ9: 0.9 | AK9: 0.9 | AL9: 0.9 | AM9: =Y9*C9+($A$4-80)*AF9*$A$8/1000 -> 27.73770492 | AN9: =Z9*E9+($A$4-80)*AG9*$A$8/1000 -> 27.18 | AO9: =AA9*G9+($A$4-80)*AH9*$A$8/1000 -> 26.61245902 | AP9: =AB9*I9+($A$4-80)*AI9*$A$8/1000 -> 26.2052459 | AQ9: =AC9*K9+($A$4-80)*AJ9*$A$8/1000 -> 25.77836066 | AR9: =AD9*M9+($A$4-80)*AK9*$A$8/1000 -> 25.41393443 | AS9: =AE9*O9+($A$4-80)*AL9*$A$8/1000 -> 25.01704918
B10: 65 | C10: 36.09836066 | D10: 29.96163934 | E10: 35.1147541 | F10: 29.49639344 | G10: 34.13114754 | H10: 29.01147541 | I10: 33.19672131 | J10: 28.54918033 | K10: 32.26229508 | L10: 28.06819672 | M10: 31.18032787 | N10: 27.59459016 | O10: 30.09836066 | P10: 27.08852459 | R10: 1.00273224 | S10: 0.9754098361 | T10: 0.9480874317 | U10: 0.9221311475 | V10: 0.8961748634 | W10: 0.8661202186 | X10: 0.8360655738 | Y10: 0.83 | Z10: 0.84 | AA10: 0.85 | AB10: 0.86 | AC10: 0.87 | AD10: 0.885 | AE10: 0.9 | AF10: 0.9 | AG10: 0.9 | AH10: 0.9 | AI10: 0.9 | AJ10: 0.9 | AK10: 0.9 | AL10: 0.81146 | AM10: 29.96163934 | AN10: =Z10*E10+($A$4-80)*AG10*$A$8/1000 -> 29.49639344 | AO10: =AA10*G10+($A$4-80)*AH10*$A$8/1000 -> 29.01147541 | AP10: 28.54918033 | AQ10: 28.06819672 | AR10: 27.59459016 | AS10: 27.08852459
B11: 63 | C11: 35.21311475 | D11: 32.04393443 | E11: 34.2295082 | F11: 31.66229508 | G11: 33.24590164 | H11: 31.25114754 | I11: 32.36065574 | J11: 30.74262295 | K11: 31.47540984 | L11: 30.21639344 | M11: 30.39344262 | N11: 29.63360656 | O11: 29.31147541 | P11: 29.01836066 | R11: 0.9781420765 | S11: 0.9508196721 | T11: 0.9234972678 | U11: 0.8989071038 | V11: 0.8743169399 | W11: 0.8442622951 | X11: 0.8142076503 | Y11: 0.91 | Z11: 0.925 | AA11: 0.94 | AB11: 0.95 | AC11: 0.96 | AD11: 0.975 | AE11: 0.99 | AF11: 0.774614 | AG11: 0.719345 | AH11: 0.664076 | AI11: 0.62723 | AJ11: 0.590384 | AK11: 0.535115 | AL11: 0.479846 | AM11: 32.04393443 | AN11: =Z11*E11+($A$4-80)*AG11*$A$8/1000 -> 31.66229508 | AO11: =AA11*G11+($A$4-80)*AH11*$A$8/1000 -> 31.25114754 | AP11: =AB11*I11+($A$4-80)*AI11*$A$8/1000 -> 30.74262295 | AQ11: 30.21639344 | AR11: 29.63360656 | AS11: 29.01836066
A12: 1200 | B12: 71 | C12: 39.83606557 | D12: 24.69836066 | E12: 38.85245902 | F12: 24.47704918 | G12: 37.86885246 | H12: 24.23606557 | I12: 36.63934426 | J12: 23.44918033 | K12: 35.40983607 | L12: 22.66229508 | M12: 34.2295082 | N12: 22.42032787 | O12: 33.04918033 | P12: 22.14295082 | R12: 1.106557377 | S12: 1.079234973 | T12: 1.051912568 | U12: 1.017759563 | V12: 0.9836065574 | W12: 0.9508196721 | X12: 0.9180327869 | Y12: 0.62 | Z12: 0.63 | AA12: 0.64 | AB12: 0.64 | AC12: 0.64 | AD12: 0.655 | AE12: 0.67 | AF12: 0.9 | AG12: 0.9 | AH12: 0.9 | AI12: 0.9 | AJ12: 0.9 | AK12: 0.9 | AL12: 0.9 | AM12: =Y12*C12+($A$4-80)*AF12*$A$12/1000 -> 24.69836066 | AN12: =Z12*E12+($A$4-80)*AG12*$A$12/1000 -> 24.47704918 | AO12: =AA12*G12+($A$4-80)*AH12*$A$12/1000 -> 24.23606557 | AP12: =AB12*I12+($A$4-80)*AI12*$A$12/1000 -> 23.44918033 | AQ12: =AC12*K12+($A$4-80)*AJ12*$A$12/1000 -> 22.66229508 | AR12: =AD12*M12+($A$4-80)*AK12*$A$12/1000 -> 22.42032787 | AS12: =AE12*O12+($A$4-80)*AL12*$A$12/1000 -> 22.14295082
B13: 67 | C13: 37.86885246 | D13: 29.53770492 | E13: 36.93442623 | F13: 29.17819672 | G13: 36 | H13: 28.8 | I13: 34.91803279 | J13: 28.28360656 | K13: 33.83606557 | L13: 27.74557377 | M13: 32.6557377 | N13: 27.26754098 | O13: 31.47540984 | P13: 26.75409836 | R13: 1.051912568 | S13: 1.025956284 | T13: 1 | U13: 0.9699453552 | V13: 0.9398907104 | W13: 0.9071038251 | X13: 0.8743169399 | Y13: 0.78 | Z13: 0.79 | AA13: 0.8 | AB13: 0.81 | AC13: 0.82 | AD13: 0.835 | AE13: 0.85 | AF13: 0.9 | AG13: 0.9 | AH13: 0.9 | AI13: 0.9 | AJ13: 0.9 | AK13: 0.9 | AL13: 0.9 | AM13: =Y13*C13+($A$4-80)*AF13*$A$12/1000 -> 29.53770492 | AN13: =Z13*E13+($A$4-80)*AG13*$A$12/1000 -> 29.17819672 | AO13: =AA13*G13+($A$4-80)*AH13*$A$12/1000 -> 28.8 | AP13: =AB13*I13+($A$4-80)*AI13*$A$12/1000 -> 28.28360656 | AQ13: =AC13*K13+($A$4-80)*AJ13*$A$12/1000 -> 27.74557377 | AR13: =AD13*M13+($A$4-80)*AK13*$A$12/1000 -> 27.26754098 | AS13: =AE13*O13+($A$4-80)*AL13*$A$12/1000 -> 26.75409836
B14: 65 | C14: 36.93442623 | D14: 31.94827869 | E14: 36.02459016 | F14: 31.61157787 | G14: 35.1147541 | H14: 31.25213115 | I14: 34.08196721 | J14: 30.67377049 | K14: 33.04918033 | L14: 30.0747541 | M14: 31.96721311 | N14: 29.32991803 | O14: 30.8852459 | P14: 28.56885246 | R14: 1.025956284 | S14: 1.00068306 | T14: 0.9754098361 | U14: 0.9467213115 | V14: 0.9180327869 | W14: 0.8879781421 | X14: 0.8579234973 | Y14: 0.865 | Z14: 0.8775 | AA14: 0.89 | AB14: 0.9 | AC14: 0.91 | AD14: 0.9175 | AE14: 0.925 | AF14: 0.9 | AG14: 0.9 | AH14: 0.9 | AI14: 0.81146 | AJ14: 0.774614 | AK14: 0.7469795 | AL14: 0.719345 | AM14: 31.94827869 | AN14: =Z14*E14+($A$4-80)*AG14*$A$12/1000 -> 31.61157787 | AO14: =AA14*G14+($A$4-80)*AH14*$A$12/1000 -> 31.25213115 | AP14: 30.67377049 | AQ14: 30.0747541 | AR14: 29.32991803 | AS14: 28.56885246
B15: 63 | C15: 36 | D15: 34.2 | E15: 35.1147541 | F15: 33.8857377 | G15: 34.2295082 | H15: 33.54491803 | I15: 33.24590164 | J15: 32.91344262 | K15: 32.26229508 | L15: 32.26229508 | M15: 31.27868852 | N15: 31.27868852 | O15: 30.29508197 | P15: 30.29508197 | R15: 1 | S15: 0.9754098361 | T15: 0.9508196721 | U15: 0.9234972678 | V15: 0.8961748634 | W15: 0.868852459 | X15: 0.8415300546 | Y15: 0.95 | Z15: 0.965 | AA15: 0.98 | AB15: 0.99 | AC15: 1 | AD15: 1 | AE15: 1 | AF15: 0.62723 | AG15: 0.571961 | AH15: 0.516692 | AI15: 0.479846 | AJ15: 0.443 | AK15: 0.443 | AL15: 0.443 | AM15: 34.2 | AN15: =Z15*E15+($A$4-80)*AG15*$A$12/1000 -> 33.8857377 | AO15: =AA15*G15+($A$4-80)*AH15*$A$12/1000 -> 33.54491803 | AP15: 32.91344262 | AQ15: 32.26229508 | AR15: 31.27868852 | AS15: 30.29508197
A16: 1350 | B16: 71 | C16: 40.32786885 | D16: 25.80983607 | E16: 39.3442623 | F16: 25.37704918 | G16: 38.36065574 | H16: 24.93442623 | I16: 37.27868852 | J16: 24.79032787 | K16: 36.19672131 | L16: 24.61377049 | M16: 34.91803279 | N16: 24.09344262 | O16: 33.63934426 | P16: 23.54754098 | R16: 1.120218579 | S16: 1.092896175 | T16: 1.06557377 | U16: 1.035519126 | V16: 1.005464481 | W16: 0.9699453552 | X16: 0.9344262295 | Y16: 0.64 | Z16: 0.645 | AA16: 0.65 | AB16: 0.665 | AC16: 0.68 | AD16: 0.69 | AE16: 0.7 | AF16: 0.9 | AG16: 0.9 | AH16: 0.9 | AI16: 0.9 | AJ16: 0.9 | AK16: 0.9 | AL16: 0.9 | AM16: =Y16*C16+($A$4-80)*AF16*$A$16/1000 -> 25.80983607 | AN16: =Z16*E16+($A$4-80)*AG16*$A$16/1000 -> 25.37704918 | AO16: =AA16*G16+($A$4-80)*AH16*$A$16/1000 -> 24.93442623 | AP16: =AB16*I16+($A$4-80)*AI16*$A$16/1000 -> 24.79032787 | AQ16: =AC16*K16+($A$4-80)*AJ16*$A$16/1000 -> 24.61377049 | AR16: =AD16*M16+($A$4-80)*AK16*$A$16/1000 -> 24.09344262 | AS16: =AE16*O16+($A$4-80)*AL16*$A$16/1000 -> 23.54754098
B17: 67 | C17: 38.85245902 | D17: 31.4704918 | E17: 37.81967213 | F17: 31.01213115 | G17: 36.78688525 | H17: 30.53311475 | I17: 35.60655738 | J17: 30.08754098 | K17: 34.42622951 | L17: 29.60655738 | M17: 33.24590164 | N17: 29.09016393 | O17: 32.06557377 | P17: 28.53836066 | R17: 1.079234973 | S17: 1.050546448 | T17: 1.021857923 | U17: 0.9890710383 | V17: 0.956284153 | W17: 0.9234972678 | X17: 0.8907103825 | Y17: 0.81 | Z17: 0.82 | AA17: 0.83 | AB17: 0.845 | AC17: 0.86 | AD17: 0.875 | AE17: 0.89 | AF17: 0.9 | AG17: 0.9 | AH17: 0.9 | AI17: 0.9 | AJ17: 0.9 | AK17: 0.9 | AL17: 0.9 | AM17: =Y17*C17+($A$4-80)*AF17*$A$16/1000 -> 31.4704918 | AN17: =Z17*E17+($A$4-80)*AG17*$A$16/1000 -> 31.01213115 | AO17: =AA17*G17+($A$4-80)*AH17*$A$16/1000 -> 30.53311475 | AP17: =AB17*I17+($A$4-80)*AI17*$A$16/1000 -> 30.08754098 | AQ17: =AC17*K17+($A$4-80)*AJ17*$A$16/1000 -> 29.60655738 | AR17: =AD17*M17+($A$4-80)*AK17*$A$16/1000 -> 29.09016393 | AS17: =AE17*O17+($A$4-80)*AL17*$A$16/1000 -> 28.53836066
B18: 65 | C18: 37.81967213 | D18: 34.03770492 | E18: 36.86065574 | F18: 33.45104508 | G18: 35.90163934 | H18: 32.85 | I18: 34.86885246 | J18: 32.16651639 | K18: 33.83606557 | L18: 31.46754098 | M18: 32.70491803 | N18: 30.66086066 | O18: 31.57377049 | P18: 29.83721311 | R18: 1.050546448 | S18: 1.023907104 | T18: 0.9972677596 | U18: 0.968579235 | V18: 0.9398907104 | W18: 0.9084699454 | X18: 0.8770491803 | Y18: 0.9 | Z18: 0.9075 | AA18: 0.915 | AB18: 0.9225 | AC18: 0.93 | AD18: 0.9375 | AE18: 0.945 | AF18: 0.81146 | AG18: 0.7838255 | AH18: 0.756191 | AI18: 0.7285565 | AJ18: 0.700922 | AK18: 0.6732875 | AL18: 0.645653 | AM18: 34.03770492 | AN18: =Z18*E18+($A$4-80)*AG18*$A$16/1000 -> 33.45104508 | AO18: =AA18*G18+($A$4-80)*AH18*$A$16/1000 -> 32.85 | AP18: 32.16651639 | AQ18: 31.46754098 | AR18: 30.66086066 | AS18: 29.83721311
B19: 63 | C19: 36.78688525 | D19: 36.41901639 | E19: 35.90163934 | F19: 35.72213115 | G19: 35.01639344 | H19: 35.01639344 | I19: 34.13114754 | J19: 34.13114754 | K19: 33.24590164 | L19: 33.24590164 | M19: 32.16393443 | N19: 32.16393443 | O19: 31.08196721 | P19: 31.08196721 | R19: 1.021857923 | S19: 0.9972677596 | T19: 0.9726775956 | U19: 0.9480874317 | V19: 0.9234972678 | W19: 0.893442623 | X19: 0.8633879781 | Y19: 0.99 | Z19: 0.995 | AA19: 1 | AB19: 1 | AC19: 1 | AD19: 1 | AE19: 1 | AF19: 0.479846 | AG19: 0.461423 | AH19: 0.443 | AI19: 0.443 | AJ19: 0.443 | AK19: 0.443 | AL19: 0.443 | AM19: 36.41901639 | AN19: =Z19*E19+($A$4-80)*AG19*$A$16/1000 -> 35.72213115 | AO19: =AA19*G19+($A$4-80)*AH19*$A$16/1000 -> 35.01639344 | AP19: 34.13114754 | AQ19: 33.24590164 | AR19: 32.16393443 | AS19: 31.08196721

Sheet 13ACX_42 (hidden)
A2: 13ACX_42 | B2: 42
A3: Evaporator Air | C3: Condenser Entering Air Temperature ˚F
A4: 80 | B4: °F DB | C4: 85 | E4: 90 | G4: 95 | I4: 100 | K4: 105 | M4: 110 | O4: 115
A5: CFM | B5: EWB† ˚F | C5: Capacity Mbtuh | E5: Capacity Mbtuh | G5: Capacity Mbtuh | I5: Capacity Mbtuh | K5: Capacity Mbtuh | M5: Capacity Mbtuh | O5: Capacity Mbtuh
C6: Total | D6: Sens. | E6: Total | F6: Sens. | G6: Total | H6: Sens. | I6: Total | J6: Sens. | K6: Total | L6: Sens. | M6: Total | N6: Sens. | O6: Total | P6: Sens.
R7: Total Factors | Y7: Sens. % | AF7: IDB Adj | AM7: Sens Calc
A8: 1150 | B8: 71 | C8: =R8*$B$2 -> 45 | D8: =IF(AM8>C8,C8,AM8) -> 26.55 | E8: =S8*$B$2 -> 44 | F8: =IF(AN8>E8,E8,AN8) -> 25.96 | G8: =T8*$B$2 -> 43 | H8: =IF(AO8>G8,G8,AO8) -> 25.37 | I8: =U8*$B$2 -> 42 | J8: =IF(AP8>I8,I8,AP8) -> 24.99 | K8: =V8*$B$2 -> 41 | L8: =IF(AQ8>K8,K8,AQ8) -> 24.6 | M8: =W8*$B$2 -> 39.75 | N8: =IF(AR8>M8,M8,AR8) -> 24.04875 | O8: =X8*$B$2 -> 38.5 | P8: =IF(AS8>O8,O8,AS8) -> 23.485 | R8: 1.071428571 | S8: 1.047619048 | T8: 1.023809524 | U8: 1 | V8: 0.9761904762 | W8: 0.9464285714 | X8: 0.9166666667 | Y8: 0.59 | Z8: 0.59 | AA8: 0.59 | AB8: 0.595 | AC8: 0.6 | AD8: 0.605 | AE8: 0.61 | AF8: =IF(Y8<0.9,0.9,Y8*-3.6846+4.1276) -> 0.9 | AG8: =IF(Z8<0.9,0.9,Z8*-3.6846+4.1276) -> 0.9 | AH8: 0.9 | AI8: 0.9 | AJ8: 0.9 | AK8: 0.9 | AL8: 0.9 | AM8: =Y8*C8+($A$4-80)*AF8*$A$8/1000 -> 26.55 | AN8: =Z8*E8+($A$4-80)*AG8*$A$8/1000 -> 25.96 | AO8: =AA8*G8+($A$4-80)*AH8*$A$8/1000 -> 25.37 | AP8: =AB8*I8+($A$4-80)*AI8*$A$8/1000 -> 24.99 | AQ8: =AC8*K8+($A$4-80)*AJ8*$A$8/1000 -> 24.6 | AR8: =AD8*M8+($A$4-80)*AK8*$A$8/1000 -> 24.04875 | AS8: =AE8*O8+($A$4-80)*AL8*$A$8/1000 -> 23.485
B9: 67 | C9: 42.5 | D9: 30.6 | E9: 41.5 | F9: =IF(AN9>E9,E9,AN9) -> 30.0875 | G9: 40.5 | H9: =IF(AO9>G9,G9,AO9) -> 29.565 | I9: 39.5 | J9: =IF(AP9>I9,I9,AP9) -> 29.23 | K9: 38.5 | L9: =IF(AQ9>K9,K9,AQ9) -> 28.875 | M9: 37.55 | N9: =IF(AR9>M9,M9,AR9) -> 28.538 | O9: 36.6 | P9: =IF(AS9>O9,O9,AS9) -> 28.182 | R9: 1.011904762 | S9: 0.9880952381 | T9: 0.9642857143 | U9: 0.9404761905 | V9: 0.9166666667 | W9: 0.894047619 | X9: 0.8714285714 | Y9: 0.72 | Z9: 0.725 | AA9: 0.73 | AB9: 0.74 | AC9: 0.75 | AD9: 0.76 | AE9: 0.77 | AF9: =IF(Y9<0.9,0.9,Y9*-3.6846+4.1276) -> 0.9 | AG9: 0.9 | AH9: 0.9 | AI9: 0.9 | AJ9: 0.9 | AK9: 0.9 | AL9: 0.9 | AM9: =Y9*C9+($A$4-80)*AF9*$A$8/1000 -> 30.6 | AN9: =Z9*E9+($A$4-80)*AG9*$A$8/1000 -> 30.0875 | AO9: =AA9*G9+($A$4-80)*AH9*$A$8/1000 -> 29.565 | AP9: =AB9*I9+($A$4-80)*AI9*$A$8/1000 -> 29.23 | AQ9: =AC9*K9+($A$4-80)*AJ9*$A$8/1000 -> 28.875 | AR9: =AD9*M9+($A$4-80)*AK9*$A$8/1000 -> 28.538 | AS9: =AE9*O9+($A$4-80)*AL9*$A$8/1000 -> 28.182
B10: 65 | C10: 41.5 | D10: 32.9925 | E10: 40.5 | F10: 32.50125 | G10: 39.5 | H10: 31.995 | I10: 38.575 | J10: 31.6315 | K10: 37.65 | L10: 31.2495 | M10: 36.675 | N10: 30.8986875 | O10: 35.7 | P10: 30.5235 | R10: 0.9880952381 | S10: 0.9642857143 | T10: 0.9404761905 | U10: 0.918452381 | V10: 0.8964285714 | W10: 0.8732142857 | X10: 0.85 | Y10: 0.795 | Z10: 0.8025 | AA10: 0.81 | AB10: 0.82 | AC10: 0.83 | AD10: 0.8425 | AE10: 0.855 | AF10: 0.9 | AG10: 0.9 | AH10: 0.9 | AI10: 0.9 | AJ10: 0.9 | AK10: 0.9 | AL10: 0.9 | AM10: 32.9925 | AN10: =Z10*E10+($A$4-80)*AG10*$A$8/1000 -> 32.50125 | AO10: =AA10*G10+($A$4-80)*AH10*$A$8/1000 -> 31.995 | AP10: 31.6315 | AQ10: 31.2495 | AR10: 30.8986875 | AS10: 30.5235
B11: 63 | C11: 40.5 | D11: 35.235 | E11: 39.5 | F11: 34.76 | G11: 38.5 | H11: 34.265 | I11: 37.65 | J11: 33.885 | K11: 36.8 | L11: 33.488 | M11: 35.8 | N11: 33.115 | O11: 34.8 | P11: 32.712 | R11: 0.9642857143 | S11: 0.9404761905 | T11: 0.9166666667 | U11: 0.8964285714 | V11: 0.8761904762 | W11: 0.8523809524 | X11: 0.8285714286 | Y11: 0.87 | Z11: 0.88 | AA11: 0.89 | AB11: 0.9 | AC11: 0.91 | AD11: 0.925 | AE11: 0.94 | AF11: 0.9 | AG11: 0.9 | AH11: 0.9 | AI11: 0.81146 | AJ11: 0.774614 | AK11: 0.719345 | AL11: 0.664076 | AM11: 35.235 | AN11: =Z11*E11+($A$4-80)*AG11*$A$8/1000 -> 34.76 | AO11: =AA11*G11+($A$4-80)*AH11*$A$8/1000 -> 34.265 | AP11: =AB11*I11+($A$4-80)*AI11*$A$8/1000 -> 33.885 | AQ11: 33.488 | AR11: 33.115 | AS11: 32.712
A12: 1350 | B12: 71 | C12: 46.5 | D12: 28.365 | E12: 45.25 | F12: 27.6025 | G12: 44 | H12: 26.84 | I12: 43 | J12: 26.66 | K12: 42 | L12: 26.46 | M12: 40.75 | N12: 25.87625 | O12: 39.5 | P12: 25.28 | R12: 1.107142857 | S12: 1.077380952 | T12: 1.047619048 | U12: 1.023809524 | V12: 1 | W12: 0.9702380952 | X12: 0.9404761905 | Y12: 0.61 | Z12: 0.61 | AA12: 0.61 | AB12: 0.62 | AC12: 0.63 | AD12: 0.635 | AE12: 0.64 | AF12: 0.9 | AG12: 0.9 | AH12: 0.9 | AI12: 0.9 | AJ12: 0.9 | AK12: 0.9 | AL12: 0.9 | AM12: =Y12*C12+($A$4-80)*AF12*$A$12/1000 -> 28.365 | AN12: =Z12*E12+($A$4-80)*AG12*$A$12/1000 -> 27.6025 | AO12: =AA12*G12+($A$4-80)*AH12*$A$12/1000 -> 26.84 | AP12: =AB12*I12+($A$4-80)*AI12*$A$12/1000 -> 26.66 | AQ12: =AC12*K12+($A$4-80)*AJ12*$A$12/1000 -> 26.46 | AR12: =AD12*M12+($A$4-80)*AK12*$A$12/1000 -> 25.87625 | AS12: =AE12*O12+($A$4-80)*AL12*$A$12/1000 -> 25.28
B13: 67 | C13: 44 | D13: 33 | E13: 43 | F13: 32.68 | G13: 42 | H13: 32.34 | I13: 41 | J13: 31.98 | K13: 40 | L13: 31.6 | M13: 38.9 | N13: 31.12 | O13: 37.8 | P13: 30.618 | R13: 1.047619048 | S13: 1.023809524 | T13: 1 | U13: 0.9761904762 | V13: 0.9523809524 | W13: 0.9261904762 | X13: 0.9 | Y13: 0.75 | Z13: 0.76 | AA13: 0.77 | AB13: 0.78 | AC13: 0.79 | AD13: 0.8 | AE13: 0.81 | AF13: 0.9 | AG13: 0.9 | AH13: 0.9 | AI13: 0.9 | AJ13: 0.9 | AK13: 0.9 | AL13: 0.9 | AM13: =Y13*C13+($A$4-80)*AF13*$A$12/1000 -> 33 | AN13: =Z13*E13+($A$4-80)*AG13*$A$12/1000 -> 32.68 | AO13: =AA13*G13+($A$4-80)*AH13*$A$12/1000 -> 32.34 | AP13: =AB13*I13+($A$4-80)*AI13*$A$12/1000 -> 31.98 | AQ13: =AC13*K13+($A$4-80)*AJ13*$A$12/1000 -> 31.6 | AR13: =AD13*M13+($A$4-80)*AK13*$A$12/1000 -> 31.12 | AS13: =AE13*O13+($A$4-80)*AL13*$A$12/1000 -> 30.618
B14: 65 | C14: 43 | D14: 35.905 | E14: 42 | F14: 35.49 | G14: 41 | H14: 35.055 | I14: 40 | J14: 34.6 | K14: 39 | L14: 34.125 | M14: 37.9 | N14: 33.63625 | O14: 36.8 | P14: 33.12 | R14: 1.023809524 | S14: 1 | T14: 0.9761904762 | U14: 0.9523809524 | V14: 0.9285714286 | W14: 0.9023809524 | X14: 0.8761904762 | Y14: 0.835 | Z14: 0.845 | AA14: 0.855 | AB14: 0.865 | AC14: 0.875 | AD14: 0.8875 | AE14: 0.9 | AF14: 0.9 | AG14: 0.9 | AH14: 0.9 | AI14: 0.9 | AJ14: 0.9 | AK14: 0.9 | AL14: 0.81146 | AM14: 35.905 | AN14: =Z14*E14+($A$4-80)*AG14*$A$12/1000 -> 35.49 | AO14: =AA14*G14+($A$4-80)*AH14*$A$12/1000 -> 35.055 | AP14: 34.6 | AQ14: 34.125 | AR14: 33.63625 | AS14: 33.12
B15: 63 | C15: 42 | D15: 38.64 | E15: 41 | F15: 38.13 | G15: 40 | H15: 37.6 | I15: 39 | J15: 37.05 | K15: 38 | L15: 36.48 | M15: 36.9 | N15: 35.9775 | O15: 35.8 | P15: 35.442 | R15: 1 | S15: 0.9761904762 | T15: 0.9523809524 | U15: 0.9285714286 | V15: 0.9047619048 | W15: 0.8785714286 | X15: 0.8523809524 | Y15: 0.92 | Z15: 0.93 | AA15: 0.94 | AB15: 0.95 | AC15: 0.96 | AD15: 0.975 | AE15: 0.99 | AF15: 0.737768 | AG15: 0.700922 | AH15: 0.664076 | AI15: 0.62723 | AJ15: 0.590384 | AK15: 0.535115 | AL15: 0.479846 | AM15: 38.64 | AN15: =Z15*E15+($A$4-80)*AG15*$A$12/1000 -> 38.13 | AO15: =AA15*G15+($A$4-80)*AH15*$A$12/1000 -> 37.6 | AP15: 37.05 | AQ15: 36.48 | AR15: 35.9775 | AS15: 35.442
A16: 1550 | B16: 71 | C16: 47.5 | D16: 29.45 | E16: 46.25 | F16: 29.1375 | G16: 45 | H16: 28.8 | I16: 44 | J16: 28.38 | K16: 43 | L16: 27.95 | M16: 41.75 | N16: 27.34625 | O16: 40.5 | P16: 26.73 | R16: 1.130952381 | S16: 1.101190476 | T16: 1.071428571 | U16: 1.047619048 | V16: 1.023809524 | W16: 0.994047619 | X16: 0.9642857143 | Y16: 0.62 | Z16: 0.63 | AA16: 0.64 | AB16: 0.645 | AC16: 0.65 | AD16: 0.655 | AE16: 0.66 | AF16: 0.9 | AG16: 0.9 | AH16: 0.9 | AI16: 0.9 | AJ16: 0.9 | AK16: 0.9 | AL16: 0.9 | AM16: =Y16*C16+($A$4-80)*AF16*$A$16/1000 -> 29.45 | AN16: =Z16*E16+($A$4-80)*AG16*$A$16/1000 -> 29.1375 | AO16: =AA16*G16+($A$4-80)*AH16*$A$16/1000 -> 28.8 | AP16: =AB16*I16+($A$4-80)*AI16*$A$16/1000 -> 28.38 | AQ16: =AC16*K16+($A$4-80)*AJ16*$A$16/1000 -> 27.95 | AR16: =AD16*M16+($A$4-80)*AK16*$A$16/1000 -> 27.34625 | AS16: =AE16*O16+($A$4-80)*AL16*$A$16/1000 -> 26.73
B17: 67 | C17: 45 | D17: 35.55 | E17: 44 | F17: 34.98 | G17: 43 | H17: 34.4 | I17: 42 | J17: 34.02 | K17: 41 | L17: 33.62 | M17: 39.75 | N17: 33.19125 | O17: 38.5 | P17: 32.725 | R17: 1.071428571 | S17: 1.047619048 | T17: 1.023809524 | U17: 1 | V17: 0.9761904762 | W17: 0.9464285714 | X17: 0.9166666667 | Y17: 0.79 | Z17: 0.795 | AA17: 0.8 | AB17: 0.81 | AC17: 0.82 | AD17: 0.835 | AE17: 0.85 | AF17: 0.9 | AG17: 0.9 | AH17: 0.9 | AI17: 0.9 | AJ17: 0.9 | AK17: 0.9 | AL17: 0.9 | AM17: =Y17*C17+($A$4-80)*AF17*$A$16/1000 -> 35.55 | AN17: =Z17*E17+($A$4-80)*AG17*$A$16/1000 -> 34.98 | AO17: =AA17*G17+($A$4-80)*AH17*$A$16/1000 -> 34.4 | AP17: =AB17*I17+($A$4-80)*AI17*$A$16/1000 -> 34.02 | AQ17: =AC17*K17+($A$4-80)*AJ17*$A$16/1000 -> 33.62 | AR17: =AD17*M17+($A$4-80)*AK17*$A$16/1000 -> 33.19125 | AS17: =AE17*O17+($A$4-80)*AL17*$A$16/1000 -> 32.725
B18: 65 | C18: 44 | D18: 38.5 | E18: 43 | F18: 37.9475 | G18: 42 | H18: 37.38 | I18: 41 | J18: 36.9 | K18: 40 | L18: 36.4 | M18: 38.825 | N18: 35.6219375 | O18: 37.65 | P18: 34.82625 | R18: 1.047619048 | S18: 1.023809524 | T18: 1 | U18: 0.9761904762 | V18: 0.9523809524 | W18: 0.9244047619 | X18: 0.8964285714 | Y18: 0.875 | Z18: 0.8825 | AA18: 0.89 | AB18: 0.9 | AC18: 0.91 | AD18: 0.9175 | AE18: 0.925 | AF18: 0.9 | AG18: 0.9 | AH18: 0.9 | AI18: 0.81146 | AJ18: 0.774614 | AK18: 0.7469795 | AL18: 0.719345 | AM18: 38.5 | AN18: =Z18*E18+($A$4-80)*AG18*$A$16/1000 -> 37.9475 | AO18: =AA18*G18+($A$4-80)*AH18*$A$16/1000 -> 37.38 | AP18: 36.9 | AQ18: 36.4 | AR18: 35.6219375 | AS18: 34.82625
B19: 63 | C19: 43 | D19: 41.28 | E19: 42 | F19: 40.74 | G19: 41 | H19: 40.18 | I19: 40 | J19: 39.6 | K19: 39 | L19: 39 | M19: 37.9 | N19: 37.9 | O19: 36.8 | P19: 36.8 | R19: 1.023809524 | S19: 1 | T19: 0.9761904762 | U19: 0.9523809524 | V19: 0.9285714286 | W19: 0.9023809524 | X19: 0.8761904762 | Y19: 0.96 | Z19: 0.97 | AA19: 0.98 | AB19: 0.99 | AC19: 1 | AD19: 1 | AE19: 1 | AF19: 0.590384 | AG19: 0.553538 | AH19: 0.516692 | AI19: 0.479846 | AJ19: 0.443 | AK19: 0.443 | AL19: 0.443 | AM19: 41.28 | AN19: =Z19*E19+($A$4-80)*AG19*$A$16/1000 -> 40.74 | AO19: =AA19*G19+($A$4-80)*AH19*$A$16/1000 -> 40.18 | AP19: 39.6 | AQ19: 39 | AR19: 37.9 | AS19: 36.8

Sheet 13ACX_48 (hidden)
A2: 13ACX_48 | B2: 48
A3: Evaporator Air | C3: Condenser Entering Air Temperature ˚F
A4: 80 | B4: °F DB | C4: 85 | E4: 90 | G4: 95 | I4: 100 | K4: 105 | M4: 110 | O4: 115
A5: CFM | B5: EWB† ˚F | C5: Capacity Mbtuh | E5: Capacity Mbtuh | G5: Capacity Mbtuh | I5: Capacity Mbtuh | K5: Capacity Mbtuh | M5: Capacity Mbtuh | O5: Capacity Mbtuh
C6: Total | D6: Sens. | E6: Total | F6: Sens. | G6: Total | H6: Sens. | I6: Total | J6: Sens. | K6: Total | L6: Sens. | M6: Total | N6: Sens. | O6: Total | P6: Sens.
R7: Total Factors | Y7: Sens. % | AF7: IDB Adj | AM7: Sens Calc
A8: 1400 | B8: 71 | C8: =R8*$B$2 -> 51.42857143 | D8: =IF(AM8>C8,C8,AM8) -> 30.34285714 | E8: =S8*$B$2 -> 50.20408163 | F8: =IF(AN8>E8,E8,AN8) -> 29.87142857 | G8: =T8*$B$2 -> 48.97959184 | H8: =IF(AO8>G8,G8,AO8) -> 29.3877551 | I8: =U8*$B$2 -> 47.75510204 | J8: =IF(AP8>I8,I8,AP8) -> 28.89183673 | K8: =V8*$B$2 -> 46.53061224 | L8: =IF(AQ8>K8,K8,AQ8) -> 28.38367347 | M8: =W8*$B$2 -> 45.06122449 | N8: =IF(AR8>M8,M8,AR8) -> 27.71265306 | O8: =X8*$B$2 -> 43.59183673 | P8: =IF(AS8>O8,O8,AS8) -> 27.02693878 | R8: 1.071428571 | S8: 1.045918367 | T8: 1.020408163 | U8: 0.9948979592 | V8: 0.9693877551 | W8: 0.9387755102 | X8: 0.9081632653 | Y8: 0.59 | Z8: 0.595 | AA8: 0.6 | AB8: 0.605 | AC8: 0.61 | AD8: 0.615 | AE8: 0.62 | AF8: =IF(Y8<0.9,0.9,Y8*-3.6846+4.1276) -> 0.9 | AG8: =IF(Z8<0.9,0.9,Z8*-3.6846+4.1276) -> 0.9 | AH8: 0.9 | AI8: 0.9 | AJ8: 0.9 | AK8: 0.9 | AL8: 0.9 | AM8: =Y8*C8+($A$4-80)*AF8*$A$8/1000 -> 30.34285714 | AN8: =Z8*E8+($A$4-80)*AG8*$A$8/1000 -> 29.87142857 | AO8: =AA8*G8+($A$4-80)*AH8*$A$8/1000 -> 29.3877551 | AP8: =AB8*I8+($A$4-80)*AI8*$A$8/1000 -> 28.89183673 | AQ8: =AC8*K8+($A$4-80)*AJ8*$A$8/1000 -> 28.38367347 | AR8: =AD8*M8+($A$4-80)*AK8*$A$8/1000 -> 27.71265306 | AS8: =AE8*O8+($A$4-80)*AL8*$A$8/1000 -> 27.02693878
B9: 67 | C9: 48.97959184 | D9: 35.26530612 | E9: 47.75510204 | F9: =IF(AN9>E9,E9,AN9) -> 34.86122449 | G9: 46.53061224 | H9: =IF(AO9>G9,G9,AO9) -> 34.43265306 | I9: 45.55102041 | J9: =IF(AP9>I9,I9,AP9) -> 33.9355102 | K9: 44.57142857 | L9: =IF(AQ9>K9,K9,AQ9) -> 33.42857143 | M9: 43.34693878 | N9: =IF(AR9>M9,M9,AR9) -> 32.94367347 | O9: 42.12244898 | P9: =IF(AS9>O9,O9,AS9) -> 32.43428571 | R9: 1.020408163 | S9: 0.9948979592 | T9: 0.9693877551 | U9: 0.9489795918 | V9: 0.9285714286 | W9: 0.9030612245 | X9: 0.8775510204 | Y9: 0.72 | Z9: 0.73 | AA9: 0.74 | AB9: 0.745 | AC9: 0.75 | AD9: 0.76 | AE9: 0.77 | AF9: =IF(Y9<0.9,0.9,Y9*-3.6846+4.1276) -> 0.9 | AG9: 0.9 | AH9: 0.9 | AI9: 0.9 | AJ9: 0.9 | AK9: 0.9 | AL9: 0.9 | AM9: =Y9*C9+($A$4-80)*AF9*$A$8/1000 -> 35.26530612 | AN9: =Z9*E9+($A$4-80)*AG9*$A$8/1000 -> 34.86122449 | AO9: =AA9*G9+($A$4-80)*AH9*$A$8/1000 -> 34.43265306 | AP9: =AB9*I9+($A$4-80)*AI9*$A$8/1000 -> 33.9355102 | AQ9: =AC9*K9+($A$4-80)*AJ9*$A$8/1000 -> 33.42857143 | AR9: =AD9*M9+($A$4-80)*AK9*$A$8/1000 -> 32.94367347 | AS9: =AE9*O9+($A$4-80)*AL9*$A$8/1000 -> 32.43428571
B10: 65 | C10: 47.75510204 | D10: 37.96530612 | E10: 46.65306122 | F10: 37.55571429 | G10: 45.55102041 | H10: 37.12408163 | I10: 44.44897959 | J10: 36.55928571 | K10: 43.34693878 | L10: 35.97795918 | M10: 42.12244898 | N10: 35.48816327 | O10: 40.89795918 | P10: 34.9677551 | R10: 0.9948979592 | S10: 0.9719387755 | T10: 0.9489795918 | U10: 0.9260204082 | V10: 0.9030612245 | W10: 0.8775510204 | X10: 0.8520408163 | Y10: 0.795 | Z10: 0.805 | AA10: 0.815 | AB10: 0.8225 | AC10: 0.83 | AD10: 0.8425 | AE10: 0.855 | AF10: 0.9 | AG10: 0.9 | AH10: 0.9 | AI10: 0.9 | AJ10: 0.9 | AK10: 0.9 | AL10: 0.9 | AM10: 37.96530612 | AN10: =Z10*E10+($A$4-80)*AG10*$A$8/1000 -> 37.55571429 | AO10: =AA10*G10+($A$4-80)*AH10*$A$8/1000 -> 37.12408163 | AP10: 36.55928571 | AQ10: 35.97795918 | AR10: 35.48816327 | AS10: 34.9677551
B11: 63 | C11: 46.53061224 | D11: 40.48163265 | E11: 45.55102041 | F11: 40.08489796 | G11: 44.57142857 | H11: 39.66857143 | I11: 43.34693878 | J11: 39.0122449 | K11: 42.12244898 | L11: 38.33142857 | M11: 40.89795918 | N11: 37.83061224 | O11: 39.67346939 | P11: 37.29306122 | R11: 0.9693877551 | S11: 0.9489795918 | T11: 0.9285714286 | U11: 0.9030612245 | V11: 0.8775510204 | W11: 0.8520408163 | X11: 0.8265306122 | Y11: 0.87 | Z11: 0.88 | AA11: 0.89 | AB11: 0.9 | AC11: 0.91 | AD11: 0.925 | AE11: 0.94 | AF11: 0.9 | AG11: 0.9 | AH11: 0.9 | AI11: 0.81146 | AJ11: 0.774614 | AK11: 0.719345 | AL11: 0.664076 | AM11: 40.48163265 | AN11: =Z11*E11+($A$4-80)*AG11*$A$8/1000 -> 40.08489796 | AO11: =AA11*G11+($A$4-80)*AH11*$A$8/1000 -> 39.66857143 | AP11: =AB11*I11+($A$4-80)*AI11*$A$8/1000 -> 39.0122449 | AQ11: 38.33142857 | AR11: 37.83061224 | AS11: 37.29306122
A12: 1600 | B12: 71 | C12: 52.40816327 | D12: 31.96897959 | E12: 51.18367347 | F12: 31.22204082 | G12: 49.95918367 | H12: 30.47510204 | I12: 48.73469388 | J12: 29.97183673 | K12: 47.51020408 | L12: 29.45632653 | M12: 46.04081633 | N12: 28.7755102 | O12: 44.57142857 | P12: 28.08 | R12: 1.091836735 | S12: 1.066326531 | T12: 1.040816327 | U12: 1.015306122 | V12: 0.9897959184 | W12: 0.9591836735 | X12: 0.9285714286 | Y12: 0.61 | Z12: 0.61 | AA12: 0.61 | AB12: 0.615 | AC12: 0.62 | AD12: 0.625 | AE12: 0.63 | AF12: 0.9 | AG12: 0.9 | AH12: 0.9 | AI12: 0.9 | AJ12: 0.9 | AK12: 0.9 | AL12: 0.9 | AM12: =Y12*C12+($A$4-80)*AF12*$A$12/1000 -> 31.96897959 | AN12: =Z12*E12+($A$4-80)*AG12*$A$12/1000 -> 31.22204082 | AO12: =AA12*G12+($A$4-80)*AH12*$A$12/1000 -> 30.47510204 | AP12: =AB12*I12+($A$4-80)*AI12*$A$12/1000 -> 29.97183673 | AQ12: =AC12*K12+($A$4-80)*AJ12*$A$12/1000 -> 29.45632653 | AR12: =AD12*M12+($A$4-80)*AK12*$A$12/1000 -> 28.7755102 | AS12: =AE12*O12+($A$4-80)*AL12*$A$12/1000 -> 28.08
B13: 67 | C13: 50.44897959 | D13: 37.83673469 | E13: 49.2244898 | F13: 37.1644898 | G13: 48 | H13: 36.48 | I13: 46.7755102 | J13: 36.01714286 | K13: 45.55102041 | L13: 35.52979592 | M13: 44.32653061 | N13: 35.01795918 | O13: 43.10204082 | P13: 34.48163265 | R13: 1.051020408 | S13: 1.025510204 | T13: 1 | U13: 0.9744897959 | V13: 0.9489795918 | W13: 0.9234693878 | X13: 0.8979591837 | Y13: 0.75 | Z13: 0.755 | AA13: 0.76 | AB13: 0.77 | AC13: 0.78 | AD13: 0.79 | AE13: 0.8 | AF13: 0.9 | AG13: 0.9 | AH13: 0.9 | AI13: 0.9 | AJ13: 0.9 | AK13: 0.9 | AL13: 0.9 | AM13: =Y13*C13+($A$4-80)*AF13*$A$12/1000 -> 37.83673469 | AN13: =Z13*E13+($A$4-80)*AG13*$A$12/1000 -> 37.1644898 | AO13: =AA13*G13+($A$4-80)*AH13*$A$12/1000 -> 36.48 | AP13: =AB13*I13+($A$4-80)*AI13*$A$12/1000 -> 36.01714286 | AQ13: =AC13*K13+($A$4-80)*AJ13*$A$12/1000 -> 35.52979592 | AR13: =AD13*M13+($A$4-80)*AK13*$A$12/1000 -> 35.01795918 | AS13: =AE13*O13+($A$4-80)*AL13*$A$12/1000 -> 34.48163265
B14: 65 | C14: 49.2244898 | D14: 40.85632653 | E14: 48 | F14: 40.2 | G14: 46.7755102 | H14: 39.52530612 | I14: 45.67346939 | J14: 39.05081633 | K14: 44.57142857 | L14: 38.55428571 | M14: 43.2244898 | N14: 37.9294898 | O14: 41.87755102 | P14: 37.27102041 | R14: 1.025510204 | S14: 1 | T14: 0.9744897959 | U14: 0.9515306122 | V14: 0.9285714286 | W14: 0.9005102041 | X14: 0.8724489796 | Y14: 0.83 | Z14: 0.8375 | AA14: 0.845 | AB14: 0.855 | AC14: 0.865 | AD14: 0.8775 | AE14: 0.89 | AF14: 0.9 | AG14: 0.9 | AH14: 0.9 | AI14: 0.9 | AJ14: 0.9 | AK14: 0.9 | AL14: 0.9 | AM14: 40.85632653 | AN14: =Z14*E14+($A$4-80)*AG14*$A$12/1000 -> 40.2 | AO14: =AA14*G14+($A$4-80)*AH14*$A$12/1000 -> 39.52530612 | AP14: 39.05081633 | AQ14: 38.55428571 | AR14: 37.9294898 | AS14: 37.27102041
B15: 63 | C15: 48 | D15: 43.68 | E15: 46.7755102 | F15: 43.03346939 | G15: 45.55102041 | H15: 42.36244898 | I15: 44.57142857 | J15: 41.89714286 | K15: 43.59183673 | L15: 41.4122449 | M15: 42.12244898 | N15: 40.64816327 | O15: 40.65306122 | P15: 39.84 | R15: 1 | S15: 0.9744897959 | T15: 0.9489795918 | U15: 0.9285714286 | V15: 0.9081632653 | W15: 0.8775510204 | X15: 0.8469387755 | Y15: 0.91 | Z15: 0.92 | AA15: 0.93 | AB15: 0.94 | AC15: 0.95 | AD15: 0.965 | AE15: 0.98 | AF15: 0.774614 | AG15: 0.737768 | AH15: 0.700922 | AI15: 0.664076 | AJ15: 0.62723 | AK15: 0.571961 | AL15: 0.516692 | AM15: 43.68 | AN15: =Z15*E15+($A$4-80)*AG15*$A$12/1000 -> 43.03346939 | AO15: =AA15*G15+($A$4-80)*AH15*$A$12/1000 -> 42.36244898 | AP15: 41.89714286 | AQ15: 41.4122449 | AR15: 40.64816327 | AS15: 39.84
A16: 1800 | B16: 71 | C16: 53.3877551 | D16: 33.10040816 | E16: 52.16326531 | F16: 32.60204082 | G16: 50.93877551 | H16: 32.09142857 | I16: 49.71428571 | J16: 31.56857143 | K16: 48.48979592 | L16: 31.03346939 | M16: 47.02040816 | N16: 30.56326531 | O16: 45.55102041 | P16: 30.06367347 | R16: 1.112244898 | S16: 1.086734694 | T16: 1.06122449 | U16: 1.035714286 | V16: 1.010204082 | W16: 0.9795918367 | X16: 0.9489795918 | Y16: 0.62 | Z16: 0.625 | AA16: 0.63 | AB16: 0.635 | AC16: 0.64 | AD16: 0.65 | AE16: 0.66 | AF16: 0.9 | AG16: 0.9 | AH16: 0.9 | AI16: 0.9 | AJ16: 0.9 | AK16: 0.9 | AL16: 0.9 | AM16: =Y16*C16+($A$4-80)*AF16*$A$16/1000 -> 33.10040816 | AN16: =Z16*E16+($A$4-80)*AG16*$A$16/1000 -> 32.60204082 | AO16: =AA16*G16+($A$4-80)*AH16*$A$16/1000 -> 32.09142857 | AP16: =AB16*I16+($A$4-80)*AI16*$A$16/1000 -> 31.56857143 | AQ16: =AC16*K16+($A$4-80)*AJ16*$A$16/1000 -> 31.03346939 | AR16: =AD16*M16+($A$4-80)*AK16*$A$16/1000 -> 30.56326531 | AS16: =AE16*O16+($A$4-80)*AL16*$A$16/1000 -> 30.06367347
B17: 67 | C17: 51.42857143 | D17: 39.6 | E17: 50.20408163 | F17: 39.15918367 | G17: 48.97959184 | H17: 38.69387755 | I17: 47.75510204 | J17: 38.20408163 | K17: 46.53061224 | L17: 37.68979592 | M17: 45.06122449 | N17: 36.95020408 | O17: 43.59183673 | P17: 36.18122449 | R17: 1.071428571 | S17: 1.045918367 | T17: 1.020408163 | U17: 0.9948979592 | V17: 0.9693877551 | W17: 0.9387755102 | X17: 0.9081632653 | Y17: 0.77 | Z17: 0.78 | AA17: 0.79 | AB17: 0.8 | AC17: 0.81 | AD17: 0.82 | AE17: 0.83 | AF17: 0.9 | AG17: 0.9 | AH17: 0.9 | AI17: 0.9 | AJ17: 0.9 | AK17: 0.9 | AL17: 0.9 | AM17: =Y17*C17+($A$4-80)*AF17*$A$16/1000 -> 39.6 | AN17: =Z17*E17+($A$4-80)*AG17*$A$16/1000 -> 39.15918367 | AO17: =AA17*G17+($A$4-80)*AH17*$A$16/1000 -> 38.69387755 | AP17: =AB17*I17+($A$4-80)*AI17*$A$16/1000 -> 38.20408163 | AQ17: =AC17*K17+($A$4-80)*AJ17*$A$16/1000 -> 37.68979592 | AR17: =AD17*M17+($A$4-80)*AK17*$A$16/1000 -> 36.95020408 | AS17: =AE17*O17+($A$4-80)*AL17*$A$16/1000 -> 36.18122449
B18: 65 | C18: 50.20408163 | D18: 42.9244898 | E18: 48.97959184 | F18: 42.36734694 | G18: 47.75510204 | H18: 41.78571429 | I18: 46.53061224 | J18: 41.29591837 | K18: 45.30612245 | L18: 40.7755102 | M18: 43.95918367 | N18: 39.89295918 | O18: 42.6122449 | P18: 38.99020408 | R18: 1.045918367 | S18: 1.020408163 | T18: 0.9948979592 | U18: 0.9693877551 | V18: 0.943877551 | W18: 0.9158163265 | X18: 0.887755102 | Y18: 0.855 | Z18: 0.865 | AA18: 0.875 | AB18: 0.8875 | AC18: 0.9 | AD18: 0.9075 | AE18: 0.915 | AF18: 0.9 | AG18: 0.9 | AH18: 0.9 | AI18: 0.9 | AJ18: 0.81146 | AK18: 0.7838255 | AL18: 0.756191 | AM18: 42.9244898 | AN18: =Z18*E18+($A$4-80)*AG18*$A$16/1000 -> 42.36734694 | AO18: =AA18*G18+($A$4-80)*AH18*$A$16/1000 -> 41.78571429 | AP18: 41.29591837 | AQ18: 40.7755102 | AR18: 39.89295918 | AS18: 38.99020408
B19: 63 | C19: 48.97959184 | D19: 46.04081633 | E19: 47.75510204 | F19: 45.36734694 | G19: 46.53061224 | H19: 44.66938776 | I19: 45.30612245 | J19: 44.17346939 | K19: 44.08163265 | L19: 43.64081633 | M19: 42.85714286 | N19: 42.64285714 | O19: 41.63265306 | P19: 41.63265306 | R19: 1.020408163 | S19: 0.9948979592 | T19: 0.9693877551 | U19: 0.943877551 | V19: 0.9183673469 | W19: 0.8928571429 | X19: 0.8673469388 | Y19: 0.94 | Z19: 0.95 | AA19: 0.96 | AB19: 0.975 | AC19: 0.99 | AD19: 0.995 | AE19: 1 | AF19: 0.664076 | AG19: 0.62723 | AH19: 0.590384 | AI19: 0.535115 | AJ19: 0.479846 | AK19: 0.461423 | AL19: 0.443 | AM19: 46.04081633 | AN19: =Z19*E19+($A$4-80)*AG19*$A$16/1000 -> 45.36734694 | AO19: =AA19*G19+($A$4-80)*AH19*$A$16/1000 -> 44.66938776 | AP19: 44.17346939 | AQ19: 43.64081633 | AR19: 42.64285714 | AS19: 41.63265306

Sheet 13ACX_60 (hidden)
A2: 13ACX_60 | B2: 60
A3: Evaporator Air | C3: Condenser Entering Air Temperature ˚F
A4: 80 | B4: °F DB | C4: 85 | E4: 90 | G4: 95 | I4: 100 | K4: 105 | M4: 110 | O4: 115
A5: CFM | B5: EWB† ˚F | C5: Capacity Mbtuh | E5: Capacity Mbtuh | G5: Capacity Mbtuh | I5: Capacity Mbtuh | K5: Capacity Mbtuh | M5: Capacity Mbtuh | O5: Capacity Mbtuh
C6: Total | D6: Sens. | E6: Total | F6: Sens. | G6: Total | H6: Sens. | I6: Total | J6: Sens. | K6: Total | L6: Sens. | M6: Total | N6: Sens. | O6: Total | P6: Sens.
R7: Total Factors | Y7: Sens. % | AF7: IDB Adj | AM7: Sens Calc
A8: 1550 | B8: 71 | C8: =R8*$B$2 -> 64.91803279 | D8: =IF(AM8>C8,C8,AM8) -> 37.65245902 | E8: =S8*$B$2 -> 63.19672131 | F8: =IF(AN8>E8,E8,AN8) -> 36.97008197 | G8: =T8*$B$2 -> 61.47540984 | H8: =IF(AO8>G8,G8,AO8) -> 36.2704918 | I8: =U8*$B$2 -> 59.75409836 | J8: =IF(AP8>I8,I8,AP8) -> 35.55368852 | K8: =V8*$B$2 -> 58.03278689 | L8: =IF(AQ8>K8,K8,AQ8) -> 34.81967213 | M8: =W8*$B$2 -> 56.06557377 | N8: =IF(AR8>M8,M8,AR8) -> 34.2 | O8: =X8*$B$2 -> 54.09836066 | P8: =IF(AS8>O8,O8,AS8) -> 33.54098361 | R8: 1.081967213 | S8: 1.053278689 | T8: 1.024590164 | U8: 0.9959016393 | V8: 0.9672131148 | W8: 0.9344262295 | X8: 0.9016393443 | Y8: 0.58 | Z8: 0.585 | AA8: 0.59 | AB8: 0.595 | AC8: 0.6 | AD8: 0.61 | AE8: 0.62 | AF8: =IF(Y8<0.9,0.9,Y8*-3.6846+4.1276) -> 0.9 | AG8: =IF(Z8<0.9,0.9,Z8*-3.6846+4.1276) -> 0.9 | AH8: 0.9 | AI8: 0.9 | AJ8: 0.9 | AK8: 0.9 | AL8: 0.9 | AM8: =Y8*C8+($A$4-80)*AF8*$A$8/1000 -> 37.65245902 | AN8: =Z8*E8+($A$4-80)*AG8*$A$8/1000 -> 36.97008197 | AO8: =AA8*G8+($A$4-80)*AH8*$A$8/1000 -> 36.2704918 | AP8: =AB8*I8+($A$4-80)*AI8*$A$8/1000 -> 35.55368852 | AQ8: =AC8*K8+($A$4-80)*AJ8*$A$8/1000 -> 34.81967213 | AR8: =AD8*M8+($A$4-80)*AK8*$A$8/1000 -> 34.2 | AS8: =AE8*O8+($A$4-80)*AL8*$A$8/1000 -> 33.54098361
B9: 67 | C9: 61.47540984 | D9: 43.64754098 | E9: 60 | F9: =IF(AN9>E9,E9,AN9) -> 43.2 | G9: 58.52459016 | H9: =IF(AO9>G9,G9,AO9) -> 42.72295082 | I9: 56.80327869 | J9: =IF(AP9>I9,I9,AP9) -> 42.03442623 | K9: 55.08196721 | L9: =IF(AQ9>K9,K9,AQ9) -> 41.31147541 | M9: 53.36065574 | N9: =IF(AR9>M9,M9,AR9) -> 40.55409836 | O9: 51.63934426 | P9: =IF(AS9>O9,O9,AS9) -> 39.76229508 | R9: 1.024590164 | S9: 1 | T9: 0.9754098361 | U9: 0.9467213115 | V9: 0.9180327869 | W9: 0.8893442623 | X9: 0.8606557377 | Y9: 0.71 | Z9: 0.72 | AA9: 0.73 | AB9: 0.74 | AC9: 0.75 | AD9: 0.76 | AE9: 0.77 | AF9: =IF(Y9<0.9,0.9,Y9*-3.6846+4.1276) -> 0.9 | AG9: 0.9 | AH9: 0.9 | AI9: 0.9 | AJ9: 0.9 | AK9: 0.9 | AL9: 0.9 | AM9: =Y9*C9+($A$4-80)*AF9*$A$8/1000 -> 43.64754098 | AN9: =Z9*E9+($A$4-80)*AG9*$A$8/1000 -> 43.2 | AO9: =AA9*G9+($A$4-80)*AH9*$A$8/1000 -> 42.72295082 | AP9: =AB9*I9+($A$4-80)*AI9*$A$8/1000 -> 42.03442623 | AQ9: =AC9*K9+($A$4-80)*AJ9*$A$8/1000 -> 41.31147541 | AR9: =AD9*M9+($A$4-80)*AK9*$A$8/1000 -> 40.55409836 | AS9: =AE9*O9+($A$4-80)*AL9*$A$8/1000 -> 39.76229508
B10: 65 | C10: 60 | D10: 47.1 | E10: 58.52459016 | F10: 46.52704918 | G10: 57.04918033 | H10: 45.92459016 | I10: 55.45081967 | J10: 45.33104508 | K10: 53.85245902 | L10: 44.69754098 | M10: 52.13114754 | N10: 43.9204918 | O10: 50.40983607 | P10: 43.10040984 | R10: 1 | S10: 0.9754098361 | T10: 0.9508196721 | U10: 0.9241803279 | V10: 0.8975409836 | W10: 0.868852459 | X10: 0.8401639344 | Y10: 0.785 | Z10: 0.795 | AA10: 0.805 | AB10: 0.8175 | AC10: 0.83 | AD10: 0.8425 | AE10: 0.855 | AF10: 0.9 | AG10: 0.9 | AH10: 0.9 | AI10: 0.9 | AJ10: 0.9 | AK10: 0.9 | AL10: 0.9 | AM10: 47.1 | AN10: =Z10*E10+($A$4-80)*AG10*$A$8/1000 -> 46.52704918 | AO10: =AA10*G10+($A$4-80)*AH10*$A$8/1000 -> 45.92459016 | AP10: 45.33104508 | AQ10: 44.69754098 | AR10: 43.9204918 | AS10: 43.10040984
B11: 63 | C11: 58.52459016 | D11: 50.33114754 | E11: 57.04918033 | F11: 49.63278689 | G11: 55.57377049 | H11: 48.90491803 | I11: 54.09836066 | J11: 48.41803279 | K11: 52.62295082 | L11: 47.88688525 | M11: 50.90163934 | N11: 47.08401639 | O11: 49.18032787 | P11: 46.2295082 | R11: 0.9754098361 | S11: 0.9508196721 | T11: 0.9262295082 | U11: 0.9016393443 | V11: 0.8770491803 | W11: 0.8483606557 | X11: 0.8196721311 | Y11: 0.86 | Z11: 0.87 | AA11: 0.88 | AB11: 0.895 | AC11: 0.91 | AD11: 0.925 | AE11: 0.94 | AF11: 0.9 | AG11: 0.9 | AH11: 0.9 | AI11: 0.9 | AJ11: 0.774614 | AK11: 0.719345 | AL11: 0.664076 | AM11: 50.33114754 | AN11: =Z11*E11+($A$4-80)*AG11*$A$8/1000 -> 49.63278689 | AO11: =AA11*G11+($A$4-80)*AH11*$A$8/1000 -> 48.90491803 | AP11: =AB11*I11+($A$4-80)*AI11*$A$8/1000 -> 48.41803279 | AQ11: 47.88688525 | AR11: 47.08401639 | AS11: 46.2295082
A12: 1750 | B12: 71 | C12: 65.90163934 | D12: 39.54098361 | E12: 64.42622951 | F12: 38.97786885 | G12: 62.95081967 | H12: 38.4 | I12: 61.2295082 | J12: 37.65614754 | K12: 59.50819672 | L12: 36.89508197 | M12: 57.54098361 | N12: 36.25081967 | O12: 55.57377049 | P12: 35.56721311 | R12: 1.098360656 | S12: 1.073770492 | T12: 1.049180328 | U12: 1.020491803 | V12: 0.9918032787 | W12: 0.9590163934 | X12: 0.9262295082 | Y12: 0.6 | Z12: 0.605 | AA12: 0.61 | AB12: 0.615 | AC12: 0.62 | AD12: 0.63 | AE12: 0.64 | AF12: 0.9 | AG12: 0.9 | AH12: 0.9 | AI12: 0.9 | AJ12: 0.9 | AK12: 0.9 | AL12: 0.9 | AM12: =Y12*C12+($A$4-80)*AF12*$A$12/1000 -> 39.54098361 | AN12: =Z12*E12+($A$4-80)*AG12*$A$12/1000 -> 38.97786885 | AO12: =AA12*G12+($A$4-80)*AH12*$A$12/1000 -> 38.4 | AP12: =AB12*I12+($A$4-80)*AI12*$A$12/1000 -> 37.65614754 | AQ12: =AC12*K12+($A$4-80)*AJ12*$A$12/1000 -> 36.89508197 | AR12: =AD12*M12+($A$4-80)*AK12*$A$12/1000 -> 36.25081967 | AS12: =AE12*O12+($A$4-80)*AL12*$A$12/1000 -> 35.56721311
B13: 67 | C13: 62.95081967 | D13: 46.58360656 | E13: 61.47540984 | F13: 45.79918033 | G13: 60 | H13: 45 | I13: 58.27868852 | J13: 44.29180328 | K13: 56.55737705 | L13: 43.54918033 | M13: 54.83606557 | N13: 43.04631148 | O13: 53.1147541 | P13: 42.49180328 | R13: 1.049180328 | S13: 1.024590164 | T13: 1 | U13: 0.9713114754 | V13: 0.9426229508 | W13: 0.9139344262 | X13: 0.8852459016 | Y13: 0.74 | Z13: 0.745 | AA13: 0.75 | AB13: 0.76 | AC13: 0.77 | AD13: 0.785 | AE13: 0.8 | AF13: 0.9 | AG13: 0.9 | AH13: 0.9 | AI13: 0.9 | AJ13: 0.9 | AK13: 0.9 | AL13: 0.9 | AM13: =Y13*C13+($A$4-80)*AF13*$A$12/1000 -> 46.58360656 | AN13: =Z13*E13+($A$4-80)*AG13*$A$12/1000 -> 45.79918033 | AO13: =AA13*G13+($A$4-80)*AH13*$A$12/1000 -> 45 | AP13: =AB13*I13+($A$4-80)*AI13*$A$12/1000 -> 44.29180328 | AQ13: =AC13*K13+($A$4-80)*AJ13*$A$12/1000 -> 43.54918033 | AR13: =AD13*M13+($A$4-80)*AK13*$A$12/1000 -> 43.04631148 | AS13: =AE13*O13+($A$4-80)*AL13*$A$12/1000 -> 42.49180328
B14: 65 | C14: 61.47540984 | D14: 50.10245902 | E14: 60 | F14: 49.35 | G14: 58.52459016 | H14: 48.57540984 | I14: 56.92622951 | J14: 47.96034836 | K14: 55.32786885 | L14: 47.30532787 | M14: 53.48360656 | N14: 46.66444672 | O14: 51.63934426 | P14: 45.95901639 | R14: 1.024590164 | S14: 1 | T14: 0.9754098361 | U14: 0.9487704918 | V14: 0.9221311475 | W14: 0.8913934426 | X14: 0.8606557377 | Y14: 0.815 | Z14: 0.8225 | AA14: 0.83 | AB14: 0.8425 | AC14: 0.855 | AD14: 0.8725 | AE14: 0.89 | AF14: 0.9 | AG14: 0.9 | AH14: 0.9 | AI14: 0.9 | AJ14: 0.9 | AK14: 0.9 | AL14: 0.9 | AM14: 50.10245902 | AN14: =Z14*E14+($A$4-80)*AG14*$A$12/1000 -> 49.35 | AO14: =AA14*G14+($A$4-80)*AH14*$A$12/1000 -> 48.57540984 | AP14: 47.96034836 | AQ14: 47.30532787 | AR14: 46.66444672 | AS14: 45.95901639
B15: 63 | C15: 60 | D15: 53.4 | E15: 58.52459016 | F15: 52.67213115 | G15: 57.04918033 | H15: 51.9147541 | I15: 55.57377049 | J15: 51.4057377 | K15: 54.09836066 | L15: 50.85245902 | M15: 52.13114754 | N15: 50.04590164 | O15: 50.16393443 | P15: 49.16065574 | R15: 1 | S15: 0.9754098361 | T15: 0.9508196721 | U15: 0.9262295082 | V15: 0.9016393443 | W15: 0.868852459 | X15: 0.8360655738 | Y15: 0.89 | Z15: 0.9 | AA15: 0.91 | AB15: 0.925 | AC15: 0.94 | AD15: 0.96 | AE15: 0.98 | AF15: 0.9 | AG15: 0.81146 | AH15: 0.774614 | AI15: 0.719345 | AJ15: 0.664076 | AK15: 0.590384 | AL15: 0.516692 | AM15: 53.4 | AN15: =Z15*E15+($A$4-80)*AG15*$A$12/1000 -> 52.67213115 | AO15: =AA15*G15+($A$4-80)*AH15*$A$12/1000 -> 51.9147541 | AP15: 51.4057377 | AQ15: 50.85245902 | AR15: 50.04590164 | AS15: 49.16065574
A16: 1950 | B16: 71 | C16: 67.86885246 | D16: 41.4 | E16: 65.90163934 | F16: 40.5295082 | G16: 63.93442623 | H16: 39.63934426 | I16: 62.21311475 | J16: 39.1942623 | K16: 60.49180328 | L16: 38.7147541 | M16: 58.52459016 | N16: 38.04098361 | O16: 56.55737705 | P16: 37.32786885 | R16: 1.131147541 | S16: 1.098360656 | T16: 1.06557377 | U16: 1.036885246 | V16: 1.008196721 | W16: 0.9754098361 | X16: 0.9426229508 | Y16: 0.61 | Z16: 0.615 | AA16: 0.62 | AB16: 0.63 | AC16: 0.64 | AD16: 0.65 | AE16: 0.66 | AF16: 0.9 | AG16: 0.9 | AH16: 0.9 | AI16: 0.9 | AJ16: 0.9 | AK16: 0.9 | AL16: 0.9 | AM16: =Y16*C16+($A$4-80)*AF16*$A$16/1000 -> 41.4 | AN16: =Z16*E16+($A$4-80)*AG16*$A$16/1000 -> 40.5295082 | AO16: =AA16*G16+($A$4-80)*AH16*$A$16/1000 -> 39.63934426 | AP16: =AB16*I16+($A$4-80)*AI16*$A$16/1000 -> 39.1942623 | AQ16: =AC16*K16+($A$4-80)*AJ16*$A$16/1000 -> 38.7147541 | AR16: =AD16*M16+($A$4-80)*AK16*$A$16/1000 -> 38.04098361 | AS16: =AE16*O16+($A$4-80)*AL16*$A$16/1000 -> 37.32786885
B17: 67 | C17: 64.91803279 | D17: 49.33770492 | E17: 63.19672131 | F17: 48.66147541 | G17: 61.47540984 | H17: 47.95081967 | I17: 59.75409836 | J17: 47.2057377 | K17: 58.03278689 | L17: 46.42622951 | M17: 56.06557377 | N17: 45.69344262 | O17: 54.09836066 | P17: 44.90163934 | R17: 1.081967213 | S17: 1.053278689 | T17: 1.024590164 | U17: 0.9959016393 | V17: 0.9672131148 | W17: 0.9344262295 | X17: 0.9016393443 | Y17: 0.76 | Z17: 0.77 | AA17: 0.78 | AB17: 0.79 | AC17: 0.8 | AD17: 0.815 | AE17: 0.83 | AF17: 0.9 | AG17: 0.9 | AH17: 0.9 | AI17: 0.9 | AJ17: 0.9 | AK17: 0.9 | AL17: 0.9 | AM17: =Y17*C17+($A$4-80)*AF17*$A$16/1000 -> 49.33770492 | AN17: =Z17*E17+($A$4-80)*AG17*$A$16/1000 -> 48.66147541 | AO17: =AA17*G17+($A$4-80)*AH17*$A$16/1000 -> 47.95081967 | AP17: =AB17*I17+($A$4-80)*AI17*$A$16/1000 -> 47.2057377 | AQ17: =AC17*K17+($A$4-80)*AJ17*$A$16/1000 -> 46.42622951 | AR17: =AD17*M17+($A$4-80)*AK17*$A$16/1000 -> 45.69344262 | AS17: =AE17*O17+($A$4-80)*AL17*$A$16/1000 -> 44.90163934
B18: 65 | C18: 63.19672131 | D18: 53.0852459 | E18: 61.47540984 | F18: 52.40778689 | G18: 59.75409836 | H18: 51.68729508 | I18: 58.1557377 | J18: 51.03165984 | K18: 56.55737705 | L18: 50.33606557 | M18: 54.71311475 | N18: 49.37858607 | O18: 52.86885246 | P18: 48.375 | R18: 1.053278689 | S18: 1.024590164 | T18: 0.9959016393 | U18: 0.9692622951 | V18: 0.9426229508 | W18: 0.9118852459 | X18: 0.881147541 | Y18: 0.84 | Z18: 0.8525 | AA18: 0.865 | AB18: 0.8775 | AC18: 0.89 | AD18: 0.9025 | AE18: 0.915 | AF18: 0.9 | AG18: 0.9 | AH18: 0.9 | AI18: 0.9 | AJ18: 0.9 | AK18: 0.8022485 | AL18: 0.756191 | AM18: 53.0852459 | AN18: =Z18*E18+($A$4-80)*AG18*$A$16/1000 -> 52.40778689 | AO18: =AA18*G18+($A$4-80)*AH18*$A$16/1000 -> 51.68729508 | AP18: 51.03165984 | AQ18: 50.33606557 | AR18: 49.37858607 | AS18: 48.375
B19: 63 | C19: 61.47540984 | D19: 56.55737705 | E19: 59.75409836 | F19: 55.87008197 | G19: 58.03278689 | H19: 55.13114754 | I19: 56.55737705 | J19: 54.57786885 | K19: 55.08196721 | L19: 53.98032787 | M19: 53.36065574 | N19: 52.82704918 | O19: 51.63934426 | P19: 51.63934426 | R19: 1.024590164 | S19: 0.9959016393 | T19: 0.9672131148 | U19: 0.9426229508 | V19: 0.9180327869 | W19: 0.8893442623 | X19: 0.8606557377 | Y19: 0.92 | Z19: 0.935 | AA19: 0.95 | AB19: 0.965 | AC19: 0.98 | AD19: 0.99 | AE19: 1 | AF19: 0.737768 | AG19: 0.682499 | AH19: 0.62723 | AI19: 0.571961 | AJ19: 0.516692 | AK19: 0.479846 | AL19: 0.443 | AM19: 56.55737705 | AN19: =Z19*E19+($A$4-80)*AG19*$A$16/1000 -> 55.87008197 | AO19: =AA19*G19+($A$4-80)*AH19*$A$16/1000 -> 55.13114754 | AP19: 54.57786885 | AQ19: 53.98032787 | AR19: 52.82704918 | AS19: 51.63934426

Sheet 14ACX_18 (hidden)
A2: 14ACX_18 | B2: 18
A3: Evaporator Air | C3: Condenser Entering Air Temperature ˚F
A4: 80 | B4: °F DB | C4: 85 | E4: 90 | G4: 95 | I4: 100 | K4: 105 | M4: 110 | O4: 115
A5: CFM | B5: EWB† ˚F | C5: Capacity Mbtuh | E5: Capacity Mbtuh | G5: Capacity Mbtuh | I5: Capacity Mbtuh | K5: Capacity Mbtuh | M5: Capacity Mbtuh | O5: Capacity Mbtuh
C6: Total | D6: Sens. | E6: Total | F6: Sens. | G6: Total | H6: Sens. | I6: Total | J6: Sens. | K6: Total | L6: Sens. | M6: Total | N6: Sens. | O6: Total | P6: Sens.
R7: Total Factors | Y7: Sens. % | AF7: IDB Adj | AM7: Sens Calc
A8: 525 | B8: 71 | C8: =R8*$B$2 -> 19.35678392 | D8: =IF(AM8>C8,C8,AM8) -> 11.61407035 | E8: =S8*$B$2 -> 18.81407035 | F8: =IF(AN8>E8,E8,AN8) -> 11.19437186 | G8: =T8*$B$2 -> 18.27135678 | H8: =IF(AO8>G8,G8,AO8) -> 10.7801005 | I8: =U8*$B$2 -> 17.81909548 | J8: =IF(AP8>I8,I8,AP8) -> 10.78055276 | K8: =V8*$B$2 -> 17.36683417 | L8: =IF(AQ8>K8,K8,AQ8) -> 10.76743719 | M8: =W8*$B$2 -> 16.77889447 | N8: =IF(AR8>M8,M8,AR8) -> 10.40291457 | O8: =X8*$B$2 -> 16.19095477 | P8: =IF(AS8>O8,O8,AS8) -> 10.03839196 | R8: 1.075376884 | S8: 1.045226131 | T8: 1.015075377 | U8: 0.9899497487 | V8: 0.9648241206 | W8: 0.932160804 | X8: 0.8994974874 | Y8: 0.6 | Z8: 0.595 | AA8: 0.59 | AB8: 0.605 | AC8: 0.62 | AD8: 0.62 | AE8: 0.62 | AF8: =IF(Y8<0.9,0.9,Y8*-3.6846+4.1276) -> 0.9 | AG8: =IF(Z8<0.9,0.9,Z8*-3.6846+4.1276) -> 0.9 | AH8: 0.9 | AI8: 0.9 | AJ8: 0.9 | AK8: 0.9 | AL8: 0.9 | AM8: =Y8*C8+($A$4-80)*AF8*$A$8/1000 -> 11.61407035 | AN8: =Z8*E8+($A$4-80)*AG8*$A$8/1000 -> 11.19437186 | AO8: =AA8*G8+($A$4-80)*AH8*$A$8/1000 -> 10.7801005 | AP8: =AB8*I8+($A$4-80)*AI8*$A$8/1000 -> 10.78055276 | AQ8: =AC8*K8+($A$4-80)*AJ8*$A$8/1000 -> 10.76743719 | AR8: =AD8*M8+($A$4-80)*AK8*$A$8/1000 -> 10.40291457 | AS8: =AE8*O8+($A$4-80)*AL8*$A$8/1000 -> 10.03839196
B9: 67 | C9: 18.27135678 | D9: 13.52080402 | E9: 17.90954774 | F9: =IF(AN9>E9,E9,AN9) -> 13.4321608 | G9: 17.54773869 | H9: =IF(AO9>G9,G9,AO9) -> 13.33628141 | I9: 17.05025126 | J9: =IF(AP9>I9,I9,AP9) -> 13.04344221 | K9: 16.55276382 | L9: =IF(AQ9>K9,K9,AQ9) -> 12.74562814 | M9: 16.05527638 | N9: =IF(AR9>M9,M9,AR9) -> 12.60339196 | O9: 15.55778894 | P9: =IF(AS9>O9,O9,AS9) -> 12.44623116 | R9: 1.015075377 | S9: 0.9949748744 | T9: 0.9748743719 | U9: 0.9472361809 | V9: 0.9195979899 | W9: 0.891959799 | X9: 0.864321608 | Y9: 0.74 | Z9: 0.75 | AA9: 0.76 | AB9: 0.765 | AC9: 0.77 | AD9: 0.785 | AE9: 0.8 | AF9: =IF(Y9<0.9,0.9,Y9*-3.6846+4.1276) -> 0.9 | AG9: 0.9 | AH9: 0.9 | AI9: 0.9 | AJ9: 0.9 | AK9: 0.9 | AL9: 0.9 | AM9: =Y9*C9+($A$4-80)*AF9*$A$8/1000 -> 13.52080402 | AN9: =Z9*E9+($A$4-80)*AG9*$A$8/1000 -> 13.4321608 | AO9: =AA9*G9+($A$4-80)*AH9*$A$8/1000 -> 13.33628141 | AP9: =AB9*I9+($A$4-80)*AI9*$A$8/1000 -> 13.04344221 | AQ9: =AC9*K9+($A$4-80)*AJ9*$A$8/1000 -> 12.74562814 | AR9: =AD9*M9+($A$4-80)*AK9*$A$8/1000 -> 12.60339196 | AS9: =AE9*O9+($A$4-80)*AL9*$A$8/1000 -> 12.44623116
B10: 65 | C10: 17.86432161 | D10: 14.55942211 | E10: 17.45728643 | F10: 14.44590452 | G10: 17.05025126 | H10: 14.32221106 | I10: 16.59798995 | J10: 14.06679648 | K10: 16.14572864 | L10: 13.80459799 | M10: 15.64824121 | N10: 13.61396985 | O10: 15.15075377 | P10: 13.40841709 | R10: 0.9924623116 | S10: 0.9698492462 | T10: 0.9472361809 | U10: 0.9221105528 | V10: 0.8969849246 | W10: 0.8693467337 | X10: 0.8417085427 | Y10: 0.815 | Z10: 0.8275 | AA10: 0.84 | AB10: 0.8475 | AC10: 0.855 | AD10: 0.87 | AE10: 0.885 | AF10: 0.9 | AG10: 0.9 | AH10: 0.9 | AI10: 0.9 | AJ10: 0.9 | AK10: 0.9 | AL10: 0.9 | AM10: 14.55942211 | AN10: =Z10*E10+($A$4-80)*AG10*$A$8/1000 -> 14.44590452 | AO10: =AA10*G10+($A$4-80)*AH10*$A$8/1000 -> 14.32221106 | AP10: 14.06679648 | AQ10: 13.80459799 | AR10: 13.61396985 | AS10: 13.40841709
B11: 63 | C11: 17.45728643 | D11: 15.53698492 | E11: 17.00502513 | F11: 15.38954774 | G11: 16.55276382 | H11: 15.22854271 | I11: 16.14572864 | J11: 15.01552764 | K11: 15.73869347 | L11: 14.79437186 | M11: 15.24120603 | N11: 14.55535176 | O11: 14.74371859 | P11: 14.30140704 | R11: 0.9698492462 | S11: 0.9447236181 | T11: 0.9195979899 | U11: 0.8969849246 | V11: 0.8743718593 | W11: 0.8467336683 | X11: 0.8190954774 | Y11: 0.89 | Z11: 0.905 | AA11: 0.92 | AB11: 0.93 | AC11: 0.94 | AD11: 0.955 | AE11: 0.97 | AF11: 0.9 | AG11: 0.793037 | AH11: 0.737768 | AI11: 0.700922 | AJ11: 0.664076 | AK11: 0.608807 | AL11: 0.553538 | AM11: 15.53698492 | AN11: =Z11*E11+($A$4-80)*AG11*$A$8/1000 -> 15.38954774 | AO11: =AA11*G11+($A$4-80)*AH11*$A$8/1000 -> 15.22854271 | AP11: =AB11*I11+($A$4-80)*AI11*$A$8/1000 -> 15.01552764 | AQ11: 14.79437186 | AR11: 14.55535176 | AS11: 14.30140704
A12: 600 | B12: 71 | C12: 19.89949749 | D12: 12.13869347 | E12: 19.35678392 | F12: 12.00120603 | G12: 18.81407035 | H12: 11.85286432 | I12: 18.27135678 | J12: 11.51095477 | K12: 17.72864322 | L12: 11.16904523 | M12: 17.23115578 | N12: 11.11409548 | O12: 16.73366834 | P12: 11.04422111 | R12: 1.105527638 | S12: 1.075376884 | T12: 1.045226131 | U12: 1.015075377 | V12: 0.9849246231 | W12: 0.9572864322 | X12: 0.9296482412 | Y12: 0.61 | Z12: 0.62 | AA12: 0.63 | AB12: 0.63 | AC12: 0.63 | AD12: 0.645 | AE12: 0.66 | AF12: 0.9 | AG12: 0.9 | AH12: 0.9 | AI12: 0.9 | AJ12: 0.9 | AK12: 0.9 | AL12: 0.9 | AM12: =Y12*C12+($A$4-80)*AF12*$A$12/1000 -> 12.13869347 | AN12: =Z12*E12+($A$4-80)*AG12*$A$12/1000 -> 12.00120603 | AO12: =AA12*G12+($A$4-80)*AH12*$A$12/1000 -> 11.85286432 | AP12: =AB12*I12+($A$4-80)*AI12*$A$12/1000 -> 11.51095477 | AQ12: =AC12*K12+($A$4-80)*AJ12*$A$12/1000 -> 11.16904523 | AR12: =AD12*M12+($A$4-80)*AK12*$A$12/1000 -> 11.11409548 | AS12: =AE12*O12+($A$4-80)*AL12*$A$12/1000 -> 11.04422111
B13: 67 | C13: 18.99497487 | D13: 14.4361809 | E13: 18.49748744 | F13: 14.33555276 | G13: 18 | H13: 14.22 | I13: 17.50251256 | J13: 14.00201005 | K13: 17.00502513 | L13: 13.77407035 | M13: 16.46231156 | N13: 13.49909548 | O13: 15.91959799 | P13: 13.21326633 | R13: 1.055276382 | S13: 1.027638191 | T13: 1 | U13: 0.972361809 | V13: 0.9447236181 | W13: 0.9145728643 | X13: 0.8844221106 | Y13: 0.76 | Z13: 0.775 | AA13: 0.79 | AB13: 0.8 | AC13: 0.81 | AD13: 0.82 | AE13: 0.83 | AF13: 0.9 | AG13: 0.9 | AH13: 0.9 | AI13: 0.9 | AJ13: 0.9 | AK13: 0.9 | AL13: 0.9 | AM13: =Y13*C13+($A$4-80)*AF13*$A$12/1000 -> 14.4361809 | AN13: =Z13*E13+($A$4-80)*AG13*$A$12/1000 -> 14.33555276 | AO13: =AA13*G13+($A$4-80)*AH13*$A$12/1000 -> 14.22 | AP13: =AB13*I13+($A$4-80)*AI13*$A$12/1000 -> 14.00201005 | AQ13: =AC13*K13+($A$4-80)*AJ13*$A$12/1000 -> 13.77407035 | AR13: =AD13*M13+($A$4-80)*AK13*$A$12/1000 -> 13.49909548 | AS13: =AE13*O13+($A$4-80)*AL13*$A$12/1000 -> 13.21326633
B14: 65 | C14: 18.49748744 | D14: 15.72286432 | E14: 18.02261307 | F14: 15.54450377 | G14: 17.54773869 | H14: 15.35427136 | I14: 17.05025126 | J14: 15.13209799 | K14: 16.55276382 | L14: 14.89748744 | M14: 16.05527638 | N14: 14.57016332 | O14: 15.55778894 | P14: 14.23537688 | R14: 1.027638191 | S14: 1.001256281 | T14: 0.9748743719 | U14: 0.9472361809 | V14: 0.9195979899 | W14: 0.891959799 | X14: 0.864321608 | Y14: 0.85 | Z14: 0.8625 | AA14: 0.875 | AB14: 0.8875 | AC14: 0.9 | AD14: 0.9075 | AE14: 0.915 | AF14: 0.9 | AG14: 0.9 | AH14: 0.9 | AI14: 0.9 | AJ14: 0.81146 | AK14: 0.7838255 | AL14: 0.756191 | AM14: 15.72286432 | AN14: =Z14*E14+($A$4-80)*AG14*$A$12/1000 -> 15.54450377 | AO14: =AA14*G14+($A$4-80)*AH14*$A$12/1000 -> 15.35427136 | AP14: 15.13209799 | AQ14: 14.89748744 | AR14: 14.57016332 | AS14: 14.23537688
B15: 63 | C15: 18 | D15: 16.92 | E15: 17.54773869 | F15: 16.67035176 | G15: 17.09547739 | H15: 16.41165829 | I15: 16.59798995 | J15: 16.1830402 | K15: 16.10050251 | L15: 15.93949749 | M15: 15.64824121 | N15: 15.57 | O15: 15.1959799 | P15: 15.1959799 | R15: 1 | S15: 0.9748743719 | T15: 0.9497487437 | U15: 0.9221105528 | V15: 0.8944723618 | W15: 0.8693467337 | X15: 0.8442211055 | Y15: 0.94 | Z15: 0.95 | AA15: 0.96 | AB15: 0.975 | AC15: 0.99 | AD15: 0.995 | AE15: 1 | AF15: 0.664076 | AG15: 0.62723 | AH15: 0.590384 | AI15: 0.535115 | AJ15: 0.479846 | AK15: 0.461423 | AL15: 0.443 | AM15: 16.92 | AN15: =Z15*E15+($A$4-80)*AG15*$A$12/1000 -> 16.67035176 | AO15: =AA15*G15+($A$4-80)*AH15*$A$12/1000 -> 16.41165829 | AP15: 16.1830402 | AQ15: 15.93949749 | AR15: 15.57 | AS15: 15.1959799
A16: 675 | B16: 71 | C16: 20.26130653 | D16: 12.96723618 | E16: 19.80904523 | F16: 12.77683417 | G16: 19.35678392 | H16: 12.58190955 | I16: 18.81407035 | J16: 12.32321608 | K16: 18.27135678 | L16: 12.05909548 | M16: 17.68341709 | N16: 11.84788945 | O16: 17.09547739 | P16: 11.62492462 | R16: 1.125628141 | S16: 1.100502513 | T16: 1.075376884 | U16: 1.045226131 | V16: 1.015075377 | W16: 0.9824120603 | X16: 0.9497487437 | Y16: 0.64 | Z16: 0.645 | AA16: 0.65 | AB16: 0.655 | AC16: 0.66 | AD16: 0.67 | AE16: 0.68 | AF16: 0.9 | AG16: 0.9 | AH16: 0.9 | AI16: 0.9 | AJ16: 0.9 | AK16: 0.9 | AL16: 0.9 | AM16: =Y16*C16+($A$4-80)*AF16*$A$16/1000 -> 12.96723618 | AN16: =Z16*E16+($A$4-80)*AG16*$A$16/1000 -> 12.77683417 | AO16: =AA16*G16+($A$4-80)*AH16*$A$16/1000 -> 12.58190955 | AP16: =AB16*I16+($A$4-80)*AI16*$A$16/1000 -> 12.32321608 | AQ16: =AC16*K16+($A$4-80)*AJ16*$A$16/1000 -> 12.05909548 | AR16: =AD16*M16+($A$4-80)*AK16*$A$16/1000 -> 11.84788945 | AS16: =AE16*O16+($A$4-80)*AL16*$A$16/1000 -> 11.62492462
B17: 67 | C17: 19.35678392 | D17: 15.48542714 | E17: 18.90452261 | F17: 15.31266332 | G17: 18.45226131 | H17: 15.13085427 | I17: 17.90954774 | J17: 14.86492462 | K17: 17.36683417 | L17: 14.5881407 | M17: 16.77889447 | N17: 14.34595477 | O17: 16.19095477 | P17: 14.08613065 | R17: 1.075376884 | S17: 1.050251256 | T17: 1.025125628 | U17: 0.9949748744 | V17: 0.9648241206 | W17: 0.932160804 | X17: 0.8994974874 | Y17: 0.8 | Z17: 0.81 | AA17: 0.82 | AB17: 0.83 | AC17: 0.84 | AD17: 0.855 | AE17: 0.87 | AF17: 0.9 | AG17: 0.9 | AH17: 0.9 | AI17: 0.9 | AJ17: 0.9 | AK17: 0.9 | AL17: 0.9 | AM17: =Y17*C17+($A$4-80)*AF17*$A$16/1000 -> 15.48542714 | AN17: =Z17*E17+($A$4-80)*AG17*$A$16/1000 -> 15.31266332 | AO17: =AA17*G17+($A$4-80)*AH17*$A$16/1000 -> 15.13085427 | AP17: =AB17*I17+($A$4-80)*AI17*$A$16/1000 -> 14.86492462 | AQ17: =AC17*K17+($A$4-80)*AJ17*$A$16/1000 -> 14.5881407 | AR17: =AD17*M17+($A$4-80)*AK17*$A$16/1000 -> 14.34595477 | AS17: =AE17*O17+($A$4-80)*AL17*$A$16/1000 -> 14.08613065
B18: 65 | C18: 18.90452261 | D18: 16.82502513 | E18: 18.42964824 | F18: 16.58668342 | G18: 17.95477387 | H18: 16.33884422 | I18: 17.45728643 | J18: 15.97341709 | K18: 16.95979899 | L18: 15.60301508 | M18: 16.43969849 | N18: 15.24782035 | O18: 15.91959799 | P18: 14.88482412 | R18: 1.050251256 | S18: 1.023869347 | T18: 0.9974874372 | U18: 0.9698492462 | V18: 0.9422110553 | W18: 0.9133165829 | X18: 0.8844221106 | Y18: 0.89 | Z18: 0.9 | AA18: 0.91 | AB18: 0.915 | AC18: 0.92 | AD18: 0.9275 | AE18: 0.935 | AF18: 0.9 | AG18: 0.81146 | AH18: 0.774614 | AI18: 0.756191 | AJ18: 0.737768 | AK18: 0.7101335 | AL18: 0.682499 | AM18: 16.82502513 | AN18: =Z18*E18+($A$4-80)*AG18*$A$16/1000 -> 16.58668342 | AO18: =AA18*G18+($A$4-80)*AH18*$A$16/1000 -> 16.33884422 | AP18: 15.97341709 | AQ18: 15.60301508 | AR18: 15.24782035 | AS18: 14.88482412
B19: 63 | C19: 18.45226131 | D19: 18.08321608 | E19: 17.95477387 | F19: 17.77522613 | G19: 17.45728643 | H19: 17.45728643 | I19: 17.00502513 | J19: 17.00502513 | K19: 16.55276382 | L19: 16.55276382 | M19: 16.10050251 | N19: 16.10050251 | O19: 15.64824121 | P19: 15.64824121 | R19: 1.025125628 | S19: 0.9974874372 | T19: 0.9698492462 | U19: 0.9447236181 | V19: 0.9195979899 | W19: 0.8944723618 | X19: 0.8693467337 | Y19: 0.98 | Z19: 0.99 | AA19: 1 | AB19: 1 | AC19: 1 | AD19: 1 | AE19: 1 | AF19: 0.516692 | AG19: 0.479846 | AH19: 0.443 | AI19: 0.443 | AJ19: 0.443 | AK19: 0.443 | AL19: 0.443 | AM19: 18.08321608 | AN19: =Z19*E19+($A$4-80)*AG19*$A$16/1000 -> 17.77522613 | AO19: =AA19*G19+($A$4-80)*AH19*$A$16/1000 -> 17.45728643 | AP19: 17.00502513 | AQ19: 16.55276382 | AR19: 16.10050251 | AS19: 15.64824121

Sheet 14ACX_24 (hidden)
A2: 14ACX_24 | B2: 24
A3: Evaporator Air | C3: Condenser Entering Air Temperature ˚F
A4: 80 | B4: °F DB | C4: 85 | E4: 90 | G4: 95 | I4: 100 | K4: 105 | M4: 110 | O4: 115
A5: CFM | B5: EWB† ˚F | C5: Capacity Mbtuh | E5: Capacity Mbtuh | G5: Capacity Mbtuh | I5: Capacity Mbtuh | K5: Capacity Mbtuh | M5: Capacity Mbtuh | O5: Capacity Mbtuh
C6: Total | D6: Sens. | E6: Total | F6: Sens. | G6: Total | H6: Sens. | I6: Total | J6: Sens. | K6: Total | L6: Sens. | M6: Total | N6: Sens. | O6: Total | P6: Sens.
R7: Total Factors | Y7: Sens. % | AF7: IDB Adj | AM7: Sens Calc
A8: 700 | B8: 71 | C8: =R8*$B$2 -> 25.92 | D8: =IF(AM8>C8,C8,AM8) -> 15.2928 | E8: =S8*$B$2 -> 25.344 | F8: =IF(AN8>E8,E8,AN8) -> 15.2064 | G8: =T8*$B$2 -> 24.768 | H8: =IF(AO8>G8,G8,AO8) -> 15.10848 | I8: =U8*$B$2 -> 24.096 | J8: =IF(AP8>I8,I8,AP8) -> 14.81904 | K8: =V8*$B$2 -> 23.424 | L8: =IF(AQ8>K8,K8,AQ8) -> 14.52288 | M8: =W8*$B$2 -> 22.656 | N8: =IF(AR8>M8,M8,AR8) -> 14.27328 | O8: =X8*$B$2 -> 21.888 | P8: =IF(AS8>O8,O8,AS8) -> 14.00832 | R8: 1.08 | S8: 1.056 | T8: 1.032 | U8: 1.004 | V8: 0.976 | W8: 0.944 | X8: 0.912 | Y8: 0.59 | Z8: 0.6 | AA8: 0.61 | AB8: 0.615 | AC8: 0.62 | AD8: 0.63 | AE8: 0.64 | AF8: =IF(Y8<0.9,0.9,Y8*-3.6846+4.1276) -> 0.9 | AG8: =IF(Z8<0.9,0.9,Z8*-3.6846+4.1276) -> 0.9 | AH8: 0.9 | AI8: 0.9 | AJ8: 0.9 | AK8: 0.9 | AL8: 0.9 | AM8: =Y8*C8+($A$4-80)*AF8*$A$8/1000 -> 15.2928 | AN8: =Z8*E8+($A$4-80)*AG8*$A$8/1000 -> 15.2064 | AO8: =AA8*G8+($A$4-80)*AH8*$A$8/1000 -> 15.10848 | AP8: =AB8*I8+($A$4-80)*AI8*$A$8/1000 -> 14.81904 | AQ8: =AC8*K8+($A$4-80)*AJ8*$A$8/1000 -> 14.52288 | AR8: =AD8*M8+($A$4-80)*AK8*$A$8/1000 -> 14.27328 | AS8: =AE8*O8+($A$4-80)*AL8*$A$8/1000 -> 14.00832
B9: 67 | C9: 24.768 | D9: 18.32832 | E9: 24.096 | F9: =IF(AN9>E9,E9,AN9) -> 18.072 | G9: 23.424 | H9: =IF(AO9>G9,G9,AO9) -> 17.80224 | I9: 22.752 | J9: =IF(AP9>I9,I9,AP9) -> 17.51904 | K9: 22.08 | L9: =IF(AQ9>K9,K9,AQ9) -> 17.2224 | M9: 21.312 | N9: =IF(AR9>M9,M9,AR9) -> 16.94304 | O9: 20.544 | P9: =IF(AS9>O9,O9,AS9) -> 16.64064 | R9: 1.032 | S9: 1.004 | T9: 0.976 | U9: 0.948 | V9: 0.92 | W9: 0.888 | X9: 0.856 | Y9: 0.74 | Z9: 0.75 | AA9: 0.76 | AB9: 0.77 | AC9: 0.78 | AD9: 0.795 | AE9: 0.81 | AF9: =IF(Y9<0.9,0.9,Y9*-3.6846+4.1276) -> 0.9 | AG9: 0.9 | AH9: 0.9 | AI9: 0.9 | AJ9: 0.9 | AK9: 0.9 | AL9: 0.9 | AM9: =Y9*C9+($A$4-80)*AF9*$A$8/1000 -> 18.32832 | AN9: =Z9*E9+($A$4-80)*AG9*$A$8/1000 -> 18.072 | AO9: =AA9*G9+($A$4-80)*AH9*$A$8/1000 -> 17.80224 | AP9: =AB9*I9+($A$4-80)*AI9*$A$8/1000 -> 17.51904 | AQ9: =AC9*K9+($A$4-80)*AJ9*$A$8/1000 -> 17.2224 | AR9: =AD9*M9+($A$4-80)*AK9*$A$8/1000 -> 16.94304 | AS9: =AE9*O9+($A$4-80)*AL9*$A$8/1000 -> 16.64064
B10: 65 | C10: 24 | D10: 19.8 | E10: 23.376 | F10: 19.51896 | G10: 22.752 | H10: 19.22544 | I10: 22.128 | J10: 18.97476 | K10: 21.504 | L10: 18.70848 | M10: 20.784 | N10: 18.39384 | O10: 20.064 | P10: 18.0576 | R10: 1 | S10: 0.974 | T10: 0.948 | U10: 0.922 | V10: 0.896 | W10: 0.866 | X10: 0.836 | Y10: 0.825 | Z10: 0.835 | AA10: 0.845 | AB10: 0.8575 | AC10: 0.87 | AD10: 0.885 | AE10: 0.9 | AF10: 0.9 | AG10: 0.9 | AH10: 0.9 | AI10: 0.9 | AJ10: 0.9 | AK10: 0.9 | AL10: 0.81146 | AM10: 19.8 | AN10: =Z10*E10+($A$4-80)*AG10*$A$8/1000 -> 19.51896 | AO10: =AA10*G10+($A$4-80)*AH10*$A$8/1000 -> 19.22544 | AP10: 18.97476 | AQ10: 18.70848 | AR10: 18.39384 | AS10: 18.0576
B11: 63 | C11: 23.232 | D11: 21.14112 | E11: 22.656 | F11: 20.84352 | G11: 22.08 | H11: 20.5344 | I11: 21.504 | J11: 20.32128 | K11: 20.928 | L11: 20.09088 | M11: 20.256 | N11: 19.7496 | O11: 19.584 | P11: 19.38816 | R11: 0.968 | S11: 0.944 | T11: 0.92 | U11: 0.896 | V11: 0.872 | W11: 0.844 | X11: 0.816 | Y11: 0.91 | Z11: 0.92 | AA11: 0.93 | AB11: 0.945 | AC11: 0.96 | AD11: 0.975 | AE11: 0.99 | AF11: 0.774614 | AG11: 0.737768 | AH11: 0.700922 | AI11: 0.645653 | AJ11: 0.590384 | AK11: 0.535115 | AL11: 0.479846 | AM11: 21.14112 | AN11: =Z11*E11+($A$4-80)*AG11*$A$8/1000 -> 20.84352 | AO11: =AA11*G11+($A$4-80)*AH11*$A$8/1000 -> 20.5344 | AP11: =AB11*I11+($A$4-80)*AI11*$A$8/1000 -> 20.32128 | AQ11: 20.09088 | AR11: 19.7496 | AS11: 19.38816
A12: 800 | B12: 71 | C12: 26.688 | D12: 16.54656 | E12: 26.016 | F12: 16.26 | G12: 25.344 | H12: 15.96672 | I12: 24.672 | J12: 15.79008 | K12: 24 | L12: 15.6 | M12: 23.136 | N12: 15.15408 | O12: 22.272 | P12: 14.69952 | R12: 1.112 | S12: 1.084 | T12: 1.056 | U12: 1.028 | V12: 1 | W12: 0.964 | X12: 0.928 | Y12: 0.62 | Z12: 0.625 | AA12: 0.63 | AB12: 0.64 | AC12: 0.65 | AD12: 0.655 | AE12: 0.66 | AF12: 0.9 | AG12: 0.9 | AH12: 0.9 | AI12: 0.9 | AJ12: 0.9 | AK12: 0.9 | AL12: 0.9 | AM12: =Y12*C12+($A$4-80)*AF12*$A$12/1000 -> 16.54656 | AN12: =Z12*E12+($A$4-80)*AG12*$A$12/1000 -> 16.26 | AO12: =AA12*G12+($A$4-80)*AH12*$A$12/1000 -> 15.96672 | AP12: =AB12*I12+($A$4-80)*AI12*$A$12/1000 -> 15.79008 | AQ12: =AC12*K12+($A$4-80)*AJ12*$A$12/1000 -> 15.6 | AR12: =AD12*M12+($A$4-80)*AK12*$A$12/1000 -> 15.15408 | AS12: =AE12*O12+($A$4-80)*AL12*$A$12/1000 -> 14.69952
B13: 67 | C13: 25.344 | D13: 19.76832 | E13: 24.672 | F13: 19.49088 | G13: 24 | H13: 19.2 | I13: 23.328 | J13: 18.89568 | K13: 22.656 | L13: 18.57792 | M13: 21.888 | N13: 18.27648 | O13: 21.12 | P13: 17.952 | R13: 1.056 | S13: 1.028 | T13: 1 | U13: 0.972 | V13: 0.944 | W13: 0.912 | X13: 0.88 | Y13: 0.78 | Z13: 0.79 | AA13: 0.8 | AB13: 0.81 | AC13: 0.82 | AD13: 0.835 | AE13: 0.85 | AF13: 0.9 | AG13: 0.9 | AH13: 0.9 | AI13: 0.9 | AJ13: 0.9 | AK13: 0.9 | AL13: 0.9 | AM13: =Y13*C13+($A$4-80)*AF13*$A$12/1000 -> 19.76832 | AN13: =Z13*E13+($A$4-80)*AG13*$A$12/1000 -> 19.49088 | AO13: =AA13*G13+($A$4-80)*AH13*$A$12/1000 -> 19.2 | AP13: =AB13*I13+($A$4-80)*AI13*$A$12/1000 -> 18.89568 | AQ13: =AC13*K13+($A$4-80)*AJ13*$A$12/1000 -> 18.57792 | AR13: =AD13*M13+($A$4-80)*AK13*$A$12/1000 -> 18.27648 | AS13: =AE13*O13+($A$4-80)*AL13*$A$12/1000 -> 17.952
B14: 65 | C14: 24.672 | D14: 21.34128 | E14: 24 | F14: 21.06 | G14: 23.328 | H14: 20.76192 | I14: 22.704 | J14: 20.4336 | K14: 22.08 | L14: 20.0928 | M14: 21.36 | N14: 19.5978 | O14: 20.64 | P14: 19.092 | R14: 1.028 | S14: 1 | T14: 0.972 | U14: 0.946 | V14: 0.92 | W14: 0.89 | X14: 0.86 | Y14: 0.865 | Z14: 0.8775 | AA14: 0.89 | AB14: 0.9 | AC14: 0.91 | AD14: 0.9175 | AE14: 0.925 | AF14: 0.9 | AG14: 0.9 | AH14: 0.9 | AI14: 0.81146 | AJ14: 0.774614 | AK14: 0.7469795 | AL14: 0.719345 | AM14: 21.34128 | AN14: =Z14*E14+($A$4-80)*AG14*$A$12/1000 -> 21.06 | AO14: =AA14*G14+($A$4-80)*AH14*$A$12/1000 -> 20.76192 | AP14: 20.4336 | AQ14: 20.0928 | AR14: 19.5978 | AS14: 19.092
B15: 63 | C15: 24 | D15: 22.8 | E15: 23.328 | F15: 22.51152 | G15: 22.656 | H15: 22.20288 | I15: 22.08 | J15: 21.8592 | K15: 21.504 | L15: 21.504 | M15: 20.832 | N15: 20.832 | O15: 20.16 | P15: 20.16 | R15: 1 | S15: 0.972 | T15: 0.944 | U15: 0.92 | V15: 0.896 | W15: 0.868 | X15: 0.84 | Y15: 0.95 | Z15: 0.965 | AA15: 0.98 | AB15: 0.99 | AC15: 1 | AD15: 1 | AE15: 1 | AF15: 0.62723 | AG15: 0.571961 | AH15: 0.516692 | AI15: 0.479846 | AJ15: 0.443 | AK15: 0.443 | AL15: 0.443 | AM15: 22.8 | AN15: =Z15*E15+($A$4-80)*AG15*$A$12/1000 -> 22.51152 | AO15: =AA15*G15+($A$4-80)*AH15*$A$12/1000 -> 22.20288 | AP15: 21.8592 | AQ15: 21.504 | AR15: 20.832 | AS15: 20.16
A16: 900 | B16: 71 | C16: 27.264 | D16: 17.44896 | E16: 26.592 | F16: 17.15184 | G16: 25.92 | H16: 16.848 | I16: 25.152 | J16: 16.60032 | K16: 24.384 | L16: 16.33728 | M16: 23.52 | N16: 16.1112 | O16: 22.656 | P16: 15.8592 | R16: 1.136 | S16: 1.108 | T16: 1.08 | U16: 1.048 | V16: 1.016 | W16: 0.98 | X16: 0.944 | Y16: 0.64 | Z16: 0.645 | AA16: 0.65 | AB16: 0.66 | AC16: 0.67 | AD16: 0.685 | AE16: 0.7 | AF16: 0.9 | AG16: 0.9 | AH16: 0.9 | AI16: 0.9 | AJ16: 0.9 | AK16: 0.9 | AL16: 0.9 | AM16: =Y16*C16+($A$4-80)*AF16*$A$16/1000 -> 17.44896 | AN16: =Z16*E16+($A$4-80)*AG16*$A$16/1000 -> 17.15184 | AO16: =AA16*G16+($A$4-80)*AH16*$A$16/1000 -> 16.848 | AP16: =AB16*I16+($A$4-80)*AI16*$A$16/1000 -> 16.60032 | AQ16: =AC16*K16+($A$4-80)*AJ16*$A$16/1000 -> 16.33728 | AR16: =AD16*M16+($A$4-80)*AK16*$A$16/1000 -> 16.1112 | AS16: =AE16*O16+($A$4-80)*AL16*$A$16/1000 -> 15.8592
B17: 67 | C17: 25.92 | D17: 20.736 | E17: 25.248 | F17: 20.57712 | G17: 24.576 | H17: 20.39808 | I17: 23.808 | J17: 19.87968 | K17: 23.04 | L17: 19.3536 | M17: 22.272 | N17: 19.26528 | O17: 21.504 | P17: 19.13856 | R17: 1.08 | S17: 1.052 | T17: 1.024 | U17: 0.992 | V17: 0.96 | W17: 0.928 | X17: 0.896 | Y17: 0.8 | Z17: 0.815 | AA17: 0.83 | AB17: 0.835 | AC17: 0.84 | AD17: 0.865 | AE17: 0.89 | AF17: 0.9 | AG17: 0.9 | AH17: 0.9 | AI17: 0.9 | AJ17: 0.9 | AK17: 0.9 | AL17: 0.9 | AM17: =Y17*C17+($A$4-80)*AF17*$A$16/1000 -> 20.736 | AN17: =Z17*E17+($A$4-80)*AG17*$A$16/1000 -> 20.57712 | AO17: =AA17*G17+($A$4-80)*AH17*$A$16/1000 -> 20.39808 | AP17: =AB17*I17+($A$4-80)*AI17*$A$16/1000 -> 19.87968 | AQ17: =AC17*K17+($A$4-80)*AJ17*$A$16/1000 -> 19.3536 | AR17: =AD17*M17+($A$4-80)*AK17*$A$16/1000 -> 19.26528 | AS17: =AE17*O17+($A$4-80)*AL17*$A$16/1000 -> 19.13856
B18: 65 | C18: 25.248 | D18: 22.59696 | E18: 24.576 | F18: 22.24128 | G18: 23.904 | H18: 21.87216 | I18: 23.232 | J18: 21.31536 | K18: 22.56 | L18: 20.7552 | M18: 21.84 | N18: 20.3658 | O18: 21.12 | P18: 19.9584 | R18: 1.052 | S18: 1.024 | T18: 0.996 | U18: 0.968 | V18: 0.94 | W18: 0.91 | X18: 0.88 | Y18: 0.895 | Z18: 0.905 | AA18: 0.915 | AB18: 0.9175 | AC18: 0.92 | AD18: 0.9325 | AE18: 0.945 | AF18: 0.9 | AG18: 0.793037 | AH18: 0.756191 | AI18: 0.7469795 | AJ18: 0.737768 | AK18: 0.6917105 | AL18: 0.645653 | AM18: 22.59696 | AN18: =Z18*E18+($A$4-80)*AG18*$A$16/1000 -> 22.24128 | AO18: =AA18*G18+($A$4-80)*AH18*$A$16/1000 -> 21.87216 | AP18: 21.31536 | AQ18: 20.7552 | AR18: 20.3658 | AS18: 19.9584
B19: 63 | C19: 24.576 | D19: 24.33024 | E19: 23.904 | F19: 23.78448 | G19: 23.232 | H19: 23.232 | I19: 22.656 | J19: 22.656 | K19: 22.08 | L19: 22.08 | M19: 21.408 | N19: 21.408 | O19: 20.736 | P19: 20.736 | R19: 1.024 | S19: 0.996 | T19: 0.968 | U19: 0.944 | V19: 0.92 | W19: 0.892 | X19: 0.864 | Y19: 0.99 | Z19: 0.995 | AA19: 1 | AB19: 1 | AC19: 1 | AD19: 1 | AE19: 1 | AF19: 0.479846 | AG19: 0.461423 | AH19: 0.443 | AI19: 0.443 | AJ19: 0.443 | AK19: 0.443 | AL19: 0.443 | AM19: 24.33024 | AN19: =Z19*E19+($A$4-80)*AG19*$A$16/1000 -> 23.78448 | AO19: =AA19*G19+($A$4-80)*AH19*$A$16/1000 -> 23.232 | AP19: 22.656 | AQ19: 22.08 | AR19: 21.408 | AS19: 20.736

Sheet 14ACX_30 (hidden)
A2: 14ACX_30 | B2: 30
A3: Evaporator Air | C3: Condenser Entering Air Temperature ˚F
A4: 80 | B4: °F DB | C4: 85 | E4: 90 | G4: 95 | I4: 100 | K4: 105 | M4: 110 | O4: 115
A5: CFM | B5: EWB† ˚F | C5: Capacity Mbtuh | E5: Capacity Mbtuh | G5: Capacity Mbtuh | I5: Capacity Mbtuh | K5: Capacity Mbtuh | M5: Capacity Mbtuh | O5: Capacity Mbtuh
C6: Total | D6: Sens. | E6: Total | F6: Sens. | G6: Total | H6: Sens. | I6: Total | J6: Sens. | K6: Total | L6: Sens. | M6: Total | N6: Sens. | O6: Total | P6: Sens.
R7: Total Factors | Y7: Sens. % | AF7: IDB Adj | AM7: Sens Calc
A8: 875 | B8: 71 | C8: =R8*$B$2 -> 32.43243243 | D8: =IF(AM8>C8,C8,AM8) -> 19.45945946 | E8: =S8*$B$2 -> 31.72297297 | F8: =IF(AN8>E8,E8,AN8) -> 19.35101351 | G8: =T8*$B$2 -> 31.01351351 | H8: =IF(AO8>G8,G8,AO8) -> 19.22837838 | I8: =U8*$B$2 -> 30.10135135 | J8: =IF(AP8>I8,I8,AP8) -> 18.81334459 | K8: =V8*$B$2 -> 29.18918919 | L8: =IF(AQ8>K8,K8,AQ8) -> 18.38918919 | M8: =W8*$B$2 -> 28.27702703 | N8: =IF(AR8>M8,M8,AR8) -> 18.0972973 | O8: =X8*$B$2 -> 27.36486486 | P8: =IF(AS8>O8,O8,AS8) -> 17.78716216 | R8: 1.081081081 | S8: 1.057432432 | T8: 1.033783784 | U8: 1.003378378 | V8: 0.972972973 | W8: 0.9425675676 | X8: 0.9121621622 | Y8: 0.6 | Z8: 0.61 | AA8: 0.62 | AB8: 0.625 | AC8: 0.63 | AD8: 0.64 | AE8: 0.65 | AF8: =IF(Y8<0.9,0.9,Y8*-3.6846+4.1276) -> 0.9 | AG8: =IF(Z8<0.9,0.9,Z8*-3.6846+4.1276) -> 0.9 | AH8: 0.9 | AI8: 0.9 | AJ8: 0.9 | AK8: 0.9 | AL8: 0.9 | AM8: =Y8*C8+($A$4-80)*AF8*$A$8/1000 -> 19.45945946 | AN8: =Z8*E8+($A$4-80)*AG8*$A$8/1000 -> 19.35101351 | AO8: =AA8*G8+($A$4-80)*AH8*$A$8/1000 -> 19.22837838 | AP8: =AB8*I8+($A$4-80)*AI8*$A$8/1000 -> 18.81334459 | AQ8: =AC8*K8+($A$4-80)*AJ8*$A$8/1000 -> 18.38918919 | AR8: =AD8*M8+($A$4-80)*AK8*$A$8/1000 -> 18.0972973 | AS8: =AE8*O8+($A$4-80)*AL8*$A$8/1000 -> 17.78716216
B9: 67 | C9: 30.81081081 | D9: 23.10810811 | E9: 30.10135135 | F9: =IF(AN9>E9,E9,AN9) -> 22.87702703 | G9: 29.39189189 | H9: =IF(AO9>G9,G9,AO9) -> 22.63175676 | I9: 28.47972973 | J9: =IF(AP9>I9,I9,AP9) -> 22.35658784 | K9: 27.56756757 | L9: =IF(AQ9>K9,K9,AQ9) -> 22.05405405 | M9: 26.75675676 | N9: =IF(AR9>M9,M9,AR9) -> 21.67297297 | O9: 25.94594595 | P9: =IF(AS9>O9,O9,AS9) -> 21.27567568 | R9: 1.027027027 | S9: 1.003378378 | T9: 0.9797297297 | U9: 0.9493243243 | V9: 0.9189189189 | W9: 0.8918918919 | X9: 0.8648648649 | Y9: 0.75 | Z9: 0.76 | AA9: 0.77 | AB9: 0.785 | AC9: 0.8 | AD9: 0.81 | AE9: 0.82 | AF9: =IF(Y9<0.9,0.9,Y9*-3.6846+4.1276) -> 0.9 | AG9: 0.9 | AH9: 0.9 | AI9: 0.9 | AJ9: 0.9 | AK9: 0.9 | AL9: 0.9 | AM9: =Y9*C9+($A$4-80)*AF9*$A$8/1000 -> 23.10810811 | AN9: =Z9*E9+($A$4-80)*AG9*$A$8/1000 -> 22.87702703 | AO9: =AA9*G9+($A$4-80)*AH9*$A$8/1000 -> 22.63175676 | AP9: =AB9*I9+($A$4-80)*AI9*$A$8/1000 -> 22.35658784 | AQ9: =AC9*K9+($A$4-80)*AJ9*$A$8/1000 -> 22.05405405 | AR9: =AD9*M9+($A$4-80)*AK9*$A$8/1000 -> 21.67297297 | AS9: =AE9*O9+($A$4-80)*AL9*$A$8/1000 -> 21.27567568
B10: 65 | C10: 29.89864865 | D10: 24.96537162 | E10: 29.18918919 | F10: 24.73783784 | G10: 28.47972973 | H10: 24.49256757 | I10: 27.66891892 | J10: 24.21030405 | K10: 26.85810811 | L10: 23.90371622 | M10: 26.0472973 | N10: 23.44256757 | O10: 25.23648649 | P10: 22.9652027 | R10: 0.9966216216 | S10: 0.972972973 | T10: 0.9493243243 | U10: 0.9222972973 | V10: 0.8952702703 | W10: 0.8682432432 | X10: 0.8412162162 | Y10: 0.835 | Z10: 0.8475 | AA10: 0.86 | AB10: 0.875 | AC10: 0.89 | AD10: 0.9 | AE10: 0.91 | AF10: 0.9 | AG10: 0.9 | AH10: 0.9 | AI10: 0.9 | AJ10: 0.9 | AK10: 0.81146 | AL10: 0.774614 | AM10: 24.96537162 | AN10: =Z10*E10+($A$4-80)*AG10*$A$8/1000 -> 24.73783784 | AO10: =AA10*G10+($A$4-80)*AH10*$A$8/1000 -> 24.49256757 | AP10: 24.21030405 | AQ10: 23.90371622 | AR10: 23.44256757 | AS10: 22.9652027
B11: 63 | C11: 28.98648649 | D11: 26.66756757 | E11: 28.27702703 | F11: 26.43902027 | G11: 27.56756757 | H11: 26.18918919 | I11: 26.85810811 | J11: 25.91807432 | K11: 26.14864865 | L11: 25.62567568 | M11: 25.33783784 | N11: 25.08445946 | O11: 24.52702703 | P11: 24.52702703 | R11: 0.9662162162 | S11: 0.9425675676 | T11: 0.9189189189 | U11: 0.8952702703 | V11: 0.8716216216 | W11: 0.8445945946 | X11: 0.8175675676 | Y11: 0.92 | Z11: 0.935 | AA11: 0.95 | AB11: 0.965 | AC11: 0.98 | AD11: 0.99 | AE11: 1 | AF11: 0.737768 | AG11: 0.682499 | AH11: 0.62723 | AI11: 0.571961 | AJ11: 0.516692 | AK11: 0.479846 | AL11: 0.443 | AM11: 26.66756757 | AN11: =Z11*E11+($A$4-80)*AG11*$A$8/1000 -> 26.43902027 | AO11: =AA11*G11+($A$4-80)*AH11*$A$8/1000 -> 26.18918919 | AP11: =AB11*I11+($A$4-80)*AI11*$A$8/1000 -> 25.91807432 | AQ11: 25.62567568 | AR11: 25.08445946 | AS11: 24.52702703
A12: 1000 | B12: 71 | C12: 33.24324324 | D12: 20.94324324 | E12: 32.43243243 | F12: 20.59459459 | G12: 31.62162162 | H12: 20.23783784 | I12: 30.81081081 | J12: 20.02702703 | K12: 30 | L12: 19.8 | M12: 28.98648649 | N12: 19.42094595 | O12: 27.97297297 | P12: 19.02162162 | R12: 1.108108108 | S12: 1.081081081 | T12: 1.054054054 | U12: 1.027027027 | V12: 1 | W12: 0.9662162162 | X12: 0.9324324324 | Y12: 0.63 | Z12: 0.635 | AA12: 0.64 | AB12: 0.65 | AC12: 0.66 | AD12: 0.67 | AE12: 0.68 | AF12: 0.9 | AG12: 0.9 | AH12: 0.9 | AI12: 0.9 | AJ12: 0.9 | AK12: 0.9 | AL12: 0.9 | AM12: =Y12*C12+($A$4-80)*AF12*$A$12/1000 -> 20.94324324 | AN12: =Z12*E12+($A$4-80)*AG12*$A$12/1000 -> 20.59459459 | AO12: =AA12*G12+($A$4-80)*AH12*$A$12/1000 -> 20.23783784 | AP12: =AB12*I12+($A$4-80)*AI12*$A$12/1000 -> 20.02702703 | AQ12: =AC12*K12+($A$4-80)*AJ12*$A$12/1000 -> 19.8 | AR12: =AD12*M12+($A$4-80)*AK12*$A$12/1000 -> 19.42094595 | AS12: =AE12*O12+($A$4-80)*AL12*$A$12/1000 -> 19.02162162
B13: 67 | C13: 31.62162162 | D13: 24.98108108 | E13: 30.81081081 | F13: 24.64864865 | G13: 30 | H13: 24.3 | I13: 29.18918919 | J13: 23.93513514 | K13: 28.37837838 | L13: 23.55405405 | M13: 27.46621622 | N13: 23.2089527 | O13: 26.55405405 | P13: 22.83648649 | R13: 1.054054054 | S13: 1.027027027 | T13: 1 | U13: 0.972972973 | V13: 0.9459459459 | W13: 0.9155405405 | X13: 0.8851351351 | Y13: 0.79 | Z13: 0.8 | AA13: 0.81 | AB13: 0.82 | AC13: 0.83 | AD13: 0.845 | AE13: 0.86 | AF13: 0.9 | AG13: 0.9 | AH13: 0.9 | AI13: 0.9 | AJ13: 0.9 | AK13: 0.9 | AL13: 0.9 | AM13: =Y13*C13+($A$4-80)*AF13*$A$12/1000 -> 24.98108108 | AN13: =Z13*E13+($A$4-80)*AG13*$A$12/1000 -> 24.64864865 | AO13: =AA13*G13+($A$4-80)*AH13*$A$12/1000 -> 24.3 | AP13: =AB13*I13+($A$4-80)*AI13*$A$12/1000 -> 23.93513514 | AQ13: =AC13*K13+($A$4-80)*AJ13*$A$12/1000 -> 23.55405405 | AR13: =AD13*M13+($A$4-80)*AK13*$A$12/1000 -> 23.2089527 | AS13: =AE13*O13+($A$4-80)*AL13*$A$12/1000 -> 22.83648649
B14: 65 | C14: 30.70945946 | D14: 27.02432432 | E14: 29.94932432 | F14: 26.65489865 | G14: 29.18918919 | H14: 26.27027027 | I14: 28.42905405 | J14: 25.79936655 | K14: 27.66891892 | L14: 25.31706081 | M14: 26.80743243 | N14: 24.72985642 | O14: 25.94594595 | P14: 24.12972973 | R14: 1.023648649 | S14: 0.9983108108 | T14: 0.972972973 | U14: 0.9476351351 | V14: 0.9222972973 | W14: 0.8935810811 | X14: 0.8648648649 | Y14: 0.88 | Z14: 0.89 | AA14: 0.9 | AB14: 0.9075 | AC14: 0.915 | AD14: 0.9225 | AE14: 0.93 | AF14: 0.9 | AG14: 0.9 | AH14: 0.81146 | AI14: 0.7838255 | AJ14: 0.756191 | AK14: 0.7285565 | AL14: 0.700922 | AM14: 27.02432432 | AN14: =Z14*E14+($A$4-80)*AG14*$A$12/1000 -> 26.65489865 | AO14: =AA14*G14+($A$4-80)*AH14*$A$12/1000 -> 26.27027027 | AP14: 25.79936655 | AQ14: 25.31706081 | AR14: 24.72985642 | AS14: 24.12972973
B15: 63 | C15: 29.7972973 | D15: 28.90337838 | E15: 29.08783784 | F15: 28.50608108 | G15: 28.37837838 | H15: 28.09459459 | I15: 27.66891892 | J15: 27.53057432 | K15: 26.95945946 | L15: 26.95945946 | M15: 26.14864865 | N15: 26.14864865 | O15: 25.33783784 | P15: 25.33783784 | R15: 0.9932432432 | S15: 0.9695945946 | T15: 0.9459459459 | U15: 0.9222972973 | V15: 0.8986486486 | W15: 0.8716216216 | X15: 0.8445945946 | Y15: 0.97 | Z15: 0.98 | AA15: 0.99 | AB15: 0.995 | AC15: 1 | AD15: 1 | AE15: 1 | AF15: 0.553538 | AG15: 0.516692 | AH15: 0.479846 | AI15: 0.461423 | AJ15: 0.443 | AK15: 0.443 | AL15: 0.443 | AM15: 28.90337838 | AN15: =Z15*E15+($A$4-80)*AG15*$A$12/1000 -> 28.50608108 | AO15: =AA15*G15+($A$4-80)*AH15*$A$12/1000 -> 28.09459459 | AP15: 27.53057432 | AQ15: 26.95945946 | AR15: 26.14864865 | AS15: 25.33783784
A16: 1125 | B16: 71 | C16: 34.05405405 | D16: 22.13513514 | E16: 33.14189189 | F16: 21.70793919 | G16: 32.22972973 | H16: 21.27162162 | I16: 31.31756757 | J16: 20.98277027 | K16: 30.40540541 | L16: 20.67567568 | M16: 29.49324324 | N16: 20.35033784 | O16: 28.58108108 | P16: 20.00675676 | R16: 1.135135135 | S16: 1.10472973 | T16: 1.074324324 | U16: 1.043918919 | V16: 1.013513514 | W16: 0.9831081081 | X16: 0.9527027027 | Y16: 0.65 | Z16: 0.655 | AA16: 0.66 | AB16: 0.67 | AC16: 0.68 | AD16: 0.69 | AE16: 0.7 | AF16: 0.9 | AG16: 0.9 | AH16: 0.9 | AI16: 0.9 | AJ16: 0.9 | AK16: 0.9 | AL16: 0.9 | AM16: =Y16*C16+($A$4-80)*AF16*$A$16/1000 -> 22.13513514 | AN16: =Z16*E16+($A$4-80)*AG16*$A$16/1000 -> 21.70793919 | AO16: =AA16*G16+($A$4-80)*AH16*$A$16/1000 -> 21.27162162 | AP16: =AB16*I16+($A$4-80)*AI16*$A$16/1000 -> 20.98277027 | AQ16: =AC16*K16+($A$4-80)*AJ16*$A$16/1000 -> 20.67567568 | AR16: =AD16*M16+($A$4-80)*AK16*$A$16/1000 -> 20.35033784 | AS16: =AE16*O16+($A$4-80)*AL16*$A$16/1000 -> 20.00675676
B17: 67 | C17: 32.22972973 | D17: 26.42837838 | E17: 31.41891892 | F17: 26.2347973 | G17: 30.60810811 | H17: 26.01689189 | I17: 29.69594595 | J17: 25.53851351 | K17: 28.78378378 | L17: 25.04189189 | M17: 27.87162162 | N17: 24.80574324 | O17: 26.95945946 | P17: 24.53310811 | R17: 1.074324324 | S17: 1.047297297 | T17: 1.02027027 | U17: 0.9898648649 | V17: 0.9594594595 | W17: 0.9290540541 | X17: 0.8986486486 | Y17: 0.82 | Z17: 0.835 | AA17: 0.85 | AB17: 0.86 | AC17: 0.87 | AD17: 0.89 | AE17: 0.91 | AF17: 0.9 | AG17: 0.9 | AH17: 0.9 | AI17: 0.9 | AJ17: 0.9 | AK17: 0.9 | AL17: 0.774614 | AM17: =Y17*C17+($A$4-80)*AF17*$A$16/1000 -> 26.42837838 | AN17: =Z17*E17+($A$4-80)*AG17*$A$16/1000 -> 26.2347973 | AO17: =AA17*G17+($A$4-80)*AH17*$A$16/1000 -> 26.01689189 | AP17: =AB17*I17+($A$4-80)*AI17*$A$16/1000 -> 25.53851351 | AQ17: =AC17*K17+($A$4-80)*AJ17*$A$16/1000 -> 25.04189189 | AR17: =AD17*M17+($A$4-80)*AK17*$A$16/1000 -> 24.80574324 | AS17: =AE17*O17+($A$4-80)*AL17*$A$16/1000 -> 24.53310811
B18: 65 | C18: 31.41891892 | D18: 28.59121622 | E18: 30.65878378 | F18: 28.12943412 | G18: 29.89864865 | H18: 27.65625 | I18: 29.08783784 | J18: 27.05168919 | K18: 28.27702703 | L18: 26.43902027 | M18: 27.41554054 | N18: 25.90768581 | O18: 26.55405405 | P18: 25.35912162 | R18: 1.047297297 | S18: 1.021959459 | T18: 0.9966216216 | U18: 0.9695945946 | V18: 0.9425675676 | W18: 0.9138513514 | X18: 0.8851351351 | Y18: 0.91 | Z18: 0.9175 | AA18: 0.925 | AB18: 0.93 | AC18: 0.935 | AD18: 0.945 | AE18: 0.955 | AF18: 0.774614 | AG18: 0.7469795 | AH18: 0.719345 | AI18: 0.700922 | AJ18: 0.682499 | AK18: 0.645653 | AL18: 0.608807 | AM18: 28.59121622 | AN18: =Z18*E18+($A$4-80)*AG18*$A$16/1000 -> 28.12943412 | AO18: =AA18*G18+($A$4-80)*AH18*$A$16/1000 -> 27.65625 | AP18: 27.05168919 | AQ18: 26.43902027 | AR18: 25.90768581 | AS18: 25.35912162
B19: 63 | C19: 30.60810811 | D19: 30.60810811 | E19: 29.89864865 | F19: 29.89864865 | G19: 29.18918919 | H19: 29.18918919 | I19: 28.47972973 | J19: 28.47972973 | K19: 27.77027027 | L19: 27.77027027 | M19: 26.95945946 | N19: 26.95945946 | O19: 26.14864865 | P19: 26.14864865 | R19: 1.02027027 | S19: 0.9966216216 | T19: 0.972972973 | U19: 0.9493243243 | V19: 0.9256756757 | W19: 0.8986486486 | X19: 0.8716216216 | Y19: 1 | Z19: 1 | AA19: 1 | AB19: 1 | AC19: 1 | AD19: 1 | AE19: 1 | AF19: 0.443 | AG19: 0.443 | AH19: 0.443 | AI19: 0.443 | AJ19: 0.443 | AK19: 0.443 | AL19: 0.443 | AM19: 30.60810811 | AN19: =Z19*E19+($A$4-80)*AG19*$A$16/1000 -> 29.89864865 | AO19: =AA19*G19+($A$4-80)*AH19*$A$16/1000 -> 29.18918919 | AP19: 28.47972973 | AQ19: 27.77027027 | AR19: 26.95945946 | AS19: 26.14864865

Sheet 14ACX_36 (hidden)
A2: 14ACX_36 | B2: 36
A3: Evaporator Air | C3: Condenser Entering Air Temperature ˚F
A4: 80 | B4: °F DB | C4: 85 | E4: 90 | G4: 95 | I4: 100 | K4: 105 | M4: 110 | O4: 115
A5: CFM | B5: EWB† ˚F | C5: Capacity Mbtuh | E5: Capacity Mbtuh | G5: Capacity Mbtuh | I5: Capacity Mbtuh | K5: Capacity Mbtuh | M5: Capacity Mbtuh | O5: Capacity Mbtuh
C6: Total | D6: Sens. | E6: Total | F6: Sens. | G6: Total | H6: Sens. | I6: Total | J6: Sens. | K6: Total | L6: Sens. | M6: Total | N6: Sens. | O6: Total | P6: Sens.
R7: Total Factors | Y7: Sens. % | AF7: IDB Adj | AM7: Sens Calc
A8: 1050 | B8: 71 | C8: =R8*$B$2 -> 38.88 | D8: =IF(AM8>C8,C8,AM8) -> 23.7168 | E8: =S8*$B$2 -> 37.95428571 | F8: =IF(AN8>E8,E8,AN8) -> 23.34188571 | G8: =T8*$B$2 -> 37.02857143 | H8: =IF(AO8>G8,G8,AO8) -> 22.95771429 | I8: =U8*$B$2 -> 36.10285714 | J8: =IF(AP8>I8,I8,AP8) -> 22.56428571 | K8: =V8*$B$2 -> 35.17714286 | L8: =IF(AQ8>K8,K8,AQ8) -> 22.1616 | M8: =W8*$B$2 -> 34.14857143 | N8: =IF(AR8>M8,M8,AR8) -> 21.68434286 | O8: =X8*$B$2 -> 33.12 | P8: =IF(AS8>O8,O8,AS8) -> 21.1968 | R8: 1.08 | S8: 1.054285714 | T8: 1.028571429 | U8: 1.002857143 | V8: 0.9771428571 | W8: 0.9485714286 | X8: 0.92 | Y8: 0.61 | Z8: 0.615 | AA8: 0.62 | AB8: 0.625 | AC8: 0.63 | AD8: 0.635 | AE8: 0.64 | AF8: =IF(Y8<0.9,0.9,Y8*-3.6846+4.1276) -> 0.9 | AG8: =IF(Z8<0.9,0.9,Z8*-3.6846+4.1276) -> 0.9 | AH8: 0.9 | AI8: 0.9 | AJ8: 0.9 | AK8: 0.9 | AL8: 0.9 | AM8: =Y8*C8+($A$4-80)*AF8*$A$8/1000 -> 23.7168 | AN8: =Z8*E8+($A$4-80)*AG8*$A$8/1000 -> 23.34188571 | AO8: =AA8*G8+($A$4-80)*AH8*$A$8/1000 -> 22.95771429 | AP8: =AB8*I8+($A$4-80)*AI8*$A$8/1000 -> 22.56428571 | AQ8: =AC8*K8+($A$4-80)*AJ8*$A$8/1000 -> 22.1616 | AR8: =AD8*M8+($A$4-80)*AK8*$A$8/1000 -> 21.68434286 | AS8: =AE8*O8+($A$4-80)*AL8*$A$8/1000 -> 21.1968
B9: 67 | C9: 36.82285714 | D9: 27.61714286 | E9: 36 | F9: =IF(AN9>E9,E9,AN9) -> 27.36 | G9: 35.17714286 | H9: =IF(AO9>G9,G9,AO9) -> 27.0864 | I9: 34.25142857 | J9: =IF(AP9>I9,I9,AP9) -> 26.54485714 | K9: 33.32571429 | L9: =IF(AQ9>K9,K9,AQ9) -> 25.99405714 | M9: 32.29714286 | N9: =IF(AR9>M9,M9,AR9) -> 25.67622857 | O9: 31.26857143 | P9: =IF(AS9>O9,O9,AS9) -> 25.32754286 | R9: 1.022857143 | S9: 1 | T9: 0.9771428571 | U9: 0.9514285714 | V9: 0.9257142857 | W9: 0.8971428571 | X9: 0.8685714286 | Y9: 0.75 | Z9: 0.76 | AA9: 0.77 | AB9: 0.775 | AC9: 0.78 | AD9: 0.795 | AE9: 0.81 | AF9: =IF(Y9<0.9,0.9,Y9*-3.6846+4.1276) -> 0.9 | AG9: 0.9 | AH9: 0.9 | AI9: 0.9 | AJ9: 0.9 | AK9: 0.9 | AL9: 0.9 | AM9: =Y9*C9+($A$4-80)*AF9*$A$8/1000 -> 27.61714286 | AN9: =Z9*E9+($A$4-80)*AG9*$A$8/1000 -> 27.36 | AO9: =AA9*G9+($A$4-80)*AH9*$A$8/1000 -> 27.0864 | AP9: =AB9*I9+($A$4-80)*AI9*$A$8/1000 -> 26.54485714 | AQ9: =AC9*K9+($A$4-80)*AJ9*$A$8/1000 -> 25.99405714 | AR9: =AD9*M9+($A$4-80)*AK9*$A$8/1000 -> 25.67622857 | AS9: =AE9*O9+($A$4-80)*AL9*$A$8/1000 -> 25.32754286
B10: 65 | C10: 35.69142857 | D10: 29.62388571 | E10: 34.86857143 | F10: 29.2896 | G10: 34.04571429 | H10: 28.93885714 | I10: 33.17142857 | J10: 28.52742857 | K10: 32.29714286 | L10: 28.09851429 | M10: 31.32 | N10: 27.7182 | O10: 30.34285714 | P10: 27.30857143 | R10: 0.9914285714 | S10: 0.9685714286 | T10: 0.9457142857 | U10: 0.9214285714 | V10: 0.8971428571 | W10: 0.87 | X10: 0.8428571429 | Y10: 0.83 | Z10: 0.84 | AA10: 0.85 | AB10: 0.86 | AC10: 0.87 | AD10: 0.885 | AE10: 0.9 | AF10: 0.9 | AG10: 0.9 | AH10: 0.9 | AI10: 0.9 | AJ10: 0.9 | AK10: 0.9 | AL10: 0.81146 | AM10: 29.62388571 | AN10: =Z10*E10+($A$4-80)*AG10*$A$8/1000 -> 29.2896 | AO10: =AA10*G10+($A$4-80)*AH10*$A$8/1000 -> 28.93885714 | AP10: 28.52742857 | AQ10: 28.09851429 | AR10: 27.7182 | AS10: 27.30857143
B11: 63 | C11: 34.56 | D11: 31.4496 | E11: 33.73714286 | F11: 31.03817143 | G11: 32.91428571 | H11: 30.61028571 | I11: 32.09142857 | J11: 30.3264 | K11: 31.26857143 | L11: 30.01782857 | M11: 30.34285714 | N11: 29.58428571 | O11: 29.41714286 | P11: 29.12297143 | R11: 0.96 | S11: 0.9371428571 | T11: 0.9142857143 | U11: 0.8914285714 | V11: 0.8685714286 | W11: 0.8428571429 | X11: 0.8171428571 | Y11: 0.91 | Z11: 0.92 | AA11: 0.93 | AB11: 0.945 | AC11: 0.96 | AD11: 0.975 | AE11: 0.99 | AF11: 0.774614 | AG11: 0.737768 | AH11: 0.700922 | AI11: 0.645653 | AJ11: 0.590384 | AK11: 0.535115 | AL11: 0.479846 | AM11: 31.4496 | AN11: =Z11*E11+($A$4-80)*AG11*$A$8/1000 -> 31.03817143 | AO11: =AA11*G11+($A$4-80)*AH11*$A$8/1000 -> 30.61028571 | AP11: =AB11*I11+($A$4-80)*AI11*$A$8/1000 -> 30.3264 | AQ11: 30.01782857 | AR11: 29.58428571 | AS11: 29.12297143
A12: 1200 | B12: 71 | C12: 40.11428571 | D12: 25.272 | E12: 39.08571429 | F12: 24.81942857 | G12: 38.05714286 | H12: 24.35657143 | I12: 37.02857143 | J12: 23.88342857 | K12: 36 | L12: 23.4 | M12: 34.86857143 | N12: 23.01325714 | O12: 33.73714286 | P12: 22.60388571 | R12: 1.114285714 | S12: 1.085714286 | T12: 1.057142857 | U12: 1.028571429 | V12: 1 | W12: 0.9685714286 | X12: 0.9371428571 | Y12: 0.63 | Z12: 0.635 | AA12: 0.64 | AB12: 0.645 | AC12: 0.65 | AD12: 0.66 | AE12: 0.67 | AF12: 0.9 | AG12: 0.9 | AH12: 0.9 | AI12: 0.9 | AJ12: 0.9 | AK12: 0.9 | AL12: 0.9 | AM12: =Y12*C12+($A$4-80)*AF12*$A$12/1000 -> 25.272 | AN12: =Z12*E12+($A$4-80)*AG12*$A$12/1000 -> 24.81942857 | AO12: =AA12*G12+($A$4-80)*AH12*$A$12/1000 -> 24.35657143 | AP12: =AB12*I12+($A$4-80)*AI12*$A$12/1000 -> 23.88342857 | AQ12: =AC12*K12+($A$4-80)*AJ12*$A$12/1000 -> 23.4 | AR12: =AD12*M12+($A$4-80)*AK12*$A$12/1000 -> 23.01325714 | AS12: =AE12*O12+($A$4-80)*AL12*$A$12/1000 -> 22.60388571
B13: 67 | C13: 37.85142857 | D13: 29.52411429 | E13: 36.92571429 | F13: 29.17131429 | G13: 36 | H13: 28.8 | I13: 34.97142857 | J13: 28.32685714 | K13: 33.94285714 | L13: 27.83314286 | M13: 32.91428571 | N13: 27.48342857 | O13: 31.88571429 | P13: 27.10285714 | R13: 1.051428571 | S13: 1.025714286 | T13: 1 | U13: 0.9714285714 | V13: 0.9428571429 | W13: 0.9142857143 | X13: 0.8857142857 | Y13: 0.78 | Z13: 0.79 | AA13: 0.8 | AB13: 0.81 | AC13: 0.82 | AD13: 0.835 | AE13: 0.85 | AF13: 0.9 | AG13: 0.9 | AH13: 0.9 | AI13: 0.9 | AJ13: 0.9 | AK13: 0.9 | AL13: 0.9 | AM13: =Y13*C13+($A$4-80)*AF13*$A$12/1000 -> 29.52411429 | AN13: =Z13*E13+($A$4-80)*AG13*$A$12/1000 -> 29.17131429 | AO13: =AA13*G13+($A$4-80)*AH13*$A$12/1000 -> 28.8 | AP13: =AB13*I13+($A$4-80)*AI13*$A$12/1000 -> 28.32685714 | AQ13: =AC13*K13+($A$4-80)*AJ13*$A$12/1000 -> 27.83314286 | AR13: =AD13*M13+($A$4-80)*AK13*$A$12/1000 -> 27.48342857 | AS13: =AE13*O13+($A$4-80)*AL13*$A$12/1000 -> 27.10285714
B14: 65 | C14: 36.72 | D14: 31.7628 | E14: 35.84571429 | F14: 31.365 | G14: 34.97142857 | H14: 30.94971429 | I14: 34.04571429 | J14: 30.47091429 | K14: 33.12 | L14: 29.9736 | M14: 32.14285714 | N14: 29.41071429 | O14: 31.16571429 | P14: 28.82828571 | R14: 1.02 | S14: 0.9957142857 | T14: 0.9714285714 | U14: 0.9457142857 | V14: 0.92 | W14: 0.8928571429 | X14: 0.8657142857 | Y14: 0.865 | Z14: 0.875 | AA14: 0.885 | AB14: 0.895 | AC14: 0.905 | AD14: 0.915 | AE14: 0.925 | AF14: 0.9 | AG14: 0.9 | AH14: 0.9 | AI14: 0.9 | AJ14: 0.793037 | AK14: 0.756191 | AL14: 0.719345 | AM14: 31.7628 | AN14: =Z14*E14+($A$4-80)*AG14*$A$12/1000 -> 31.365 | AO14: =AA14*G14+($A$4-80)*AH14*$A$12/1000 -> 30.94971429 | AP14: 30.47091429 | AQ14: 29.9736 | AR14: 29.41071429 | AS14: 28.82828571
B15: 63 | C15: 35.58857143 | D15: 33.80914286 | E15: 34.76571429 | F15: 33.37508571 | G15: 33.94285714 | H15: 32.92457143 | I15: 33.12 | J15: 32.4576 | K15: 32.29714286 | L15: 31.97417143 | M15: 31.37142857 | N15: 31.21457143 | O15: 30.44571429 | P15: 30.44571429 | R15: 0.9885714286 | S15: 0.9657142857 | T15: 0.9428571429 | U15: 0.92 | V15: 0.8971428571 | W15: 0.8714285714 | X15: 0.8457142857 | Y15: 0.95 | Z15: 0.96 | AA15: 0.97 | AB15: 0.98 | AC15: 0.99 | AD15: 0.995 | AE15: 1 | AF15: 0.62723 | AG15: 0.590384 | AH15: 0.553538 | AI15: 0.516692 | AJ15: 0.479846 | AK15: 0.461423 | AL15: 0.443 | AM15: 33.80914286 | AN15: =Z15*E15+($A$4-80)*AG15*$A$12/1000 -> 33.37508571 | AO15: =AA15*G15+($A$4-80)*AH15*$A$12/1000 -> 32.92457143 | AP15: 32.4576 | AQ15: 31.97417143 | AR15: 31.21457143 | AS15: 30.44571429
A16: 1350 | B16: 71 | C16: 40.62857143 | D16: 26.00228571 | E16: 39.65142857 | F16: 25.57517143 | G16: 38.67428571 | H16: 25.13828571 | I16: 37.64571429 | J16: 24.84617143 | K16: 36.61714286 | L16: 24.53348571 | M16: 35.48571429 | N16: 24.13028571 | O16: 34.35428571 | P16: 23.70445714 | R16: 1.128571429 | S16: 1.101428571 | T16: 1.074285714 | U16: 1.045714286 | V16: 1.017142857 | W16: 0.9857142857 | X16: 0.9542857143 | Y16: 0.64 | Z16: 0.645 | AA16: 0.65 | AB16: 0.66 | AC16: 0.67 | AD16: 0.68 | AE16: 0.69 | AF16: 0.9 | AG16: 0.9 | AH16: 0.9 | AI16: 0.9 | AJ16: 0.9 | AK16: 0.9 | AL16: 0.9 | AM16: =Y16*C16+($A$4-80)*AF16*$A$16/1000 -> 26.00228571 | AN16: =Z16*E16+($A$4-80)*AG16*$A$16/1000 -> 25.57517143 | AO16: =AA16*G16+($A$4-80)*AH16*$A$16/1000 -> 25.13828571 | AP16: =AB16*I16+($A$4-80)*AI16*$A$16/1000 -> 24.84617143 | AQ16: =AC16*K16+($A$4-80)*AJ16*$A$16/1000 -> 24.53348571 | AR16: =AD16*M16+($A$4-80)*AK16*$A$16/1000 -> 24.13028571 | AS16: =AE16*O16+($A$4-80)*AL16*$A$16/1000 -> 23.70445714
B17: 67 | C17: 38.46857143 | D17: 31.15954286 | E17: 37.54285714 | F17: 30.78514286 | G17: 36.61714286 | H17: 30.39222857 | I17: 35.58857143 | J17: 29.8944 | K17: 34.56 | L17: 29.376 | M17: 33.42857143 | N17: 28.91571429 | O17: 32.29714286 | P17: 28.42148571 | R17: 1.068571429 | S17: 1.042857143 | T17: 1.017142857 | U17: 0.9885714286 | V17: 0.96 | W17: 0.9285714286 | X17: 0.8971428571 | Y17: 0.81 | Z17: 0.82 | AA17: 0.83 | AB17: 0.84 | AC17: 0.85 | AD17: 0.865 | AE17: 0.88 | AF17: 0.9 | AG17: 0.9 | AH17: 0.9 | AI17: 0.9 | AJ17: 0.9 | AK17: 0.9 | AL17: 0.9 | AM17: =Y17*C17+($A$4-80)*AF17*$A$16/1000 -> 31.15954286 | AN17: =Z17*E17+($A$4-80)*AG17*$A$16/1000 -> 30.78514286 | AO17: =AA17*G17+($A$4-80)*AH17*$A$16/1000 -> 30.39222857 | AP17: =AB17*I17+($A$4-80)*AI17*$A$16/1000 -> 29.8944 | AQ17: =AC17*K17+($A$4-80)*AJ17*$A$16/1000 -> 29.376 | AR17: =AD17*M17+($A$4-80)*AK17*$A$16/1000 -> 28.91571429 | AS17: =AE17*O17+($A$4-80)*AL17*$A$16/1000 -> 28.42148571
B18: 65 | C18: 37.44 | D18: 33.5088 | E18: 36.56571429 | F18: 33.09197143 | G18: 35.69142857 | H18: 32.65765714 | I18: 34.76571429 | J18: 31.98445714 | K18: 33.84 | L18: 31.302 | M18: 32.86285714 | N18: 30.64461429 | O18: 31.88571429 | P18: 29.97257143 | R18: 1.04 | S18: 1.015714286 | T18: 0.9914285714 | U18: 0.9657142857 | V18: 0.94 | W18: 0.9128571429 | X18: 0.8857142857 | Y18: 0.895 | Z18: 0.905 | AA18: 0.915 | AB18: 0.92 | AC18: 0.925 | AD18: 0.9325 | AE18: 0.94 | AF18: 0.9 | AG18: 0.793037 | AH18: 0.756191 | AI18: 0.737768 | AJ18: 0.719345 | AK18: 0.6917105 | AL18: 0.664076 | AM18: 33.5088 | AN18: =Z18*E18+($A$4-80)*AG18*$A$16/1000 -> 33.09197143 | AO18: =AA18*G18+($A$4-80)*AH18*$A$16/1000 -> 32.65765714 | AP18: 31.98445714 | AQ18: 31.302 | AR18: 30.64461429 | AS18: 29.97257143
B19: 63 | C19: 36.41142857 | D19: 35.6832 | E19: 35.58857143 | F19: 35.23268571 | G19: 34.76571429 | H19: 34.76571429 | I19: 33.94285714 | J19: 33.94285714 | K19: 33.12 | L19: 33.12 | M19: 32.29714286 | N19: 32.29714286 | O19: 31.47428571 | P19: 31.47428571 | R19: 1.011428571 | S19: 0.9885714286 | T19: 0.9657142857 | U19: 0.9428571429 | V19: 0.92 | W19: 0.8971428571 | X19: 0.8742857143 | Y19: 0.98 | Z19: 0.99 | AA19: 1 | AB19: 1 | AC19: 1 | AD19: 1 | AE19: 1 | AF19: 0.516692 | AG19: 0.479846 | AH19: 0.443 | AI19: 0.443 | AJ19: 0.443 | AK19: 0.443 | AL19: 0.443 | AM19: 35.6832 | AN19: =Z19*E19+($A$4-80)*AG19*$A$16/1000 -> 35.23268571 | AO19: =AA19*G19+($A$4-80)*AH19*$A$16/1000 -> 34.76571429 | AP19: 33.94285714 | AQ19: 33.12 | AR19: 32.29714286 | AS19: 31.47428571

Sheet 14ACX_41 (hidden)
A2: 14ACX_41 | B2: 42
A3: Evaporator Air | C3: Condenser Entering Air Temperature ˚F
A4: 80 | B4: °F DB | C4: 85 | E4: 90 | G4: 95 | I4: 100 | K4: 105 | M4: 110 | O4: 115
A5: CFM | B5: EWB† ˚F | C5: Capacity Mbtuh | E5: Capacity Mbtuh | G5: Capacity Mbtuh | I5: Capacity Mbtuh | K5: Capacity Mbtuh | M5: Capacity Mbtuh | O5: Capacity Mbtuh
C6: Total | D6: Sens. | E6: Total | F6: Sens. | G6: Total | H6: Sens. | I6: Total | J6: Sens. | K6: Total | L6: Sens. | M6: Total | N6: Sens. | O6: Total | P6: Sens.
R7: Total Factors | Y7: Sens. % | AF7: IDB Adj | AM7: Sens Calc
A8: 1225 | B8: 71 | C8: =R8*$B$2 -> 45.15 | D8: =IF(AM8>C8,C8,AM8) -> 27.5415 | E8: =S8*$B$2 -> 44.1 | F8: =IF(AN8>E8,E8,AN8) -> 27.342 | G8: =T8*$B$2 -> 43.05 | H8: =IF(AO8>G8,G8,AO8) -> 27.1215 | I8: =U8*$B$2 -> 42 | J8: =IF(AP8>I8,I8,AP8) -> 26.67 | K8: =V8*$B$2 -> 40.95 | L8: =IF(AQ8>K8,K8,AQ8) -> 26.208 | M8: =W8*$B$2 -> 39.69 | N8: =IF(AR8>M8,M8,AR8) -> 25.60005 | O8: =X8*$B$2 -> 38.43 | P8: =IF(AS8>O8,O8,AS8) -> 24.9795 | R8: 1.075 | S8: 1.05 | T8: 1.025 | U8: 1 | V8: 0.975 | W8: 0.945 | X8: 0.915 | Y8: 0.61 | Z8: 0.62 | AA8: 0.63 | AB8: 0.635 | AC8: 0.64 | AD8: 0.645 | AE8: 0.65 | AF8: =IF(Y8<0.9,0.9,Y8*-3.6846+4.1276) -> 0.9 | AG8: =IF(Z8<0.9,0.9,Z8*-3.6846+4.1276) -> 0.9 | AH8: 0.9 | AI8: 0.9 | AJ8: 0.9 | AK8: 0.9 | AL8: 0.9 | AM8: =Y8*C8+($A$4-80)*AF8*$A$8/1000 -> 27.5415 | AN8: =Z8*E8+($A$4-80)*AG8*$A$8/1000 -> 27.342 | AO8: =AA8*G8+($A$4-80)*AH8*$A$8/1000 -> 27.1215 | AP8: =AB8*I8+($A$4-80)*AI8*$A$8/1000 -> 26.67 | AQ8: =AC8*K8+($A$4-80)*AJ8*$A$8/1000 -> 26.208 | AR8: =AD8*M8+($A$4-80)*AK8*$A$8/1000 -> 25.60005 | AS8: =AE8*O8+($A$4-80)*AL8*$A$8/1000 -> 24.9795
B9: 67 | C9: 43.05 | D9: 33.1485 | E9: 42.2625 | F9: =IF(AN9>E9,E9,AN9) -> 32.7534375 | G9: 41.475 | H9: =IF(AO9>G9,G9,AO9) -> 32.3505 | I9: 40.2675 | J9: =IF(AP9>I9,I9,AP9) -> 32.0126625 | K9: 39.06 | L9: =IF(AQ9>K9,K9,AQ9) -> 31.6386 | M9: 37.905 | N9: =IF(AR9>M9,M9,AR9) -> 31.0821 | O9: 36.75 | P9: =IF(AS9>O9,O9,AS9) -> 30.5025 | R9: 1.025 | S9: 1.00625 | T9: 0.9875 | U9: 0.95875 | V9: 0.93 | W9: 0.9025 | X9: 0.875 | Y9: 0.77 | Z9: 0.775 | AA9: 0.78 | AB9: 0.795 | AC9: 0.81 | AD9: 0.82 | AE9: 0.83 | AF9: =IF(Y9<0.9,0.9,Y9*-3.6846+4.1276) -> 0.9 | AG9: 0.9 | AH9: 0.9 | AI9: 0.9 | AJ9: 0.9 | AK9: 0.9 | AL9: 0.9 | AM9: =Y9*C9+($A$4-80)*AF9*$A$8/1000 -> 33.1485 | AN9: =Z9*E9+($A$4-80)*AG9*$A$8/1000 -> 32.7534375 | AO9: =AA9*G9+($A$4-80)*AH9*$A$8/1000 -> 32.3505 | AP9: =AB9*I9+($A$4-80)*AI9*$A$8/1000 -> 32.0126625 | AQ9: =AC9*K9+($A$4-80)*AJ9*$A$8/1000 -> 31.6386 | AR9: =AD9*M9+($A$4-80)*AK9*$A$8/1000 -> 31.0821 | AS9: =AE9*O9+($A$4-80)*AL9*$A$8/1000 -> 30.5025
B10: 65 | C10: 42.2625 | D10: 36.1344375 | E10: 41.3175 | F10: 35.63634375 | G10: 40.3725 | H10: 35.124075 | I10: 39.29625 | J10: 34.77718125 | K10: 38.22 | L10: 34.398 | M10: 37.1175 | N10: 33.68413125 | O10: 36.015 | P10: 32.953725 | R10: 1.00625 | S10: 0.98375 | T10: 0.96125 | U10: 0.935625 | V10: 0.91 | W10: 0.88375 | X10: 0.8575 | Y10: 0.855 | Z10: 0.8625 | AA10: 0.87 | AB10: 0.885 | AC10: 0.9 | AD10: 0.9075 | AE10: 0.915 | AF10: 0.9 | AG10: 0.9 | AH10: 0.9 | AI10: 0.9 | AJ10: 0.81146 | AK10: 0.7838255 | AL10: 0.756191 | AM10: 36.1344375 | AN10: =Z10*E10+($A$4-80)*AG10*$A$8/1000 -> 35.63634375 | AO10: =AA10*G10+($A$4-80)*AH10*$A$8/1000 -> 35.124075 | AP10: 34.77718125 | AQ10: 34.398 | AR10: 33.68413125 | AS10: 32.953725
B11: 63 | C11: 41.475 | D11: 38.9865 | E11: 40.3725 | F11: 38.353875 | G11: 39.27 | H11: 37.6992 | I11: 38.325 | J11: 37.366875 | K11: 37.38 | L11: 37.0062 | M11: 36.33 | N11: 36.14835 | O11: 35.28 | P11: 35.28 | R11: 0.9875 | S11: 0.96125 | T11: 0.935 | U11: 0.9125 | V11: 0.89 | W11: 0.865 | X11: 0.84 | Y11: 0.94 | Z11: 0.95 | AA11: 0.96 | AB11: 0.975 | AC11: 0.99 | AD11: 0.995 | AE11: 1 | AF11: 0.664076 | AG11: 0.62723 | AH11: 0.590384 | AI11: 0.535115 | AJ11: 0.479846 | AK11: 0.461423 | AL11: 0.443 | AM11: 38.9865 | AN11: =Z11*E11+($A$4-80)*AG11*$A$8/1000 -> 38.353875 | AO11: =AA11*G11+($A$4-80)*AH11*$A$8/1000 -> 37.6992 | AP11: =AB11*I11+($A$4-80)*AI11*$A$8/1000 -> 37.366875 | AQ11: 37.0062 | AR11: 36.14835 | AS11: 35.28
A12: 1400 | B12: 71 | C12: 46.2 | D12: 29.106 | E12: 45.15 | F12: 28.896 | G12: 44.1 | H12: 28.665 | I12: 42.7875 | J12: 28.0258125 | K12: 41.475 | L12: 27.3735 | M12: 40.3725 | N12: 27.049575 | O12: 39.27 | P12: 26.7036 | R12: 1.1 | S12: 1.075 | T12: 1.05 | U12: 1.01875 | V12: 0.9875 | W12: 0.96125 | X12: 0.935 | Y12: 0.63 | Z12: 0.64 | AA12: 0.65 | AB12: 0.655 | AC12: 0.66 | AD12: 0.67 | AE12: 0.68 | AF12: 0.9 | AG12: 0.9 | AH12: 0.9 | AI12: 0.9 | AJ12: 0.9 | AK12: 0.9 | AL12: 0.9 | AM12: =Y12*C12+($A$4-80)*AF12*$A$12/1000 -> 29.106 | AN12: =Z12*E12+($A$4-80)*AG12*$A$12/1000 -> 28.896 | AO12: =AA12*G12+($A$4-80)*AH12*$A$12/1000 -> 28.665 | AP12: =AB12*I12+($A$4-80)*AI12*$A$12/1000 -> 28.0258125 | AQ12: =AC12*K12+($A$4-80)*AJ12*$A$12/1000 -> 27.3735 | AR12: =AD12*M12+($A$4-80)*AK12*$A$12/1000 -> 27.049575 | AS12: =AE12*O12+($A$4-80)*AL12*$A$12/1000 -> 26.7036
B13: 67 | C13: 44.1 | D13: 35.28 | E13: 43.05 | F13: 34.65525 | G13: 42 | H13: 34.02 | I13: 40.95 | J13: 33.78375 | K13: 39.9 | L13: 33.516 | M13: 38.64 | N13: 33.0372 | O13: 37.38 | P13: 32.5206 | R13: 1.05 | S13: 1.025 | T13: 1 | U13: 0.975 | V13: 0.95 | W13: 0.92 | X13: 0.89 | Y13: 0.8 | Z13: 0.805 | AA13: 0.81 | AB13: 0.825 | AC13: 0.84 | AD13: 0.855 | AE13: 0.87 | AF13: 0.9 | AG13: 0.9 | AH13: 0.9 | AI13: 0.9 | AJ13: 0.9 | AK13: 0.9 | AL13: 0.9 | AM13: =Y13*C13+($A$4-80)*AF13*$A$12/1000 -> 35.28 | AN13: =Z13*E13+($A$4-80)*AG13*$A$12/1000 -> 34.65525 | AO13: =AA13*G13+($A$4-80)*AH13*$A$12/1000 -> 34.02 | AP13: =AB13*I13+($A$4-80)*AI13*$A$12/1000 -> 33.78375 | AQ13: =AC13*K13+($A$4-80)*AJ13*$A$12/1000 -> 33.516 | AR13: =AD13*M13+($A$4-80)*AK13*$A$12/1000 -> 33.0372 | AS13: =AE13*O13+($A$4-80)*AL13*$A$12/1000 -> 32.5206
B14: 65 | C14: 43.3125 | D14: 38.548125 | E14: 42.2625 | F14: 37.93059375 | G14: 41.2125 | H14: 37.2973125 | I14: 40.18875 | J14: 36.67223437 | K14: 39.165 | L14: 36.0318 | M14: 38.0625 | N14: 35.30296875 | O14: 36.96 | P14: 34.5576 | R14: 1.03125 | S14: 1.00625 | T14: 0.98125 | U14: 0.956875 | V14: 0.9325 | W14: 0.90625 | X14: 0.88 | Y14: 0.89 | Z14: 0.8975 | AA14: 0.905 | AB14: 0.9125 | AC14: 0.92 | AD14: 0.9275 | AE14: 0.935 | AF14: 0.9 | AG14: 0.9 | AH14: 0.793037 | AI14: 0.7654025 | AJ14: 0.737768 | AK14: 0.7101335 | AL14: 0.682499 | AM14: 38.548125 | AN14: =Z14*E14+($A$4-80)*AG14*$A$12/1000 -> 37.93059375 | AO14: =AA14*G14+($A$4-80)*AH14*$A$12/1000 -> 37.2973125 | AP14: 36.67223437 | AQ14: 36.0318 | AR14: 35.30296875 | AS14: 34.5576
B15: 63 | C15: 42.525 | D15: 41.6745 | E15: 41.475 | F15: 41.06025 | G15: 40.425 | H15: 40.425 | I15: 39.4275 | J15: 39.4275 | K15: 38.43 | L15: 38.43 | M15: 37.485 | N15: 37.485 | O15: 36.54 | P15: 36.54 | R15: 1.0125 | S15: 0.9875 | T15: 0.9625 | U15: 0.93875 | V15: 0.915 | W15: 0.8925 | X15: 0.87 | Y15: 0.98 | Z15: 0.99 | AA15: 1 | AB15: 1 | AC15: 1 | AD15: 1 | AE15: 1 | AF15: 0.516692 | AG15: 0.479846 | AH15: 0.443 | AI15: 0.443 | AJ15: 0.443 | AK15: 0.443 | AL15: 0.443 | AM15: 41.6745 | AN15: =Z15*E15+($A$4-80)*AG15*$A$12/1000 -> 41.06025 | AO15: =AA15*G15+($A$4-80)*AH15*$A$12/1000 -> 40.425 | AP15: 39.4275 | AQ15: 38.43 | AR15: 37.485 | AS15: 36.54
A16: 1575 | B16: 71 | C16: 46.725 | D16: 30.37125 | E16: 45.675 | F16: 29.917125 | G16: 44.625 | H16: 29.4525 | I16: 43.575 | J16: 29.19525 | K16: 42.525 | L16: 28.917 | M16: 41.1075 | N16: 28.364175 | O16: 39.69 | P16: 27.783 | R16: 1.1125 | S16: 1.0875 | T16: 1.0625 | U16: 1.0375 | V16: 1.0125 | W16: 0.97875 | X16: 0.945 | Y16: 0.65 | Z16: 0.655 | AA16: 0.66 | AB16: 0.67 | AC16: 0.68 | AD16: 0.69 | AE16: 0.7 | AF16: 0.9 | AG16: 0.9 | AH16: 0.9 | AI16: 0.9 | AJ16: 0.9 | AK16: 0.9 | AL16: 0.9 | AM16: =Y16*C16+($A$4-80)*AF16*$A$16/1000 -> 30.37125 | AN16: =Z16*E16+($A$4-80)*AG16*$A$16/1000 -> 29.917125 | AO16: =AA16*G16+($A$4-80)*AH16*$A$16/1000 -> 29.4525 | AP16: =AB16*I16+($A$4-80)*AI16*$A$16/1000 -> 29.19525 | AQ16: =AC16*K16+($A$4-80)*AJ16*$A$16/1000 -> 28.917 | AR16: =AD16*M16+($A$4-80)*AK16*$A$16/1000 -> 28.364175 | AS16: =AE16*O16+($A$4-80)*AL16*$A$16/1000 -> 27.783
B17: 67 | C17: 45.15 | D17: 37.023 | E17: 44.1 | F17: 36.8235 | G17: 43.05 | H17: 36.5925 | I17: 41.7375 | J17: 35.6855625 | K17: 40.425 | L17: 34.7655 | M17: 39.3225 | N17: 34.8004125 | O17: 38.22 | P17: 34.7802 | R17: 1.075 | S17: 1.05 | T17: 1.025 | U17: 0.99375 | V17: 0.9625 | W17: 0.93625 | X17: 0.91 | Y17: 0.82 | Z17: 0.835 | AA17: 0.85 | AB17: 0.855 | AC17: 0.86 | AD17: 0.885 | AE17: 0.91 | AF17: 0.9 | AG17: 0.9 | AH17: 0.9 | AI17: 0.9 | AJ17: 0.9 | AK17: 0.9 | AL17: 0.774614 | AM17: =Y17*C17+($A$4-80)*AF17*$A$16/1000 -> 37.023 | AN17: =Z17*E17+($A$4-80)*AG17*$A$16/1000 -> 36.8235 | AO17: =AA17*G17+($A$4-80)*AH17*$A$16/1000 -> 36.5925 | AP17: =AB17*I17+($A$4-80)*AI17*$A$16/1000 -> 35.6855625 | AQ17: =AC17*K17+($A$4-80)*AJ17*$A$16/1000 -> 34.7655 | AR17: =AD17*M17+($A$4-80)*AK17*$A$16/1000 -> 34.8004125 | AS17: =AE17*O17+($A$4-80)*AL17*$A$16/1000 -> 34.7802
B18: 65 | C18: 44.1 | D18: 40.131 | E18: 43.18125 | F18: 39.61879688 | G18: 42.2625 | H18: 39.0928125 | I18: 41.16 | J18: 38.1759 | K18: 40.0575 | L18: 37.253475 | M18: 38.92875 | N18: 36.69034688 | O18: 37.8 | P18: 36.099 | R18: 1.05 | S18: 1.028125 | T18: 1.00625 | U18: 0.98 | V18: 0.95375 | W18: 0.926875 | X18: 0.9 | Y18: 0.91 | Z18: 0.9175 | AA18: 0.925 | AB18: 0.9275 | AC18: 0.93 | AD18: 0.9425 | AE18: 0.955 | AF18: 0.774614 | AG18: 0.7469795 | AH18: 0.719345 | AI18: 0.7101335 | AJ18: 0.700922 | AK18: 0.6548645 | AL18: 0.608807 | AM18: 40.131 | AN18: =Z18*E18+($A$4-80)*AG18*$A$16/1000 -> 39.61879688 | AO18: =AA18*G18+($A$4-80)*AH18*$A$16/1000 -> 39.0928125 | AP18: 38.1759 | AQ18: 37.253475 | AR18: 36.69034688 | AS18: 36.099
B19: 63 | C19: 43.05 | D19: 43.05 | E19: 42.2625 | F19: 42.2625 | G19: 41.475 | H19: 41.475 | I19: 40.5825 | J19: 40.5825 | K19: 39.69 | L19: 39.69 | M19: 38.535 | N19: 38.535 | O19: 37.38 | P19: 37.38 | R19: 1.025 | S19: 1.00625 | T19: 0.9875 | U19: 0.96625 | V19: 0.945 | W19: 0.9175 | X19: 0.89 | Y19: 1 | Z19: 1 | AA19: 1 | AB19: 1 | AC19: 1 | AD19: 1 | AE19: 1 | AF19: 0.443 | AG19: 0.443 | AH19: 0.443 | AI19: 0.443 | AJ19: 0.443 | AK19: 0.443 | AL19: 0.443 | AM19: 43.05 | AN19: =Z19*E19+($A$4-80)*AG19*$A$16/1000 -> 42.2625 | AO19: =AA19*G19+($A$4-80)*AH19*$A$16/1000 -> 41.475 | AP19: 40.5825 | AQ19: 39.69 | AR19: 38.535 | AS19: 37.38

Sheet 14ACX_42 (hidden)
A2: 14ACX_42 | B2: 42
A3: Evaporator Air | C3: Condenser Entering Air Temperature ˚F
A4: 80 | B4: °F DB | C4: 85 | E4: 90 | G4: 95 | I4: 100 | K4: 105 | M4: 110 | O4: 115
A5: CFM | B5: EWB† ˚F | C5: Capacity Mbtuh | E5: Capacity Mbtuh | G5: Capacity Mbtuh | I5: Capacity Mbtuh | K5: Capacity Mbtuh | M5: Capacity Mbtuh | O5: Capacity Mbtuh
C6: Total | D6: Sens. | E6: Total | F6: Sens. | G6: Total | H6: Sens. | I6: Total | J6: Sens. | K6: Total | L6: Sens. | M6: Total | N6: Sens. | O6: Total | P6: Sens.
R7: Total Factors | Y7: Sens. % | AF7: IDB Adj | AM7: Sens Calc
A8: 1225 | B8: 71 | C8: =R8*$B$2 -> 45.41860465 | D8: =IF(AM8>C8,C8,AM8) -> 27.70534884 | E8: =S8*$B$2 -> 44.19767442 | F8: =IF(AN8>E8,E8,AN8) -> 27.18156977 | G8: =T8*$B$2 -> 42.97674419 | H8: =IF(AO8>G8,G8,AO8) -> 26.6455814 | I8: =U8*$B$2 -> 42 | J8: =IF(AP8>I8,I8,AP8) -> 26.25 | K8: =V8*$B$2 -> 41.02325581 | L8: =IF(AQ8>K8,K8,AQ8) -> 25.84465116 | M8: =W8*$B$2 -> 39.80232558 | N8: =IF(AR8>M8,M8,AR8) -> 25.47348837 | O8: =X8*$B$2 -> 38.58139535 | P8: =IF(AS8>O8,O8,AS8) -> 25.07790698 | R8: 1.081395349 | S8: 1.052325581 | T8: 1.023255814 | U8: 1 | V8: 0.976744186 | W8: 0.9476744186 | X8: 0.9186046512 | Y8: 0.61 | Z8: 0.615 | AA8: 0.62 | AB8: 0.625 | AC8: 0.63 | AD8: 0.64 | AE8: 0.65 | AF8: =IF(Y8<0.9,0.9,Y8*-3.6846+4.1276) -> 0.9 | AG8: =IF(Z8<0.9,0.9,Z8*-3.6846+4.1276) -> 0.9 | AH8: 0.9 | AI8: 0.9 | AJ8: 0.9 | AK8: 0.9 | AL8: 0.9 | AM8: =Y8*C8+($A$4-80)*AF8*$A$8/1000 -> 27.70534884 | AN8: =Z8*E8+($A$4-80)*AG8*$A$8/1000 -> 27.18156977 | AO8: =AA8*G8+($A$4-80)*AH8*$A$8/1000 -> 26.6455814 | AP8: =AB8*I8+($A$4-80)*AI8*$A$8/1000 -> 26.25 | AQ8: =AC8*K8+($A$4-80)*AJ8*$A$8/1000 -> 25.84465116 | AR8: =AD8*M8+($A$4-80)*AK8*$A$8/1000 -> 25.47348837 | AS8: =AE8*O8+($A$4-80)*AL8*$A$8/1000 -> 25.07790698
B9: 67 | C9: 42.97674419 | D9: 32.23255814 | E9: 42 | F9: =IF(AN9>E9,E9,AN9) -> 31.92 | G9: 41.02325581 | H9: =IF(AO9>G9,G9,AO9) -> 31.58790698 | I9: 40.04651163 | J9: =IF(AP9>I9,I9,AP9) -> 31.23627907 | K9: 39.06976744 | L9: =IF(AQ9>K9,K9,AQ9) -> 30.86511628 | M9: 37.8 | N9: =IF(AR9>M9,M9,AR9) -> 30.429 | O9: 36.53023256 | P9: =IF(AS9>O9,O9,AS9) -> 29.9547907 | R9: 1.023255814 | S9: 1 | T9: 0.976744186 | U9: 0.9534883721 | V9: 0.9302325581 | W9: 0.9 | X9: 0.8697674419 | Y9: 0.75 | Z9: 0.76 | AA9: 0.77 | AB9: 0.78 | AC9: 0.79 | AD9: 0.805 | AE9: 0.82 | AF9: =IF(Y9<0.9,0.9,Y9*-3.6846+4.1276) -> 0.9 | AG9: 0.9 | AH9: 0.9 | AI9: 0.9 | AJ9: 0.9 | AK9: 0.9 | AL9: 0.9 | AM9: =Y9*C9+($A$4-80)*AF9*$A$8/1000 -> 32.23255814 | AN9: =Z9*E9+($A$4-80)*AG9*$A$8/1000 -> 31.92 | AO9: =AA9*G9+($A$4-80)*AH9*$A$8/1000 -> 31.58790698 | AP9: =AB9*I9+($A$4-80)*AI9*$A$8/1000 -> 31.23627907 | AQ9: =AC9*K9+($A$4-80)*AJ9*$A$8/1000 -> 30.86511628 | AR9: =AD9*M9+($A$4-80)*AK9*$A$8/1000 -> 30.429 | AS9: =AE9*O9+($A$4-80)*AL9*$A$8/1000 -> 29.9547907
B10: 65 | C10: 42 | D10: 35.07 | E10: 41.02325581 | F10: 34.66465116 | G10: 40.04651163 | H10: 34.23976744 | I10: 39.02093023 | J10: 33.85065698 | K10: 37.99534884 | L10: 33.43590698 | M10: 36.82325581 | N10: 32.95681395 | O10: 35.65116279 | P10: 32.44255814 | R10: 1 | S10: 0.976744186 | T10: 0.9534883721 | U10: 0.9290697674 | V10: 0.9046511628 | W10: 0.876744186 | X10: 0.8488372093 | Y10: 0.835 | Z10: 0.845 | AA10: 0.855 | AB10: 0.8675 | AC10: 0.88 | AD10: 0.895 | AE10: 0.91 | AF10: 0.9 | AG10: 0.9 | AH10: 0.9 | AI10: 0.9 | AJ10: 0.9 | AK10: 0.9 | AL10: 0.774614 | AM10: 35.07 | AN10: =Z10*E10+($A$4-80)*AG10*$A$8/1000 -> 34.66465116 | AO10: =AA10*G10+($A$4-80)*AH10*$A$8/1000 -> 34.23976744 | AP10: 33.85065698 | AQ10: 33.43590698 | AR10: 32.95681395 | AS10: 32.44255814
B11: 63 | C11: 41.02325581 | D11: 37.74139535 | E11: 40.04651163 | F11: 37.24325581 | G11: 39.06976744 | H11: 36.7255814 | I11: 37.99534884 | J11: 36.28555814 | K11: 36.92093023 | L11: 35.81330233 | M11: 35.84651163 | N11: 35.30881395 | O11: 34.77209302 | P11: 34.77209302 | R11: 0.976744186 | S11: 0.9534883721 | T11: 0.9302325581 | U11: 0.9046511628 | V11: 0.8790697674 | W11: 0.8534883721 | X11: 0.8279069767 | Y11: 0.92 | Z11: 0.93 | AA11: 0.94 | AB11: 0.955 | AC11: 0.97 | AD11: 0.985 | AE11: 1 | AF11: 0.737768 | AG11: 0.700922 | AH11: 0.664076 | AI11: 0.608807 | AJ11: 0.553538 | AK11: 0.498269 | AL11: 0.443 | AM11: 37.74139535 | AN11: =Z11*E11+($A$4-80)*AG11*$A$8/1000 -> 37.24325581 | AO11: =AA11*G11+($A$4-80)*AH11*$A$8/1000 -> 36.7255814 | AP11: =AB11*I11+($A$4-80)*AI11*$A$8/1000 -> 36.28555814 | AQ11: 35.81330233 | AR11: 35.30881395 | AS11: 34.77209302
A12: 1400 | B12: 71 | C12: 46.39534884 | D12: 29.22906977 | E12: 45.41860465 | F12: 28.84081395 | G12: 44.44186047 | H12: 28.4427907 | I12: 43.22093023 | J12: 28.09360465 | K12: 42 | L12: 27.72 | M12: 40.53488372 | N12: 26.95569767 | O12: 39.06976744 | P12: 26.17674419 | R12: 1.104651163 | S12: 1.081395349 | T12: 1.058139535 | U12: 1.029069767 | V12: 1 | W12: 0.9651162791 | X12: 0.9302325581 | Y12: 0.63 | Z12: 0.635 | AA12: 0.64 | AB12: 0.65 | AC12: 0.66 | AD12: 0.665 | AE12: 0.67 | AF12: 0.9 | AG12: 0.9 | AH12: 0.9 | AI12: 0.9 | AJ12: 0.9 | AK12: 0.9 | AL12: 0.9 | AM12: =Y12*C12+($A$4-80)*AF12*$A$12/1000 -> 29.22906977 | AN12: =Z12*E12+($A$4-80)*AG12*$A$12/1000 -> 28.84081395 | AO12: =AA12*G12+($A$4-80)*AH12*$A$12/1000 -> 28.4427907 | AP12: =AB12*I12+($A$4-80)*AI12*$A$12/1000 -> 28.09360465 | AQ12: =AC12*K12+($A$4-80)*AJ12*$A$12/1000 -> 27.72 | AR12: =AD12*M12+($A$4-80)*AK12*$A$12/1000 -> 26.95569767 | AS12: =AE12*O12+($A$4-80)*AL12*$A$12/1000 -> 26.17674419
B13: 67 | C13: 44.44186047 | D13: 35.10906977 | E13: 43.22093023 | F13: 34.36063953 | G13: 42 | H13: 33.6 | I13: 41.02325581 | J13: 33.43395349 | K13: 40.04651163 | L13: 33.23860465 | M13: 38.8255814 | N13: 32.61348837 | O13: 37.60465116 | P13: 31.96395349 | R13: 1.058139535 | S13: 1.029069767 | T13: 1 | U13: 0.976744186 | V13: 0.9534883721 | W13: 0.9244186047 | X13: 0.8953488372 | Y13: 0.79 | Z13: 0.795 | AA13: 0.8 | AB13: 0.815 | AC13: 0.83 | AD13: 0.84 | AE13: 0.85 | AF13: 0.9 | AG13: 0.9 | AH13: 0.9 | AI13: 0.9 | AJ13: 0.9 | AK13: 0.9 | AL13: 0.9 | AM13: =Y13*C13+($A$4-80)*AF13*$A$12/1000 -> 35.10906977 | AN13: =Z13*E13+($A$4-80)*AG13*$A$12/1000 -> 34.36063953 | AO13: =AA13*G13+($A$4-80)*AH13*$A$12/1000 -> 33.6 | AP13: =AB13*I13+($A$4-80)*AI13*$A$12/1000 -> 33.43395349 | AQ13: =AC13*K13+($A$4-80)*AJ13*$A$12/1000 -> 33.23860465 | AR13: =AD13*M13+($A$4-80)*AK13*$A$12/1000 -> 32.61348837 | AS13: =AE13*O13+($A$4-80)*AL13*$A$12/1000 -> 31.96395349
B14: 65 | C14: 43.22093023 | D14: 37.81831395 | E14: 42.12209302 | F14: 37.17274709 | G14: 41.02325581 | H14: 36.51069767 | I14: 40.04651163 | J14: 36.14197674 | K14: 39.06976744 | L14: 35.74883721 | M14: 37.92209302 | N14: 34.88832558 | O14: 36.7744186 | P14: 34.01633721 | R14: 1.029069767 | S14: 1.002906977 | T14: 0.976744186 | U14: 0.9534883721 | V14: 0.9302325581 | W14: 0.9029069767 | X14: 0.8755813953 | Y14: 0.875 | Z14: 0.8825 | AA14: 0.89 | AB14: 0.9025 | AC14: 0.915 | AD14: 0.92 | AE14: 0.925 | AF14: 0.9 | AG14: 0.9 | AH14: 0.9 | AI14: 0.8022485 | AJ14: 0.756191 | AK14: 0.737768 | AL14: 0.719345 | AM14: 37.81831395 | AN14: =Z14*E14+($A$4-80)*AG14*$A$12/1000 -> 37.17274709 | AO14: =AA14*G14+($A$4-80)*AH14*$A$12/1000 -> 36.51069767 | AP14: 36.14197674 | AQ14: 35.74883721 | AR14: 34.88832558 | AS14: 34.01633721
B15: 63 | C15: 42 | D15: 40.32 | E15: 41.02325581 | F15: 39.79255814 | G15: 40.04651163 | H15: 39.2455814 | I15: 39.06976744 | J15: 38.67906977 | K15: 38.09302326 | L15: 38.09302326 | M15: 37.01860465 | N15: 37.01860465 | O15: 35.94418605 | P15: 35.94418605 | R15: 1 | S15: 0.976744186 | T15: 0.9534883721 | U15: 0.9302325581 | V15: 0.9069767442 | W15: 0.8813953488 | X15: 0.8558139535 | Y15: 0.96 | Z15: 0.97 | AA15: 0.98 | AB15: 0.99 | AC15: 1 | AD15: 1 | AE15: 1 | AF15: 0.590384 | AG15: 0.553538 | AH15: 0.516692 | AI15: 0.479846 | AJ15: 0.443 | AK15: 0.443 | AL15: 0.443 | AM15: 40.32 | AN15: =Z15*E15+($A$4-80)*AG15*$A$12/1000 -> 39.79255814 | AO15: =AA15*G15+($A$4-80)*AH15*$A$12/1000 -> 39.2455814 | AP15: 38.67906977 | AQ15: 38.09302326 | AR15: 37.01860465 | AS15: 35.94418605
A16: 1575 | B16: 71 | C16: 47.37209302 | D16: 30.79186047 | E16: 46.39534884 | F16: 30.38895349 | G16: 45.41860465 | H16: 29.97627907 | I16: 44.19767442 | J16: 29.61244186 | K16: 42.97674419 | L16: 29.22418605 | M16: 41.51162791 | N16: 28.64302326 | O16: 40.04651163 | P16: 28.03255814 | R16: 1.127906977 | S16: 1.104651163 | T16: 1.081395349 | U16: 1.052325581 | V16: 1.023255814 | W16: 0.988372093 | X16: 0.9534883721 | Y16: 0.65 | Z16: 0.655 | AA16: 0.66 | AB16: 0.67 | AC16: 0.68 | AD16: 0.69 | AE16: 0.7 | AF16: 0.9 | AG16: 0.9 | AH16: 0.9 | AI16: 0.9 | AJ16: 0.9 | AK16: 0.9 | AL16: 0.9 | AM16: =Y16*C16+($A$4-80)*AF16*$A$16/1000 -> 30.79186047 | AN16: =Z16*E16+($A$4-80)*AG16*$A$16/1000 -> 30.38895349 | AO16: =AA16*G16+($A$4-80)*AH16*$A$16/1000 -> 29.97627907 | AP16: =AB16*I16+($A$4-80)*AI16*$A$16/1000 -> 29.61244186 | AQ16: =AC16*K16+($A$4-80)*AJ16*$A$16/1000 -> 29.22418605 | AR16: =AD16*M16+($A$4-80)*AK16*$A$16/1000 -> 28.64302326 | AS16: =AE16*O16+($A$4-80)*AL16*$A$16/1000 -> 28.03255814
B17: 67 | C17: 45.41860465 | D17: 37.24325581 | E17: 44.19767442 | F17: 36.68406977 | G17: 42.97674419 | H17: 36.10046512 | I17: 41.75581395 | J17: 35.49244186 | K17: 40.53488372 | L17: 34.86 | M17: 39.31395349 | N17: 34.3997093 | O17: 38.09302326 | P17: 33.9027907 | R17: 1.081395349 | S17: 1.052325581 | T17: 1.023255814 | U17: 0.9941860465 | V17: 0.9651162791 | W17: 0.9360465116 | X17: 0.9069767442 | Y17: 0.82 | Z17: 0.83 | AA17: 0.84 | AB17: 0.85 | AC17: 0.86 | AD17: 0.875 | AE17: 0.89 | AF17: 0.9 | AG17: 0.9 | AH17: 0.9 | AI17: 0.9 | AJ17: 0.9 | AK17: 0.9 | AL17: 0.9 | AM17: =Y17*C17+($A$4-80)*AF17*$A$16/1000 -> 37.24325581 | AN17: =Z17*E17+($A$4-80)*AG17*$A$16/1000 -> 36.68406977 | AO17: =AA17*G17+($A$4-80)*AH17*$A$16/1000 -> 36.10046512 | AP17: =AB17*I17+($A$4-80)*AI17*$A$16/1000 -> 35.49244186 | AQ17: =AC17*K17+($A$4-80)*AJ17*$A$16/1000 -> 34.86 | AR17: =AD17*M17+($A$4-80)*AK17*$A$16/1000 -> 34.3997093 | AS17: =AE17*O17+($A$4-80)*AL17*$A$16/1000 -> 33.9027907
B18: 65 | C18: 44.19767442 | D18: 39.99889535 | E18: 43.09883721 | F18: 39.32768895 | G18: 42 | H18: 38.64 | I18: 40.90116279 | J18: 37.83357558 | K18: 39.80232558 | L18: 37.01616279 | M18: 38.70348837 | N18: 36.28452035 | O18: 37.60465116 | P18: 35.53639535 | R18: 1.052325581 | S18: 1.026162791 | T18: 1 | U18: 0.9738372093 | V18: 0.9476744186 | W18: 0.9215116279 | X18: 0.8953488372 | Y18: 0.905 | Z18: 0.9125 | AA18: 0.92 | AB18: 0.925 | AC18: 0.93 | AD18: 0.9375 | AE18: 0.945 | AF18: 0.793037 | AG18: 0.7654025 | AH18: 0.737768 | AI18: 0.719345 | AJ18: 0.700922 | AK18: 0.6732875 | AL18: 0.645653 | AM18: 39.99889535 | AN18: =Z18*E18+($A$4-80)*AG18*$A$16/1000 -> 39.32768895 | AO18: =AA18*G18+($A$4-80)*AH18*$A$16/1000 -> 38.64 | AP18: 37.83357558 | AQ18: 37.01616279 | AR18: 36.28452035 | AS18: 35.53639535
B19: 63 | C19: 42.97674419 | D19: 42.54697674 | E19: 42 | F19: 41.79 | G19: 41.02325581 | H19: 41.02325581 | I19: 40.04651163 | J19: 40.04651163 | K19: 39.06976744 | L19: 39.06976744 | M19: 38.09302326 | N19: 38.09302326 | O19: 37.11627907 | P19: 37.11627907 | R19: 1.023255814 | S19: 1 | T19: 0.976744186 | U19: 0.9534883721 | V19: 0.9302325581 | W19: 0.9069767442 | X19: 0.8837209302 | Y19: 0.99 | Z19: 0.995 | AA19: 1 | AB19: 1 | AC19: 1 | AD19: 1 | AE19: 1 | AF19: 0.479846 | AG19: 0.461423 | AH19: 0.443 | AI19: 0.443 | AJ19: 0.443 | AK19: 0.443 | AL19: 0.443 | AM19: 42.54697674 | AN19: =Z19*E19+($A$4-80)*AG19*$A$16/1000 -> 41.79 | AO19: =AA19*G19+($A$4-80)*AH19*$A$16/1000 -> 41.02325581 | AP19: 40.04651163 | AQ19: 39.06976744 | AR19: 38.09302326 | AS19: 37.11627907

Sheet 14ACX_47 (hidden)
A2: 14ACX_47 | B2: 47
A3: Evaporator Air | C3: Condenser Entering Air Temperature ˚F
A4: 75 | B4: °F DB | C4: 85 | E4: 90 | G4: 95 | I4: 100 | K4: 105 | M4: 110 | O4: 115
A5: CFM | B5: EWB† ˚F | C5: Capacity Mbtuh | E5: Capacity Mbtuh | G5: Capacity Mbtuh | I5: Capacity Mbtuh | K5: Capacity Mbtuh | M5: Capacity Mbtuh | O5: Capacity Mbtuh
C6: Total | D6: Sens. | E6: Total | F6: Sens. | G6: Total | H6: Sens. | I6: Total | J6: Sens. | K6: Total | L6: Sens. | M6: Total | N6: Sens. | O6: Total | P6: Sens.
R7: Total Factors | Y7: Sens. % | AF7: IDB Adj | AM7: Sens Calc
A8: 1400 | B8: 71 | C8: =R8*$B$2 -> 50.35714286 | D8: =IF(AM8>C8,C8,AM8) -> 23.91428571 | E8: =S8*$B$2 -> 49.39795918 | F8: =IF(AN8>E8,E8,AN8) -> 23.58576531 | G8: =T8*$B$2 -> 48.43877551 | H8: =IF(AO8>G8,G8,AO8) -> 23.24765306 | I8: =U8*$B$2 -> 47.23979592 | J8: =IF(AP8>I8,I8,AP8) -> 22.75247449 | K8: =V8*$B$2 -> 46.04081633 | L8: =IF(AQ8>K8,K8,AQ8) -> 22.24530612 | M8: =W8*$B$2 -> 44.60204082 | N8: =IF(AR8>M8,M8,AR8) -> 21.79928571 | O8: =X8*$B$2 -> 43.16326531 | P8: =IF(AS8>O8,O8,AS8) -> 21.3244898 | R8: 1.071428571 | S8: 1.051020408 | T8: 1.030612245 | U8: 1.005102041 | V8: 0.9795918367 | W8: 0.9489795918 | X8: 0.9183673469 | Y8: 0.6 | Z8: 0.605 | AA8: 0.61 | AB8: 0.615 | AC8: 0.62 | AD8: 0.63 | AE8: 0.64 | AF8: =IF(Y8<0.9,0.9,Y8*-3.6846+4.1276) -> 0.9 | AG8: =IF(Z8<0.9,0.9,Z8*-3.6846+4.1276) -> 0.9 | AH8: 0.9 | AI8: 0.9 | AJ8: 0.9 | AK8: 0.9 | AL8: 0.9 | AM8: =Y8*C8+($A$4-80)*AF8*$A$8/1000 -> 23.91428571 | AN8: =Z8*E8+($A$4-80)*AG8*$A$8/1000 -> 23.58576531 | AO8: =AA8*G8+($A$4-80)*AH8*$A$8/1000 -> 23.24765306 | AP8: =AB8*I8+($A$4-80)*AI8*$A$8/1000 -> 22.75247449 | AQ8: =AC8*K8+($A$4-80)*AJ8*$A$8/1000 -> 22.24530612 | AR8: =AD8*M8+($A$4-80)*AK8*$A$8/1000 -> 21.79928571 | AS8: =AE8*O8+($A$4-80)*AL8*$A$8/1000 -> 21.3244898
B9: 67 | C9: 48.43877551 | D9: 30.02908163 | E9: 47.23979592 | F9: =IF(AN9>E9,E9,AN9) -> 29.36604592 | G9: 46.04081633 | H9: =IF(AO9>G9,G9,AO9) -> 28.69102041 | I9: 45.08163265 | J9: =IF(AP9>I9,I9,AP9) -> 28.41285714 | K9: 44.12244898 | L9: =IF(AQ9>K9,K9,AQ9) -> 28.1155102 | M9: 42.68367347 | N9: =IF(AR9>M9,M9,AR9) -> 27.42010204 | O9: 41.24489796 | P9: =IF(AS9>O9,O9,AS9) -> 26.69591837 | R9: 1.030612245 | S9: 1.005102041 | T9: 0.9795918367 | U9: 0.9591836735 | V9: 0.9387755102 | W9: 0.9081632653 | X9: 0.8775510204 | Y9: 0.75 | Z9: 0.755 | AA9: 0.76 | AB9: 0.77 | AC9: 0.78 | AD9: 0.79 | AE9: 0.8 | AF9: =IF(Y9<0.9,0.9,Y9*-3.6846+4.1276) -> 0.9 | AG9: 0.9 | AH9: 0.9 | AI9: 0.9 | AJ9: 0.9 | AK9: 0.9 | AL9: 0.9 | AM9: =Y9*C9+($A$4-80)*AF9*$A$8/1000 -> 30.02908163 | AN9: =Z9*E9+($A$4-80)*AG9*$A$8/1000 -> 29.36604592 | AO9: =AA9*G9+($A$4-80)*AH9*$A$8/1000 -> 28.69102041 | AP9: =AB9*I9+($A$4-80)*AI9*$A$8/1000 -> 28.41285714 | AQ9: =AC9*K9+($A$4-80)*AJ9*$A$8/1000 -> 28.1155102 | AR9: =AD9*M9+($A$4-80)*AK9*$A$8/1000 -> 27.42010204 | AS9: =AE9*O9+($A$4-80)*AL9*$A$8/1000 -> 26.69591837
B10: 65 | C10: 47.23979592 | D10: 32.90903061 | E10: 46.04081633 | F10: 32.25918367 | G10: 44.84183673 | H10: 31.59135204 | I10: 43.88265306 | J10: 31.329375 | K10: 42.92346939 | L10: 31.04341837 | M10: 41.60459184 | N10: 30.4160523 | O10: 40.28571429 | P10: 29.75571429 | R10: 1.005102041 | S10: 0.9795918367 | T10: 0.9540816327 | U10: 0.9336734694 | V10: 0.9132653061 | W10: 0.8852040816 | X10: 0.8571428571 | Y10: 0.83 | Z10: 0.8375 | AA10: 0.845 | AB10: 0.8575 | AC10: 0.87 | AD10: 0.8825 | AE10: 0.895 | AF10: 0.9 | AG10: 0.9 | AH10: 0.9 | AI10: 0.9 | AJ10: 0.9 | AK10: 0.9 | AL10: 0.9 | AM10: 32.90903061 | AN10: =Z10*E10+($A$4-80)*AG10*$A$8/1000 -> 32.25918367 | AO10: =AA10*G10+($A$4-80)*AH10*$A$8/1000 -> 31.59135204 | AP10: 31.329375 | AQ10: 31.04341837 | AR10: 30.4160523 | AS10: 29.75571429
B11: 63 | C11: 46.04081633 | D11: 36.47484486 | E11: 44.84183673 | F11: 36.0901138 | G11: 43.64285714 | H11: 35.68140314 | I11: 42.68367347 | J11: 35.81650043 | K11: 41.7244898 | L11: 35.9228222 | M11: 40.5255102 | N11: 35.76656745 | O11: 39.32653061 | P11: 35.57434331 | R11: 0.9795918367 | S11: 0.9540816327 | T11: 0.9285714286 | U11: 0.9081632653 | V11: 0.887755102 | W11: 0.862244898 | X11: 0.8367346939 | Y11: 0.91 | Z11: 0.92 | AA11: 0.93 | AB11: 0.945 | AC11: 0.96 | AD11: 0.975 | AE11: 0.99 | AF11: 0.774614 | AG11: 0.737768 | AH11: 0.700922 | AI11: 0.645653 | AJ11: 0.590384 | AK11: 0.535115 | AL11: 0.479846 | AM11: 36.47484486 | AN11: =Z11*E11+($A$4-80)*AG11*$A$8/1000 -> 36.0901138 | AO11: =AA11*G11+($A$4-80)*AH11*$A$8/1000 -> 35.68140314 | AP11: =AB11*I11+($A$4-80)*AI11*$A$8/1000 -> 35.81650043 | AQ11: 35.9228222 | AR11: 35.76656745 | AS11: 35.57434331
A12: 1550 | B12: 71 | C12: 51.31632653 | D12: 24.32795918 | E12: 50.35714286 | F12: 24.24642857 | G12: 49.39795918 | H12: 24.14571429 | I12: 48.19897959 | J12: 23.63135204 | K12: 47 | L12: 23.105 | M12: 45.56122449 | N12: 22.63979592 | O12: 44.12244898 | P12: 22.14581633 | R12: 1.091836735 | S12: 1.071428571 | T12: 1.051020408 | U12: 1.025510204 | V12: 1 | W12: 0.9693877551 | X12: 0.9387755102 | Y12: 0.61 | Z12: 0.62 | AA12: 0.63 | AB12: 0.635 | AC12: 0.64 | AD12: 0.65 | AE12: 0.66 | AF12: 0.9 | AG12: 0.9 | AH12: 0.9 | AI12: 0.9 | AJ12: 0.9 | AK12: 0.9 | AL12: 0.9 | AM12: =Y12*C12+($A$4-80)*AF12*$A$12/1000 -> 24.32795918 | AN12: =Z12*E12+($A$4-80)*AG12*$A$12/1000 -> 24.24642857 | AO12: =AA12*G12+($A$4-80)*AH12*$A$12/1000 -> 24.14571429 | AP12: =AB12*I12+($A$4-80)*AI12*$A$12/1000 -> 23.63135204 | AQ12: =AC12*K12+($A$4-80)*AJ12*$A$12/1000 -> 23.105 | AR12: =AD12*M12+($A$4-80)*AK12*$A$12/1000 -> 22.63979592 | AS12: =AE12*O12+($A$4-80)*AL12*$A$12/1000 -> 22.14581633
B13: 67 | C13: 49.39795918 | D13: 31.06142857 | E13: 48.19897959 | F13: 30.62020408 | G13: 47 | H13: 30.155 | I13: 45.80102041 | J13: 29.66581633 | K13: 44.60204082 | L13: 29.15265306 | M13: 43.40306122 | N13: 28.6155102 | O13: 42.20408163 | P13: 28.05438776 | R13: 1.051020408 | S13: 1.025510204 | T13: 1 | U13: 0.9744897959 | V13: 0.9489795918 | W13: 0.9234693878 | X13: 0.8979591837 | Y13: 0.77 | Z13: 0.78 | AA13: 0.79 | AB13: 0.8 | AC13: 0.81 | AD13: 0.82 | AE13: 0.83 | AF13: 0.9 | AG13: 0.9 | AH13: 0.9 | AI13: 0.9 | AJ13: 0.9 | AK13: 0.9 | AL13: 0.9 | AM13: =Y13*C13+($A$4-80)*AF13*$A$12/1000 -> 31.06142857 | AN13: =Z13*E13+($A$4-80)*AG13*$A$12/1000 -> 30.62020408 | AO13: =AA13*G13+($A$4-80)*AH13*$A$12/1000 -> 30.155 | AP13: =AB13*I13+($A$4-80)*AI13*$A$12/1000 -> 29.66581633 | AQ13: =AC13*K13+($A$4-80)*AJ13*$A$12/1000 -> 29.15265306 | AR13: =AD13*M13+($A$4-80)*AK13*$A$12/1000 -> 28.6155102 | AS13: =AE13*O13+($A$4-80)*AL13*$A$12/1000 -> 28.05438776
B14: 65 | C14: 48.19897959 | D14: 34.47612245 | E14: 47 | F14: 33.915 | G14: 45.80102041 | H14: 33.32989796 | I14: 44.72193878 | J14: 32.82752551 | K14: 43.64285714 | L14: 32.98975643 | M14: 42.44387755 | N14: 32.44317125 | O14: 41.24489796 | P14: 31.87860138 | R14: 1.025510204 | S14: 1 | T14: 0.9744897959 | U14: 0.9515306122 | V14: 0.9285714286 | W14: 0.9030612245 | X14: 0.8775510204 | Y14: 0.86 | Z14: 0.87 | AA14: 0.88 | AB14: 0.89 | AC14: 0.9 | AD14: 0.9075 | AE14: 0.915 | AF14: 0.9 | AG14: 0.9 | AH14: 0.9 | AI14: 0.9 | AJ14: 0.81146 | AK14: 0.7838255 | AL14: 0.756191 | AM14: 34.47612245 | AN14: =Z14*E14+($A$4-80)*AG14*$A$12/1000 -> 33.915 | AO14: =AA14*G14+($A$4-80)*AH14*$A$12/1000 -> 33.32989796 | AP14: 32.82752551 | AQ14: 32.98975643 | AR14: 32.44317125 | AS14: 31.87860138
B15: 63 | C15: 47 | D15: 39.7889675 | E15: 45.80102041 | F15: 39.39350359 | G15: 44.60204082 | H15: 38.97406009 | I15: 43.64285714 | J15: 38.765637 | K15: 42.68367347 | L15: 38.53803023 | M15: 41.48469388 | N15: 37.70124216 | O15: 40.28571429 | P15: 36.85246429 | R15: 1 | S15: 0.9744897959 | T15: 0.9489795918 | U15: 0.9285714286 | V15: 0.9081632653 | W15: 0.8826530612 | X15: 0.8571428571 | Y15: 0.95 | Z15: 0.96 | AA15: 0.97 | AB15: 0.98 | AC15: 0.99 | AD15: 0.995 | AE15: 1 | AF15: 0.62723 | AG15: 0.590384 | AH15: 0.553538 | AI15: 0.516692 | AJ15: 0.479846 | AK15: 0.461423 | AL15: 0.443 | AM15: 39.7889675 | AN15: =Z15*E15+($A$4-80)*AG15*$A$12/1000 -> 39.39350359 | AO15: =AA15*G15+($A$4-80)*AH15*$A$12/1000 -> 38.97406009 | AP15: 38.765637 | AQ15: 38.53803023 | AR15: 37.70124216 | AS15: 36.85246429
A16: 1800 | B16: 71 | C16: 53.23469388 | D16: 25.97020408 | E16: 52.03571429 | F16: 25.46303571 | G16: 50.83673469 | H16: 24.94387755 | I16: 49.39795918 | J16: 24.50265306 | K16: 47.95918367 | L16: 24.03265306 | M16: 46.76020408 | N16: 23.46313776 | O16: 45.56122449 | P16: 22.88163265 | R16: 1.132653061 | S16: 1.107142857 | T16: 1.081632653 | U16: 1.051020408 | V16: 1.020408163 | W16: 0.9948979592 | X16: 0.9693877551 | Y16: 0.64 | Z16: 0.645 | AA16: 0.65 | AB16: 0.66 | AC16: 0.67 | AD16: 0.675 | AE16: 0.68 | AF16: 0.9 | AG16: 0.9 | AH16: 0.9 | AI16: 0.9 | AJ16: 0.9 | AK16: 0.9 | AL16: 0.9 | AM16: =Y16*C16+($A$4-80)*AF16*$A$16/1000 -> 25.97020408 | AN16: =Z16*E16+($A$4-80)*AG16*$A$16/1000 -> 25.46303571 | AO16: =AA16*G16+($A$4-80)*AH16*$A$16/1000 -> 24.94387755 | AP16: =AB16*I16+($A$4-80)*AI16*$A$16/1000 -> 24.50265306 | AQ16: =AC16*K16+($A$4-80)*AJ16*$A$16/1000 -> 24.03265306 | AR16: =AD16*M16+($A$4-80)*AK16*$A$16/1000 -> 23.46313776 | AS16: =AE16*O16+($A$4-80)*AL16*$A$16/1000 -> 22.88163265
B17: 67 | C17: 50.83673469 | D17: 33.0777551 | E17: 49.6377551 | F17: 32.60295918 | G17: 48.43877551 | H17: 32.10418367 | I17: 47.23979592 | J17: 31.58142857 | K17: 46.04081633 | L17: 31.03469388 | M17: 44.60204082 | N17: 30.48076531 | O17: 43.16326531 | P17: 29.88367347 | R17: 1.081632653 | S17: 1.056122449 | T17: 1.030612245 | U17: 1.005102041 | V17: 0.9795918367 | W17: 0.9489795918 | X17: 0.9183673469 | Y17: 0.81 | Z17: 0.82 | AA17: 0.83 | AB17: 0.84 | AC17: 0.85 | AD17: 0.865 | AE17: 0.88 | AF17: 0.9 | AG17: 0.9 | AH17: 0.9 | AI17: 0.9 | AJ17: 0.9 | AK17: 0.9 | AL17: 0.9 | AM17: =Y17*C17+($A$4-80)*AF17*$A$16/1000 -> 33.0777551 | AN17: =Z17*E17+($A$4-80)*AG17*$A$16/1000 -> 32.60295918 | AO17: =AA17*G17+($A$4-80)*AH17*$A$16/1000 -> 32.10418367 | AP17: =AB17*I17+($A$4-80)*AI17*$A$16/1000 -> 31.58142857 | AQ17: =AC17*K17+($A$4-80)*AJ17*$A$16/1000 -> 31.03469388 | AR17: =AD17*M17+($A$4-80)*AK17*$A$16/1000 -> 30.48076531 | AS17: =AE17*O17+($A$4-80)*AL17*$A$16/1000 -> 29.88367347
B18: 65 | C18: 49.6377551 | D18: 37.37083959 | E18: 48.43877551 | F18: 36.90375928 | G18: 47.23979592 | H18: 36.41869427 | I18: 46.16071429 | J18: 35.82794514 | K18: 45.08163265 | L18: 35.2264052 | M18: 43.7627551 | N18: 34.58337463 | O18: 42.44387755 | P18: 33.9205609 | R18: 1.056122449 | S18: 1.030612245 | T18: 1.005102041 | U18: 0.9821428571 | V18: 0.9591836735 | W18: 0.931122449 | X18: 0.9030612245 | Y18: 0.9 | Z18: 0.9075 | AA18: 0.915 | AB18: 0.92 | AC18: 0.925 | AD18: 0.9325 | AE18: 0.94 | AF18: 0.81146 | AG18: 0.7838255 | AH18: 0.756191 | AI18: 0.737768 | AJ18: 0.719345 | AK18: 0.6917105 | AL18: 0.664076 | AM18: 37.37083959 | AN18: =Z18*E18+($A$4-80)*AG18*$A$16/1000 -> 36.90375928 | AO18: =AA18*G18+($A$4-80)*AH18*$A$16/1000 -> 36.41869427 | AP18: 35.82794514 | AQ18: 35.2264052 | AR18: 34.58337463 | AS18: 33.9205609
B19: 63 | C19: 48.43877551 | D19: 43.63577376 | E19: 47.23979592 | F19: 42.85078994 | G19: 46.04081633 | H19: 42.05381633 | I19: 45.08163265 | J19: 41.09463265 | K19: 44.12244898 | L19: 40.13544898 | M19: 42.92346939 | N19: 38.93646939 | O19: 41.7244898 | P19: 37.7374898 | R19: 1.030612245 | S19: 1.005102041 | T19: 0.9795918367 | U19: 0.9591836735 | V19: 0.9387755102 | W19: 0.9132653061 | X19: 0.887755102 | Y19: 0.99 | Z19: 0.995 | AA19: 1 | AB19: 1 | AC19: 1 | AD19: 1 | AE19: 1 | AF19: 0.479846 | AG19: 0.461423 | AH19: 0.443 | AI19: 0.443 | AJ19: 0.443 | AK19: 0.443 | AL19: 0.443 | AM19: 43.63577376 | AN19: =Z19*E19+($A$4-80)*AG19*$A$16/1000 -> 42.85078994 | AO19: =AA19*G19+($A$4-80)*AH19*$A$16/1000 -> 42.05381633 | AP19: 41.09463265 | AQ19: 40.13544898 | AR19: 38.93646939 | AS19: 37.7374898

Sheet 14ACX_48 (hidden)
A2: 14ACX_48 | B2: 48
A3: Evaporator Air | C3: Condenser Entering Air Temperature ˚F
A4: 80 | B4: °F DB | C4: 85 | E4: 90 | G4: 95 | I4: 100 | K4: 105 | M4: 110 | O4: 115
A5: CFM | B5: EWB† ˚F | C5: Capacity Mbtuh | E5: Capacity Mbtuh | G5: Capacity Mbtuh | I5: Capacity Mbtuh | K5: Capacity Mbtuh | M5: Capacity Mbtuh | O5: Capacity Mbtuh
C6: Total | D6: Sens. | E6: Total | F6: Sens. | G6: Total | H6: Sens. | I6: Total | J6: Sens. | K6: Total | L6: Sens. | M6: Total | N6: Sens. | O6: Total | P6: Sens.
R7: Total Factors | Y7: Sens. % | AF7: IDB Adj | AM7: Sens Calc
A8: 1400 | B8: 71 | C8: =R8*$B$2 -> 51.76470588 | D8: =IF(AM8>C8,C8,AM8) -> 31.05882353 | E8: =S8*$B$2 -> 50.58823529 | F8: =IF(AN8>E8,E8,AN8) -> 30.60588235 | G8: =T8*$B$2 -> 49.41176471 | H8: =IF(AO8>G8,G8,AO8) -> 30.14117647 | I8: =U8*$B$2 -> 48 | J8: =IF(AP8>I8,I8,AP8) -> 29.76 | K8: =V8*$B$2 -> 46.58823529 | L8: =IF(AQ8>K8,K8,AQ8) -> 29.35058824 | M8: =W8*$B$2 -> 45.17647059 | N8: =IF(AR8>M8,M8,AR8) -> 28.68705882 | O8: =X8*$B$2 -> 43.76470588 | P8: =IF(AS8>O8,O8,AS8) -> 28.00941176 | R8: 1.078431373 | S8: 1.053921569 | T8: 1.029411765 | U8: 1 | V8: 0.9705882353 | W8: 0.9411764706 | X8: 0.9117647059 | Y8: 0.6 | Z8: 0.605 | AA8: 0.61 | AB8: 0.62 | AC8: 0.63 | AD8: 0.635 | AE8: 0.64 | AF8: =IF(Y8<0.9,0.9,Y8*-3.6846+4.1276) -> 0.9 | AG8: =IF(Z8<0.9,0.9,Z8*-3.6846+4.1276) -> 0.9 | AH8: 0.9 | AI8: 0.9 | AJ8: 0.9 | AK8: 0.9 | AL8: 0.9 | AM8: =Y8*C8+($A$4-80)*AF8*$A$8/1000 -> 31.05882353 | AN8: =Z8*E8+($A$4-80)*AG8*$A$8/1000 -> 30.60588235 | AO8: =AA8*G8+($A$4-80)*AH8*$A$8/1000 -> 30.14117647 | AP8: =AB8*I8+($A$4-80)*AI8*$A$8/1000 -> 29.76 | AQ8: =AC8*K8+($A$4-80)*AJ8*$A$8/1000 -> 29.35058824 | AR8: =AD8*M8+($A$4-80)*AK8*$A$8/1000 -> 28.68705882 | AS8: =AE8*O8+($A$4-80)*AL8*$A$8/1000 -> 28.00941176
B9: 67 | C9: 48.94117647 | D9: 36.21647059 | E9: 47.76470588 | F9: =IF(AN9>E9,E9,AN9) -> 35.82352941 | G9: 46.58823529 | H9: =IF(AO9>G9,G9,AO9) -> 35.40705882 | I9: 45.41176471 | J9: =IF(AP9>I9,I9,AP9) -> 35.19411765 | K9: 44.23529412 | L9: =IF(AQ9>K9,K9,AQ9) -> 34.94588235 | M9: 42.82352941 | N9: =IF(AR9>M9,M9,AR9) -> 34.25882353 | O9: 41.41176471 | P9: =IF(AS9>O9,O9,AS9) -> 33.54352941 | R9: 1.019607843 | S9: 0.9950980392 | T9: 0.9705882353 | U9: 0.9460784314 | V9: 0.9215686275 | W9: 0.8921568627 | X9: 0.862745098 | Y9: 0.74 | Z9: 0.75 | AA9: 0.76 | AB9: 0.775 | AC9: 0.79 | AD9: 0.8 | AE9: 0.81 | AF9: =IF(Y9<0.9,0.9,Y9*-3.6846+4.1276) -> 0.9 | AG9: 0.9 | AH9: 0.9 | AI9: 0.9 | AJ9: 0.9 | AK9: 0.9 | AL9: 0.9 | AM9: =Y9*C9+($A$4-80)*AF9*$A$8/1000 -> 36.21647059 | AN9: =Z9*E9+($A$4-80)*AG9*$A$8/1000 -> 35.82352941 | AO9: =AA9*G9+($A$4-80)*AH9*$A$8/1000 -> 35.40705882 | AP9: =AB9*I9+($A$4-80)*AI9*$A$8/1000 -> 35.19411765 | AQ9: =AC9*K9+($A$4-80)*AJ9*$A$8/1000 -> 34.94588235 | AR9: =AD9*M9+($A$4-80)*AK9*$A$8/1000 -> 34.25882353 | AS9: =AE9*O9+($A$4-80)*AL9*$A$8/1000 -> 33.54352941
B10: 65 | C10: 47.76470588 | D10: 39.40588235 | E10: 46.58823529 | F10: 38.90117647 | G10: 45.41176471 | H10: 38.37294118 | I10: 44.23529412 | J10: 38.04235294 | K10: 43.05882353 | L10: 37.67647059 | M10: 41.76470588 | N10: 37.06617647 | O10: 40.47058824 | P10: 36.42352941 | R10: 0.9950980392 | S10: 0.9705882353 | T10: 0.9460784314 | U10: 0.9215686275 | V10: 0.8970588235 | W10: 0.8700980392 | X10: 0.8431372549 | Y10: 0.825 | Z10: 0.835 | AA10: 0.845 | AB10: 0.86 | AC10: 0.875 | AD10: 0.8875 | AE10: 0.9 | AF10: 0.9 | AG10: 0.9 | AH10: 0.9 | AI10: 0.9 | AJ10: 0.9 | AK10: 0.9 | AL10: 0.81146 | AM10: 39.40588235 | AN10: =Z10*E10+($A$4-80)*AG10*$A$8/1000 -> 38.90117647 | AO10: =AA10*G10+($A$4-80)*AH10*$A$8/1000 -> 38.37294118 | AP10: 38.04235294 | AQ10: 37.67647059 | AR10: 37.06617647 | AS10: 36.42352941
B11: 63 | C11: 46.58823529 | D11: 42.39529412 | E11: 45.41176471 | F11: 41.77882353 | G11: 44.23529412 | H11: 41.13882353 | I11: 43.05882353 | J11: 40.69058824 | K11: 41.88235294 | L11: 40.20705882 | M11: 40.70588235 | N11: 39.68823529 | O11: 39.52941176 | P11: 39.13411765 | R11: 0.9705882353 | S11: 0.9460784314 | T11: 0.9215686275 | U11: 0.8970588235 | V11: 0.8725490196 | W11: 0.8480392157 | X11: 0.8235294118 | Y11: 0.91 | Z11: 0.92 | AA11: 0.93 | AB11: 0.945 | AC11: 0.96 | AD11: 0.975 | AE11: 0.99 | AF11: 0.774614 | AG11: 0.737768 | AH11: 0.700922 | AI11: 0.645653 | AJ11: 0.590384 | AK11: 0.535115 | AL11: 0.479846 | AM11: 42.39529412 | AN11: =Z11*E11+($A$4-80)*AG11*$A$8/1000 -> 41.77882353 | AO11: =AA11*G11+($A$4-80)*AH11*$A$8/1000 -> 41.13882353 | AP11: =AB11*I11+($A$4-80)*AI11*$A$8/1000 -> 40.69058824 | AQ11: 40.20705882 | AR11: 39.68823529 | AS11: 39.13411765
A12: 1600 | B12: 71 | C12: 53.17647059 | D12: 32.96941176 | E12: 51.76470588 | F12: 32.61176471 | G12: 50.35294118 | H12: 32.22588235 | I12: 48.94117647 | J12: 31.56705882 | K12: 47.52941176 | L12: 30.89411765 | M12: 46.11764706 | N12: 30.43764706 | O12: 44.70588235 | P12: 29.95294118 | R12: 1.107843137 | S12: 1.078431373 | T12: 1.049019608 | U12: 1.019607843 | V12: 0.9901960784 | W12: 0.9607843137 | X12: 0.931372549 | Y12: 0.62 | Z12: 0.63 | AA12: 0.64 | AB12: 0.645 | AC12: 0.65 | AD12: 0.66 | AE12: 0.67 | AF12: 0.9 | AG12: 0.9 | AH12: 0.9 | AI12: 0.9 | AJ12: 0.9 | AK12: 0.9 | AL12: 0.9 | AM12: =Y12*C12+($A$4-80)*AF12*$A$12/1000 -> 32.96941176 | AN12: =Z12*E12+($A$4-80)*AG12*$A$12/1000 -> 32.61176471 | AO12: =AA12*G12+($A$4-80)*AH12*$A$12/1000 -> 32.22588235 | AP12: =AB12*I12+($A$4-80)*AI12*$A$12/1000 -> 31.56705882 | AQ12: =AC12*K12+($A$4-80)*AJ12*$A$12/1000 -> 30.89411765 | AR12: =AD12*M12+($A$4-80)*AK12*$A$12/1000 -> 30.43764706 | AS12: =AE12*O12+($A$4-80)*AL12*$A$12/1000 -> 29.95294118
B13: 67 | C13: 50.35294118 | D13: 39.27529412 | E13: 49.17647059 | F13: 38.84941176 | G13: 48 | H13: 38.4 | I13: 46.58823529 | J13: 37.73647059 | K13: 45.17647059 | L13: 37.04470588 | M13: 43.76470588 | N13: 36.54352941 | O13: 42.35294118 | P13: 36 | R13: 1.049019608 | S13: 1.024509804 | T13: 1 | U13: 0.9705882353 | V13: 0.9411764706 | W13: 0.9117647059 | X13: 0.8823529412 | Y13: 0.78 | Z13: 0.79 | AA13: 0.8 | AB13: 0.81 | AC13: 0.82 | AD13: 0.835 | AE13: 0.85 | AF13: 0.9 | AG13: 0.9 | AH13: 0.9 | AI13: 0.9 | AJ13: 0.9 | AK13: 0.9 | AL13: 0.9 | AM13: =Y13*C13+($A$4-80)*AF13*$A$12/1000 -> 39.27529412 | AN13: =Z13*E13+($A$4-80)*AG13*$A$12/1000 -> 38.84941176 | AO13: =AA13*G13+($A$4-80)*AH13*$A$12/1000 -> 38.4 | AP13: =AB13*I13+($A$4-80)*AI13*$A$12/1000 -> 37.73647059 | AQ13: =AC13*K13+($A$4-80)*AJ13*$A$12/1000 -> 37.04470588 | AR13: =AD13*M13+($A$4-80)*AK13*$A$12/1000 -> 36.54352941 | AS13: =AE13*O13+($A$4-80)*AL13*$A$12/1000 -> 36
B14: 65 | C14: 49.17647059 | D14: 42.53764706 | E14: 48 | F14: 42.12 | G14: 46.82352941 | H14: 41.67294118 | I14: 45.52941176 | J14: 40.97647059 | K14: 44.23529412 | L14: 40.25411765 | M14: 42.94117647 | N14: 39.39852941 | O14: 41.64705882 | P14: 38.52352941 | R14: 1.024509804 | S14: 1 | T14: 0.9754901961 | U14: 0.9485294118 | V14: 0.9215686275 | W14: 0.8946078431 | X14: 0.8676470588 | Y14: 0.865 | Z14: 0.8775 | AA14: 0.89 | AB14: 0.9 | AC14: 0.91 | AD14: 0.9175 | AE14: 0.925 | AF14: 0.9 | AG14: 0.9 | AH14: 0.9 | AI14: 0.81146 | AJ14: 0.774614 | AK14: 0.7469795 | AL14: 0.719345 | AM14: 42.53764706 | AN14: =Z14*E14+($A$4-80)*AG14*$A$12/1000 -> 42.12 | AO14: =AA14*G14+($A$4-80)*AH14*$A$12/1000 -> 41.67294118 | AP14: 40.97647059 | AQ14: 40.25411765 | AR14: 39.39852941 | AS14: 38.52352941
B15: 63 | C15: 48 | D15: 45.6 | E15: 46.82352941 | F15: 45.18470588 | G15: 45.64705882 | H15: 44.73411765 | I15: 44.47058824 | J15: 44.02588235 | K15: 43.29411765 | L15: 43.29411765 | M15: 42.11764706 | N15: 42.11764706 | O15: 40.94117647 | P15: 40.94117647 | R15: 1 | S15: 0.9754901961 | T15: 0.9509803922 | U15: 0.9264705882 | V15: 0.9019607843 | W15: 0.8774509804 | X15: 0.8529411765 | Y15: 0.95 | Z15: 0.965 | AA15: 0.98 | AB15: 0.99 | AC15: 1 | AD15: 1 | AE15: 1 | AF15: 0.62723 | AG15: 0.571961 | AH15: 0.516692 | AI15: 0.479846 | AJ15: 0.443 | AK15: 0.443 | AL15: 0.443 | AM15: 45.6 | AN15: =Z15*E15+($A$4-80)*AG15*$A$12/1000 -> 45.18470588 | AO15: =AA15*G15+($A$4-80)*AH15*$A$12/1000 -> 44.73411765 | AP15: 44.02588235 | AQ15: 43.29411765 | AR15: 42.11764706 | AS15: 40.94117647
A16: 1800 | B16: 71 | C16: 54.11764706 | D16: 35.17647059 | E16: 52.94117647 | F16: 34.67647059 | G16: 51.76470588 | H16: 34.16470588 | I16: 50.11764706 | J16: 33.32823529 | K16: 48.47058824 | L16: 32.47529412 | M16: 47.05882353 | N16: 32.23529412 | O16: 45.64705882 | P16: 31.95294118 | R16: 1.12745098 | S16: 1.102941176 | T16: 1.078431373 | U16: 1.044117647 | V16: 1.009803922 | W16: 0.9803921569 | X16: 0.9509803922 | Y16: 0.65 | Z16: 0.655 | AA16: 0.66 | AB16: 0.665 | AC16: 0.67 | AD16: 0.685 | AE16: 0.7 | AF16: 0.9 | AG16: 0.9 | AH16: 0.9 | AI16: 0.9 | AJ16: 0.9 | AK16: 0.9 | AL16: 0.9 | AM16: =Y16*C16+($A$4-80)*AF16*$A$16/1000 -> 35.17647059 | AN16: =Z16*E16+($A$4-80)*AG16*$A$16/1000 -> 34.67647059 | AO16: =AA16*G16+($A$4-80)*AH16*$A$16/1000 -> 34.16470588 | AP16: =AB16*I16+($A$4-80)*AI16*$A$16/1000 -> 33.32823529 | AQ16: =AC16*K16+($A$4-80)*AJ16*$A$16/1000 -> 32.47529412 | AR16: =AD16*M16+($A$4-80)*AK16*$A$16/1000 -> 32.23529412 | AS16: =AE16*O16+($A$4-80)*AL16*$A$16/1000 -> 31.95294118
B17: 67 | C17: 51.76470588 | D17: 41.92941176 | E17: 50.35294118 | F17: 41.54117647 | G17: 48.94117647 | H17: 41.11058824 | I17: 47.52941176 | J17: 40.4 | K17: 46.11764706 | L17: 39.66117647 | M17: 44.70588235 | N17: 39.11764706 | O17: 43.29411765 | P17: 38.53176471 | R17: 1.078431373 | S17: 1.049019608 | T17: 1.019607843 | U17: 0.9901960784 | V17: 0.9607843137 | W17: 0.931372549 | X17: 0.9019607843 | Y17: 0.81 | Z17: 0.825 | AA17: 0.84 | AB17: 0.85 | AC17: 0.86 | AD17: 0.875 | AE17: 0.89 | AF17: 0.9 | AG17: 0.9 | AH17: 0.9 | AI17: 0.9 | AJ17: 0.9 | AK17: 0.9 | AL17: 0.9 | AM17: =Y17*C17+($A$4-80)*AF17*$A$16/1000 -> 41.92941176 | AN17: =Z17*E17+($A$4-80)*AG17*$A$16/1000 -> 41.54117647 | AO17: =AA17*G17+($A$4-80)*AH17*$A$16/1000 -> 41.11058824 | AP17: =AB17*I17+($A$4-80)*AI17*$A$16/1000 -> 40.4 | AQ17: =AC17*K17+($A$4-80)*AJ17*$A$16/1000 -> 39.66117647 | AR17: =AD17*M17+($A$4-80)*AK17*$A$16/1000 -> 39.11764706 | AS17: =AE17*O17+($A$4-80)*AL17*$A$16/1000 -> 38.53176471
B18: 65 | C18: 50.35294118 | D18: 45.31764706 | E18: 49.05882353 | F18: 44.64352941 | G18: 47.76470588 | H18: 43.94352941 | I18: 46.47058824 | J18: 42.98529412 | K18: 45.17647059 | L18: 42.01411765 | M18: 43.88235294 | N18: 41.13970588 | O18: 42.58823529 | P18: 40.24588235 | R18: 1.049019608 | S18: 1.022058824 | T18: 0.9950980392 | U18: 0.9681372549 | V18: 0.9411764706 | W18: 0.9142156863 | X18: 0.887254902 | Y18: 0.9 | Z18: 0.91 | AA18: 0.92 | AB18: 0.925 | AC18: 0.93 | AD18: 0.9375 | AE18: 0.945 | AF18: 0.81146 | AG18: 0.774614 | AH18: 0.737768 | AI18: 0.719345 | AJ18: 0.700922 | AK18: 0.6732875 | AL18: 0.645653 | AM18: 45.31764706 | AN18: =Z18*E18+($A$4-80)*AG18*$A$16/1000 -> 44.64352941 | AO18: =AA18*G18+($A$4-80)*AH18*$A$16/1000 -> 43.94352941 | AP18: 42.98529412 | AQ18: 42.01411765 | AR18: 41.13970588 | AS18: 40.24588235
B19: 63 | C19: 48.94117647 | D19: 48.45176471 | E19: 47.76470588 | F19: 47.52588235 | G19: 46.58823529 | H19: 46.58823529 | I19: 45.41176471 | J19: 45.41176471 | K19: 44.23529412 | L19: 44.23529412 | M19: 43.05882353 | N19: 43.05882353 | O19: 41.88235294 | P19: 41.88235294 | R19: 1.019607843 | S19: 0.9950980392 | T19: 0.9705882353 | U19: 0.9460784314 | V19: 0.9215686275 | W19: 0.8970588235 | X19: 0.8725490196 | Y19: 0.99 | Z19: 0.995 | AA19: 1 | AB19: 1 | AC19: 1 | AD19: 1 | AE19: 1 | AF19: 0.479846 | AG19: 0.461423 | AH19: 0.443 | AI19: 0.443 | AJ19: 0.443 | AK19: 0.443 | AL19: 0.443 | AM19: 48.45176471 | AN19: =Z19*E19+($A$4-80)*AG19*$A$16/1000 -> 47.52588235 | AO19: =AA19*G19+($A$4-80)*AH19*$A$16/1000 -> 46.58823529 | AP19: 45.41176471 | AQ19: 44.23529412 | AR19: 43.05882353 | AS19: 41.88235294

Sheet 14ACX_59 (hidden)
A2: 14ACX_59 | B2: 60
A3: Evaporator Air | C3: Condenser Entering Air Temperature ˚F
A4: 80 | B4: °F DB | C4: 85 | E4: 90 | G4: 95 | I4: 100 | K4: 105 | M4: 110 | O4: 115
A5: CFM | B5: EWB† ˚F | C5: Capacity Mbtuh | E5: Capacity Mbtuh | G5: Capacity Mbtuh | I5: Capacity Mbtuh | K5: Capacity Mbtuh | M5: Capacity Mbtuh | O5: Capacity Mbtuh
C6: Total | D6: Sens. | E6: Total | F6: Sens. | G6: Total | H6: Sens. | I6: Total | J6: Sens. | K6: Total | L6: Sens. | M6: Total | N6: Sens. | O6: Total | P6: Sens.
R7: Total Factors | Y7: Sens. % | AF7: IDB Adj | AM7: Sens Calc
A8: 1600 | B8: 71 | C8: =R8*$B$2 -> 64.5 | D8: =IF(AM8>C8,C8,AM8) -> 38.055 | E8: =S8*$B$2 -> 63 | F8: =IF(AN8>E8,E8,AN8) -> 37.485 | G8: =T8*$B$2 -> 61.5 | H8: =IF(AO8>G8,G8,AO8) -> 36.9 | I8: =U8*$B$2 -> 60 | J8: =IF(AP8>I8,I8,AP8) -> 36.3 | K8: =V8*$B$2 -> 58.5 | L8: =IF(AQ8>K8,K8,AQ8) -> 35.685 | M8: =W8*$B$2 -> 56.75 | N8: =IF(AR8>M8,M8,AR8) -> 34.90125 | O8: =X8*$B$2 -> 55 | P8: =IF(AS8>O8,O8,AS8) -> 34.1 | R8: 1.075 | S8: 1.05 | T8: 1.025 | U8: 1 | V8: 0.975 | W8: 0.9458333333 | X8: 0.9166666667 | Y8: 0.59 | Z8: 0.595 | AA8: 0.6 | AB8: 0.605 | AC8: 0.61 | AD8: 0.615 | AE8: 0.62 | AF8: =IF(Y8<0.9,0.9,Y8*-3.6846+4.1276) -> 0.9 | AG8: =IF(Z8<0.9,0.9,Z8*-3.6846+4.1276) -> 0.9 | AH8: 0.9 | AI8: 0.9 | AJ8: 0.9 | AK8: 0.9 | AL8: 0.9 | AM8: =Y8*C8+($A$4-80)*AF8*$A$8/1000 -> 38.055 | AN8: =Z8*E8+($A$4-80)*AG8*$A$8/1000 -> 37.485 | AO8: =AA8*G8+($A$4-80)*AH8*$A$8/1000 -> 36.9 | AP8: =AB8*I8+($A$4-80)*AI8*$A$8/1000 -> 36.3 | AQ8: =AC8*K8+($A$4-80)*AJ8*$A$8/1000 -> 35.685 | AR8: =AD8*M8+($A$4-80)*AK8*$A$8/1000 -> 34.90125 | AS8: =AE8*O8+($A$4-80)*AL8*$A$8/1000 -> 34.1
B9: 67 | C9: 61.5 | D9: 44.895 | E9: 60 | F9: =IF(AN9>E9,E9,AN9) -> 44.4 | G9: 58.5 | H9: =IF(AO9>G9,G9,AO9) -> 43.875 | I9: 57 | J9: =IF(AP9>I9,I9,AP9) -> 43.32 | K9: 55.5 | L9: =IF(AQ9>K9,K9,AQ9) -> 42.735 | M9: 54 | N9: =IF(AR9>M9,M9,AR9) -> 42.12 | O9: 52.5 | P9: =IF(AS9>O9,O9,AS9) -> 41.475 | R9: 1.025 | S9: 1 | T9: 0.975 | U9: 0.95 | V9: 0.925 | W9: 0.9 | X9: 0.875 | Y9: 0.73 | Z9: 0.74 | AA9: 0.75 | AB9: 0.76 | AC9: 0.77 | AD9: 0.78 | AE9: 0.79 | AF9: =IF(Y9<0.9,0.9,Y9*-3.6846+4.1276) -> 0.9 | AG9: 0.9 | AH9: 0.9 | AI9: 0.9 | AJ9: 0.9 | AK9: 0.9 | AL9: 0.9 | AM9: =Y9*C9+($A$4-80)*AF9*$A$8/1000 -> 44.895 | AN9: =Z9*E9+($A$4-80)*AG9*$A$8/1000 -> 44.4 | AO9: =AA9*G9+($A$4-80)*AH9*$A$8/1000 -> 43.875 | AP9: =AB9*I9+($A$4-80)*AI9*$A$8/1000 -> 43.32 | AQ9: =AC9*K9+($A$4-80)*AJ9*$A$8/1000 -> 42.735 | AR9: =AD9*M9+($A$4-80)*AK9*$A$8/1000 -> 42.12 | AS9: =AE9*O9+($A$4-80)*AL9*$A$8/1000 -> 41.475
B10: 65 | C10: 59.75 | D10: 48.3975 | E10: 58.375 | F10: 47.8675 | G10: 57 | H10: 47.31 | I10: 55.5 | J10: 46.75875 | K10: 54 | L10: 46.17 | M10: 52.5 | N10: 45.54375 | O10: 51 | P10: 44.88 | R10: 0.9958333333 | S10: 0.9729166667 | T10: 0.95 | U10: 0.925 | V10: 0.9 | W10: 0.875 | X10: 0.85 | Y10: 0.81 | Z10: 0.82 | AA10: 0.83 | AB10: 0.8425 | AC10: 0.855 | AD10: 0.8675 | AE10: 0.88 | AF10: 0.9 | AG10: 0.9 | AH10: 0.9 | AI10: 0.9 | AJ10: 0.9 | AK10: 0.9 | AL10: 0.9 | AM10: 48.3975 | AN10: =Z10*E10+($A$4-80)*AG10*$A$8/1000 -> 47.8675 | AO10: =AA10*G10+($A$4-80)*AH10*$A$8/1000 -> 47.31 | AP10: 46.75875 | AQ10: 46.17 | AR10: 45.54375 | AS10: 44.88
B11: 63 | C11: 58 | D11: 51.62 | E11: 56.75 | F11: 51.075 | G11: 55.5 | H11: 50.505 | I11: 54 | J11: 49.95 | K11: 52.5 | L11: 49.35 | M11: 51 | N11: 48.705 | O11: 49.5 | P11: 48.015 | R11: 0.9666666667 | S11: 0.9458333333 | T11: 0.925 | U11: 0.9 | V11: 0.875 | W11: 0.85 | X11: 0.825 | Y11: 0.89 | Z11: 0.9 | AA11: 0.91 | AB11: 0.925 | AC11: 0.94 | AD11: 0.955 | AE11: 0.97 | AF11: 0.9 | AG11: 0.81146 | AH11: 0.774614 | AI11: 0.719345 | AJ11: 0.664076 | AK11: 0.608807 | AL11: 0.553538 | AM11: 51.62 | AN11: =Z11*E11+($A$4-80)*AG11*$A$8/1000 -> 51.075 | AO11: =AA11*G11+($A$4-80)*AH11*$A$8/1000 -> 50.505 | AP11: =AB11*I11+($A$4-80)*AI11*$A$8/1000 -> 49.95 | AQ11: 49.35 | AR11: 48.705 | AS11: 48.015
A12: 1800 | B12: 71 | C12: 66 | D12: 39.6 | E12: 64.75 | F12: 39.4975 | G12: 63.5 | H12: 39.37 | I12: 61.75 | J12: 38.59375 | K12: 60 | L12: 37.8 | M12: 58.25 | N12: 37.28 | O12: 56.5 | P12: 36.725 | R12: 1.1 | S12: 1.079166667 | T12: 1.058333333 | U12: 1.029166667 | V12: 1 | W12: 0.9708333333 | X12: 0.9416666667 | Y12: 0.6 | Z12: 0.61 | AA12: 0.62 | AB12: 0.625 | AC12: 0.63 | AD12: 0.64 | AE12: 0.65 | AF12: 0.9 | AG12: 0.9 | AH12: 0.9 | AI12: 0.9 | AJ12: 0.9 | AK12: 0.9 | AL12: 0.9 | AM12: =Y12*C12+($A$4-80)*AF12*$A$12/1000 -> 39.6 | AN12: =Z12*E12+($A$4-80)*AG12*$A$12/1000 -> 39.4975 | AO12: =AA12*G12+($A$4-80)*AH12*$A$12/1000 -> 39.37 | AP12: =AB12*I12+($A$4-80)*AI12*$A$12/1000 -> 38.59375 | AQ12: =AC12*K12+($A$4-80)*AJ12*$A$12/1000 -> 37.8 | AR12: =AD12*M12+($A$4-80)*AK12*$A$12/1000 -> 37.28 | AS12: =AE12*O12+($A$4-80)*AL12*$A$12/1000 -> 36.725
B13: 67 | C13: 63 | D13: 47.88 | E13: 61.5 | F13: 47.355 | G13: 60 | H13: 46.8 | I13: 58.5 | J13: 46.215 | K13: 57 | L13: 45.6 | M13: 55.25 | N13: 44.7525 | O13: 53.5 | P13: 43.87 | R13: 1.05 | S13: 1.025 | T13: 1 | U13: 0.975 | V13: 0.95 | W13: 0.9208333333 | X13: 0.8916666667 | Y13: 0.76 | Z13: 0.77 | AA13: 0.78 | AB13: 0.79 | AC13: 0.8 | AD13: 0.81 | AE13: 0.82 | AF13: 0.9 | AG13: 0.9 | AH13: 0.9 | AI13: 0.9 | AJ13: 0.9 | AK13: 0.9 | AL13: 0.9 | AM13: =Y13*C13+($A$4-80)*AF13*$A$12/1000 -> 47.88 | AN13: =Z13*E13+($A$4-80)*AG13*$A$12/1000 -> 47.355 | AO13: =AA13*G13+($A$4-80)*AH13*$A$12/1000 -> 46.8 | AP13: =AB13*I13+($A$4-80)*AI13*$A$12/1000 -> 46.215 | AQ13: =AC13*K13+($A$4-80)*AJ13*$A$12/1000 -> 45.6 | AR13: =AD13*M13+($A$4-80)*AK13*$A$12/1000 -> 44.7525 | AS13: =AE13*O13+($A$4-80)*AL13*$A$12/1000 -> 43.87
B14: 65 | C14: 61.25 | D14: 51.75625 | E14: 59.875 | F14: 51.193125 | G14: 58.5 | H14: 50.6025 | I14: 57 | J14: 50.0175 | K14: 55.5 | L14: 49.395 | M14: 53.75 | N14: 48.375 | O14: 52 | P14: 47.32 | R14: 1.020833333 | S14: 0.9979166667 | T14: 0.975 | U14: 0.95 | V14: 0.925 | W14: 0.8958333333 | X14: 0.8666666667 | Y14: 0.845 | Z14: 0.855 | AA14: 0.865 | AB14: 0.8775 | AC14: 0.89 | AD14: 0.9 | AE14: 0.91 | AF14: 0.9 | AG14: 0.9 | AH14: 0.9 | AI14: 0.9 | AJ14: 0.9 | AK14: 0.81146 | AL14: 0.774614 | AM14: 51.75625 | AN14: =Z14*E14+($A$4-80)*AG14*$A$12/1000 -> 51.193125 | AO14: =AA14*G14+($A$4-80)*AH14*$A$12/1000 -> 50.6025 | AP14: 50.0175 | AQ14: 49.395 | AR14: 48.375 | AS14: 47.32
B15: 63 | C15: 59.5 | D15: 55.335 | E15: 58.25 | F15: 54.755 | G15: 57 | H15: 54.15 | I15: 55.5 | J15: 53.5575 | K15: 54 | L15: 52.92 | M15: 52.25 | N15: 51.7275 | O15: 50.5 | P15: 50.5 | R15: 0.9916666667 | S15: 0.9708333333 | T15: 0.95 | U15: 0.925 | V15: 0.9 | W15: 0.8708333333 | X15: 0.8416666667 | Y15: 0.93 | Z15: 0.94 | AA15: 0.95 | AB15: 0.965 | AC15: 0.98 | AD15: 0.99 | AE15: 1 | AF15: 0.700922 | AG15: 0.664076 | AH15: 0.62723 | AI15: 0.571961 | AJ15: 0.516692 | AK15: 0.479846 | AL15: 0.443 | AM15: 55.335 | AN15: =Z15*E15+($A$4-80)*AG15*$A$12/1000 -> 54.755 | AO15: =AA15*G15+($A$4-80)*AH15*$A$12/1000 -> 54.15 | AP15: 53.5575 | AQ15: 52.92 | AR15: 51.7275 | AS15: 50.5
A16: 2000 | B16: 71 | C16: 67.5 | D16: 42.525 | E16: 66 | F16: 41.91 | G16: 64.5 | H16: 41.28 | I16: 62.75 | J16: 40.47375 | K16: 61 | L16: 39.65 | M16: 59.25 | N16: 39.105 | O16: 57.5 | P16: 38.525 | R16: 1.125 | S16: 1.1 | T16: 1.075 | U16: 1.045833333 | V16: 1.016666667 | W16: 0.9875 | X16: 0.9583333333 | Y16: 0.63 | Z16: 0.635 | AA16: 0.64 | AB16: 0.645 | AC16: 0.65 | AD16: 0.66 | AE16: 0.67 | AF16: 0.9 | AG16: 0.9 | AH16: 0.9 | AI16: 0.9 | AJ16: 0.9 | AK16: 0.9 | AL16: 0.9 | AM16: =Y16*C16+($A$4-80)*AF16*$A$16/1000 -> 42.525 | AN16: =Z16*E16+($A$4-80)*AG16*$A$16/1000 -> 41.91 | AO16: =AA16*G16+($A$4-80)*AH16*$A$16/1000 -> 41.28 | AP16: =AB16*I16+($A$4-80)*AI16*$A$16/1000 -> 40.47375 | AQ16: =AC16*K16+($A$4-80)*AJ16*$A$16/1000 -> 39.65 | AR16: =AD16*M16+($A$4-80)*AK16*$A$16/1000 -> 39.105 | AS16: =AE16*O16+($A$4-80)*AL16*$A$16/1000 -> 38.525
B17: 67 | C17: 64.5 | D17: 50.955 | E17: 62.75 | F17: 50.2 | G17: 61 | H17: 49.41 | I17: 59.5 | J17: 48.79 | K17: 58 | L17: 48.14 | M17: 56.25 | N17: 47.53125 | O17: 54.5 | P17: 46.87 | R17: 1.075 | S17: 1.045833333 | T17: 1.016666667 | U17: 0.9916666667 | V17: 0.9666666667 | W17: 0.9375 | X17: 0.9083333333 | Y17: 0.79 | Z17: 0.8 | AA17: 0.81 | AB17: 0.82 | AC17: 0.83 | AD17: 0.845 | AE17: 0.86 | AF17: 0.9 | AG17: 0.9 | AH17: 0.9 | AI17: 0.9 | AJ17: 0.9 | AK17: 0.9 | AL17: 0.9 | AM17: =Y17*C17+($A$4-80)*AF17*$A$16/1000 -> 50.955 | AN17: =Z17*E17+($A$4-80)*AG17*$A$16/1000 -> 50.2 | AO17: =AA17*G17+($A$4-80)*AH17*$A$16/1000 -> 49.41 | AP17: =AB17*I17+($A$4-80)*AI17*$A$16/1000 -> 48.79 | AQ17: =AC17*K17+($A$4-80)*AJ17*$A$16/1000 -> 48.14 | AR17: =AD17*M17+($A$4-80)*AK17*$A$16/1000 -> 47.53125 | AS17: =AE17*O17+($A$4-80)*AL17*$A$16/1000 -> 46.87
B18: 65 | C18: 62.75 | D18: 55.22 | E18: 61.125 | F18: 54.40125 | G18: 59.5 | H18: 53.55 | I18: 58 | J18: 52.635 | K18: 56.5 | L18: 51.6975 | M18: 54.875 | N18: 50.6221875 | O18: 53.25 | P18: 49.5225 | R18: 1.045833333 | S18: 1.01875 | T18: 0.9916666667 | U18: 0.9666666667 | V18: 0.9416666667 | W18: 0.9145833333 | X18: 0.8875 | Y18: 0.88 | Z18: 0.89 | AA18: 0.9 | AB18: 0.9075 | AC18: 0.915 | AD18: 0.9225 | AE18: 0.93 | AF18: 0.9 | AG18: 0.9 | AH18: 0.81146 | AI18: 0.7838255 | AJ18: 0.756191 | AK18: 0.7285565 | AL18: 0.700922 | AM18: 55.22 | AN18: =Z18*E18+($A$4-80)*AG18*$A$16/1000 -> 54.40125 | AO18: =AA18*G18+($A$4-80)*AH18*$A$16/1000 -> 53.55 | AP18: 52.635 | AQ18: 51.6975 | AR18: 50.6221875 | AS18: 49.5225
B19: 63 | C19: 61 | D19: 59.17 | E19: 59.5 | F19: 58.31 | G19: 58 | H19: 57.42 | I19: 56.5 | J19: 56.2175 | K19: 55 | L19: 55 | M19: 53.5 | N19: 53.5 | O19: 52 | P19: 52 | R19: 1.016666667 | S19: 0.9916666667 | T19: 0.9666666667 | U19: 0.9416666667 | V19: 0.9166666667 | W19: 0.8916666667 | X19: 0.8666666667 | Y19: 0.97 | Z19: 0.98 | AA19: 0.99 | AB19: 0.995 | AC19: 1 | AD19: 1 | AE19: 1 | AF19: 0.553538 | AG19: 0.516692 | AH19: 0.479846 | AI19: 0.461423 | AJ19: 0.443 | AK19: 0.443 | AL19: 0.443 | AM19: 59.17 | AN19: =Z19*E19+($A$4-80)*AG19*$A$16/1000 -> 58.31 | AO19: =AA19*G19+($A$4-80)*AH19*$A$16/1000 -> 57.42 | AP19: 56.2175 | AQ19: 55 | AR19: 53.5 | AS19: 52

Sheet 14ACX_60 (hidden)
A2: 14ACX_60 | B2: 60
A3: Evaporator Air | C3: Condenser Entering Air Temperature ˚F
A4: 80 | B4: °F DB | C4: 85 | E4: 90 | G4: 95 | I4: 100 | K4: 105 | M4: 110 | O4: 115
A5: CFM | B5: EWB† ˚F | C5: Capacity Mbtuh | E5: Capacity Mbtuh | G5: Capacity Mbtuh | I5: Capacity Mbtuh | K5: Capacity Mbtuh | M5: Capacity Mbtuh | O5: Capacity Mbtuh
C6: Total | D6: Sens. | E6: Total | F6: Sens. | G6: Total | H6: Sens. | I6: Total | J6: Sens. | K6: Total | L6: Sens. | M6: Total | N6: Sens. | O6: Total | P6: Sens.
R7: Total Factors | Y7: Sens. % | AF7: IDB Adj | AM7: Sens Calc
A8: 1600 | B8: 71 | C8: =R8*$B$2 -> 65 | D8: =IF(AM8>C8,C8,AM8) -> 38.35 | E8: =S8*$B$2 -> 63.5 | F8: =IF(AN8>E8,E8,AN8) -> 37.7825 | G8: =T8*$B$2 -> 62 | H8: =IF(AO8>G8,G8,AO8) -> 37.2 | I8: =U8*$B$2 -> 60.25 | J8: =IF(AP8>I8,I8,AP8) -> 36.45125 | K8: =V8*$B$2 -> 58.5 | L8: =IF(AQ8>K8,K8,AQ8) -> 35.685 | M8: =W8*$B$2 -> 56.75 | N8: =IF(AR8>M8,M8,AR8) -> 35.185 | O8: =X8*$B$2 -> 55 | P8: =IF(AS8>O8,O8,AS8) -> 34.65 | R8: 1.083333333 | S8: 1.058333333 | T8: 1.033333333 | U8: 1.004166667 | V8: 0.975 | W8: 0.9458333333 | X8: 0.9166666667 | Y8: 0.59 | Z8: 0.595 | AA8: 0.6 | AB8: 0.605 | AC8: 0.61 | AD8: 0.62 | AE8: 0.63 | AF8: =IF(Y8<0.9,0.9,Y8*-3.6846+4.1276) -> 0.9 | AG8: =IF(Z8<0.9,0.9,Z8*-3.6846+4.1276) -> 0.9 | AH8: 0.9 | AI8: 0.9 | AJ8: 0.9 | AK8: 0.9 | AL8: 0.9 | AM8: =Y8*C8+($A$4-80)*AF8*$A$8/1000 -> 38.35 | AN8: =Z8*E8+($A$4-80)*AG8*$A$8/1000 -> 37.7825 | AO8: =AA8*G8+($A$4-80)*AH8*$A$8/1000 -> 37.2 | AP8: =AB8*I8+($A$4-80)*AI8*$A$8/1000 -> 36.45125 | AQ8: =AC8*K8+($A$4-80)*AJ8*$A$8/1000 -> 35.685 | AR8: =AD8*M8+($A$4-80)*AK8*$A$8/1000 -> 35.185 | AS8: =AE8*O8+($A$4-80)*AL8*$A$8/1000 -> 34.65
B9: 67 | C9: 61.5 | D9: 45.51 | E9: 60.25 | F9: =IF(AN9>E9,E9,AN9) -> 44.88625 | G9: 59 | H9: =IF(AO9>G9,G9,AO9) -> 44.25 | I9: 57.25 | J9: =IF(AP9>I9,I9,AP9) -> 43.51 | K9: 55.5 | L9: =IF(AQ9>K9,K9,AQ9) -> 42.735 | M9: 54 | N9: =IF(AR9>M9,M9,AR9) -> 42.12 | O9: 52.5 | P9: =IF(AS9>O9,O9,AS9) -> 41.475 | R9: 1.025 | S9: 1.004166667 | T9: 0.9833333333 | U9: 0.9541666667 | V9: 0.925 | W9: 0.9 | X9: 0.875 | Y9: 0.74 | Z9: 0.745 | AA9: 0.75 | AB9: 0.76 | AC9: 0.77 | AD9: 0.78 | AE9: 0.79 | AF9: =IF(Y9<0.9,0.9,Y9*-3.6846+4.1276) -> 0.9 | AG9: 0.9 | AH9: 0.9 | AI9: 0.9 | AJ9: 0.9 | AK9: 0.9 | AL9: 0.9 | AM9: =Y9*C9+($A$4-80)*AF9*$A$8/1000 -> 45.51 | AN9: =Z9*E9+($A$4-80)*AG9*$A$8/1000 -> 44.88625 | AO9: =AA9*G9+($A$4-80)*AH9*$A$8/1000 -> 44.25 | AP9: =AB9*I9+($A$4-80)*AI9*$A$8/1000 -> 43.51 | AQ9: =AC9*K9+($A$4-80)*AJ9*$A$8/1000 -> 42.735 | AR9: =AD9*M9+($A$4-80)*AK9*$A$8/1000 -> 42.12 | AS9: =AE9*O9+($A$4-80)*AL9*$A$8/1000 -> 41.475
B10: 65 | C10: 60 | D10: 49.2 | E10: 58.625 | F10: 48.5121875 | G10: 57.25 | H10: 47.80375 | I10: 55.625 | J10: 47.003125 | K10: 54 | L10: 46.17 | M10: 52.5 | N10: 45.54375 | O10: 51 | P10: 44.88 | R10: 1 | S10: 0.9770833333 | T10: 0.9541666667 | U10: 0.9270833333 | V10: 0.9 | W10: 0.875 | X10: 0.85 | Y10: 0.82 | Z10: 0.8275 | AA10: 0.835 | AB10: 0.845 | AC10: 0.855 | AD10: 0.8675 | AE10: 0.88 | AF10: 0.9 | AG10: 0.9 | AH10: 0.9 | AI10: 0.9 | AJ10: 0.9 | AK10: 0.9 | AL10: 0.9 | AM10: 49.2 | AN10: =Z10*E10+($A$4-80)*AG10*$A$8/1000 -> 48.5121875 | AO10: =AA10*G10+($A$4-80)*AH10*$A$8/1000 -> 47.80375 | AP10: 47.003125 | AQ10: 46.17 | AR10: 45.54375 | AS10: 44.88
B11: 63 | C11: 58.5 | D11: 52.65 | E11: 57 | F11: 51.87 | G11: 55.5 | H11: 51.06 | I11: 54 | J11: 50.22 | K11: 52.5 | L11: 49.35 | M11: 51 | N11: 48.705 | O11: 49.5 | P11: 48.015 | R11: 0.975 | S11: 0.95 | T11: 0.925 | U11: 0.9 | V11: 0.875 | W11: 0.85 | X11: 0.825 | Y11: 0.9 | Z11: 0.91 | AA11: 0.92 | AB11: 0.93 | AC11: 0.94 | AD11: 0.955 | AE11: 0.97 | AF11: 0.81146 | AG11: 0.774614 | AH11: 0.737768 | AI11: 0.700922 | AJ11: 0.664076 | AK11: 0.608807 | AL11: 0.553538 | AM11: 52.65 | AN11: =Z11*E11+($A$4-80)*AG11*$A$8/1000 -> 51.87 | AO11: =AA11*G11+($A$4-80)*AH11*$A$8/1000 -> 51.06 | AP11: =AB11*I11+($A$4-80)*AI11*$A$8/1000 -> 50.22 | AQ11: 49.35 | AR11: 48.705 | AS11: 48.015
A12: 1800 | B12: 71 | C12: 66 | D12: 40.26 | E12: 64.75 | F12: 39.82125 | G12: 63.5 | H12: 39.37 | I12: 61.5 | J12: 38.745 | K12: 59.5 | L12: 38.08 | M12: 57.75 | N12: 37.24875 | O12: 56 | P12: 36.4 | R12: 1.1 | S12: 1.079166667 | T12: 1.058333333 | U12: 1.025 | V12: 0.9916666667 | W12: 0.9625 | X12: 0.9333333333 | Y12: 0.61 | Z12: 0.615 | AA12: 0.62 | AB12: 0.63 | AC12: 0.64 | AD12: 0.645 | AE12: 0.65 | AF12: 0.9 | AG12: 0.9 | AH12: 0.9 | AI12: 0.9 | AJ12: 0.9 | AK12: 0.9 | AL12: 0.9 | AM12: =Y12*C12+($A$4-80)*AF12*$A$12/1000 -> 40.26 | AN12: =Z12*E12+($A$4-80)*AG12*$A$12/1000 -> 39.82125 | AO12: =AA12*G12+($A$4-80)*AH12*$A$12/1000 -> 39.37 | AP12: =AB12*I12+($A$4-80)*AI12*$A$12/1000 -> 38.745 | AQ12: =AC12*K12+($A$4-80)*AJ12*$A$12/1000 -> 38.08 | AR12: =AD12*M12+($A$4-80)*AK12*$A$12/1000 -> 37.24875 | AS12: =AE12*O12+($A$4-80)*AL12*$A$12/1000 -> 36.4
B13: 67 | C13: 63 | D13: 47.88 | E13: 61.5 | F13: 47.355 | G13: 60 | H13: 46.8 | I13: 58.5 | J13: 46.215 | K13: 57 | L13: 45.6 | M13: 55.25 | N13: 45.02875 | O13: 53.5 | P13: 44.405 | R13: 1.05 | S13: 1.025 | T13: 1 | U13: 0.975 | V13: 0.95 | W13: 0.9208333333 | X13: 0.8916666667 | Y13: 0.76 | Z13: 0.77 | AA13: 0.78 | AB13: 0.79 | AC13: 0.8 | AD13: 0.815 | AE13: 0.83 | AF13: 0.9 | AG13: 0.9 | AH13: 0.9 | AI13: 0.9 | AJ13: 0.9 | AK13: 0.9 | AL13: 0.9 | AM13: =Y13*C13+($A$4-80)*AF13*$A$12/1000 -> 47.88 | AN13: =Z13*E13+($A$4-80)*AG13*$A$12/1000 -> 47.355 | AO13: =AA13*G13+($A$4-80)*AH13*$A$12/1000 -> 46.8 | AP13: =AB13*I13+($A$4-80)*AI13*$A$12/1000 -> 46.215 | AQ13: =AC13*K13+($A$4-80)*AJ13*$A$12/1000 -> 45.6 | AR13: =AD13*M13+($A$4-80)*AK13*$A$12/1000 -> 45.02875 | AS13: =AE13*O13+($A$4-80)*AL13*$A$12/1000 -> 44.405
B14: 65 | C14: 61.5 | D14: 51.9675 | E14: 60 | F14: 51.45 | G14: 58.5 | H14: 50.895 | I14: 57 | J14: 50.16 | K14: 55.5 | L14: 49.395 | M14: 53.75 | N14: 48.509375 | O14: 52 | P14: 47.58 | R14: 1.025 | S14: 1 | T14: 0.975 | U14: 0.95 | V14: 0.925 | W14: 0.8958333333 | X14: 0.8666666667 | Y14: 0.845 | Z14: 0.8575 | AA14: 0.87 | AB14: 0.88 | AC14: 0.89 | AD14: 0.9025 | AE14: 0.915 | AF14: 0.9 | AG14: 0.9 | AH14: 0.9 | AI14: 0.9 | AJ14: 0.9 | AK14: 0.8022485 | AL14: 0.756191 | AM14: 51.9675 | AN14: =Z14*E14+($A$4-80)*AG14*$A$12/1000 -> 51.45 | AO14: =AA14*G14+($A$4-80)*AH14*$A$12/1000 -> 50.895 | AP14: 50.16 | AQ14: 49.395 | AR14: 48.509375 | AS14: 47.58
B15: 63 | C15: 60 | D15: 55.8 | E15: 58.5 | F15: 55.2825 | G15: 57 | H15: 54.72 | I15: 55.5 | J15: 53.835 | K15: 54 | L15: 52.92 | M15: 52.25 | N15: 51.7275 | O15: 50.5 | P15: 50.5 | R15: 1 | S15: 0.975 | T15: 0.95 | U15: 0.925 | V15: 0.9 | W15: 0.8708333333 | X15: 0.8416666667 | Y15: 0.93 | Z15: 0.945 | AA15: 0.96 | AB15: 0.97 | AC15: 0.98 | AD15: 0.99 | AE15: 1 | AF15: 0.700922 | AG15: 0.645653 | AH15: 0.590384 | AI15: 0.553538 | AJ15: 0.516692 | AK15: 0.479846 | AL15: 0.443 | AM15: 55.8 | AN15: =Z15*E15+($A$4-80)*AG15*$A$12/1000 -> 55.2825 | AO15: =AA15*G15+($A$4-80)*AH15*$A$12/1000 -> 54.72 | AP15: 53.835 | AQ15: 52.92 | AR15: 51.7275 | AS15: 50.5
A16: 2000 | B16: 71 | C16: 68 | D16: 42.84 | E16: 66.25 | F16: 42.06875 | G16: 64.5 | H16: 41.28 | I16: 62.75 | J16: 40.7875 | K16: 61 | L16: 40.26 | M16: 59 | N16: 39.53 | O16: 57 | P16: 38.76 | R16: 1.133333333 | S16: 1.104166667 | T16: 1.075 | U16: 1.045833333 | V16: 1.016666667 | W16: 0.9833333333 | X16: 0.95 | Y16: 0.63 | Z16: 0.635 | AA16: 0.64 | AB16: 0.65 | AC16: 0.66 | AD16: 0.67 | AE16: 0.68 | AF16: 0.9 | AG16: 0.9 | AH16: 0.9 | AI16: 0.9 | AJ16: 0.9 | AK16: 0.9 | AL16: 0.9 | AM16: =Y16*C16+($A$4-80)*AF16*$A$16/1000 -> 42.84 | AN16: =Z16*E16+($A$4-80)*AG16*$A$16/1000 -> 42.06875 | AO16: =AA16*G16+($A$4-80)*AH16*$A$16/1000 -> 41.28 | AP16: =AB16*I16+($A$4-80)*AI16*$A$16/1000 -> 40.7875 | AQ16: =AC16*K16+($A$4-80)*AJ16*$A$16/1000 -> 40.26 | AR16: =AD16*M16+($A$4-80)*AK16*$A$16/1000 -> 39.53 | AS16: =AE16*O16+($A$4-80)*AL16*$A$16/1000 -> 38.76
B17: 67 | C17: 64.5 | D17: 50.955 | E17: 62.75 | F17: 50.2 | G17: 61 | H17: 49.41 | I17: 59.5 | J17: 49.0875 | K17: 58 | L17: 48.72 | M17: 56 | N17: 47.6 | O17: 54 | P17: 46.44 | R17: 1.075 | S17: 1.045833333 | T17: 1.016666667 | U17: 0.9916666667 | V17: 0.9666666667 | W17: 0.9333333333 | X17: 0.9 | Y17: 0.79 | Z17: 0.8 | AA17: 0.81 | AB17: 0.825 | AC17: 0.84 | AD17: 0.85 | AE17: 0.86 | AF17: 0.9 | AG17: 0.9 | AH17: 0.9 | AI17: 0.9 | AJ17: 0.9 | AK17: 0.9 | AL17: 0.9 | AM17: =Y17*C17+($A$4-80)*AF17*$A$16/1000 -> 50.955 | AN17: =Z17*E17+($A$4-80)*AG17*$A$16/1000 -> 50.2 | AO17: =AA17*G17+($A$4-80)*AH17*$A$16/1000 -> 49.41 | AP17: =AB17*I17+($A$4-80)*AI17*$A$16/1000 -> 49.0875 | AQ17: =AC17*K17+($A$4-80)*AJ17*$A$16/1000 -> 48.72 | AR17: =AD17*M17+($A$4-80)*AK17*$A$16/1000 -> 47.6 | AS17: =AE17*O17+($A$4-80)*AL17*$A$16/1000 -> 46.44
B18: 65 | C18: 62.75 | D18: 55.22 | E18: 61.125 | F18: 54.40125 | G18: 59.5 | H18: 53.55 | I18: 58 | J18: 52.78 | K18: 56.5 | L18: 51.98 | M18: 54.75 | N18: 50.64375 | O18: 53 | P18: 49.29 | R18: 1.045833333 | S18: 1.01875 | T18: 0.9916666667 | U18: 0.9666666667 | V18: 0.9416666667 | W18: 0.9125 | X18: 0.8833333333 | Y18: 0.88 | Z18: 0.89 | AA18: 0.9 | AB18: 0.91 | AC18: 0.92 | AD18: 0.925 | AE18: 0.93 | AF18: 0.9 | AG18: 0.9 | AH18: 0.81146 | AI18: 0.774614 | AJ18: 0.737768 | AK18: 0.719345 | AL18: 0.700922 | AM18: 55.22 | AN18: =Z18*E18+($A$4-80)*AG18*$A$16/1000 -> 54.40125 | AO18: =AA18*G18+($A$4-80)*AH18*$A$16/1000 -> 53.55 | AP18: 52.78 | AQ18: 51.98 | AR18: 50.64375 | AS18: 49.29
B19: 63 | C19: 61 | D19: 59.17 | E19: 59.5 | F19: 58.31 | G19: 58 | H19: 57.42 | I19: 56.5 | J19: 56.2175 | K19: 55 | L19: 55 | M19: 53.5 | N19: 53.5 | O19: 52 | P19: 52 | R19: 1.016666667 | S19: 0.9916666667 | T19: 0.9666666667 | U19: 0.9416666667 | V19: 0.9166666667 | W19: 0.8916666667 | X19: 0.8666666667 | Y19: 0.97 | Z19: 0.98 | AA19: 0.99 | AB19: 0.995 | AC19: 1 | AD19: 1 | AE19: 1 | AF19: 0.553538 | AG19: 0.516692 | AH19: 0.479846 | AI19: 0.461423 | AJ19: 0.443 | AK19: 0.443 | AL19: 0.443 | AM19: 59.17 | AN19: =Z19*E19+($A$4-80)*AG19*$A$16/1000 -> 58.31 | AO19: =AA19*G19+($A$4-80)*AH19*$A$16/1000 -> 57.42 | AP19: 56.2175 | AQ19: 55 | AR19: 53.5 | AS19: 52

Sheet XC13_18 (hidden)
A2: XC13_18 | B2: 18
A3: Evaporator Air | C3: Condenser Entering Air Temperature ˚F
A4: 80 | B4: °F DB | C4: 85 | E4: 90 | G4: 95 | I4: 100 | K4: 105 | M4: 110 | O4: 115
A5: CFM | B5: EWB† ˚F | C5: Capacity Mbtuh | E5: Capacity Mbtuh | G5: Capacity Mbtuh | I5: Capacity Mbtuh | K5: Capacity Mbtuh | M5: Capacity Mbtuh | O5: Capacity Mbtuh
C6: Total | D6: Sens. | E6: Total | F6: Sens. | G6: Total | H6: Sens. | I6: Total | J6: Sens. | K6: Total | L6: Sens. | M6: Total | N6: Sens. | O6: Total | P6: Sens.
R7: Total Factors | Y7: Sens. % | AF7: IDB Adj | AM7: Sens Calc
A8: 525 | B8: 71 | C8: =R8*$B$2 -> 19.23809524 | D8: =IF(AM8>C8,C8,AM8) -> 11.54285714 | E8: =S8*$B$2 -> 18.76190476 | F8: =IF(AN8>E8,E8,AN8) -> 11.35095238 | G8: =T8*$B$2 -> 18.28571429 | H8: =IF(AO8>G8,G8,AO8) -> 11.15428571 | I8: =U8*$B$2 -> 17.80952381 | J8: =IF(AP8>I8,I8,AP8) -> 10.95285714 | K8: =V8*$B$2 -> 17.33333333 | L8: =IF(AQ8>K8,K8,AQ8) -> 10.74666667 | M8: =W8*$B$2 -> 16.80952381 | N8: =IF(AR8>M8,M8,AR8) -> 10.50595238 | O8: =X8*$B$2 -> 16.28571429 | P8: =IF(AS8>O8,O8,AS8) -> 10.26 | R8: 1.068783069 | S8: 1.042328042 | T8: 1.015873016 | U8: 0.9894179894 | V8: 0.962962963 | W8: 0.9338624339 | X8: 0.9047619048 | Y8: 0.6 | Z8: 0.605 | AA8: 0.61 | AB8: 0.615 | AC8: 0.62 | AD8: 0.625 | AE8: 0.63 | AF8: =IF(Y8<0.9,0.9,Y8*-3.6846+4.1276) -> 0.9 | AG8: =IF(Z8<0.9,0.9,Z8*-3.6846+4.1276) -> 0.9 | AH8: 0.9 | AI8: 0.9 | AJ8: 0.9 | AK8: 0.9 | AL8: 0.9 | AM8: =Y8*C8+($A$4-80)*AF8*$A$8/1000 -> 11.54285714 | AN8: =Z8*E8+($A$4-80)*AG8*$A$8/1000 -> 11.35095238 | AO8: =AA8*G8+($A$4-80)*AH8*$A$8/1000 -> 11.15428571 | AP8: =AB8*I8+($A$4-80)*AI8*$A$8/1000 -> 10.95285714 | AQ8: =AC8*K8+($A$4-80)*AJ8*$A$8/1000 -> 10.74666667 | AR8: =AD8*M8+($A$4-80)*AK8*$A$8/1000 -> 10.50595238 | AS8: =AE8*O8+($A$4-80)*AL8*$A$8/1000 -> 10.26
B9: 67 | C9: 18.38095238 | D9: 13.41809524 | E9: 17.95238095 | F9: =IF(AN9>E9,E9,AN9) -> 13.2847619 | G9: 17.52380952 | H9: =IF(AO9>G9,G9,AO9) -> 13.14285714 | I9: 17.04761905 | J9: =IF(AP9>I9,I9,AP9) -> 12.95619048 | K9: 16.57142857 | L9: =IF(AQ9>K9,K9,AQ9) -> 12.76 | M9: 16.04761905 | N9: =IF(AR9>M9,M9,AR9) -> 12.51714286 | O9: 15.52380952 | P9: =IF(AS9>O9,O9,AS9) -> 12.26380952 | R9: 1.021164021 | S9: 0.9973544974 | T9: 0.9735449735 | U9: 0.9470899471 | V9: 0.9206349206 | W9: 0.8915343915 | X9: 0.8624338624 | Y9: 0.73 | Z9: 0.74 | AA9: 0.75 | AB9: 0.76 | AC9: 0.77 | AD9: 0.78 | AE9: 0.79 | AF9: =IF(Y9<0.9,0.9,Y9*-3.6846+4.1276) -> 0.9 | AG9: 0.9 | AH9: 0.9 | AI9: 0.9 | AJ9: 0.9 | AK9: 0.9 | AL9: 0.9 | AM9: =Y9*C9+($A$4-80)*AF9*$A$8/1000 -> 13.41809524 | AN9: =Z9*E9+($A$4-80)*AG9*$A$8/1000 -> 13.2847619 | AO9: =AA9*G9+($A$4-80)*AH9*$A$8/1000 -> 13.14285714 | AP9: =AB9*I9+($A$4-80)*AI9*$A$8/1000 -> 12.95619048 | AQ9: =AC9*K9+($A$4-80)*AJ9*$A$8/1000 -> 12.76 | AR9: =AD9*M9+($A$4-80)*AK9*$A$8/1000 -> 12.51714286 | AS9: =AE9*O9+($A$4-80)*AL9*$A$8/1000 -> 12.26380952
B10: 65 | C10: 17.9047619 | D10: 14.41333333 | E10: 17.47619048 | F10: 14.28678571 | G10: 17.04761905 | H10: 14.14952381 | I10: 16.5952381 | J10: 13.94 | K10: 16.14285714 | L10: 13.72142857 | M10: 15.64285714 | N10: 13.53107143 | O10: 15.14285714 | P10: 13.32571429 | R10: 0.9947089947 | S10: 0.9708994709 | T10: 0.9470899471 | U10: 0.921957672 | V10: 0.8968253968 | W10: 0.869047619 | X10: 0.8412698413 | Y10: 0.805 | Z10: 0.8175 | AA10: 0.83 | AB10: 0.84 | AC10: 0.85 | AD10: 0.865 | AE10: 0.88 | AF10: 0.9 | AG10: 0.9 | AH10: 0.9 | AI10: 0.9 | AJ10: 0.9 | AK10: 0.9 | AL10: 0.9 | AM10: 14.41333333 | AN10: =Z10*E10+($A$4-80)*AG10*$A$8/1000 -> 14.28678571 | AO10: =AA10*G10+($A$4-80)*AH10*$A$8/1000 -> 14.14952381 | AP10: 13.94 | AQ10: 13.72142857 | AR10: 13.53107143 | AS10: 13.32571429
B11: 63 | C11: 17.42857143 | D11: 15.33714286 | E11: 17 | F11: 15.215 | G11: 16.57142857 | H11: 15.08 | I11: 16.14285714 | J11: 14.85142857 | K11: 15.71428571 | L11: 14.61428571 | M11: 15.23809524 | N11: 14.47619048 | O11: 14.76190476 | P11: 14.31904762 | R11: 0.9682539683 | S11: 0.9444444444 | T11: 0.9206349206 | U11: 0.8968253968 | V11: 0.873015873 | W11: 0.8465608466 | X11: 0.8201058201 | Y11: 0.88 | Z11: 0.895 | AA11: 0.91 | AB11: 0.92 | AC11: 0.93 | AD11: 0.95 | AE11: 0.97 | AF11: 0.9 | AG11: 0.9 | AH11: 0.774614 | AI11: 0.737768 | AJ11: 0.700922 | AK11: 0.62723 | AL11: 0.553538 | AM11: 15.33714286 | AN11: =Z11*E11+($A$4-80)*AG11*$A$8/1000 -> 15.215 | AO11: =AA11*G11+($A$4-80)*AH11*$A$8/1000 -> 15.08 | AP11: =AB11*I11+($A$4-80)*AI11*$A$8/1000 -> 14.85142857 | AQ11: 14.61428571 | AR11: 14.47619048 | AS11: 14.31904762
A12: 600 | B12: 71 | C12: 19.80952381 | D12: 12.08380952 | E12: 19.33333333 | F12: 11.89 | G12: 18.85714286 | H12: 11.69142857 | I12: 18.38095238 | J12: 11.58 | K12: 17.9047619 | L12: 11.45904762 | M12: 17.33333333 | N12: 11.18 | O12: 16.76190476 | P12: 10.8952381 | R12: 1.100529101 | S12: 1.074074074 | T12: 1.047619048 | U12: 1.021164021 | V12: 0.9947089947 | W12: 0.962962963 | X12: 0.9312169312 | Y12: 0.61 | Z12: 0.615 | AA12: 0.62 | AB12: 0.63 | AC12: 0.64 | AD12: 0.645 | AE12: 0.65 | AF12: 0.9 | AG12: 0.9 | AH12: 0.9 | AI12: 0.9 | AJ12: 0.9 | AK12: 0.9 | AL12: 0.9 | AM12: =Y12*C12+($A$4-80)*AF12*$A$12/1000 -> 12.08380952 | AN12: =Z12*E12+($A$4-80)*AG12*$A$12/1000 -> 11.89 | AO12: =AA12*G12+($A$4-80)*AH12*$A$12/1000 -> 11.69142857 | AP12: =AB12*I12+($A$4-80)*AI12*$A$12/1000 -> 11.58 | AQ12: =AC12*K12+($A$4-80)*AJ12*$A$12/1000 -> 11.45904762 | AR12: =AD12*M12+($A$4-80)*AK12*$A$12/1000 -> 11.18 | AS12: =AE12*O12+($A$4-80)*AL12*$A$12/1000 -> 10.8952381
B13: 67 | C13: 18.95238095 | D13: 14.40380952 | E13: 18.47619048 | F13: 14.13428571 | G13: 18 | H13: 13.86 | I13: 17.52380952 | J13: 13.75619048 | K13: 17.04761905 | L13: 13.63809524 | M13: 16.52380952 | N13: 13.38428571 | O13: 16 | P13: 13.12 | R13: 1.052910053 | S13: 1.026455026 | T13: 1 | U13: 0.9735449735 | V13: 0.9470899471 | W13: 0.917989418 | X13: 0.8888888889 | Y13: 0.76 | Z13: 0.765 | AA13: 0.77 | AB13: 0.785 | AC13: 0.8 | AD13: 0.81 | AE13: 0.82 | AF13: 0.9 | AG13: 0.9 | AH13: 0.9 | AI13: 0.9 | AJ13: 0.9 | AK13: 0.9 | AL13: 0.9 | AM13: =Y13*C13+($A$4-80)*AF13*$A$12/1000 -> 14.40380952 | AN13: =Z13*E13+($A$4-80)*AG13*$A$12/1000 -> 14.13428571 | AO13: =AA13*G13+($A$4-80)*AH13*$A$12/1000 -> 13.86 | AP13: =AB13*I13+($A$4-80)*AI13*$A$12/1000 -> 13.75619048 | AQ13: =AC13*K13+($A$4-80)*AJ13*$A$12/1000 -> 13.63809524 | AR13: =AD13*M13+($A$4-80)*AK13*$A$12/1000 -> 13.38428571 | AS13: =AE13*O13+($A$4-80)*AL13*$A$12/1000 -> 13.12
B14: 65 | C14: 18.42857143 | D14: 15.48 | E14: 17.97619048 | F14: 15.2797619 | G14: 17.52380952 | H14: 15.07047619 | I14: 17.04761905 | J14: 14.91666667 | K14: 16.57142857 | L14: 14.74857143 | M14: 16.07142857 | N14: 14.46428571 | O14: 15.57142857 | P14: 14.17 | R14: 1.023809524 | S14: 0.9986772487 | T14: 0.9735449735 | U14: 0.9470899471 | V14: 0.9206349206 | W14: 0.8928571429 | X14: 0.8650793651 | Y14: 0.84 | Z14: 0.85 | AA14: 0.86 | AB14: 0.875 | AC14: 0.89 | AD14: 0.9 | AE14: 0.91 | AF14: 0.9 | AG14: 0.9 | AH14: 0.9 | AI14: 0.9 | AJ14: 0.9 | AK14: 0.81146 | AL14: 0.774614 | AM14: 15.48 | AN14: =Z14*E14+($A$4-80)*AG14*$A$12/1000 -> 15.2797619 | AO14: =AA14*G14+($A$4-80)*AH14*$A$12/1000 -> 15.07047619 | AP14: 14.91666667 | AQ14: 14.74857143 | AR14: 14.46428571 | AS14: 14.17
B15: 63 | C15: 17.9047619 | D15: 16.47238095 | E15: 17.47619048 | F15: 16.3402381 | G15: 17.04761905 | H15: 16.1952381 | I15: 16.57142857 | J15: 15.99142857 | K15: 16.0952381 | L15: 15.77333333 | M15: 15.61904762 | N15: 15.46285714 | O15: 15.14285714 | P15: 15.14285714 | R15: 0.9947089947 | S15: 0.9708994709 | T15: 0.9470899471 | U15: 0.9206349206 | V15: 0.8941798942 | W15: 0.8677248677 | X15: 0.8412698413 | Y15: 0.92 | Z15: 0.935 | AA15: 0.95 | AB15: 0.965 | AC15: 0.98 | AD15: 0.99 | AE15: 1 | AF15: 0.737768 | AG15: 0.682499 | AH15: 0.62723 | AI15: 0.571961 | AJ15: 0.516692 | AK15: 0.479846 | AL15: 0.443 | AM15: 16.47238095 | AN15: =Z15*E15+($A$4-80)*AG15*$A$12/1000 -> 16.3402381 | AO15: =AA15*G15+($A$4-80)*AH15*$A$12/1000 -> 16.1952381 | AP15: 15.99142857 | AQ15: 15.77333333 | AR15: 15.46285714 | AS15: 15.14285714
A16: 675 | B16: 71 | C16: 20.38095238 | D16: 12.84 | E16: 19.9047619 | F16: 12.63952381 | G16: 19.42857143 | H16: 12.43428571 | I16: 18.85714286 | J16: 12.25714286 | K16: 18.28571429 | L16: 12.06857143 | M16: 17.71428571 | N16: 11.86857143 | O16: 17.14285714 | P16: 11.65714286 | R16: 1.132275132 | S16: 1.105820106 | T16: 1.079365079 | U16: 1.047619048 | V16: 1.015873016 | W16: 0.9841269841 | X16: 0.9523809524 | Y16: 0.63 | Z16: 0.635 | AA16: 0.64 | AB16: 0.65 | AC16: 0.66 | AD16: 0.67 | AE16: 0.68 | AF16: 0.9 | AG16: 0.9 | AH16: 0.9 | AI16: 0.9 | AJ16: 0.9 | AK16: 0.9 | AL16: 0.9 | AM16: =Y16*C16+($A$4-80)*AF16*$A$16/1000 -> 12.84 | AN16: =Z16*E16+($A$4-80)*AG16*$A$16/1000 -> 12.63952381 | AO16: =AA16*G16+($A$4-80)*AH16*$A$16/1000 -> 12.43428571 | AP16: =AB16*I16+($A$4-80)*AI16*$A$16/1000 -> 12.25714286 | AQ16: =AC16*K16+($A$4-80)*AJ16*$A$16/1000 -> 12.06857143 | AR16: =AD16*M16+($A$4-80)*AK16*$A$16/1000 -> 11.86857143 | AS16: =AE16*O16+($A$4-80)*AL16*$A$16/1000 -> 11.65714286
B17: 67 | C17: 19.42857143 | D17: 15.15428571 | E17: 18.9047619 | F17: 14.9347619 | G17: 18.38095238 | H17: 14.7047619 | I17: 17.9047619 | J17: 14.59238095 | K17: 17.42857143 | L17: 14.46571429 | M17: 16.85714286 | N17: 14.24428571 | O17: 16.28571429 | P17: 14.00571429 | R17: 1.079365079 | S17: 1.05026455 | T17: 1.021164021 | U17: 0.9947089947 | V17: 0.9682539683 | W17: 0.9365079365 | X17: 0.9047619048 | Y17: 0.78 | Z17: 0.79 | AA17: 0.8 | AB17: 0.815 | AC17: 0.83 | AD17: 0.845 | AE17: 0.86 | AF17: 0.9 | AG17: 0.9 | AH17: 0.9 | AI17: 0.9 | AJ17: 0.9 | AK17: 0.9 | AL17: 0.9 | AM17: =Y17*C17+($A$4-80)*AF17*$A$16/1000 -> 15.15428571 | AN17: =Z17*E17+($A$4-80)*AG17*$A$16/1000 -> 14.9347619 | AO17: =AA17*G17+($A$4-80)*AH17*$A$16/1000 -> 14.7047619 | AP17: =AB17*I17+($A$4-80)*AI17*$A$16/1000 -> 14.59238095 | AQ17: =AC17*K17+($A$4-80)*AJ17*$A$16/1000 -> 14.46571429 | AR17: =AD17*M17+($A$4-80)*AK17*$A$16/1000 -> 14.24428571 | AS17: =AE17*O17+($A$4-80)*AL17*$A$16/1000 -> 14.00571429
B18: 65 | C18: 18.9047619 | D18: 16.35261905 | E18: 18.4047619 | F18: 16.15017857 | G18: 17.9047619 | H18: 15.9352381 | I18: 17.45238095 | J18: 15.75077381 | K18: 17 | L18: 15.555 | M18: 16.5 | N18: 15.22125 | O18: 16 | P18: 14.88 | R18: 1.05026455 | S18: 1.022486772 | T18: 0.9947089947 | U18: 0.9695767196 | V18: 0.9444444444 | W18: 0.9166666667 | X18: 0.8888888889 | Y18: 0.865 | Z18: 0.8775 | AA18: 0.89 | AB18: 0.9025 | AC18: 0.915 | AD18: 0.9225 | AE18: 0.93 | AF18: 0.9 | AG18: 0.9 | AH18: 0.9 | AI18: 0.8022485 | AJ18: 0.756191 | AK18: 0.7285565 | AL18: 0.700922 | AM18: 16.35261905 | AN18: =Z18*E18+($A$4-80)*AG18*$A$16/1000 -> 16.15017857 | AO18: =AA18*G18+($A$4-80)*AH18*$A$16/1000 -> 15.9352381 | AP18: 15.75077381 | AQ18: 15.555 | AR18: 15.22125 | AS18: 14.88
B19: 63 | C19: 18.38095238 | D19: 17.46190476 | E19: 17.9047619 | F19: 17.27809524 | G19: 17.42857143 | H19: 17.08 | I19: 17 | J19: 16.83 | K19: 16.57142857 | L19: 16.57142857 | M19: 16.14285714 | N19: 16.14285714 | O19: 15.71428571 | P19: 15.71428571 | R19: 1.021164021 | S19: 0.9947089947 | T19: 0.9682539683 | U19: 0.9444444444 | V19: 0.9206349206 | W19: 0.8968253968 | X19: 0.873015873 | Y19: 0.95 | Z19: 0.965 | AA19: 0.98 | AB19: 0.99 | AC19: 1 | AD19: 1 | AE19: 1 | AF19: 0.62723 | AG19: 0.571961 | AH19: 0.516692 | AI19: 0.479846 | AJ19: 0.443 | AK19: 0.443 | AL19: 0.443 | AM19: 17.46190476 | AN19: =Z19*E19+($A$4-80)*AG19*$A$16/1000 -> 17.27809524 | AO19: =AA19*G19+($A$4-80)*AH19*$A$16/1000 -> 17.08 | AP19: 16.83 | AQ19: 16.57142857 | AR19: 16.14285714 | AS19: 15.71428571

Sheet XC13_24 (hidden)
A2: XC13_24 | B2: 24
A3: Evaporator Air | C3: Condenser Entering Air Temperature ˚F
A4: 80 | B4: °F DB | C4: 85 | E4: 90 | G4: 95 | I4: 100 | K4: 105 | M4: 110 | O4: 115
A5: CFM | B5: EWB† ˚F | C5: Capacity Mbtuh | E5: Capacity Mbtuh | G5: Capacity Mbtuh | I5: Capacity Mbtuh | K5: Capacity Mbtuh | M5: Capacity Mbtuh | O5: Capacity Mbtuh
C6: Total | D6: Sens. | E6: Total | F6: Sens. | G6: Total | H6: Sens. | I6: Total | J6: Sens. | K6: Total | L6: Sens. | M6: Total | N6: Sens. | O6: Total | P6: Sens.
R7: Total Factors | Y7: Sens. % | AF7: IDB Adj | AM7: Sens Calc
A8: 700 | B8: 71 | C8: =R8*$B$2 -> 25.6 | D8: =IF(AM8>C8,C8,AM8) -> 15.616 | E8: =S8*$B$2 -> 25 | F8: =IF(AN8>E8,E8,AN8) -> 15.375 | G8: =T8*$B$2 -> 24.4 | H8: =IF(AO8>G8,G8,AO8) -> 15.128 | I8: =U8*$B$2 -> 23.8 | J8: =IF(AP8>I8,I8,AP8) -> 14.875 | K8: =V8*$B$2 -> 23.2 | L8: =IF(AQ8>K8,K8,AQ8) -> 14.616 | M8: =W8*$B$2 -> 22.4 | N8: =IF(AR8>M8,M8,AR8) -> 14.336 | O8: =X8*$B$2 -> 21.6 | P8: =IF(AS8>O8,O8,AS8) -> 14.04 | R8: 1.066666667 | S8: 1.041666667 | T8: 1.016666667 | U8: 0.9916666667 | V8: 0.9666666667 | W8: 0.9333333333 | X8: 0.9 | Y8: 0.61 | Z8: 0.615 | AA8: 0.62 | AB8: 0.625 | AC8: 0.63 | AD8: 0.64 | AE8: 0.65 | AF8: =IF(Y8<0.9,0.9,Y8*-3.6846+4.1276) -> 0.9 | AG8: =IF(Z8<0.9,0.9,Z8*-3.6846+4.1276) -> 0.9 | AH8: 0.9 | AI8: 0.9 | AJ8: 0.9 | AK8: 0.9 | AL8: 0.9 | AM8: =Y8*C8+($A$4-80)*AF8*$A$8/1000 -> 15.616 | AN8: =Z8*E8+($A$4-80)*AG8*$A$8/1000 -> 15.375 | AO8: =AA8*G8+($A$4-80)*AH8*$A$8/1000 -> 15.128 | AP8: =AB8*I8+($A$4-80)*AI8*$A$8/1000 -> 14.875 | AQ8: =AC8*K8+($A$4-80)*AJ8*$A$8/1000 -> 14.616 | AR8: =AD8*M8+($A$4-80)*AK8*$A$8/1000 -> 14.336 | AS8: =AE8*O8+($A$4-80)*AL8*$A$8/1000 -> 14.04
B9: 67 | C9: 24.6 | D9: 18.45 | E9: 24 | F9: =IF(AN9>E9,E9,AN9) -> 18.12 | G9: 23.4 | H9: =IF(AO9>G9,G9,AO9) -> 17.784 | I9: 22.8 | J9: =IF(AP9>I9,I9,AP9) -> 17.556 | K9: 22.2 | L9: =IF(AQ9>K9,K9,AQ9) -> 17.316 | M9: 21.4 | N9: =IF(AR9>M9,M9,AR9) -> 17.013 | O9: 20.6 | P9: =IF(AS9>O9,O9,AS9) -> 16.686 | R9: 1.025 | S9: 1 | T9: 0.975 | U9: 0.95 | V9: 0.925 | W9: 0.8916666667 | X9: 0.8583333333 | Y9: 0.75 | Z9: 0.755 | AA9: 0.76 | AB9: 0.77 | AC9: 0.78 | AD9: 0.795 | AE9: 0.81 | AF9: =IF(Y9<0.9,0.9,Y9*-3.6846+4.1276) -> 0.9 | AG9: 0.9 | AH9: 0.9 | AI9: 0.9 | AJ9: 0.9 | AK9: 0.9 | AL9: 0.9 | AM9: =Y9*C9+($A$4-80)*AF9*$A$8/1000 -> 18.45 | AN9: =Z9*E9+($A$4-80)*AG9*$A$8/1000 -> 18.12 | AO9: =AA9*G9+($A$4-80)*AH9*$A$8/1000 -> 17.784 | AP9: =AB9*I9+($A$4-80)*AI9*$A$8/1000 -> 17.556 | AQ9: =AC9*K9+($A$4-80)*AJ9*$A$8/1000 -> 17.316 | AR9: =AD9*M9+($A$4-80)*AK9*$A$8/1000 -> 17.013 | AS9: =AE9*O9+($A$4-80)*AL9*$A$8/1000 -> 16.686
B10: 65 | C10: 24 | D10: 19.8 | E10: 23.4 | F10: 19.4805 | G10: 22.8 | H10: 19.152 | I10: 22.2 | J10: 18.9255 | K10: 21.6 | L10: 18.684 | M10: 20.85 | N10: 18.400125 | O10: 20.1 | P10: 18.09 | R10: 1 | S10: 0.975 | T10: 0.95 | U10: 0.925 | V10: 0.9 | W10: 0.86875 | X10: 0.8375 | Y10: 0.825 | Z10: 0.8325 | AA10: 0.84 | AB10: 0.8525 | AC10: 0.865 | AD10: 0.8825 | AE10: 0.9 | AF10: 0.9 | AG10: 0.9 | AH10: 0.9 | AI10: 0.9 | AJ10: 0.9 | AK10: 0.9 | AL10: 0.81146 | AM10: 19.8 | AN10: =Z10*E10+($A$4-80)*AG10*$A$8/1000 -> 19.4805 | AO10: =AA10*G10+($A$4-80)*AH10*$A$8/1000 -> 19.152 | AP10: 18.9255 | AQ10: 18.684 | AR10: 18.400125 | AS10: 18.09
B11: 63 | C11: 23.4 | D11: 21.06 | E11: 22.8 | F11: 20.748 | G11: 22.2 | H11: 20.424 | I11: 21.6 | J11: 20.196 | K11: 21 | L11: 19.95 | M11: 20.3 | N11: 19.691 | O11: 19.6 | P11: 19.404 | R11: 0.975 | S11: 0.95 | T11: 0.925 | U11: 0.9 | V11: 0.875 | W11: 0.8458333333 | X11: 0.8166666667 | Y11: 0.9 | Z11: 0.91 | AA11: 0.92 | AB11: 0.935 | AC11: 0.95 | AD11: 0.97 | AE11: 0.99 | AF11: 0.81146 | AG11: 0.774614 | AH11: 0.737768 | AI11: 0.682499 | AJ11: 0.62723 | AK11: 0.553538 | AL11: 0.479846 | AM11: 21.06 | AN11: =Z11*E11+($A$4-80)*AG11*$A$8/1000 -> 20.748 | AO11: =AA11*G11+($A$4-80)*AH11*$A$8/1000 -> 20.424 | AP11: =AB11*I11+($A$4-80)*AI11*$A$8/1000 -> 20.196 | AQ11: 19.95 | AR11: 19.691 | AS11: 19.404
A12: 800 | B12: 71 | C12: 26.4 | D12: 16.368 | E12: 25.8 | F12: 16.254 | G12: 25.2 | H12: 16.128 | I12: 24.5 | J12: 15.8025 | K12: 23.8 | L12: 15.47 | M12: 23 | N12: 15.18 | O12: 22.2 | P12: 14.874 | R12: 1.1 | S12: 1.075 | T12: 1.05 | U12: 1.020833333 | V12: 0.9916666667 | W12: 0.9583333333 | X12: 0.925 | Y12: 0.62 | Z12: 0.63 | AA12: 0.64 | AB12: 0.645 | AC12: 0.65 | AD12: 0.66 | AE12: 0.67 | AF12: 0.9 | AG12: 0.9 | AH12: 0.9 | AI12: 0.9 | AJ12: 0.9 | AK12: 0.9 | AL12: 0.9 | AM12: =Y12*C12+($A$4-80)*AF12*$A$12/1000 -> 16.368 | AN12: =Z12*E12+($A$4-80)*AG12*$A$12/1000 -> 16.254 | AO12: =AA12*G12+($A$4-80)*AH12*$A$12/1000 -> 16.128 | AP12: =AB12*I12+($A$4-80)*AI12*$A$12/1000 -> 15.8025 | AQ12: =AC12*K12+($A$4-80)*AJ12*$A$12/1000 -> 15.47 | AR12: =AD12*M12+($A$4-80)*AK12*$A$12/1000 -> 15.18 | AS12: =AE12*O12+($A$4-80)*AL12*$A$12/1000 -> 14.874
B13: 67 | C13: 25.2 | D13: 19.404 | E13: 24.6 | F13: 19.188 | G13: 24 | H13: 18.96 | I13: 23.3 | J13: 18.7565 | K13: 22.6 | L13: 18.532 | M13: 21.9 | N13: 18.2865 | O13: 21.2 | P13: 18.02 | R13: 1.05 | S13: 1.025 | T13: 1 | U13: 0.9708333333 | V13: 0.9416666667 | W13: 0.9125 | X13: 0.8833333333 | Y13: 0.77 | Z13: 0.78 | AA13: 0.79 | AB13: 0.805 | AC13: 0.82 | AD13: 0.835 | AE13: 0.85 | AF13: 0.9 | AG13: 0.9 | AH13: 0.9 | AI13: 0.9 | AJ13: 0.9 | AK13: 0.9 | AL13: 0.9 | AM13: =Y13*C13+($A$4-80)*AF13*$A$12/1000 -> 19.404 | AN13: =Z13*E13+($A$4-80)*AG13*$A$12/1000 -> 19.188 | AO13: =AA13*G13+($A$4-80)*AH13*$A$12/1000 -> 18.96 | AP13: =AB13*I13+($A$4-80)*AI13*$A$12/1000 -> 18.7565 | AQ13: =AC13*K13+($A$4-80)*AJ13*$A$12/1000 -> 18.532 | AR13: =AD13*M13+($A$4-80)*AK13*$A$12/1000 -> 18.2865 | AS13: =AE13*O13+($A$4-80)*AL13*$A$12/1000 -> 18.02
B14: 65 | C14: 24.6 | D14: 21.033 | E14: 24 | F14: 20.82 | G14: 23.4 | H14: 20.592 | I14: 22.75 | J14: 20.304375 | K14: 22.1 | L14: 20.0005 | M14: 21.45 | N14: 19.62675 | O14: 20.8 | P14: 19.24 | R14: 1.025 | S14: 1 | T14: 0.975 | U14: 0.9479166667 | V14: 0.9208333333 | W14: 0.89375 | X14: 0.8666666667 | Y14: 0.855 | Z14: 0.8675 | AA14: 0.88 | AB14: 0.8925 | AC14: 0.905 | AD14: 0.915 | AE14: 0.925 | AF14: 0.9 | AG14: 0.9 | AH14: 0.9 | AI14: 0.9 | AJ14: 0.793037 | AK14: 0.756191 | AL14: 0.719345 | AM14: 21.033 | AN14: =Z14*E14+($A$4-80)*AG14*$A$12/1000 -> 20.82 | AO14: =AA14*G14+($A$4-80)*AH14*$A$12/1000 -> 20.592 | AP14: 20.304375 | AQ14: 20.0005 | AR14: 19.62675 | AS14: 19.24
B15: 63 | C15: 24 | D15: 22.56 | E15: 23.4 | F15: 22.347 | G15: 22.8 | H15: 22.116 | I15: 22.2 | J15: 21.756 | K15: 21.6 | L15: 21.384 | M15: 21 | N15: 20.895 | O15: 20.4 | P15: 20.4 | R15: 1 | S15: 0.975 | T15: 0.95 | U15: 0.925 | V15: 0.9 | W15: 0.875 | X15: 0.85 | Y15: 0.94 | Z15: 0.955 | AA15: 0.97 | AB15: 0.98 | AC15: 0.99 | AD15: 0.995 | AE15: 1 | AF15: 0.664076 | AG15: 0.608807 | AH15: 0.553538 | AI15: 0.516692 | AJ15: 0.479846 | AK15: 0.461423 | AL15: 0.443 | AM15: 22.56 | AN15: =Z15*E15+($A$4-80)*AG15*$A$12/1000 -> 22.347 | AO15: =AA15*G15+($A$4-80)*AH15*$A$12/1000 -> 22.116 | AP15: 21.756 | AQ15: 21.384 | AR15: 20.895 | AS15: 20.4
A16: 900 | B16: 71 | C16: 27 | D16: 17.28 | E16: 26.3 | F16: 17.095 | G16: 25.6 | H16: 16.896 | I16: 24.9 | J16: 16.5585 | K16: 24.2 | L16: 16.214 | M16: 23.4 | N16: 16.029 | O16: 22.6 | P16: 15.82 | R16: 1.125 | S16: 1.095833333 | T16: 1.066666667 | U16: 1.0375 | V16: 1.008333333 | W16: 0.975 | X16: 0.9416666667 | Y16: 0.64 | Z16: 0.65 | AA16: 0.66 | AB16: 0.665 | AC16: 0.67 | AD16: 0.685 | AE16: 0.7 | AF16: 0.9 | AG16: 0.9 | AH16: 0.9 | AI16: 0.9 | AJ16: 0.9 | AK16: 0.9 | AL16: 0.9 | AM16: =Y16*C16+($A$4-80)*AF16*$A$16/1000 -> 17.28 | AN16: =Z16*E16+($A$4-80)*AG16*$A$16/1000 -> 17.095 | AO16: =AA16*G16+($A$4-80)*AH16*$A$16/1000 -> 16.896 | AP16: =AB16*I16+($A$4-80)*AI16*$A$16/1000 -> 16.5585 | AQ16: =AC16*K16+($A$4-80)*AJ16*$A$16/1000 -> 16.214 | AR16: =AD16*M16+($A$4-80)*AK16*$A$16/1000 -> 16.029 | AS16: =AE16*O16+($A$4-80)*AL16*$A$16/1000 -> 15.82
B17: 67 | C17: 25.8 | D17: 20.64 | E17: 25.1 | F17: 20.331 | G17: 24.4 | H17: 20.008 | I17: 23.7 | J17: 19.7895 | K17: 23 | L17: 19.55 | M17: 22.3 | N17: 19.2895 | O17: 21.6 | P17: 19.008 | R17: 1.075 | S17: 1.045833333 | T17: 1.016666667 | U17: 0.9875 | V17: 0.9583333333 | W17: 0.9291666667 | X17: 0.9 | Y17: 0.8 | Z17: 0.81 | AA17: 0.82 | AB17: 0.835 | AC17: 0.85 | AD17: 0.865 | AE17: 0.88 | AF17: 0.9 | AG17: 0.9 | AH17: 0.9 | AI17: 0.9 | AJ17: 0.9 | AK17: 0.9 | AL17: 0.9 | AM17: =Y17*C17+($A$4-80)*AF17*$A$16/1000 -> 20.64 | AN17: =Z17*E17+($A$4-80)*AG17*$A$16/1000 -> 20.331 | AO17: =AA17*G17+($A$4-80)*AH17*$A$16/1000 -> 20.008 | AP17: =AB17*I17+($A$4-80)*AI17*$A$16/1000 -> 19.7895 | AQ17: =AC17*K17+($A$4-80)*AJ17*$A$16/1000 -> 19.55 | AR17: =AD17*M17+($A$4-80)*AK17*$A$16/1000 -> 19.2895 | AS17: =AE17*O17+($A$4-80)*AL17*$A$16/1000 -> 19.008
B18: 65 | C18: 25.1 | D18: 22.339 | E18: 24.5 | F18: 22.05 | G18: 23.9 | H18: 21.749 | I18: 23.25 | J18: 21.331875 | K18: 22.6 | L18: 20.905 | M18: 21.95 | N18: 20.468375 | O18: 21.3 | P18: 20.022 | R18: 1.045833333 | S18: 1.020833333 | T18: 0.9958333333 | U18: 0.96875 | V18: 0.9416666667 | W18: 0.9145833333 | X18: 0.8875 | Y18: 0.89 | Z18: 0.9 | AA18: 0.91 | AB18: 0.9175 | AC18: 0.925 | AD18: 0.9325 | AE18: 0.94 | AF18: 0.9 | AG18: 0.81146 | AH18: 0.774614 | AI18: 0.7469795 | AJ18: 0.719345 | AK18: 0.6917105 | AL18: 0.664076 | AM18: 22.339 | AN18: =Z18*E18+($A$4-80)*AG18*$A$16/1000 -> 22.05 | AO18: =AA18*G18+($A$4-80)*AH18*$A$16/1000 -> 21.749 | AP18: 21.331875 | AQ18: 20.905 | AR18: 20.468375 | AS18: 20.022
B19: 63 | C19: 24.4 | D19: 23.912 | E19: 23.9 | F19: 23.661 | G19: 23.4 | H19: 23.4 | I19: 22.8 | J19: 22.8 | K19: 22.2 | L19: 22.2 | M19: 21.6 | N19: 21.6 | O19: 21 | P19: 21 | R19: 1.016666667 | S19: 0.9958333333 | T19: 0.975 | U19: 0.95 | V19: 0.925 | W19: 0.9 | X19: 0.875 | Y19: 0.98 | Z19: 0.99 | AA19: 1 | AB19: 1 | AC19: 1 | AD19: 1 | AE19: 1 | AF19: 0.516692 | AG19: 0.479846 | AH19: 0.443 | AI19: 0.443 | AJ19: 0.443 | AK19: 0.443 | AL19: 0.443 | AM19: 23.912 | AN19: =Z19*E19+($A$4-80)*AG19*$A$16/1000 -> 23.661 | AO19: =AA19*G19+($A$4-80)*AH19*$A$16/1000 -> 23.4 | AP19: 22.8 | AQ19: 22.2 | AR19: 21.6 | AS19: 21

Sheet XC13_30 (hidden)
A2: XC13_30 | B2: 30
A3: Evaporator Air | C3: Condenser Entering Air Temperature ˚F
A4: 80 | B4: °F DB | C4: 85 | E4: 90 | G4: 95 | I4: 100 | K4: 105 | M4: 110 | O4: 115
A5: CFM | B5: EWB† ˚F | C5: Capacity Mbtuh | E5: Capacity Mbtuh | G5: Capacity Mbtuh | I5: Capacity Mbtuh | K5: Capacity Mbtuh | M5: Capacity Mbtuh | O5: Capacity Mbtuh
C6: Total | D6: Sens. | E6: Total | F6: Sens. | G6: Total | H6: Sens. | I6: Total | J6: Sens. | K6: Total | L6: Sens. | M6: Total | N6: Sens. | O6: Total | P6: Sens.
R7: Total Factors | Y7: Sens. % | AF7: IDB Adj | AM7: Sens Calc
A8: 850 | B8: 71 | C8: =R8*$B$2 -> 32.01342282 | D8: =IF(AM8>C8,C8,AM8) -> 19.20805369 | E8: =S8*$B$2 -> 31.30872483 | F8: =IF(AN8>E8,E8,AN8) -> 18.94177852 | G8: =T8*$B$2 -> 30.60402685 | H8: =IF(AO8>G8,G8,AO8) -> 18.66845638 | I8: =U8*$B$2 -> 29.79865772 | J8: =IF(AP8>I8,I8,AP8) -> 18.3261745 | K8: =V8*$B$2 -> 28.99328859 | L8: =IF(AQ8>K8,K8,AQ8) -> 17.97583893 | M8: =W8*$B$2 -> 28.08724832 | N8: =IF(AR8>M8,M8,AR8) -> 17.69496644 | O8: =X8*$B$2 -> 27.18120805 | P8: =IF(AS8>O8,O8,AS8) -> 17.39597315 | R8: 1.067114094 | S8: 1.043624161 | T8: 1.020134228 | U8: 0.9932885906 | V8: 0.966442953 | W8: 0.9362416107 | X8: 0.9060402685 | Y8: 0.6 | Z8: 0.605 | AA8: 0.61 | AB8: 0.615 | AC8: 0.62 | AD8: 0.63 | AE8: 0.64 | AF8: =IF(Y8<0.9,0.9,Y8*-3.6846+4.1276) -> 0.9 | AG8: =IF(Z8<0.9,0.9,Z8*-3.6846+4.1276) -> 0.9 | AH8: 0.9 | AI8: 0.9 | AJ8: 0.9 | AK8: 0.9 | AL8: 0.9 | AM8: =Y8*C8+($A$4-80)*AF8*$A$8/1000 -> 19.20805369 | AN8: =Z8*E8+($A$4-80)*AG8*$A$8/1000 -> 18.94177852 | AO8: =AA8*G8+($A$4-80)*AH8*$A$8/1000 -> 18.66845638 | AP8: =AB8*I8+($A$4-80)*AI8*$A$8/1000 -> 18.3261745 | AQ8: =AC8*K8+($A$4-80)*AJ8*$A$8/1000 -> 17.97583893 | AR8: =AD8*M8+($A$4-80)*AK8*$A$8/1000 -> 17.69496644 | AS8: =AE8*O8+($A$4-80)*AL8*$A$8/1000 -> 17.39597315
B9: 67 | C9: 30.60402685 | D9: 22.64697987 | E9: 29.89932886 | F9: =IF(AN9>E9,E9,AN9) -> 22.275 | G9: 29.19463087 | H9: =IF(AO9>G9,G9,AO9) -> 21.89597315 | I9: 28.48993289 | J9: =IF(AP9>I9,I9,AP9) -> 21.65234899 | K9: 27.7852349 | L9: =IF(AQ9>K9,K9,AQ9) -> 21.39463087 | M9: 26.87919463 | N9: =IF(AR9>M9,M9,AR9) -> 20.96577181 | O9: 25.97315436 | P9: =IF(AS9>O9,O9,AS9) -> 20.51879195 | R9: 1.020134228 | S9: 0.9966442953 | T9: 0.9731543624 | U9: 0.9496644295 | V9: 0.9261744966 | W9: 0.8959731544 | X9: 0.8657718121 | Y9: 0.74 | Z9: 0.745 | AA9: 0.75 | AB9: 0.76 | AC9: 0.77 | AD9: 0.78 | AE9: 0.79 | AF9: =IF(Y9<0.9,0.9,Y9*-3.6846+4.1276) -> 0.9 | AG9: 0.9 | AH9: 0.9 | AI9: 0.9 | AJ9: 0.9 | AK9: 0.9 | AL9: 0.9 | AM9: =Y9*C9+($A$4-80)*AF9*$A$8/1000 -> 22.64697987 | AN9: =Z9*E9+($A$4-80)*AG9*$A$8/1000 -> 22.275 | AO9: =AA9*G9+($A$4-80)*AH9*$A$8/1000 -> 21.89597315 | AP9: =AB9*I9+($A$4-80)*AI9*$A$8/1000 -> 21.65234899 | AQ9: =AC9*K9+($A$4-80)*AJ9*$A$8/1000 -> 21.39463087 | AR9: =AD9*M9+($A$4-80)*AK9*$A$8/1000 -> 20.96577181 | AS9: =AE9*O9+($A$4-80)*AL9*$A$8/1000 -> 20.51879195
B10: 65 | C10: 29.79865772 | D10: 24.13691275 | E10: 29.1442953 | F10: 23.82546141 | G10: 28.48993289 | H10: 23.50419463 | I10: 27.7852349 | J10: 23.27013423 | K10: 27.08053691 | L10: 23.01845638 | M10: 26.17449664 | N10: 22.57550336 | O10: 25.26845638 | P10: 22.10989933 | R10: 0.9932885906 | S10: 0.9714765101 | T10: 0.9496644295 | U10: 0.9261744966 | V10: 0.9026845638 | W10: 0.8724832215 | X10: 0.8422818792 | Y10: 0.81 | Z10: 0.8175 | AA10: 0.825 | AB10: 0.8375 | AC10: 0.85 | AD10: 0.8625 | AE10: 0.875 | AF10: 0.9 | AG10: 0.9 | AH10: 0.9 | AI10: 0.9 | AJ10: 0.9 | AK10: 0.9 | AL10: 0.9 | AM10: 24.13691275 | AN10: =Z10*E10+($A$4-80)*AG10*$A$8/1000 -> 23.82546141 | AO10: =AA10*G10+($A$4-80)*AH10*$A$8/1000 -> 23.50419463 | AP10: 23.27013423 | AQ10: 23.01845638 | AR10: 22.57550336 | AS10: 22.10989933
B11: 63 | C11: 28.99328859 | D11: 25.51409396 | E11: 28.38926174 | F11: 25.26644295 | G11: 27.7852349 | H11: 25.00671141 | I11: 27.08053691 | J11: 24.77869128 | K11: 26.37583893 | L11: 24.5295302 | M11: 25.46979866 | N11: 24.06895973 | O11: 24.56375839 | P11: 23.58120805 | R11: 0.966442953 | S11: 0.9463087248 | T11: 0.9261744966 | U11: 0.9026845638 | V11: 0.8791946309 | W11: 0.8489932886 | X11: 0.8187919463 | Y11: 0.88 | Z11: 0.89 | AA11: 0.9 | AB11: 0.915 | AC11: 0.93 | AD11: 0.945 | AE11: 0.96 | AF11: 0.9 | AG11: 0.9 | AH11: 0.81146 | AI11: 0.756191 | AJ11: 0.700922 | AK11: 0.645653 | AL11: 0.590384 | AM11: 25.51409396 | AN11: =Z11*E11+($A$4-80)*AG11*$A$8/1000 -> 25.26644295 | AO11: =AA11*G11+($A$4-80)*AH11*$A$8/1000 -> 25.00671141 | AP11: =AB11*I11+($A$4-80)*AI11*$A$8/1000 -> 24.77869128 | AQ11: 24.5295302 | AR11: 24.06895973 | AS11: 23.58120805
A12: 1000 | B12: 71 | C12: 33.02013423 | D12: 20.47248322 | E12: 32.2147651 | F12: 20.13422819 | G12: 31.40939597 | H12: 19.78791946 | I12: 30.60402685 | J12: 19.58657718 | K12: 29.79865772 | L12: 19.36912752 | M12: 28.89261745 | N12: 18.92466443 | O12: 27.98657718 | P12: 18.47114094 | R12: 1.100671141 | S12: 1.073825503 | T12: 1.046979866 | U12: 1.020134228 | V12: 0.9932885906 | W12: 0.9630872483 | X12: 0.932885906 | Y12: 0.62 | Z12: 0.625 | AA12: 0.63 | AB12: 0.64 | AC12: 0.65 | AD12: 0.655 | AE12: 0.66 | AF12: 0.9 | AG12: 0.9 | AH12: 0.9 | AI12: 0.9 | AJ12: 0.9 | AK12: 0.9 | AL12: 0.9 | AM12: =Y12*C12+($A$4-80)*AF12*$A$12/1000 -> 20.47248322 | AN12: =Z12*E12+($A$4-80)*AG12*$A$12/1000 -> 20.13422819 | AO12: =AA12*G12+($A$4-80)*AH12*$A$12/1000 -> 19.78791946 | AP12: =AB12*I12+($A$4-80)*AI12*$A$12/1000 -> 19.58657718 | AQ12: =AC12*K12+($A$4-80)*AJ12*$A$12/1000 -> 19.36912752 | AR12: =AD12*M12+($A$4-80)*AK12*$A$12/1000 -> 18.92466443 | AS12: =AE12*O12+($A$4-80)*AL12*$A$12/1000 -> 18.47114094
B13: 67 | C13: 31.61073826 | D13: 24.02416107 | E13: 30.80536913 | F13: 23.72013423 | G13: 30 | H13: 23.4 | I13: 29.29530201 | J13: 23.14328859 | K13: 28.59060403 | L13: 22.87248322 | M13: 27.68456376 | N13: 22.56291946 | O13: 26.77852349 | P13: 22.2261745 | R13: 1.053691275 | S13: 1.026845638 | T13: 1 | U13: 0.9765100671 | V13: 0.9530201342 | W13: 0.9228187919 | X13: 0.8926174497 | Y13: 0.76 | Z13: 0.77 | AA13: 0.78 | AB13: 0.79 | AC13: 0.8 | AD13: 0.815 | AE13: 0.83 | AF13: 0.9 | AG13: 0.9 | AH13: 0.9 | AI13: 0.9 | AJ13: 0.9 | AK13: 0.9 | AL13: 0.9 | AM13: =Y13*C13+($A$4-80)*AF13*$A$12/1000 -> 24.02416107 | AN13: =Z13*E13+($A$4-80)*AG13*$A$12/1000 -> 23.72013423 | AO13: =AA13*G13+($A$4-80)*AH13*$A$12/1000 -> 23.4 | AP13: =AB13*I13+($A$4-80)*AI13*$A$12/1000 -> 23.14328859 | AQ13: =AC13*K13+($A$4-80)*AJ13*$A$12/1000 -> 22.87248322 | AR13: =AD13*M13+($A$4-80)*AK13*$A$12/1000 -> 22.56291946 | AS13: =AE13*O13+($A$4-80)*AL13*$A$12/1000 -> 22.2261745
B14: 65 | C14: 30.80536913 | D14: 25.87651007 | E14: 30.05033557 | F14: 25.61791107 | G14: 29.29530201 | H14: 25.34043624 | I14: 28.59060403 | J14: 25.08825503 | K14: 27.88590604 | L14: 24.81845638 | M14: 27.03020134 | N14: 24.32718121 | O14: 26.17449664 | P14: 23.81879195 | R14: 1.026845638 | S14: 1.001677852 | T14: 0.9765100671 | U14: 0.9530201342 | V14: 0.9295302013 | W14: 0.9010067114 | X14: 0.8724832215 | Y14: 0.84 | Z14: 0.8525 | AA14: 0.865 | AB14: 0.8775 | AC14: 0.89 | AD14: 0.9 | AE14: 0.91 | AF14: 0.9 | AG14: 0.9 | AH14: 0.9 | AI14: 0.9 | AJ14: 0.9 | AK14: 0.81146 | AL14: 0.774614 | AM14: 25.87651007 | AN14: =Z14*E14+($A$4-80)*AG14*$A$12/1000 -> 25.61791107 | AO14: =AA14*G14+($A$4-80)*AH14*$A$12/1000 -> 25.34043624 | AP14: 25.08825503 | AQ14: 24.81845638 | AR14: 24.32718121 | AS14: 23.81879195
B15: 63 | C15: 30 | D15: 27.6 | E15: 29.29530201 | F15: 27.39110738 | G15: 28.59060403 | H15: 27.16107383 | I15: 27.88590604 | J15: 26.90989933 | K15: 27.18120805 | L15: 26.63758389 | M15: 26.37583893 | N15: 25.98020134 | O15: 25.5704698 | P15: 25.3147651 | R15: 1 | S15: 0.9765100671 | T15: 0.9530201342 | U15: 0.9295302013 | V15: 0.9060402685 | W15: 0.8791946309 | X15: 0.8523489933 | Y15: 0.92 | Z15: 0.935 | AA15: 0.95 | AB15: 0.965 | AC15: 0.98 | AD15: 0.985 | AE15: 0.99 | AF15: 0.737768 | AG15: 0.682499 | AH15: 0.62723 | AI15: 0.571961 | AJ15: 0.516692 | AK15: 0.498269 | AL15: 0.479846 | AM15: 27.6 | AN15: =Z15*E15+($A$4-80)*AG15*$A$12/1000 -> 27.39110738 | AO15: =AA15*G15+($A$4-80)*AH15*$A$12/1000 -> 27.16107383 | AP15: 26.90989933 | AQ15: 26.63758389 | AR15: 25.98020134 | AS15: 25.3147651
A16: 1150 | B16: 71 | C16: 33.82550336 | D16: 21.64832215 | E16: 33.02013423 | F16: 21.29798658 | G16: 32.2147651 | H16: 20.93959732 | I16: 31.40939597 | J16: 20.57315436 | K16: 30.60402685 | L16: 20.19865772 | M16: 29.59731544 | N16: 19.83020134 | O16: 28.59060403 | P16: 19.44161074 | R16: 1.127516779 | S16: 1.100671141 | T16: 1.073825503 | U16: 1.046979866 | V16: 1.020134228 | W16: 0.9865771812 | X16: 0.9530201342 | Y16: 0.64 | Z16: 0.645 | AA16: 0.65 | AB16: 0.655 | AC16: 0.66 | AD16: 0.67 | AE16: 0.68 | AF16: 0.9 | AG16: 0.9 | AH16: 0.9 | AI16: 0.9 | AJ16: 0.9 | AK16: 0.9 | AL16: 0.9 | AM16: =Y16*C16+($A$4-80)*AF16*$A$16/1000 -> 21.64832215 | AN16: =Z16*E16+($A$4-80)*AG16*$A$16/1000 -> 21.29798658 | AO16: =AA16*G16+($A$4-80)*AH16*$A$16/1000 -> 20.93959732 | AP16: =AB16*I16+($A$4-80)*AI16*$A$16/1000 -> 20.57315436 | AQ16: =AC16*K16+($A$4-80)*AJ16*$A$16/1000 -> 20.19865772 | AR16: =AD16*M16+($A$4-80)*AK16*$A$16/1000 -> 19.83020134 | AS16: =AE16*O16+($A$4-80)*AL16*$A$16/1000 -> 19.44161074
B17: 67 | C17: 32.41610738 | D17: 25.60872483 | E17: 31.61073826 | F17: 25.2885906 | G17: 30.80536913 | H17: 24.95234899 | I17: 30 | J17: 24.6 | K17: 29.19463087 | L17: 24.23154362 | M17: 28.2885906 | N17: 23.90385906 | O17: 27.38255034 | P17: 23.54899329 | R17: 1.080536913 | S17: 1.053691275 | T17: 1.026845638 | U17: 1 | V17: 0.9731543624 | W17: 0.9429530201 | X17: 0.9127516779 | Y17: 0.79 | Z17: 0.8 | AA17: 0.81 | AB17: 0.82 | AC17: 0.83 | AD17: 0.845 | AE17: 0.86 | AF17: 0.9 | AG17: 0.9 | AH17: 0.9 | AI17: 0.9 | AJ17: 0.9 | AK17: 0.9 | AL17: 0.9 | AM17: =Y17*C17+($A$4-80)*AF17*$A$16/1000 -> 25.60872483 | AN17: =Z17*E17+($A$4-80)*AG17*$A$16/1000 -> 25.2885906 | AO17: =AA17*G17+($A$4-80)*AH17*$A$16/1000 -> 24.95234899 | AP17: =AB17*I17+($A$4-80)*AI17*$A$16/1000 -> 24.6 | AQ17: =AC17*K17+($A$4-80)*AJ17*$A$16/1000 -> 24.23154362 | AR17: =AD17*M17+($A$4-80)*AK17*$A$16/1000 -> 23.90385906 | AS17: =AE17*O17+($A$4-80)*AL17*$A$16/1000 -> 23.54899329
B18: 65 | C18: 31.61073826 | D18: 27.65939597 | E18: 30.8557047 | F18: 27.30729866 | G18: 30.10067114 | H18: 26.94010067 | I18: 29.34563758 | J18: 26.55780201 | K18: 28.59060403 | L18: 26.16040268 | M18: 27.7852349 | N18: 25.63187919 | O18: 26.97986577 | P18: 25.09127517 | R18: 1.053691275 | S18: 1.02852349 | T18: 1.003355705 | U18: 0.9781879195 | V18: 0.9530201342 | W18: 0.9261744966 | X18: 0.8993288591 | Y18: 0.875 | Z18: 0.885 | AA18: 0.895 | AB18: 0.905 | AC18: 0.915 | AD18: 0.9225 | AE18: 0.93 | AF18: 0.9 | AG18: 0.9 | AH18: 0.9 | AI18: 0.793037 | AJ18: 0.756191 | AK18: 0.7285565 | AL18: 0.700922 | AM18: 27.65939597 | AN18: =Z18*E18+($A$4-80)*AG18*$A$16/1000 -> 27.30729866 | AO18: =AA18*G18+($A$4-80)*AH18*$A$16/1000 -> 26.94010067 | AP18: 26.55780201 | AQ18: 26.16040268 | AR18: 25.63187919 | AS18: 25.09127517
B19: 63 | C19: 30.80536913 | D19: 29.57315436 | E19: 30.10067114 | F19: 29.19765101 | G19: 29.39597315 | H19: 28.80805369 | I19: 28.69127517 | J19: 28.40436242 | K19: 27.98657718 | L19: 27.98657718 | M19: 27.28187919 | N19: 27.28187919 | O19: 26.57718121 | P19: 26.57718121 | R19: 1.026845638 | S19: 1.003355705 | T19: 0.9798657718 | U19: 0.9563758389 | V19: 0.932885906 | W19: 0.9093959732 | X19: 0.8859060403 | Y19: 0.96 | Z19: 0.97 | AA19: 0.98 | AB19: 0.99 | AC19: 1 | AD19: 1 | AE19: 1 | AF19: 0.590384 | AG19: 0.553538 | AH19: 0.516692 | AI19: 0.479846 | AJ19: 0.443 | AK19: 0.443 | AL19: 0.443 | AM19: 29.57315436 | AN19: =Z19*E19+($A$4-80)*AG19*$A$16/1000 -> 29.19765101 | AO19: =AA19*G19+($A$4-80)*AH19*$A$16/1000 -> 28.80805369 | AP19: 28.40436242 | AQ19: 27.98657718 | AR19: 27.28187919 | AS19: 26.57718121

Sheet XC13_36 (hidden)
A2: XC13_36 | B2: 36
A3: Evaporator Air | C3: Condenser Entering Air Temperature ˚F
A4: 80 | B4: °F DB | C4: 85 | E4: 90 | G4: 95 | I4: 100 | K4: 105 | M4: 110 | O4: 115
A5: CFM | B5: EWB† ˚F | C5: Capacity Mbtuh | E5: Capacity Mbtuh | G5: Capacity Mbtuh | I5: Capacity Mbtuh | K5: Capacity Mbtuh | M5: Capacity Mbtuh | O5: Capacity Mbtuh
C6: Total | D6: Sens. | E6: Total | F6: Sens. | G6: Total | H6: Sens. | I6: Total | J6: Sens. | K6: Total | L6: Sens. | M6: Total | N6: Sens. | O6: Total | P6: Sens.
R7: Total Factors | Y7: Sens. % | AF7: IDB Adj | AM7: Sens Calc
A8: 1050 | B8: 71 | C8: =R8*$B$2 -> 38.64130435 | D8: =IF(AM8>C8,C8,AM8) -> 23.18478261 | E8: =S8*$B$2 -> 37.80978261 | F8: =IF(AN8>E8,E8,AN8) -> 22.87491848 | G8: =T8*$B$2 -> 36.97826087 | H8: =IF(AO8>G8,G8,AO8) -> 22.55673913 | I8: =U8*$B$2 -> 36 | J8: =IF(AP8>I8,I8,AP8) -> 22.14 | K8: =V8*$B$2 -> 35.02173913 | L8: =IF(AQ8>K8,K8,AQ8) -> 21.71347826 | M8: =W8*$B$2 -> 33.84782609 | N8: =IF(AR8>M8,M8,AR8) -> 21.1548913 | O8: =X8*$B$2 -> 32.67391304 | P8: =IF(AS8>O8,O8,AS8) -> 20.58456522 | R8: 1.073369565 | S8: 1.050271739 | T8: 1.027173913 | U8: 1 | V8: 0.972826087 | W8: 0.9402173913 | X8: 0.9076086957 | Y8: 0.6 | Z8: 0.605 | AA8: 0.61 | AB8: 0.615 | AC8: 0.62 | AD8: 0.625 | AE8: 0.63 | AF8: =IF(Y8<0.9,0.9,Y8*-3.6846+4.1276) -> 0.9 | AG8: =IF(Z8<0.9,0.9,Z8*-3.6846+4.1276) -> 0.9 | AH8: 0.9 | AI8: 0.9 | AJ8: 0.9 | AK8: 0.9 | AL8: 0.9 | AM8: =Y8*C8+($A$4-80)*AF8*$A$8/1000 -> 23.18478261 | AN8: =Z8*E8+($A$4-80)*AG8*$A$8/1000 -> 22.87491848 | AO8: =AA8*G8+($A$4-80)*AH8*$A$8/1000 -> 22.55673913 | AP8: =AB8*I8+($A$4-80)*AI8*$A$8/1000 -> 22.14 | AQ8: =AC8*K8+($A$4-80)*AJ8*$A$8/1000 -> 21.71347826 | AR8: =AD8*M8+($A$4-80)*AK8*$A$8/1000 -> 21.1548913 | AS8: =AE8*O8+($A$4-80)*AL8*$A$8/1000 -> 20.58456522
B9: 67 | C9: 36.97826087 | D9: 27.36391304 | E9: 36 | F9: =IF(AN9>E9,E9,AN9) -> 26.82 | G9: 35.02173913 | H9: =IF(AO9>G9,G9,AO9) -> 26.26630435 | I9: 34.14130435 | J9: =IF(AP9>I9,I9,AP9) -> 26.11809783 | K9: 33.26086957 | L9: =IF(AQ9>K9,K9,AQ9) -> 25.94347826 | M9: 32.18478261 | N9: =IF(AR9>M9,M9,AR9) -> 25.42597826 | O9: 31.10869565 | P9: =IF(AS9>O9,O9,AS9) -> 24.88695652 | R9: 1.027173913 | S9: 1 | T9: 0.972826087 | U9: 0.9483695652 | V9: 0.9239130435 | W9: 0.8940217391 | X9: 0.8641304348 | Y9: 0.74 | Z9: 0.745 | AA9: 0.75 | AB9: 0.765 | AC9: 0.78 | AD9: 0.79 | AE9: 0.8 | AF9: =IF(Y9<0.9,0.9,Y9*-3.6846+4.1276) -> 0.9 | AG9: 0.9 | AH9: 0.9 | AI9: 0.9 | AJ9: 0.9 | AK9: 0.9 | AL9: 0.9 | AM9: =Y9*C9+($A$4-80)*AF9*$A$8/1000 -> 27.36391304 | AN9: =Z9*E9+($A$4-80)*AG9*$A$8/1000 -> 26.82 | AO9: =AA9*G9+($A$4-80)*AH9*$A$8/1000 -> 26.26630435 | AP9: =AB9*I9+($A$4-80)*AI9*$A$8/1000 -> 26.11809783 | AQ9: =AC9*K9+($A$4-80)*AJ9*$A$8/1000 -> 25.94347826 | AR9: =AD9*M9+($A$4-80)*AK9*$A$8/1000 -> 25.42597826 | AS9: =AE9*O9+($A$4-80)*AL9*$A$8/1000 -> 24.88695652
B10: 65 | C10: 36 | D10: 29.52 | E10: 35.11956522 | F10: 29.06144022 | G10: 34.23913043 | H10: 28.58967391 | I10: 33.30978261 | J10: 28.31331522 | K10: 32.38043478 | L10: 28.00907609 | M10: 31.35326087 | N10: 27.51248641 | O10: 30.32608696 | P10: 26.99021739 | R10: 1 | S10: 0.9755434783 | T10: 0.9510869565 | U10: 0.9252717391 | V10: 0.8994565217 | W10: 0.870923913 | X10: 0.8423913043 | Y10: 0.82 | Z10: 0.8275 | AA10: 0.835 | AB10: 0.85 | AC10: 0.865 | AD10: 0.8775 | AE10: 0.89 | AF10: 0.9 | AG10: 0.9 | AH10: 0.9 | AI10: 0.9 | AJ10: 0.9 | AK10: 0.9 | AL10: 0.9 | AM10: 29.52 | AN10: =Z10*E10+($A$4-80)*AG10*$A$8/1000 -> 29.06144022 | AO10: =AA10*G10+($A$4-80)*AH10*$A$8/1000 -> 28.58967391 | AP10: 28.31331522 | AQ10: 28.00907609 | AR10: 27.51248641 | AS10: 26.99021739
B11: 63 | C11: 35.02173913 | D11: 31.51956522 | E11: 34.23913043 | F11: 31.1576087 | G11: 33.45652174 | H11: 30.78 | I11: 32.47826087 | J11: 30.36717391 | K11: 31.5 | L11: 29.925 | M11: 30.52173913 | N11: 29.45347826 | O11: 29.54347826 | P11: 28.9526087 | R11: 0.972826087 | S11: 0.9510869565 | T11: 0.9293478261 | U11: 0.902173913 | V11: 0.875 | W11: 0.847826087 | X11: 0.8206521739 | Y11: 0.9 | Z11: 0.91 | AA11: 0.92 | AB11: 0.935 | AC11: 0.95 | AD11: 0.965 | AE11: 0.98 | AF11: 0.81146 | AG11: 0.774614 | AH11: 0.737768 | AI11: 0.682499 | AJ11: 0.62723 | AK11: 0.571961 | AL11: 0.516692 | AM11: 31.51956522 | AN11: =Z11*E11+($A$4-80)*AG11*$A$8/1000 -> 31.1576087 | AO11: =AA11*G11+($A$4-80)*AH11*$A$8/1000 -> 30.78 | AP11: =AB11*I11+($A$4-80)*AI11*$A$8/1000 -> 30.36717391 | AQ11: 29.925 | AR11: 29.45347826 | AS11: 28.9526087
A12: 1200 | B12: 71 | C12: 39.61956522 | D12: 24.56413043 | E12: 38.64130435 | F12: 24.15081522 | G12: 37.66304348 | H12: 23.72771739 | I12: 36.63586957 | J12: 23.26377717 | K12: 35.60869565 | L12: 22.78956522 | M12: 34.43478261 | N12: 22.3826087 | O12: 33.26086957 | P12: 21.95217391 | R12: 1.100543478 | S12: 1.073369565 | T12: 1.046195652 | U12: 1.017663043 | V12: 0.9891304348 | W12: 0.9565217391 | X12: 0.9239130435 | Y12: 0.62 | Z12: 0.625 | AA12: 0.63 | AB12: 0.635 | AC12: 0.64 | AD12: 0.65 | AE12: 0.66 | AF12: 0.9 | AG12: 0.9 | AH12: 0.9 | AI12: 0.9 | AJ12: 0.9 | AK12: 0.9 | AL12: 0.9 | AM12: =Y12*C12+($A$4-80)*AF12*$A$12/1000 -> 24.56413043 | AN12: =Z12*E12+($A$4-80)*AG12*$A$12/1000 -> 24.15081522 | AO12: =AA12*G12+($A$4-80)*AH12*$A$12/1000 -> 23.72771739 | AP12: =AB12*I12+($A$4-80)*AI12*$A$12/1000 -> 23.26377717 | AQ12: =AC12*K12+($A$4-80)*AJ12*$A$12/1000 -> 22.78956522 | AR12: =AD12*M12+($A$4-80)*AK12*$A$12/1000 -> 22.3826087 | AS12: =AE12*O12+($A$4-80)*AL12*$A$12/1000 -> 21.95217391
B13: 67 | C13: 37.66304348 | D13: 29.00054348 | E13: 36.83152174 | F13: 28.72858696 | G13: 36 | H13: 28.44 | I13: 35.02173913 | J13: 28.0173913 | K13: 34.04347826 | L13: 27.57521739 | M13: 32.86956522 | N13: 27.1173913 | O13: 31.69565217 | P13: 26.62434783 | R13: 1.046195652 | S13: 1.023097826 | T13: 1 | U13: 0.972826087 | V13: 0.9456521739 | W13: 0.9130434783 | X13: 0.8804347826 | Y13: 0.77 | Z13: 0.78 | AA13: 0.79 | AB13: 0.8 | AC13: 0.81 | AD13: 0.825 | AE13: 0.84 | AF13: 0.9 | AG13: 0.9 | AH13: 0.9 | AI13: 0.9 | AJ13: 0.9 | AK13: 0.9 | AL13: 0.9 | AM13: =Y13*C13+($A$4-80)*AF13*$A$12/1000 -> 29.00054348 | AN13: =Z13*E13+($A$4-80)*AG13*$A$12/1000 -> 28.72858696 | AO13: =AA13*G13+($A$4-80)*AH13*$A$12/1000 -> 28.44 | AP13: =AB13*I13+($A$4-80)*AI13*$A$12/1000 -> 28.0173913 | AQ13: =AC13*K13+($A$4-80)*AJ13*$A$12/1000 -> 27.57521739 | AR13: =AD13*M13+($A$4-80)*AK13*$A$12/1000 -> 27.1173913 | AS13: =AE13*O13+($A$4-80)*AL13*$A$12/1000 -> 26.62434783
B14: 65 | C14: 36.83152174 | D14: 31.49095109 | E14: 35.97554348 | F14: 31.20878397 | G14: 35.11956522 | H14: 30.90521739 | I14: 34.19021739 | J14: 30.42929348 | K14: 33.26086957 | L14: 29.93478261 | M14: 32.13586957 | N14: 29.2436413 | O14: 31.01086957 | P14: 28.53 | R14: 1.023097826 | S14: 0.9993206522 | T14: 0.9755434783 | U14: 0.9497282609 | V14: 0.9239130435 | W14: 0.8926630435 | X14: 0.8614130435 | Y14: 0.855 | Z14: 0.8675 | AA14: 0.88 | AB14: 0.89 | AC14: 0.9 | AD14: 0.91 | AE14: 0.92 | AF14: 0.9 | AG14: 0.9 | AH14: 0.9 | AI14: 0.9 | AJ14: 0.81146 | AK14: 0.774614 | AL14: 0.737768 | AM14: 31.49095109 | AN14: =Z14*E14+($A$4-80)*AG14*$A$12/1000 -> 31.20878397 | AO14: =AA14*G14+($A$4-80)*AH14*$A$12/1000 -> 30.90521739 | AP14: 30.42929348 | AQ14: 29.93478261 | AR14: 29.2436413 | AS14: 28.53
B15: 63 | C15: 36 | D15: 33.84 | E15: 35.11956522 | F15: 33.53918478 | G15: 34.23913043 | H15: 33.21195652 | I15: 33.35869565 | J15: 32.69152174 | K15: 32.47826087 | L15: 32.15347826 | M15: 31.40217391 | N15: 31.24516304 | O15: 30.32608696 | P15: 30.32608696 | R15: 1 | S15: 0.9755434783 | T15: 0.9510869565 | U15: 0.9266304348 | V15: 0.902173913 | W15: 0.8722826087 | X15: 0.8423913043 | Y15: 0.94 | Z15: 0.955 | AA15: 0.97 | AB15: 0.98 | AC15: 0.99 | AD15: 0.995 | AE15: 1 | AF15: 0.664076 | AG15: 0.608807 | AH15: 0.553538 | AI15: 0.516692 | AJ15: 0.479846 | AK15: 0.461423 | AL15: 0.443 | AM15: 33.84 | AN15: =Z15*E15+($A$4-80)*AG15*$A$12/1000 -> 33.53918478 | AO15: =AA15*G15+($A$4-80)*AH15*$A$12/1000 -> 33.21195652 | AP15: 32.69152174 | AQ15: 32.15347826 | AR15: 31.24516304 | AS15: 30.32608696
A16: 1350 | B16: 71 | C16: 40.59782609 | D16: 25.9826087 | E16: 39.61956522 | F16: 25.55461957 | G16: 38.64130435 | H16: 25.11684783 | I16: 37.41847826 | J16: 24.69619565 | K16: 36.19565217 | L16: 24.25108696 | M16: 35.02173913 | N16: 23.81478261 | O16: 33.84782609 | P16: 23.355 | R16: 1.127717391 | S16: 1.100543478 | T16: 1.073369565 | U16: 1.039402174 | V16: 1.005434783 | W16: 0.972826087 | X16: 0.9402173913 | Y16: 0.64 | Z16: 0.645 | AA16: 0.65 | AB16: 0.66 | AC16: 0.67 | AD16: 0.68 | AE16: 0.69 | AF16: 0.9 | AG16: 0.9 | AH16: 0.9 | AI16: 0.9 | AJ16: 0.9 | AK16: 0.9 | AL16: 0.9 | AM16: =Y16*C16+($A$4-80)*AF16*$A$16/1000 -> 25.9826087 | AN16: =Z16*E16+($A$4-80)*AG16*$A$16/1000 -> 25.55461957 | AO16: =AA16*G16+($A$4-80)*AH16*$A$16/1000 -> 25.11684783 | AP16: =AB16*I16+($A$4-80)*AI16*$A$16/1000 -> 24.69619565 | AQ16: =AC16*K16+($A$4-80)*AJ16*$A$16/1000 -> 24.25108696 | AR16: =AD16*M16+($A$4-80)*AK16*$A$16/1000 -> 23.81478261 | AS16: =AE16*O16+($A$4-80)*AL16*$A$16/1000 -> 23.355
B17: 67 | C17: 38.64130435 | D17: 30.91304348 | E17: 37.71195652 | F17: 30.54668478 | G17: 36.7826087 | H17: 30.16173913 | I17: 35.70652174 | J17: 29.81494565 | K17: 34.63043478 | L17: 29.43586957 | M17: 33.55434783 | N17: 29.02451087 | O17: 32.47826087 | P17: 28.58086957 | R17: 1.073369565 | S17: 1.047554348 | T17: 1.02173913 | U17: 0.9918478261 | V17: 0.9619565217 | W17: 0.9320652174 | X17: 0.902173913 | Y17: 0.8 | Z17: 0.81 | AA17: 0.82 | AB17: 0.835 | AC17: 0.85 | AD17: 0.865 | AE17: 0.88 | AF17: 0.9 | AG17: 0.9 | AH17: 0.9 | AI17: 0.9 | AJ17: 0.9 | AK17: 0.9 | AL17: 0.9 | AM17: =Y17*C17+($A$4-80)*AF17*$A$16/1000 -> 30.91304348 | AN17: =Z17*E17+($A$4-80)*AG17*$A$16/1000 -> 30.54668478 | AO17: =AA17*G17+($A$4-80)*AH17*$A$16/1000 -> 30.16173913 | AP17: =AB17*I17+($A$4-80)*AI17*$A$16/1000 -> 29.81494565 | AQ17: =AC17*K17+($A$4-80)*AJ17*$A$16/1000 -> 29.43586957 | AR17: =AD17*M17+($A$4-80)*AK17*$A$16/1000 -> 29.02451087 | AS17: =AE17*O17+($A$4-80)*AL17*$A$16/1000 -> 28.58086957
B18: 65 | C18: 37.71195652 | D18: 33.5636413 | E18: 36.80706522 | F18: 33.1263587 | G18: 35.90217391 | H18: 32.67097826 | I18: 34.92391304 | J18: 32.04269022 | K18: 33.94565217 | L18: 31.39972826 | M18: 32.91847826 | N18: 30.69648098 | O18: 31.89130435 | P18: 29.97782609 | R18: 1.047554348 | S18: 1.022418478 | T18: 0.9972826087 | U18: 0.9701086957 | V18: 0.9429347826 | W18: 0.9144021739 | X18: 0.8858695652 | Y18: 0.89 | Z18: 0.9 | AA18: 0.91 | AB18: 0.9175 | AC18: 0.925 | AD18: 0.9325 | AE18: 0.94 | AF18: 0.9 | AG18: 0.81146 | AH18: 0.774614 | AI18: 0.7469795 | AJ18: 0.719345 | AK18: 0.6917105 | AL18: 0.664076 | AM18: 33.5636413 | AN18: =Z18*E18+($A$4-80)*AG18*$A$16/1000 -> 33.1263587 | AO18: =AA18*G18+($A$4-80)*AH18*$A$16/1000 -> 32.67097826 | AP18: 32.04269022 | AQ18: 31.39972826 | AR18: 30.69648098 | AS18: 29.97782609
B19: 63 | C19: 36.7826087 | D19: 36.04695652 | E19: 35.90217391 | F19: 35.54315217 | G19: 35.02173913 | H19: 35.02173913 | I19: 34.14130435 | J19: 34.14130435 | K19: 33.26086957 | L19: 33.26086957 | M19: 32.2826087 | N19: 32.2826087 | O19: 31.30434783 | P19: 31.30434783 | R19: 1.02173913 | S19: 0.9972826087 | T19: 0.972826087 | U19: 0.9483695652 | V19: 0.9239130435 | W19: 0.8967391304 | X19: 0.8695652174 | Y19: 0.98 | Z19: 0.99 | AA19: 1 | AB19: 1 | AC19: 1 | AD19: 1 | AE19: 1 | AF19: 0.516692 | AG19: 0.479846 | AH19: 0.443 | AI19: 0.443 | AJ19: 0.443 | AK19: 0.443 | AL19: 0.443 | AM19: 36.04695652 | AN19: =Z19*E19+($A$4-80)*AG19*$A$16/1000 -> 35.54315217 | AO19: =AA19*G19+($A$4-80)*AH19*$A$16/1000 -> 35.02173913 | AP19: 34.14130435 | AQ19: 33.26086957 | AR19: 32.2826087 | AS19: 31.30434783

Sheet XC13_42 (hidden)
A2: XC13_42 | B2: 42
A3: Evaporator Air | C3: Condenser Entering Air Temperature ˚F
A4: 80 | B4: °F DB | C4: 85 | E4: 90 | G4: 95 | I4: 100 | K4: 105 | M4: 110 | O4: 115
A5: CFM | B5: EWB† ˚F | C5: Capacity Mbtuh | E5: Capacity Mbtuh | G5: Capacity Mbtuh | I5: Capacity Mbtuh | K5: Capacity Mbtuh | M5: Capacity Mbtuh | O5: Capacity Mbtuh
C6: Total | D6: Sens. | E6: Total | F6: Sens. | G6: Total | H6: Sens. | I6: Total | J6: Sens. | K6: Total | L6: Sens. | M6: Total | N6: Sens. | O6: Total | P6: Sens.
R7: Total Factors | Y7: Sens. % | AF7: IDB Adj | AM7: Sens Calc
A8: 1225 | B8: 71 | C8: =R8*$B$2 -> 44.47058824 | D8: =IF(AM8>C8,C8,AM8) -> 27.12705882 | E8: =S8*$B$2 -> 43.48235294 | F8: =IF(AN8>E8,E8,AN8) -> 26.74164706 | G8: =T8*$B$2 -> 42.49411765 | H8: =IF(AO8>G8,G8,AO8) -> 26.34635294 | I8: =U8*$B$2 -> 41.50588235 | J8: =IF(AP8>I8,I8,AP8) -> 25.94117647 | K8: =V8*$B$2 -> 40.51764706 | L8: =IF(AQ8>K8,K8,AQ8) -> 25.52611765 | M8: =W8*$B$2 -> 39.28235294 | N8: =IF(AR8>M8,M8,AR8) -> 24.94429412 | O8: =X8*$B$2 -> 38.04705882 | P8: =IF(AS8>O8,O8,AS8) -> 24.35011765 | R8: 1.058823529 | S8: 1.035294118 | T8: 1.011764706 | U8: 0.9882352941 | V8: 0.9647058824 | W8: 0.9352941176 | X8: 0.9058823529 | Y8: 0.61 | Z8: 0.615 | AA8: 0.62 | AB8: 0.625 | AC8: 0.63 | AD8: 0.635 | AE8: 0.64 | AF8: =IF(Y8<0.9,0.9,Y8*-3.6846+4.1276) -> 0.9 | AG8: =IF(Z8<0.9,0.9,Z8*-3.6846+4.1276) -> 0.9 | AH8: 0.9 | AI8: 0.9 | AJ8: 0.9 | AK8: 0.9 | AL8: 0.9 | AM8: =Y8*C8+($A$4-80)*AF8*$A$8/1000 -> 27.12705882 | AN8: =Z8*E8+($A$4-80)*AG8*$A$8/1000 -> 26.74164706 | AO8: =AA8*G8+($A$4-80)*AH8*$A$8/1000 -> 26.34635294 | AP8: =AB8*I8+($A$4-80)*AI8*$A$8/1000 -> 25.94117647 | AQ8: =AC8*K8+($A$4-80)*AJ8*$A$8/1000 -> 25.52611765 | AR8: =AD8*M8+($A$4-80)*AK8*$A$8/1000 -> 24.94429412 | AS8: =AE8*O8+($A$4-80)*AL8*$A$8/1000 -> 24.35011765
B9: 67 | C9: 42.98823529 | D9: 32.24117647 | E9: 42 | F9: =IF(AN9>E9,E9,AN9) -> 31.71 | G9: 41.01176471 | H9: =IF(AO9>G9,G9,AO9) -> 31.16894118 | I9: 39.77647059 | J9: =IF(AP9>I9,I9,AP9) -> 30.62788235 | K9: 38.54117647 | L9: =IF(AQ9>K9,K9,AQ9) -> 30.06211765 | M9: 37.35529412 | N9: =IF(AR9>M9,M9,AR9) -> 29.69745882 | O9: 36.16941176 | P9: =IF(AS9>O9,O9,AS9) -> 29.29722353 | R9: 1.023529412 | S9: 1 | T9: 0.9764705882 | U9: 0.9470588235 | V9: 0.9176470588 | W9: 0.8894117647 | X9: 0.8611764706 | Y9: 0.75 | Z9: 0.755 | AA9: 0.76 | AB9: 0.77 | AC9: 0.78 | AD9: 0.795 | AE9: 0.81 | AF9: =IF(Y9<0.9,0.9,Y9*-3.6846+4.1276) -> 0.9 | AG9: 0.9 | AH9: 0.9 | AI9: 0.9 | AJ9: 0.9 | AK9: 0.9 | AL9: 0.9 | AM9: =Y9*C9+($A$4-80)*AF9*$A$8/1000 -> 32.24117647 | AN9: =Z9*E9+($A$4-80)*AG9*$A$8/1000 -> 31.71 | AO9: =AA9*G9+($A$4-80)*AH9*$A$8/1000 -> 31.16894118 | AP9: =AB9*I9+($A$4-80)*AI9*$A$8/1000 -> 30.62788235 | AQ9: =AC9*K9+($A$4-80)*AJ9*$A$8/1000 -> 30.06211765 | AR9: =AD9*M9+($A$4-80)*AK9*$A$8/1000 -> 29.69745882 | AS9: =AE9*O9+($A$4-80)*AL9*$A$8/1000 -> 29.29722353
B10: 65 | C10: 42 | D10: 34.65 | E10: 41.01176471 | F10: 34.24482353 | G10: 40.02352941 | H10: 33.81988235 | I10: 38.83764706 | J10: 33.30328235 | K10: 37.65176471 | L10: 32.75703529 | M10: 36.51529412 | N10: 32.22474706 | O10: 35.37882353 | P10: 31.66404706 | R10: 1 | S10: 0.9764705882 | T10: 0.9529411765 | U10: 0.9247058824 | V10: 0.8964705882 | W10: 0.8694117647 | X10: 0.8423529412 | Y10: 0.825 | Z10: 0.835 | AA10: 0.845 | AB10: 0.8575 | AC10: 0.87 | AD10: 0.8825 | AE10: 0.895 | AF10: 0.9 | AG10: 0.9 | AH10: 0.9 | AI10: 0.9 | AJ10: 0.9 | AK10: 0.9 | AL10: 0.9 | AM10: 34.65 | AN10: =Z10*E10+($A$4-80)*AG10*$A$8/1000 -> 34.24482353 | AO10: =AA10*G10+($A$4-80)*AH10*$A$8/1000 -> 33.81988235 | AP10: 33.30328235 | AQ10: 32.75703529 | AR10: 32.22474706 | AS10: 31.66404706
B11: 63 | C11: 41.01176471 | D11: 36.91058824 | E11: 40.02352941 | F11: 36.62152941 | G11: 39.03529412 | H11: 36.30282353 | I11: 37.89882353 | J11: 35.81438824 | K11: 36.76235294 | L11: 35.29185882 | M11: 35.67529412 | N11: 34.60503529 | O11: 34.58823529 | P11: 33.89647059 | R11: 0.9764705882 | S11: 0.9529411765 | T11: 0.9294117647 | U11: 0.9023529412 | V11: 0.8752941176 | W11: 0.8494117647 | X11: 0.8235294118 | Y11: 0.9 | Z11: 0.915 | AA11: 0.93 | AB11: 0.945 | AC11: 0.96 | AD11: 0.97 | AE11: 0.98 | AF11: 0.81146 | AG11: 0.756191 | AH11: 0.700922 | AI11: 0.645653 | AJ11: 0.590384 | AK11: 0.553538 | AL11: 0.516692 | AM11: 36.91058824 | AN11: =Z11*E11+($A$4-80)*AG11*$A$8/1000 -> 36.62152941 | AO11: =AA11*G11+($A$4-80)*AH11*$A$8/1000 -> 36.30282353 | AP11: =AB11*I11+($A$4-80)*AI11*$A$8/1000 -> 35.81438824 | AQ11: 35.29185882 | AR11: 34.60503529 | AS11: 33.89647059
A12: 1400 | B12: 71 | C12: 45.95294118 | D12: 28.49082353 | E12: 44.71764706 | F12: 28.17211765 | G12: 43.48235294 | H12: 27.82870588 | I12: 42.49411765 | J12: 27.40870588 | K12: 41.50588235 | L12: 26.97882353 | M12: 40.27058824 | N12: 26.57858824 | O12: 39.03529412 | P12: 26.15364706 | R12: 1.094117647 | S12: 1.064705882 | T12: 1.035294118 | U12: 1.011764706 | V12: 0.9882352941 | W12: 0.9588235294 | X12: 0.9294117647 | Y12: 0.62 | Z12: 0.63 | AA12: 0.64 | AB12: 0.645 | AC12: 0.65 | AD12: 0.66 | AE12: 0.67 | AF12: 0.9 | AG12: 0.9 | AH12: 0.9 | AI12: 0.9 | AJ12: 0.9 | AK12: 0.9 | AL12: 0.9 | AM12: =Y12*C12+($A$4-80)*AF12*$A$12/1000 -> 28.49082353 | AN12: =Z12*E12+($A$4-80)*AG12*$A$12/1000 -> 28.17211765 | AO12: =AA12*G12+($A$4-80)*AH12*$A$12/1000 -> 27.82870588 | AP12: =AB12*I12+($A$4-80)*AI12*$A$12/1000 -> 27.40870588 | AQ12: =AC12*K12+($A$4-80)*AJ12*$A$12/1000 -> 26.97882353 | AR12: =AD12*M12+($A$4-80)*AK12*$A$12/1000 -> 26.57858824 | AS12: =AE12*O12+($A$4-80)*AL12*$A$12/1000 -> 26.15364706
B13: 67 | C13: 43.97647059 | D13: 34.30164706 | E13: 42.98823529 | F13: 33.74576471 | G13: 42 | H13: 33.18 | I13: 40.76470588 | J13: 32.81558824 | K13: 39.52941176 | L13: 32.41411765 | M13: 38.34352941 | N13: 31.82512941 | O13: 37.15764706 | P13: 31.21242353 | R13: 1.047058824 | S13: 1.023529412 | T13: 1 | U13: 0.9705882353 | V13: 0.9411764706 | W13: 0.9129411765 | X13: 0.8847058824 | Y13: 0.78 | Z13: 0.785 | AA13: 0.79 | AB13: 0.805 | AC13: 0.82 | AD13: 0.83 | AE13: 0.84 | AF13: 0.9 | AG13: 0.9 | AH13: 0.9 | AI13: 0.9 | AJ13: 0.9 | AK13: 0.9 | AL13: 0.9 | AM13: =Y13*C13+($A$4-80)*AF13*$A$12/1000 -> 34.30164706 | AN13: =Z13*E13+($A$4-80)*AG13*$A$12/1000 -> 33.74576471 | AO13: =AA13*G13+($A$4-80)*AH13*$A$12/1000 -> 33.18 | AP13: =AB13*I13+($A$4-80)*AI13*$A$12/1000 -> 32.81558824 | AQ13: =AC13*K13+($A$4-80)*AJ13*$A$12/1000 -> 32.41411765 | AR13: =AD13*M13+($A$4-80)*AK13*$A$12/1000 -> 31.82512941 | AS13: =AE13*O13+($A$4-80)*AL13*$A$12/1000 -> 31.21242353
B14: 65 | C14: 42.98823529 | D14: 37.18482353 | E14: 42 | F14: 36.645 | G14: 41.01176471 | H14: 36.09035294 | I14: 39.77647059 | J14: 35.5005 | K14: 38.54117647 | L14: 34.87976471 | M14: 37.45411765 | N14: 34.17688235 | O14: 36.36705882 | P14: 33.45769412 | R14: 1.023529412 | S14: 1 | T14: 0.9764705882 | U14: 0.9470588235 | V14: 0.9176470588 | W14: 0.8917647059 | X14: 0.8658823529 | Y14: 0.865 | Z14: 0.8725 | AA14: 0.88 | AB14: 0.8925 | AC14: 0.905 | AD14: 0.9125 | AE14: 0.92 | AF14: 0.9 | AG14: 0.9 | AH14: 0.9 | AI14: 0.9 | AJ14: 0.793037 | AK14: 0.7654025 | AL14: 0.737768 | AM14: 37.18482353 | AN14: =Z14*E14+($A$4-80)*AG14*$A$12/1000 -> 36.645 | AO14: =AA14*G14+($A$4-80)*AH14*$A$12/1000 -> 36.09035294 | AP14: 35.5005 | AQ14: 34.87976471 | AR14: 34.17688235 | AS14: 33.45769412
B15: 63 | C15: 42 | D15: 39.9 | E15: 41.01176471 | F15: 39.37129412 | G15: 40.02352941 | H15: 38.82282353 | I15: 38.78823529 | J15: 38.01247059 | K15: 37.55294118 | L15: 37.17741176 | M15: 36.56470588 | N15: 36.38188235 | O15: 35.57647059 | P15: 35.57647059 | R15: 1 | S15: 0.9764705882 | T15: 0.9529411765 | U15: 0.9235294118 | V15: 0.8941176471 | W15: 0.8705882353 | X15: 0.8470588235 | Y15: 0.95 | Z15: 0.96 | AA15: 0.97 | AB15: 0.98 | AC15: 0.99 | AD15: 0.995 | AE15: 1 | AF15: 0.62723 | AG15: 0.590384 | AH15: 0.553538 | AI15: 0.516692 | AJ15: 0.479846 | AK15: 0.461423 | AL15: 0.443 | AM15: 39.9 | AN15: =Z15*E15+($A$4-80)*AG15*$A$12/1000 -> 39.37129412 | AO15: =AA15*G15+($A$4-80)*AH15*$A$12/1000 -> 38.82282353 | AP15: 38.01247059 | AQ15: 37.17741176 | AR15: 36.38188235 | AS15: 35.57647059
A16: 1575 | B16: 71 | C16: 46.94117647 | D16: 30.04235294 | E16: 45.70588235 | F16: 29.48029412 | G16: 44.47058824 | H16: 28.90588235 | I16: 43.23529412 | J16: 28.53529412 | K16: 42 | L16: 28.14 | M16: 40.76470588 | N16: 27.72 | O16: 39.52941176 | P16: 27.27529412 | R16: 1.117647059 | S16: 1.088235294 | T16: 1.058823529 | U16: 1.029411765 | V16: 1 | W16: 0.9705882353 | X16: 0.9411764706 | Y16: 0.64 | Z16: 0.645 | AA16: 0.65 | AB16: 0.66 | AC16: 0.67 | AD16: 0.68 | AE16: 0.69 | AF16: 0.9 | AG16: 0.9 | AH16: 0.9 | AI16: 0.9 | AJ16: 0.9 | AK16: 0.9 | AL16: 0.9 | AM16: =Y16*C16+($A$4-80)*AF16*$A$16/1000 -> 30.04235294 | AN16: =Z16*E16+($A$4-80)*AG16*$A$16/1000 -> 29.48029412 | AO16: =AA16*G16+($A$4-80)*AH16*$A$16/1000 -> 28.90588235 | AP16: =AB16*I16+($A$4-80)*AI16*$A$16/1000 -> 28.53529412 | AQ16: =AC16*K16+($A$4-80)*AJ16*$A$16/1000 -> 28.14 | AR16: =AD16*M16+($A$4-80)*AK16*$A$16/1000 -> 27.72 | AS16: =AE16*O16+($A$4-80)*AL16*$A$16/1000 -> 27.27529412
B17: 67 | C17: 44.47058824 | D17: 35.57647059 | E17: 43.48235294 | F17: 35.22070588 | G17: 42.49411765 | H17: 34.84517647 | I17: 41.50588235 | J17: 34.65741176 | K17: 40.51764706 | L17: 34.44 | M17: 39.03529412 | N17: 33.76552941 | O17: 37.55294118 | P17: 33.04658824 | R17: 1.058823529 | S17: 1.035294118 | T17: 1.011764706 | U17: 0.9882352941 | V17: 0.9647058824 | W17: 0.9294117647 | X17: 0.8941176471 | Y17: 0.8 | Z17: 0.81 | AA17: 0.82 | AB17: 0.835 | AC17: 0.85 | AD17: 0.865 | AE17: 0.88 | AF17: 0.9 | AG17: 0.9 | AH17: 0.9 | AI17: 0.9 | AJ17: 0.9 | AK17: 0.9 | AL17: 0.9 | AM17: =Y17*C17+($A$4-80)*AF17*$A$16/1000 -> 35.57647059 | AN17: =Z17*E17+($A$4-80)*AG17*$A$16/1000 -> 35.22070588 | AO17: =AA17*G17+($A$4-80)*AH17*$A$16/1000 -> 34.84517647 | AP17: =AB17*I17+($A$4-80)*AI17*$A$16/1000 -> 34.65741176 | AQ17: =AC17*K17+($A$4-80)*AJ17*$A$16/1000 -> 34.44 | AR17: =AD17*M17+($A$4-80)*AK17*$A$16/1000 -> 33.76552941 | AS17: =AE17*O17+($A$4-80)*AL17*$A$16/1000 -> 33.04658824
B18: 65 | C18: 43.48235294 | D18: 38.69929412 | E18: 42.49411765 | F18: 38.24470588 | G18: 41.50588235 | H18: 37.77035294 | I18: 40.51764706 | J18: 37.17494118 | K18: 39.52941176 | L18: 36.56470588 | M18: 38.24470588 | N18: 35.66318824 | O18: 36.96 | P18: 34.7424 | R18: 1.035294118 | S18: 1.011764706 | T18: 0.9882352941 | U18: 0.9647058824 | V18: 0.9411764706 | W18: 0.9105882353 | X18: 0.88 | Y18: 0.89 | Z18: 0.9 | AA18: 0.91 | AB18: 0.9175 | AC18: 0.925 | AD18: 0.9325 | AE18: 0.94 | AF18: 0.9 | AG18: 0.81146 | AH18: 0.774614 | AI18: 0.7469795 | AJ18: 0.719345 | AK18: 0.6917105 | AL18: 0.664076 | AM18: 38.69929412 | AN18: =Z18*E18+($A$4-80)*AG18*$A$16/1000 -> 38.24470588 | AO18: =AA18*G18+($A$4-80)*AH18*$A$16/1000 -> 37.77035294 | AP18: 37.17494118 | AQ18: 36.56470588 | AR18: 35.66318824 | AS18: 34.7424
B19: 63 | C19: 42.49411765 | D19: 41.64423529 | E19: 41.50588235 | F19: 41.09082353 | G19: 40.51764706 | H19: 40.51764706 | I19: 39.52941176 | J19: 39.52941176 | K19: 38.54117647 | L19: 38.54117647 | M19: 37.45411765 | N19: 37.45411765 | O19: 36.36705882 | P19: 36.36705882 | R19: 1.011764706 | S19: 0.9882352941 | T19: 0.9647058824 | U19: 0.9411764706 | V19: 0.9176470588 | W19: 0.8917647059 | X19: 0.8658823529 | Y19: 0.98 | Z19: 0.99 | AA19: 1 | AB19: 1 | AC19: 1 | AD19: 1 | AE19: 1 | AF19: 0.516692 | AG19: 0.479846 | AH19: 0.443 | AI19: 0.443 | AJ19: 0.443 | AK19: 0.443 | AL19: 0.443 | AM19: 41.64423529 | AN19: =Z19*E19+($A$4-80)*AG19*$A$16/1000 -> 41.09082353 | AO19: =AA19*G19+($A$4-80)*AH19*$A$16/1000 -> 40.51764706 | AP19: 39.52941176 | AQ19: 38.54117647 | AR19: 37.45411765 | AS19: 36.36705882

Sheet XC13_48 (hidden)
A2: XC13_48 | B2: 48
A3: Evaporator Air | C3: Condenser Entering Air Temperature ˚F
A4: 80 | B4: °F DB | C4: 85 | E4: 90 | G4: 95 | I4: 100 | K4: 105 | M4: 110 | O4: 115
A5: CFM | B5: EWB† ˚F | C5: Capacity Mbtuh | E5: Capacity Mbtuh | G5: Capacity Mbtuh | I5: Capacity Mbtuh | K5: Capacity Mbtuh | M5: Capacity Mbtuh | O5: Capacity Mbtuh
C6: Total | D6: Sens. | E6: Total | F6: Sens. | G6: Total | H6: Sens. | I6: Total | J6: Sens. | K6: Total | L6: Sens. | M6: Total | N6: Sens. | O6: Total | P6: Sens.
R7: Total Factors | Y7: Sens. % | AF7: IDB Adj | AM7: Sens Calc
A8: 1400 | B8: 71 | C8: =R8*$B$2 -> 51.95876289 | D8: =IF(AM8>C8,C8,AM8) -> 31.17525773 | E8: =S8*$B$2 -> 50.72164948 | F8: =IF(AN8>E8,E8,AN8) -> 30.68659794 | G8: =T8*$B$2 -> 49.48453608 | H8: =IF(AO8>G8,G8,AO8) -> 30.18556701 | I8: =U8*$B$2 -> 48 | J8: =IF(AP8>I8,I8,AP8) -> 29.52 | K8: =V8*$B$2 -> 46.51546392 | L8: =IF(AQ8>K8,K8,AQ8) -> 28.83958763 | M8: =W8*$B$2 -> 45.03092784 | N8: =IF(AR8>M8,M8,AR8) -> 28.36948454 | O8: =X8*$B$2 -> 43.54639175 | P8: =IF(AS8>O8,O8,AS8) -> 27.86969072 | R8: 1.082474227 | S8: 1.056701031 | T8: 1.030927835 | U8: 1 | V8: 0.9690721649 | W8: 0.9381443299 | X8: 0.9072164948 | Y8: 0.6 | Z8: 0.605 | AA8: 0.61 | AB8: 0.615 | AC8: 0.62 | AD8: 0.63 | AE8: 0.64 | AF8: =IF(Y8<0.9,0.9,Y8*-3.6846+4.1276) -> 0.9 | AG8: =IF(Z8<0.9,0.9,Z8*-3.6846+4.1276) -> 0.9 | AH8: 0.9 | AI8: 0.9 | AJ8: 0.9 | AK8: 0.9 | AL8: 0.9 | AM8: =Y8*C8+($A$4-80)*AF8*$A$8/1000 -> 31.17525773 | AN8: =Z8*E8+($A$4-80)*AG8*$A$8/1000 -> 30.68659794 | AO8: =AA8*G8+($A$4-80)*AH8*$A$8/1000 -> 30.18556701 | AP8: =AB8*I8+($A$4-80)*AI8*$A$8/1000 -> 29.52 | AQ8: =AC8*K8+($A$4-80)*AJ8*$A$8/1000 -> 28.83958763 | AR8: =AD8*M8+($A$4-80)*AK8*$A$8/1000 -> 28.36948454 | AS8: =AE8*O8+($A$4-80)*AL8*$A$8/1000 -> 27.86969072
B9: 67 | C9: 49.48453608 | D9: 36.6185567 | E9: 48.24742268 | F9: =IF(AN9>E9,E9,AN9) -> 36.18556701 | G9: 47.01030928 | H9: =IF(AO9>G9,G9,AO9) -> 35.72783505 | I9: 45.5257732 | J9: =IF(AP9>I9,I9,AP9) -> 35.05484536 | K9: 44.04123711 | L9: =IF(AQ9>K9,K9,AQ9) -> 34.35216495 | M9: 42.80412371 | N9: =IF(AR9>M9,M9,AR9) -> 33.81525773 | O9: 41.56701031 | P9: =IF(AS9>O9,O9,AS9) -> 33.25360825 | R9: 1.030927835 | S9: 1.005154639 | T9: 0.9793814433 | U9: 0.9484536082 | V9: 0.9175257732 | W9: 0.8917525773 | X9: 0.8659793814 | Y9: 0.74 | Z9: 0.75 | AA9: 0.76 | AB9: 0.77 | AC9: 0.78 | AD9: 0.79 | AE9: 0.8 | AF9: =IF(Y9<0.9,0.9,Y9*-3.6846+4.1276) -> 0.9 | AG9: 0.9 | AH9: 0.9 | AI9: 0.9 | AJ9: 0.9 | AK9: 0.9 | AL9: 0.9 | AM9: =Y9*C9+($A$4-80)*AF9*$A$8/1000 -> 36.6185567 | AN9: =Z9*E9+($A$4-80)*AG9*$A$8/1000 -> 36.18556701 | AO9: =AA9*G9+($A$4-80)*AH9*$A$8/1000 -> 35.72783505 | AP9: =AB9*I9+($A$4-80)*AI9*$A$8/1000 -> 35.05484536 | AQ9: =AC9*K9+($A$4-80)*AJ9*$A$8/1000 -> 34.35216495 | AR9: =AD9*M9+($A$4-80)*AK9*$A$8/1000 -> 33.81525773 | AS9: =AE9*O9+($A$4-80)*AL9*$A$8/1000 -> 33.25360825
B10: 65 | C10: 48 | D10: 39.36 | E10: 46.88659794 | F10: 38.91587629 | G10: 45.77319588 | H10: 38.44948454 | I10: 44.41237113 | J10: 37.86154639 | K10: 43.05154639 | L10: 37.23958763 | M10: 41.69072165 | N10: 36.58360825 | O10: 40.32989691 | P10: 35.89360825 | R10: 1 | S10: 0.9768041237 | T10: 0.9536082474 | U10: 0.925257732 | V10: 0.8969072165 | W10: 0.868556701 | X10: 0.8402061856 | Y10: 0.82 | Z10: 0.83 | AA10: 0.84 | AB10: 0.8525 | AC10: 0.865 | AD10: 0.8775 | AE10: 0.89 | AF10: 0.9 | AG10: 0.9 | AH10: 0.9 | AI10: 0.9 | AJ10: 0.9 | AK10: 0.9 | AL10: 0.9 | AM10: 39.36 | AN10: =Z10*E10+($A$4-80)*AG10*$A$8/1000 -> 38.91587629 | AO10: =AA10*G10+($A$4-80)*AH10*$A$8/1000 -> 38.44948454 | AP10: 37.86154639 | AQ10: 37.23958763 | AR10: 36.58360825 | AS10: 35.89360825
B11: 63 | C11: 46.51546392 | D11: 41.86391753 | E11: 45.5257732 | F11: 41.42845361 | G11: 44.53608247 | H11: 40.97319588 | I11: 43.29896907 | J11: 40.48453608 | K11: 42.06185567 | L11: 39.95876289 | M11: 40.57731959 | N11: 39.1571134 | O11: 39.09278351 | P11: 38.31092784 | R11: 0.9690721649 | S11: 0.9484536082 | T11: 0.9278350515 | U11: 0.9020618557 | V11: 0.8762886598 | W11: 0.8453608247 | X11: 0.8144329897 | Y11: 0.9 | Z11: 0.91 | AA11: 0.92 | AB11: 0.935 | AC11: 0.95 | AD11: 0.965 | AE11: 0.98 | AF11: 0.81146 | AG11: 0.774614 | AH11: 0.737768 | AI11: 0.682499 | AJ11: 0.62723 | AK11: 0.571961 | AL11: 0.516692 | AM11: 41.86391753 | AN11: =Z11*E11+($A$4-80)*AG11*$A$8/1000 -> 41.42845361 | AO11: =AA11*G11+($A$4-80)*AH11*$A$8/1000 -> 40.97319588 | AP11: =AB11*I11+($A$4-80)*AI11*$A$8/1000 -> 40.48453608 | AQ11: 39.95876289 | AR11: 39.1571134 | AS11: 38.31092784
A12: 1600 | B12: 71 | C12: 52.94845361 | D12: 32.82804124 | E12: 51.71134021 | F12: 32.31958763 | G12: 50.4742268 | H12: 31.79876289 | I12: 48.98969072 | J12: 31.10845361 | K12: 47.50515464 | L12: 30.40329897 | M12: 45.77319588 | N12: 29.75257732 | O12: 44.04123711 | P12: 29.06721649 | R12: 1.103092784 | S12: 1.077319588 | T12: 1.051546392 | U12: 1.020618557 | V12: 0.9896907216 | W12: 0.9536082474 | X12: 0.9175257732 | Y12: 0.62 | Z12: 0.625 | AA12: 0.63 | AB12: 0.635 | AC12: 0.64 | AD12: 0.65 | AE12: 0.66 | AF12: 0.9 | AG12: 0.9 | AH12: 0.9 | AI12: 0.9 | AJ12: 0.9 | AK12: 0.9 | AL12: 0.9 | AM12: =Y12*C12+($A$4-80)*AF12*$A$12/1000 -> 32.82804124 | AN12: =Z12*E12+($A$4-80)*AG12*$A$12/1000 -> 32.31958763 | AO12: =AA12*G12+($A$4-80)*AH12*$A$12/1000 -> 31.79876289 | AP12: =AB12*I12+($A$4-80)*AI12*$A$12/1000 -> 31.10845361 | AQ12: =AC12*K12+($A$4-80)*AJ12*$A$12/1000 -> 30.40329897 | AR12: =AD12*M12+($A$4-80)*AK12*$A$12/1000 -> 29.75257732 | AS12: =AE12*O12+($A$4-80)*AL12*$A$12/1000 -> 29.06721649
B13: 67 | C13: 50.4742268 | D13: 38.86515464 | E13: 49.2371134 | F13: 38.40494845 | G13: 48 | H13: 37.92 | I13: 46.51546392 | J13: 37.21237113 | K13: 45.03092784 | L13: 36.47505155 | M13: 43.54639175 | N13: 35.9257732 | O13: 42.06185567 | P13: 35.33195876 | R13: 1.051546392 | S13: 1.025773196 | T13: 1 | U13: 0.9690721649 | V13: 0.9381443299 | W13: 0.9072164948 | X13: 0.8762886598 | Y13: 0.77 | Z13: 0.78 | AA13: 0.79 | AB13: 0.8 | AC13: 0.81 | AD13: 0.825 | AE13: 0.84 | AF13: 0.9 | AG13: 0.9 | AH13: 0.9 | AI13: 0.9 | AJ13: 0.9 | AK13: 0.9 | AL13: 0.9 | AM13: =Y13*C13+($A$4-80)*AF13*$A$12/1000 -> 38.86515464 | AN13: =Z13*E13+($A$4-80)*AG13*$A$12/1000 -> 38.40494845 | AO13: =AA13*G13+($A$4-80)*AH13*$A$12/1000 -> 37.92 | AP13: =AB13*I13+($A$4-80)*AI13*$A$12/1000 -> 37.21237113 | AQ13: =AC13*K13+($A$4-80)*AJ13*$A$12/1000 -> 36.47505155 | AR13: =AD13*M13+($A$4-80)*AK13*$A$12/1000 -> 35.9257732 | AS13: =AE13*O13+($A$4-80)*AL13*$A$12/1000 -> 35.33195876
B14: 65 | C14: 49.2371134 | D14: 42.09773196 | E14: 48 | F14: 41.52 | G14: 46.7628866 | H14: 40.91752577 | I14: 45.40206186 | J14: 40.2943299 | K14: 44.04123711 | L14: 39.6371134 | M14: 42.55670103 | N14: 38.72659794 | O14: 41.07216495 | P14: 37.78639175 | R14: 1.025773196 | S14: 1 | T14: 0.9742268041 | U14: 0.9458762887 | V14: 0.9175257732 | W14: 0.8865979381 | X14: 0.8556701031 | Y14: 0.855 | Z14: 0.865 | AA14: 0.875 | AB14: 0.8875 | AC14: 0.9 | AD14: 0.91 | AE14: 0.92 | AF14: 0.9 | AG14: 0.9 | AH14: 0.9 | AI14: 0.9 | AJ14: 0.81146 | AK14: 0.774614 | AL14: 0.737768 | AM14: 42.09773196 | AN14: =Z14*E14+($A$4-80)*AG14*$A$12/1000 -> 41.52 | AO14: =AA14*G14+($A$4-80)*AH14*$A$12/1000 -> 40.91752577 | AP14: 40.2943299 | AQ14: 39.6371134 | AR14: 38.72659794 | AS14: 37.78639175
B15: 63 | C15: 48 | D15: 45.12 | E15: 46.7628866 | F15: 44.42474227 | G15: 45.5257732 | H15: 43.70474227 | I15: 44.28865979 | J15: 43.1814433 | K15: 43.05154639 | L15: 42.62103093 | M15: 41.56701031 | N15: 41.35917526 | O15: 40.08247423 | P15: 40.08247423 | R15: 1 | S15: 0.9742268041 | T15: 0.9484536082 | U15: 0.9226804124 | V15: 0.8969072165 | W15: 0.8659793814 | X15: 0.8350515464 | Y15: 0.94 | Z15: 0.95 | AA15: 0.96 | AB15: 0.975 | AC15: 0.99 | AD15: 0.995 | AE15: 1 | AF15: 0.664076 | AG15: 0.62723 | AH15: 0.590384 | AI15: 0.535115 | AJ15: 0.479846 | AK15: 0.461423 | AL15: 0.443 | AM15: 45.12 | AN15: =Z15*E15+($A$4-80)*AG15*$A$12/1000 -> 44.42474227 | AO15: =AA15*G15+($A$4-80)*AH15*$A$12/1000 -> 43.70474227 | AP15: 43.1814433 | AQ15: 42.62103093 | AR15: 41.35917526 | AS15: 40.08247423
A16: 1800 | B16: 71 | C16: 53.93814433 | D16: 33.98103093 | E16: 52.70103093 | F16: 33.72865979 | G16: 51.46391753 | H16: 33.45154639 | I16: 49.97938144 | J16: 32.73649485 | K16: 48.49484536 | L16: 32.00659794 | M16: 46.7628866 | N16: 31.56494845 | O16: 45.03092784 | P16: 31.07134021 | R16: 1.12371134 | S16: 1.097938144 | T16: 1.072164948 | U16: 1.041237113 | V16: 1.010309278 | W16: 0.9742268041 | X16: 0.9381443299 | Y16: 0.63 | Z16: 0.64 | AA16: 0.65 | AB16: 0.655 | AC16: 0.66 | AD16: 0.675 | AE16: 0.69 | AF16: 0.9 | AG16: 0.9 | AH16: 0.9 | AI16: 0.9 | AJ16: 0.9 | AK16: 0.9 | AL16: 0.9 | AM16: =Y16*C16+($A$4-80)*AF16*$A$16/1000 -> 33.98103093 | AN16: =Z16*E16+($A$4-80)*AG16*$A$16/1000 -> 33.72865979 | AO16: =AA16*G16+($A$4-80)*AH16*$A$16/1000 -> 33.45154639 | AP16: =AB16*I16+($A$4-80)*AI16*$A$16/1000 -> 32.73649485 | AQ16: =AC16*K16+($A$4-80)*AJ16*$A$16/1000 -> 32.00659794 | AR16: =AD16*M16+($A$4-80)*AK16*$A$16/1000 -> 31.56494845 | AS16: =AE16*O16+($A$4-80)*AL16*$A$16/1000 -> 31.07134021
B17: 67 | C17: 51.46391753 | D17: 41.17113402 | E17: 50.22680412 | F17: 40.68371134 | G17: 48.98969072 | H17: 40.17154639 | I17: 47.50515464 | J17: 39.42927835 | K17: 46.02061856 | L17: 38.65731959 | M17: 44.53608247 | N17: 38.07835052 | O17: 43.05154639 | P17: 37.45484536 | R17: 1.072164948 | S17: 1.046391753 | T17: 1.020618557 | U17: 0.9896907216 | V17: 0.9587628866 | W17: 0.9278350515 | X17: 0.8969072165 | Y17: 0.8 | Z17: 0.81 | AA17: 0.82 | AB17: 0.83 | AC17: 0.84 | AD17: 0.855 | AE17: 0.87 | AF17: 0.9 | AG17: 0.9 | AH17: 0.9 | AI17: 0.9 | AJ17: 0.9 | AK17: 0.9 | AL17: 0.9 | AM17: =Y17*C17+($A$4-80)*AF17*$A$16/1000 -> 41.17113402 | AN17: =Z17*E17+($A$4-80)*AG17*$A$16/1000 -> 40.68371134 | AO17: =AA17*G17+($A$4-80)*AH17*$A$16/1000 -> 40.17154639 | AP17: =AB17*I17+($A$4-80)*AI17*$A$16/1000 -> 39.42927835 | AQ17: =AC17*K17+($A$4-80)*AJ17*$A$16/1000 -> 38.65731959 | AR17: =AD17*M17+($A$4-80)*AK17*$A$16/1000 -> 38.07835052 | AS17: =AE17*O17+($A$4-80)*AL17*$A$16/1000 -> 37.45484536
B18: 65 | C18: 50.22680412 | D18: 44.45072165 | E18: 48.98969072 | F18: 43.8457732 | G18: 47.75257732 | H18: 43.21608247 | I18: 46.39175258 | J18: 42.33247423 | K18: 45.03092784 | L18: 41.42845361 | M18: 43.67010309 | N18: 40.50402062 | O18: 42.30927835 | P18: 39.55917526 | R18: 1.046391753 | S18: 1.020618557 | T18: 0.9948453608 | U18: 0.9664948454 | V18: 0.9381443299 | W18: 0.9097938144 | X18: 0.881443299 | Y18: 0.885 | Z18: 0.895 | AA18: 0.905 | AB18: 0.9125 | AC18: 0.92 | AD18: 0.9275 | AE18: 0.935 | AF18: 0.9 | AG18: 0.9 | AH18: 0.793037 | AI18: 0.7654025 | AJ18: 0.737768 | AK18: 0.7101335 | AL18: 0.682499 | AM18: 44.45072165 | AN18: =Z18*E18+($A$4-80)*AG18*$A$16/1000 -> 43.8457732 | AO18: =AA18*G18+($A$4-80)*AH18*$A$16/1000 -> 43.21608247 | AP18: 42.33247423 | AQ18: 41.42845361 | AR18: 40.50402062 | AS18: 39.55917526
B19: 63 | C19: 48.98969072 | D19: 47.52 | E19: 47.75257732 | F19: 46.79752577 | G19: 46.51546392 | H19: 46.05030928 | I19: 45.27835052 | J19: 45.05195876 | K19: 44.04123711 | L19: 44.04123711 | M19: 42.80412371 | N19: 42.80412371 | O19: 41.56701031 | P19: 41.56701031 | R19: 1.020618557 | S19: 0.9948453608 | T19: 0.9690721649 | U19: 0.9432989691 | V19: 0.9175257732 | W19: 0.8917525773 | X19: 0.8659793814 | Y19: 0.97 | Z19: 0.98 | AA19: 0.99 | AB19: 0.995 | AC19: 1 | AD19: 1 | AE19: 1 | AF19: 0.553538 | AG19: 0.516692 | AH19: 0.479846 | AI19: 0.461423 | AJ19: 0.443 | AK19: 0.443 | AL19: 0.443 | AM19: 47.52 | AN19: =Z19*E19+($A$4-80)*AG19*$A$16/1000 -> 46.79752577 | AO19: =AA19*G19+($A$4-80)*AH19*$A$16/1000 -> 46.05030928 | AP19: 45.05195876 | AQ19: 44.04123711 | AR19: 42.80412371 | AS19: 41.56701031

Sheet XC13_60 (hidden)
A2: XC13_60 | B2: 60
A3: Evaporator Air | C3: Condenser Entering Air Temperature ˚F
A4: 80 | B4: °F DB | C4: 85 | E4: 90 | G4: 95 | I4: 100 | K4: 105 | M4: 110 | O4: 115
A5: CFM | B5: EWB† ˚F | C5: Capacity Mbtuh | E5: Capacity Mbtuh | G5: Capacity Mbtuh | I5: Capacity Mbtuh | K5: Capacity Mbtuh | M5: Capacity Mbtuh | O5: Capacity Mbtuh
C6: Total | D6: Sens. | E6: Total | F6: Sens. | G6: Total | H6: Sens. | I6: Total | J6: Sens. | K6: Total | L6: Sens. | M6: Total | N6: Sens. | O6: Total | P6: Sens.
R7: Total Factors | Y7: Sens. % | AF7: IDB Adj | AM7: Sens Calc
A8: 1500 | B8: 71 | C8: =R8*$B$2 -> 65.04201681 | D8: =IF(AM8>C8,C8,AM8) -> 37.72436975 | E8: =S8*$B$2 -> 63.52941176 | F8: =IF(AN8>E8,E8,AN8) -> 36.84705882 | G8: =T8*$B$2 -> 62.01680672 | H8: =IF(AO8>G8,G8,AO8) -> 35.9697479 | I8: =U8*$B$2 -> 60.25210084 | J8: =IF(AP8>I8,I8,AP8) -> 35.5487395 | K8: =V8*$B$2 -> 58.48739496 | L8: =IF(AQ8>K8,K8,AQ8) -> 35.09243697 | M8: =W8*$B$2 -> 56.47058824 | N8: =IF(AR8>M8,M8,AR8) -> 34.16470588 | O8: =X8*$B$2 -> 54.45378151 | P8: =IF(AS8>O8,O8,AS8) -> 33.21680672 | R8: 1.084033613 | S8: 1.058823529 | T8: 1.033613445 | U8: 1.004201681 | V8: 0.974789916 | W8: 0.9411764706 | X8: 0.9075630252 | Y8: 0.58 | Z8: 0.58 | AA8: 0.58 | AB8: 0.59 | AC8: 0.6 | AD8: 0.605 | AE8: 0.61 | AF8: =IF(Y8<0.9,0.9,Y8*-3.6846+4.1276) -> 0.9 | AG8: =IF(Z8<0.9,0.9,Z8*-3.6846+4.1276) -> 0.9 | AH8: 0.9 | AI8: 0.9 | AJ8: 0.9 | AK8: 0.9 | AL8: 0.9 | AM8: =Y8*C8+($A$4-80)*AF8*$A$8/1000 -> 37.72436975 | AN8: =Z8*E8+($A$4-80)*AG8*$A$8/1000 -> 36.84705882 | AO8: =AA8*G8+($A$4-80)*AH8*$A$8/1000 -> 35.9697479 | AP8: =AB8*I8+($A$4-80)*AI8*$A$8/1000 -> 35.5487395 | AQ8: =AC8*K8+($A$4-80)*AJ8*$A$8/1000 -> 35.09243697 | AR8: =AD8*M8+($A$4-80)*AK8*$A$8/1000 -> 34.16470588 | AS8: =AE8*O8+($A$4-80)*AL8*$A$8/1000 -> 33.21680672
B9: 67 | C9: 61.51260504 | D9: 43.05882353 | E9: 60 | F9: =IF(AN9>E9,E9,AN9) -> 42.6 | G9: 58.48739496 | H9: =IF(AO9>G9,G9,AO9) -> 42.11092437 | I9: 56.97478992 | J9: =IF(AP9>I9,I9,AP9) -> 41.30672269 | K9: 55.46218487 | L9: =IF(AQ9>K9,K9,AQ9) -> 40.48739496 | M9: 53.69747899 | N9: =IF(AR9>M9,M9,AR9) -> 39.73613445 | O9: 51.93277311 | P9: =IF(AS9>O9,O9,AS9) -> 38.94957983 | R9: 1.025210084 | S9: 1 | T9: 0.974789916 | U9: 0.9495798319 | V9: 0.9243697479 | W9: 0.8949579832 | X9: 0.8655462185 | Y9: 0.7 | Z9: 0.71 | AA9: 0.72 | AB9: 0.725 | AC9: 0.73 | AD9: 0.74 | AE9: 0.75 | AF9: =IF(Y9<0.9,0.9,Y9*-3.6846+4.1276) -> 0.9 | AG9: 0.9 | AH9: 0.9 | AI9: 0.9 | AJ9: 0.9 | AK9: 0.9 | AL9: 0.9 | AM9: =Y9*C9+($A$4-80)*AF9*$A$8/1000 -> 43.05882353 | AN9: =Z9*E9+($A$4-80)*AG9*$A$8/1000 -> 42.6 | AO9: =AA9*G9+($A$4-80)*AH9*$A$8/1000 -> 42.11092437 | AP9: =AB9*I9+($A$4-80)*AI9*$A$8/1000 -> 41.30672269 | AQ9: =AC9*K9+($A$4-80)*AJ9*$A$8/1000 -> 40.48739496 | AR9: =AD9*M9+($A$4-80)*AK9*$A$8/1000 -> 39.73613445 | AS9: =AE9*O9+($A$4-80)*AL9*$A$8/1000 -> 38.94957983
B10: 65 | C10: 60 | D10: 46.2 | E10: 58.61344538 | F10: 45.71848739 | G10: 57.22689076 | H10: 45.2092437 | I10: 55.58823529 | J10: 44.33161765 | K10: 53.94957983 | L10: 43.42941176 | M10: 52.31092437 | N10: 42.76418067 | O10: 50.67226891 | P10: 42.05798319 | R10: 1 | S10: 0.9768907563 | T10: 0.9537815126 | U10: 0.9264705882 | V10: 0.8991596639 | W10: 0.8718487395 | X10: 0.8445378151 | Y10: 0.77 | Z10: 0.78 | AA10: 0.79 | AB10: 0.7975 | AC10: 0.805 | AD10: 0.8175 | AE10: 0.83 | AF10: 0.9 | AG10: 0.9 | AH10: 0.9 | AI10: 0.9 | AJ10: 0.9 | AK10: 0.9 | AL10: 0.9 | AM10: 46.2 | AN10: =Z10*E10+($A$4-80)*AG10*$A$8/1000 -> 45.71848739 | AO10: =AA10*G10+($A$4-80)*AH10*$A$8/1000 -> 45.2092437 | AP10: 44.33161765 | AQ10: 43.42941176 | AR10: 42.76418067 | AS10: 42.05798319
B11: 63 | C11: 58.48739496 | D11: 49.12941176 | E11: 57.22689076 | F11: 48.64285714 | G11: 55.96638655 | H11: 48.13109244 | I11: 54.20168067 | J11: 47.15546218 | K11: 52.43697479 | L11: 46.14453782 | M11: 50.92436975 | N11: 45.57731092 | O11: 49.41176471 | P11: 44.96470588 | R11: 0.974789916 | S11: 0.9537815126 | T11: 0.9327731092 | U11: 0.9033613445 | V11: 0.8739495798 | W11: 0.8487394958 | X11: 0.8235294118 | Y11: 0.84 | Z11: 0.85 | AA11: 0.86 | AB11: 0.87 | AC11: 0.88 | AD11: 0.895 | AE11: 0.91 | AF11: 0.9 | AG11: 0.9 | AH11: 0.9 | AI11: 0.9 | AJ11: 0.9 | AK11: 0.9 | AL11: 0.774614 | AM11: 49.12941176 | AN11: =Z11*E11+($A$4-80)*AG11*$A$8/1000 -> 48.64285714 | AO11: =AA11*G11+($A$4-80)*AH11*$A$8/1000 -> 48.13109244 | AP11: =AB11*I11+($A$4-80)*AI11*$A$8/1000 -> 47.15546218 | AQ11: 46.14453782 | AR11: 45.57731092 | AS11: 44.96470588
A12: 1700 | B12: 71 | C12: 66.55462185 | D12: 39.26722689 | E12: 65.04201681 | F12: 38.7 | G12: 63.52941176 | H12: 38.11764706 | I12: 61.51260504 | J12: 37.21512605 | K12: 59.49579832 | L12: 36.29243697 | M12: 57.4789916 | N12: 35.63697479 | O12: 55.46218487 | P12: 34.94117647 | R12: 1.109243697 | S12: 1.084033613 | T12: 1.058823529 | U12: 1.025210084 | V12: 0.9915966387 | W12: 0.9579831933 | X12: 0.9243697479 | Y12: 0.59 | Z12: 0.595 | AA12: 0.6 | AB12: 0.605 | AC12: 0.61 | AD12: 0.62 | AE12: 0.63 | AF12: 0.9 | AG12: 0.9 | AH12: 0.9 | AI12: 0.9 | AJ12: 0.9 | AK12: 0.9 | AL12: 0.9 | AM12: =Y12*C12+($A$4-80)*AF12*$A$12/1000 -> 39.26722689 | AN12: =Z12*E12+($A$4-80)*AG12*$A$12/1000 -> 38.7 | AO12: =AA12*G12+($A$4-80)*AH12*$A$12/1000 -> 38.11764706 | AP12: =AB12*I12+($A$4-80)*AI12*$A$12/1000 -> 37.21512605 | AQ12: =AC12*K12+($A$4-80)*AJ12*$A$12/1000 -> 36.29243697 | AR12: =AD12*M12+($A$4-80)*AK12*$A$12/1000 -> 35.63697479 | AS12: =AE12*O12+($A$4-80)*AL12*$A$12/1000 -> 34.94117647
B13: 67 | C13: 63.52941176 | D13: 45.74117647 | E13: 61.76470588 | F13: 45.08823529 | G13: 60 | H13: 44.4 | I13: 58.48739496 | J13: 43.86554622 | K13: 56.97478992 | L13: 43.30084034 | M13: 54.95798319 | N13: 42.31764706 | O13: 52.94117647 | P13: 41.29411765 | R13: 1.058823529 | S13: 1.029411765 | T13: 1 | U13: 0.974789916 | V13: 0.9495798319 | W13: 0.9159663866 | X13: 0.8823529412 | Y13: 0.72 | Z13: 0.73 | AA13: 0.74 | AB13: 0.75 | AC13: 0.76 | AD13: 0.77 | AE13: 0.78 | AF13: 0.9 | AG13: 0.9 | AH13: 0.9 | AI13: 0.9 | AJ13: 0.9 | AK13: 0.9 | AL13: 0.9 | AM13: =Y13*C13+($A$4-80)*AF13*$A$12/1000 -> 45.74117647 | AN13: =Z13*E13+($A$4-80)*AG13*$A$12/1000 -> 45.08823529 | AO13: =AA13*G13+($A$4-80)*AH13*$A$12/1000 -> 44.4 | AP13: =AB13*I13+($A$4-80)*AI13*$A$12/1000 -> 43.86554622 | AQ13: =AC13*K13+($A$4-80)*AJ13*$A$12/1000 -> 43.30084034 | AR13: =AD13*M13+($A$4-80)*AK13*$A$12/1000 -> 42.31764706 | AS13: =AE13*O13+($A$4-80)*AL13*$A$12/1000 -> 41.29411765
B14: 65 | C14: 62.01680672 | D14: 49.30336134 | E14: 60.37815126 | F14: 48.60441176 | G14: 58.7394958 | H14: 47.87268908 | I14: 57.10084034 | J14: 47.25094538 | K14: 55.46218487 | L14: 46.58823529 | M14: 53.57142857 | N14: 45.66964286 | O14: 51.68067227 | P14: 44.70378151 | R14: 1.033613445 | S14: 1.006302521 | T14: 0.9789915966 | U14: 0.9516806723 | V14: 0.9243697479 | W14: 0.8928571429 | X14: 0.8613445378 | Y14: 0.795 | Z14: 0.805 | AA14: 0.815 | AB14: 0.8275 | AC14: 0.84 | AD14: 0.8525 | AE14: 0.865 | AF14: 0.9 | AG14: 0.9 | AH14: 0.9 | AI14: 0.9 | AJ14: 0.9 | AK14: 0.9 | AL14: 0.9 | AM14: 49.30336134 | AN14: =Z14*E14+($A$4-80)*AG14*$A$12/1000 -> 48.60441176 | AO14: =AA14*G14+($A$4-80)*AH14*$A$12/1000 -> 47.87268908 | AP14: 47.25094538 | AQ14: 46.58823529 | AR14: 45.66964286 | AS14: 44.70378151
B15: 63 | C15: 60.50420168 | D15: 52.63865546 | E15: 58.99159664 | F15: 51.91260504 | G15: 57.4789916 | H15: 51.15630252 | I15: 55.71428571 | J15: 50.42142857 | K15: 53.94957983 | L15: 49.63361345 | M15: 52.18487395 | N15: 48.79285714 | O15: 50.42016807 | P15: 47.89915966 | R15: 1.008403361 | S15: 0.9831932773 | T15: 0.9579831933 | U15: 0.9285714286 | V15: 0.8991596639 | W15: 0.8697478992 | X15: 0.8403361345 | Y15: 0.87 | Z15: 0.88 | AA15: 0.89 | AB15: 0.905 | AC15: 0.92 | AD15: 0.935 | AE15: 0.95 | AF15: 0.9 | AG15: 0.9 | AH15: 0.9 | AI15: 0.793037 | AJ15: 0.737768 | AK15: 0.682499 | AL15: 0.62723 | AM15: 52.63865546 | AN15: =Z15*E15+($A$4-80)*AG15*$A$12/1000 -> 51.91260504 | AO15: =AA15*G15+($A$4-80)*AH15*$A$12/1000 -> 51.15630252 | AP15: 50.42142857 | AQ15: 49.63361345 | AR15: 48.79285714 | AS15: 47.89915966
A16: 1900 | B16: 71 | C16: 68.57142857 | D16: 41.14285714 | E16: 66.55462185 | F16: 40.26554622 | G16: 64.53781513 | H16: 39.36806723 | I16: 62.77310924 | J16: 38.91932773 | K16: 61.00840336 | L16: 38.43529412 | M16: 58.7394958 | N16: 37.29957983 | O16: 56.47058824 | P16: 36.14117647 | R16: 1.142857143 | S16: 1.109243697 | T16: 1.075630252 | U16: 1.046218487 | V16: 1.016806723 | W16: 0.9789915966 | X16: 0.9411764706 | Y16: 0.6 | Z16: 0.605 | AA16: 0.61 | AB16: 0.62 | AC16: 0.63 | AD16: 0.635 | AE16: 0.64 | AF16: 0.9 | AG16: 0.9 | AH16: 0.9 | AI16: 0.9 | AJ16: 0.9 | AK16: 0.9 | AL16: 0.9 | AM16: =Y16*C16+($A$4-80)*AF16*$A$16/1000 -> 41.14285714 | AN16: =Z16*E16+($A$4-80)*AG16*$A$16/1000 -> 40.26554622 | AO16: =AA16*G16+($A$4-80)*AH16*$A$16/1000 -> 39.36806723 | AP16: =AB16*I16+($A$4-80)*AI16*$A$16/1000 -> 38.91932773 | AQ16: =AC16*K16+($A$4-80)*AJ16*$A$16/1000 -> 38.43529412 | AR16: =AD16*M16+($A$4-80)*AK16*$A$16/1000 -> 37.29957983 | AS16: =AE16*O16+($A$4-80)*AL16*$A$16/1000 -> 36.14117647
B17: 67 | C17: 64.53781513 | D17: 47.75798319 | E17: 63.02521008 | F17: 47.26890756 | G17: 61.51260504 | H17: 46.74957983 | I17: 59.74789916 | J17: 46.00588235 | K17: 57.98319328 | L17: 45.22689076 | M17: 55.96638655 | N17: 44.49327731 | O17: 53.94957983 | P17: 43.69915966 | R17: 1.075630252 | S17: 1.050420168 | T17: 1.025210084 | U17: 0.9957983193 | V17: 0.9663865546 | W17: 0.9327731092 | X17: 0.8991596639 | Y17: 0.74 | Z17: 0.75 | AA17: 0.76 | AB17: 0.77 | AC17: 0.78 | AD17: 0.795 | AE17: 0.81 | AF17: 0.9 | AG17: 0.9 | AH17: 0.9 | AI17: 0.9 | AJ17: 0.9 | AK17: 0.9 | AL17: 0.9 | AM17: =Y17*C17+($A$4-80)*AF17*$A$16/1000 -> 47.75798319 | AN17: =Z17*E17+($A$4-80)*AG17*$A$16/1000 -> 47.26890756 | AO17: =AA17*G17+($A$4-80)*AH17*$A$16/1000 -> 46.74957983 | AP17: =AB17*I17+($A$4-80)*AI17*$A$16/1000 -> 46.00588235 | AQ17: =AC17*K17+($A$4-80)*AJ17*$A$16/1000 -> 45.22689076 | AR17: =AD17*M17+($A$4-80)*AK17*$A$16/1000 -> 44.49327731 | AS17: =AE17*O17+($A$4-80)*AL17*$A$16/1000 -> 43.69915966
B18: 65 | C18: 63.02521008 | D18: 51.68067227 | E18: 61.51260504 | F18: 51.05546218 | G18: 60 | H18: 50.4 | I18: 58.36134454 | J18: 49.75304622 | K18: 56.72268908 | L18: 49.06512605 | M18: 54.70588235 | N18: 48.27794118 | O18: 52.68907563 | P18: 47.42016807 | R18: 1.050420168 | S18: 1.025210084 | T18: 1 | U18: 0.9726890756 | V18: 0.9453781513 | W18: 0.9117647059 | X18: 0.8781512605 | Y18: 0.82 | Z18: 0.83 | AA18: 0.84 | AB18: 0.8525 | AC18: 0.865 | AD18: 0.8825 | AE18: 0.9 | AF18: 0.9 | AG18: 0.9 | AH18: 0.9 | AI18: 0.9 | AJ18: 0.9 | AK18: 0.9 | AL18: 0.81146 | AM18: 51.68067227 | AN18: =Z18*E18+($A$4-80)*AG18*$A$16/1000 -> 51.05546218 | AO18: =AA18*G18+($A$4-80)*AH18*$A$16/1000 -> 50.4 | AP18: 49.75304622 | AQ18: 49.06512605 | AR18: 48.27794118 | AS18: 47.42016807
B19: 63 | C19: 61.51260504 | D19: 55.36134454 | E19: 60 | F19: 54.6 | G19: 58.48739496 | H19: 53.80840336 | I19: 56.97478992 | J19: 53.27142857 | K19: 55.46218487 | L19: 52.68907563 | M19: 53.44537815 | N19: 51.84201681 | O19: 51.42857143 | P19: 50.91428571 | R19: 1.025210084 | S19: 1 | T19: 0.974789916 | U19: 0.9495798319 | V19: 0.9243697479 | W19: 0.8907563025 | X19: 0.8571428571 | Y19: 0.9 | Z19: 0.91 | AA19: 0.92 | AB19: 0.935 | AC19: 0.95 | AD19: 0.97 | AE19: 0.99 | AF19: 0.81146 | AG19: 0.774614 | AH19: 0.737768 | AI19: 0.682499 | AJ19: 0.62723 | AK19: 0.553538 | AL19: 0.479846 | AM19: 55.36134454 | AN19: =Z19*E19+($A$4-80)*AG19*$A$16/1000 -> 54.6 | AO19: =AA19*G19+($A$4-80)*AH19*$A$16/1000 -> 53.80840336 | AP19: 53.27142857 | AQ19: 52.68907563 | AR19: 51.84201681 | AS19: 50.91428571

Sheet XC14_18 (hidden)
A2: XC14_18 | B2: 18
A3: Evaporator Air | C3: Condenser Entering Air Temperature ˚F
A4: 80 | B4: °F DB | C4: 85 | E4: 90 | G4: 95 | I4: 100 | K4: 105 | M4: 110 | O4: 115
A5: CFM | B5: EWB† ˚F | C5: Capacity Mbtuh | E5: Capacity Mbtuh | G5: Capacity Mbtuh | I5: Capacity Mbtuh | K5: Capacity Mbtuh | M5: Capacity Mbtuh | O5: Capacity Mbtuh
C6: Total | D6: Sens. | E6: Total | F6: Sens. | G6: Total | H6: Sens. | I6: Total | J6: Sens. | K6: Total | L6: Sens. | M6: Total | N6: Sens. | O6: Total | P6: Sens.
R7: Total Factors | Y7: Sens. % | AF7: IDB Adj | AM7: Sens Calc
A8: 525 | B8: 71 | C8: =R8*$B$2 -> 19.35678392 | D8: =IF(AM8>C8,C8,AM8) -> 11.61407035 | E8: =S8*$B$2 -> 18.81407035 | F8: =IF(AN8>E8,E8,AN8) -> 11.19437186 | G8: =T8*$B$2 -> 18.27135678 | H8: =IF(AO8>G8,G8,AO8) -> 10.7801005 | I8: =U8*$B$2 -> 17.81909548 | J8: =IF(AP8>I8,I8,AP8) -> 10.78055276 | K8: =V8*$B$2 -> 17.36683417 | L8: =IF(AQ8>K8,K8,AQ8) -> 10.76743719 | M8: =W8*$B$2 -> 16.77889447 | N8: =IF(AR8>M8,M8,AR8) -> 10.40291457 | O8: =X8*$B$2 -> 16.19095477 | P8: =IF(AS8>O8,O8,AS8) -> 10.03839196 | R8: 1.075376884 | S8: 1.045226131 | T8: 1.015075377 | U8: 0.9899497487 | V8: 0.9648241206 | W8: 0.932160804 | X8: 0.8994974874 | Y8: 0.6 | Z8: 0.595 | AA8: 0.59 | AB8: 0.605 | AC8: 0.62 | AD8: 0.62 | AE8: 0.62 | AF8: =IF(Y8<0.9,0.9,Y8*-3.6846+4.1276) -> 0.9 | AG8: =IF(Z8<0.9,0.9,Z8*-3.6846+4.1276) -> 0.9 | AH8: 0.9 | AI8: 0.9 | AJ8: 0.9 | AK8: 0.9 | AL8: 0.9 | AM8: =Y8*C8+($A$4-80)*AF8*$A$8/1000 -> 11.61407035 | AN8: =Z8*E8+($A$4-80)*AG8*$A$8/1000 -> 11.19437186 | AO8: =AA8*G8+($A$4-80)*AH8*$A$8/1000 -> 10.7801005 | AP8: =AB8*I8+($A$4-80)*AI8*$A$8/1000 -> 10.78055276 | AQ8: =AC8*K8+($A$4-80)*AJ8*$A$8/1000 -> 10.76743719 | AR8: =AD8*M8+($A$4-80)*AK8*$A$8/1000 -> 10.40291457 | AS8: =AE8*O8+($A$4-80)*AL8*$A$8/1000 -> 10.03839196
B9: 67 | C9: 18.27135678 | D9: 13.52080402 | E9: 17.90954774 | F9: =IF(AN9>E9,E9,AN9) -> 13.4321608 | G9: 17.54773869 | H9: =IF(AO9>G9,G9,AO9) -> 13.33628141 | I9: 17.05025126 | J9: =IF(AP9>I9,I9,AP9) -> 13.04344221 | K9: 16.55276382 | L9: =IF(AQ9>K9,K9,AQ9) -> 12.74562814 | M9: 16.05527638 | N9: =IF(AR9>M9,M9,AR9) -> 12.60339196 | O9: 15.55778894 | P9: =IF(AS9>O9,O9,AS9) -> 12.44623116 | R9: 1.015075377 | S9: 0.9949748744 | T9: 0.9748743719 | U9: 0.9472361809 | V9: 0.9195979899 | W9: 0.891959799 | X9: 0.864321608 | Y9: 0.74 | Z9: 0.75 | AA9: 0.76 | AB9: 0.765 | AC9: 0.77 | AD9: 0.785 | AE9: 0.8 | AF9: =IF(Y9<0.9,0.9,Y9*-3.6846+4.1276) -> 0.9 | AG9: 0.9 | AH9: 0.9 | AI9: 0.9 | AJ9: 0.9 | AK9: 0.9 | AL9: 0.9 | AM9: =Y9*C9+($A$4-80)*AF9*$A$8/1000 -> 13.52080402 | AN9: =Z9*E9+($A$4-80)*AG9*$A$8/1000 -> 13.4321608 | AO9: =AA9*G9+($A$4-80)*AH9*$A$8/1000 -> 13.33628141 | AP9: =AB9*I9+($A$4-80)*AI9*$A$8/1000 -> 13.04344221 | AQ9: =AC9*K9+($A$4-80)*AJ9*$A$8/1000 -> 12.74562814 | AR9: =AD9*M9+($A$4-80)*AK9*$A$8/1000 -> 12.60339196 | AS9: =AE9*O9+($A$4-80)*AL9*$A$8/1000 -> 12.44623116
B10: 65 | C10: 17.86432161 | D10: 14.55942211 | E10: 17.45728643 | F10: 14.44590452 | G10: 17.05025126 | H10: 14.32221106 | I10: 16.59798995 | J10: 14.06679648 | K10: 16.14572864 | L10: 13.80459799 | M10: 15.64824121 | N10: 13.61396985 | O10: 15.15075377 | P10: 13.40841709 | R10: 0.9924623116 | S10: 0.9698492462 | T10: 0.9472361809 | U10: 0.9221105528 | V10: 0.8969849246 | W10: 0.8693467337 | X10: 0.8417085427 | Y10: 0.815 | Z10: 0.8275 | AA10: 0.84 | AB10: 0.8475 | AC10: 0.855 | AD10: 0.87 | AE10: 0.885 | AF10: 0.9 | AG10: 0.9 | AH10: 0.9 | AI10: 0.9 | AJ10: 0.9 | AK10: 0.9 | AL10: 0.9 | AM10: 14.55942211 | AN10: =Z10*E10+($A$4-80)*AG10*$A$8/1000 -> 14.44590452 | AO10: =AA10*G10+($A$4-80)*AH10*$A$8/1000 -> 14.32221106 | AP10: 14.06679648 | AQ10: 13.80459799 | AR10: 13.61396985 | AS10: 13.40841709
B11: 63 | C11: 17.45728643 | D11: 15.53698492 | E11: 17.00502513 | F11: 15.38954774 | G11: 16.55276382 | H11: 15.22854271 | I11: 16.14572864 | J11: 15.01552764 | K11: 15.73869347 | L11: 14.79437186 | M11: 15.24120603 | N11: 14.55535176 | O11: 14.74371859 | P11: 14.30140704 | R11: 0.9698492462 | S11: 0.9447236181 | T11: 0.9195979899 | U11: 0.8969849246 | V11: 0.8743718593 | W11: 0.8467336683 | X11: 0.8190954774 | Y11: 0.89 | Z11: 0.905 | AA11: 0.92 | AB11: 0.93 | AC11: 0.94 | AD11: 0.955 | AE11: 0.97 | AF11: 0.9 | AG11: 0.793037 | AH11: 0.737768 | AI11: 0.700922 | AJ11: 0.664076 | AK11: 0.608807 | AL11: 0.553538 | AM11: 15.53698492 | AN11: =Z11*E11+($A$4-80)*AG11*$A$8/1000 -> 15.38954774 | AO11: =AA11*G11+($A$4-80)*AH11*$A$8/1000 -> 15.22854271 | AP11: =AB11*I11+($A$4-80)*AI11*$A$8/1000 -> 15.01552764 | AQ11: 14.79437186 | AR11: 14.55535176 | AS11: 14.30140704
A12: 600 | B12: 71 | C12: 19.89949749 | D12: 12.13869347 | E12: 19.35678392 | F12: 12.00120603 | G12: 18.81407035 | H12: 11.85286432 | I12: 18.27135678 | J12: 11.51095477 | K12: 17.72864322 | L12: 11.16904523 | M12: 17.23115578 | N12: 11.11409548 | O12: 16.73366834 | P12: 11.04422111 | R12: 1.105527638 | S12: 1.075376884 | T12: 1.045226131 | U12: 1.015075377 | V12: 0.9849246231 | W12: 0.9572864322 | X12: 0.9296482412 | Y12: 0.61 | Z12: 0.62 | AA12: 0.63 | AB12: 0.63 | AC12: 0.63 | AD12: 0.645 | AE12: 0.66 | AF12: 0.9 | AG12: 0.9 | AH12: 0.9 | AI12: 0.9 | AJ12: 0.9 | AK12: 0.9 | AL12: 0.9 | AM12: =Y12*C12+($A$4-80)*AF12*$A$12/1000 -> 12.13869347 | AN12: =Z12*E12+($A$4-80)*AG12*$A$12/1000 -> 12.00120603 | AO12: =AA12*G12+($A$4-80)*AH12*$A$12/1000 -> 11.85286432 | AP12: =AB12*I12+($A$4-80)*AI12*$A$12/1000 -> 11.51095477 | AQ12: =AC12*K12+($A$4-80)*AJ12*$A$12/1000 -> 11.16904523 | AR12: =AD12*M12+($A$4-80)*AK12*$A$12/1000 -> 11.11409548 | AS12: =AE12*O12+($A$4-80)*AL12*$A$12/1000 -> 11.04422111
B13: 67 | C13: 18.99497487 | D13: 14.4361809 | E13: 18.49748744 | F13: 14.33555276 | G13: 18 | H13: 14.22 | I13: 17.50251256 | J13: 14.00201005 | K13: 17.00502513 | L13: 13.77407035 | M13: 16.46231156 | N13: 13.49909548 | O13: 15.91959799 | P13: 13.21326633 | R13: 1.055276382 | S13: 1.027638191 | T13: 1 | U13: 0.972361809 | V13: 0.9447236181 | W13: 0.9145728643 | X13: 0.8844221106 | Y13: 0.76 | Z13: 0.775 | AA13: 0.79 | AB13: 0.8 | AC13: 0.81 | AD13: 0.82 | AE13: 0.83 | AF13: 0.9 | AG13: 0.9 | AH13: 0.9 | AI13: 0.9 | AJ13: 0.9 | AK13: 0.9 | AL13: 0.9 | AM13: =Y13*C13+($A$4-80)*AF13*$A$12/1000 -> 14.4361809 | AN13: =Z13*E13+($A$4-80)*AG13*$A$12/1000 -> 14.33555276 | AO13: =AA13*G13+($A$4-80)*AH13*$A$12/1000 -> 14.22 | AP13: =AB13*I13+($A$4-80)*AI13*$A$12/1000 -> 14.00201005 | AQ13: =AC13*K13+($A$4-80)*AJ13*$A$12/1000 -> 13.77407035 | AR13: =AD13*M13+($A$4-80)*AK13*$A$12/1000 -> 13.49909548 | AS13: =AE13*O13+($A$4-80)*AL13*$A$12/1000 -> 13.21326633
B14: 65 | C14: 18.49748744 | D14: 15.72286432 | E14: 18.02261307 | F14: 15.54450377 | G14: 17.54773869 | H14: 15.35427136 | I14: 17.05025126 | J14: 15.13209799 | K14: 16.55276382 | L14: 14.89748744 | M14: 16.05527638 | N14: 14.57016332 | O14: 15.55778894 | P14: 14.23537688 | R14: 1.027638191 | S14: 1.001256281 | T14: 0.9748743719 | U14: 0.9472361809 | V14: 0.9195979899 | W14: 0.891959799 | X14: 0.864321608 | Y14: 0.85 | Z14: 0.8625 | AA14: 0.875 | AB14: 0.8875 | AC14: 0.9 | AD14: 0.9075 | AE14: 0.915 | AF14: 0.9 | AG14: 0.9 | AH14: 0.9 | AI14: 0.9 | AJ14: 0.81146 | AK14: 0.7838255 | AL14: 0.756191 | AM14: 15.72286432 | AN14: =Z14*E14+($A$4-80)*AG14*$A$12/1000 -> 15.54450377 | AO14: =AA14*G14+($A$4-80)*AH14*$A$12/1000 -> 15.35427136 | AP14: 15.13209799 | AQ14: 14.89748744 | AR14: 14.57016332 | AS14: 14.23537688
B15: 63 | C15: 18 | D15: 16.92 | E15: 17.54773869 | F15: 16.67035176 | G15: 17.09547739 | H15: 16.41165829 | I15: 16.59798995 | J15: 16.1830402 | K15: 16.10050251 | L15: 15.93949749 | M15: 15.64824121 | N15: 15.57 | O15: 15.1959799 | P15: 15.1959799 | R15: 1 | S15: 0.9748743719 | T15: 0.9497487437 | U15: 0.9221105528 | V15: 0.8944723618 | W15: 0.8693467337 | X15: 0.8442211055 | Y15: 0.94 | Z15: 0.95 | AA15: 0.96 | AB15: 0.975 | AC15: 0.99 | AD15: 0.995 | AE15: 1 | AF15: 0.664076 | AG15: 0.62723 | AH15: 0.590384 | AI15: 0.535115 | AJ15: 0.479846 | AK15: 0.461423 | AL15: 0.443 | AM15: 16.92 | AN15: =Z15*E15+($A$4-80)*AG15*$A$12/1000 -> 16.67035176 | AO15: =AA15*G15+($A$4-80)*AH15*$A$12/1000 -> 16.41165829 | AP15: 16.1830402 | AQ15: 15.93949749 | AR15: 15.57 | AS15: 15.1959799
A16: 675 | B16: 71 | C16: 20.26130653 | D16: 12.96723618 | E16: 19.80904523 | F16: 12.77683417 | G16: 19.35678392 | H16: 12.58190955 | I16: 18.81407035 | J16: 12.32321608 | K16: 18.27135678 | L16: 12.05909548 | M16: 17.68341709 | N16: 11.84788945 | O16: 17.09547739 | P16: 11.62492462 | R16: 1.125628141 | S16: 1.100502513 | T16: 1.075376884 | U16: 1.045226131 | V16: 1.015075377 | W16: 0.9824120603 | X16: 0.9497487437 | Y16: 0.64 | Z16: 0.645 | AA16: 0.65 | AB16: 0.655 | AC16: 0.66 | AD16: 0.67 | AE16: 0.68 | AF16: 0.9 | AG16: 0.9 | AH16: 0.9 | AI16: 0.9 | AJ16: 0.9 | AK16: 0.9 | AL16: 0.9 | AM16: =Y16*C16+($A$4-80)*AF16*$A$16/1000 -> 12.96723618 | AN16: =Z16*E16+($A$4-80)*AG16*$A$16/1000 -> 12.77683417 | AO16: =AA16*G16+($A$4-80)*AH16*$A$16/1000 -> 12.58190955 | AP16: =AB16*I16+($A$4-80)*AI16*$A$16/1000 -> 12.32321608 | AQ16: =AC16*K16+($A$4-80)*AJ16*$A$16/1000 -> 12.05909548 | AR16: =AD16*M16+($A$4-80)*AK16*$A$16/1000 -> 11.84788945 | AS16: =AE16*O16+($A$4-80)*AL16*$A$16/1000 -> 11.62492462
B17: 67 | C17: 19.35678392 | D17: 15.48542714 | E17: 18.90452261 | F17: 15.31266332 | G17: 18.45226131 | H17: 15.13085427 | I17: 17.90954774 | J17: 14.86492462 | K17: 17.36683417 | L17: 14.5881407 | M17: 16.77889447 | N17: 14.34595477 | O17: 16.19095477 | P17: 14.08613065 | R17: 1.075376884 | S17: 1.050251256 | T17: 1.025125628 | U17: 0.9949748744 | V17: 0.9648241206 | W17: 0.932160804 | X17: 0.8994974874 | Y17: 0.8 | Z17: 0.81 | AA17: 0.82 | AB17: 0.83 | AC17: 0.84 | AD17: 0.855 | AE17: 0.87 | AF17: 0.9 | AG17: 0.9 | AH17: 0.9 | AI17: 0.9 | AJ17: 0.9 | AK17: 0.9 | AL17: 0.9 | AM17: =Y17*C17+($A$4-80)*AF17*$A$16/1000 -> 15.48542714 | AN17: =Z17*E17+($A$4-80)*AG17*$A$16/1000 -> 15.31266332 | AO17: =AA17*G17+($A$4-80)*AH17*$A$16/1000 -> 15.13085427 | AP17: =AB17*I17+($A$4-80)*AI17*$A$16/1000 -> 14.86492462 | AQ17: =AC17*K17+($A$4-80)*AJ17*$A$16/1000 -> 14.5881407 | AR17: =AD17*M17+($A$4-80)*AK17*$A$16/1000 -> 14.34595477 | AS17: =AE17*O17+($A$4-80)*AL17*$A$16/1000 -> 14.08613065
B18: 65 | C18: 18.90452261 | D18: 16.82502513 | E18: 18.42964824 | F18: 16.58668342 | G18: 17.95477387 | H18: 16.33884422 | I18: 17.45728643 | J18: 15.97341709 | K18: 16.95979899 | L18: 15.60301508 | M18: 16.43969849 | N18: 15.24782035 | O18: 15.91959799 | P18: 14.88482412 | R18: 1.050251256 | S18: 1.023869347 | T18: 0.9974874372 | U18: 0.9698492462 | V18: 0.9422110553 | W18: 0.9133165829 | X18: 0.8844221106 | Y18: 0.89 | Z18: 0.9 | AA18: 0.91 | AB18: 0.915 | AC18: 0.92 | AD18: 0.9275 | AE18: 0.935 | AF18: 0.9 | AG18: 0.81146 | AH18: 0.774614 | AI18: 0.756191 | AJ18: 0.737768 | AK18: 0.7101335 | AL18: 0.682499 | AM18: 16.82502513 | AN18: =Z18*E18+($A$4-80)*AG18*$A$16/1000 -> 16.58668342 | AO18: =AA18*G18+($A$4-80)*AH18*$A$16/1000 -> 16.33884422 | AP18: 15.97341709 | AQ18: 15.60301508 | AR18: 15.24782035 | AS18: 14.88482412
B19: 63 | C19: 18.45226131 | D19: 18.08321608 | E19: 17.95477387 | F19: 17.77522613 | G19: 17.45728643 | H19: 17.45728643 | I19: 17.00502513 | J19: 17.00502513 | K19: 16.55276382 | L19: 16.55276382 | M19: 16.10050251 | N19: 16.10050251 | O19: 15.64824121 | P19: 15.64824121 | R19: 1.025125628 | S19: 0.9974874372 | T19: 0.9698492462 | U19: 0.9447236181 | V19: 0.9195979899 | W19: 0.8944723618 | X19: 0.8693467337 | Y19: 0.98 | Z19: 0.99 | AA19: 1 | AB19: 1 | AC19: 1 | AD19: 1 | AE19: 1 | AF19: 0.516692 | AG19: 0.479846 | AH19: 0.443 | AI19: 0.443 | AJ19: 0.443 | AK19: 0.443 | AL19: 0.443 | AM19: 18.08321608 | AN19: =Z19*E19+($A$4-80)*AG19*$A$16/1000 -> 17.77522613 | AO19: =AA19*G19+($A$4-80)*AH19*$A$16/1000 -> 17.45728643 | AP19: 17.00502513 | AQ19: 16.55276382 | AR19: 16.10050251 | AS19: 15.64824121

Sheet XC14_24 (hidden)
A2: XC14_24 | B2: 24
A3: Evaporator Air | C3: Condenser Entering Air Temperature ˚F
A4: 80 | B4: °F DB | C4: 85 | E4: 90 | G4: 95 | I4: 100 | K4: 105 | M4: 110 | O4: 115
A5: CFM | B5: EWB† ˚F | C5: Capacity Mbtuh | E5: Capacity Mbtuh | G5: Capacity Mbtuh | I5: Capacity Mbtuh | K5: Capacity Mbtuh | M5: Capacity Mbtuh | O5: Capacity Mbtuh
C6: Total | D6: Sens. | E6: Total | F6: Sens. | G6: Total | H6: Sens. | I6: Total | J6: Sens. | K6: Total | L6: Sens. | M6: Total | N6: Sens. | O6: Total | P6: Sens.
R7: Total Factors | Y7: Sens. % | AF7: IDB Adj | AM7: Sens Calc
A8: 700 | B8: 71 | C8: =R8*$B$2 -> 25.92 | D8: =IF(AM8>C8,C8,AM8) -> 15.2928 | E8: =S8*$B$2 -> 25.344 | F8: =IF(AN8>E8,E8,AN8) -> 15.2064 | G8: =T8*$B$2 -> 24.768 | H8: =IF(AO8>G8,G8,AO8) -> 15.10848 | I8: =U8*$B$2 -> 24.096 | J8: =IF(AP8>I8,I8,AP8) -> 14.81904 | K8: =V8*$B$2 -> 23.424 | L8: =IF(AQ8>K8,K8,AQ8) -> 14.52288 | M8: =W8*$B$2 -> 22.656 | N8: =IF(AR8>M8,M8,AR8) -> 14.27328 | O8: =X8*$B$2 -> 21.888 | P8: =IF(AS8>O8,O8,AS8) -> 14.00832 | R8: 1.08 | S8: 1.056 | T8: 1.032 | U8: 1.004 | V8: 0.976 | W8: 0.944 | X8: 0.912 | Y8: 0.59 | Z8: 0.6 | AA8: 0.61 | AB8: 0.615 | AC8: 0.62 | AD8: 0.63 | AE8: 0.64 | AF8: =IF(Y8<0.9,0.9,Y8*-3.6846+4.1276) -> 0.9 | AG8: =IF(Z8<0.9,0.9,Z8*-3.6846+4.1276) -> 0.9 | AH8: 0.9 | AI8: 0.9 | AJ8: 0.9 | AK8: 0.9 | AL8: 0.9 | AM8: =Y8*C8+($A$4-80)*AF8*$A$8/1000 -> 15.2928 | AN8: =Z8*E8+($A$4-80)*AG8*$A$8/1000 -> 15.2064 | AO8: =AA8*G8+($A$4-80)*AH8*$A$8/1000 -> 15.10848 | AP8: =AB8*I8+($A$4-80)*AI8*$A$8/1000 -> 14.81904 | AQ8: =AC8*K8+($A$4-80)*AJ8*$A$8/1000 -> 14.52288 | AR8: =AD8*M8+($A$4-80)*AK8*$A$8/1000 -> 14.27328 | AS8: =AE8*O8+($A$4-80)*AL8*$A$8/1000 -> 14.00832
